Workbook

Sheet Début

Sheet Introduction (hidden)
B9: Calc&Go - Artisan
B10: Quels sont vos objectifs financiers ?
B12: Le CSTC a développé un outil Excel simple et clair permettant aux artisans de définir leurs objectifs financiers. A cet effet, il vous sera possible de calculer de manière personnalisée les chiffres financiers importants pour votre activité. Ceci, de manière à correspondre au mieux à vos attentes, tant en terme d’objectifs financiers, qu’organisationnels.
B13: Sur la base de quelques questions simples sur les données et chiffres, différents montants sont calculés (temps estimé : 15 minutes). Le comptable peut également vous aider pour vous fournir les informations requises. Les plus importants étant le taux horaire à facturer et le chiffre d’affaires. Le tout basé sur le salaire mensuel net que l’artisan aimerait obtenir et le nombre de jours qu’il travaillerait sur une base annuelle. Avec ces éléments en main, il vous sera plus facile de faire des offres correctes.
B14: Au cours de l'année, il est également possible pour les artisans de vérifier s'ils respectent les objectifs financiers que vous vous serez fixés. À cette fin, un deuxième onglet a été ajouté à l'outil dans lequel le nombre réel d'heures facturées et les achats de matériaux et de matériel peuvent être introduits et analysés.
B15: Si vous désirez être guidés dans la démarche, vous pouvez contacter un des experts du CSTC via 'gebe@bbri.be' ou au '02 716 42 11'. Nous nous ferons un plaisir de vous assister dans cette aventure financière !

Sheet Calcul du tarif horaire (hidden)
B1: Qu'est ce que tu peux faire sur cet onglet? --> Réponds aux questions et lis les remarques. Si tu souhaites voir un exemple, tu peux utiliser ces boutons pour charger un exemple et aussi pour le supprimer complètement.
B2: étape 1 - Déterminer le salaire net mensuel
B4: Question 1 - Quel salaire net mensuel souhaitez-vous obtenir ?
B5: 2000 | D5: ←Pour info : Chaque fois que vous rencontrez un champ avec ce format, vous pouvez le compléter.
B6: Soit un revenu net annuel de : | F6: =12*B5 -> 24000 | G6: ←Pour info : Les champs avec ce format sont automatiquement calculés
B9: étape 2 - Déterminer le nombre de jours
B11: Remarque : Aux étapes 2 et 3, indiquez le nombre total de jours et d'heures que vous consacrez à votre entreprise, au sens le plus large du terme. Cela signifie donc non seulement le travail effectué chez le client, mais également toutes les autres activités dont vous êtes responsable en tant que gérant, telles que l'établissement d'offres et de factures, les visites chez le comptable, les achats, etc. En bref, tout ce qui concerne votre entreprise.
B16: Question 2 - Combien de samedis par an pensez-vous travailler ?
B17: 10
B18: Question 3 - Combien de dimanches par an pensez-vous travailler ?
B20: Question 4 - Combien de jours de congé pensez-vous prendre ? (excepté les samedis et dimanches | 1 semaine de vacances = 5 jours)
B21: 20
B22: Question 5 - Combien de jours fériés pensez-vous prendre ? (une année compte 10 jours fériés officiels)
B23: 10
B24: Question 6 - Désirez-vous prendre des jours de récupération ? (Une semaine de travail normale pour un ouvrier dans la construction est de 38 heures (il pourra récupérer 12 jours par an s’il travaille 40 heures par semaine)
B25: 5
B26: Question 7 - Combien de jours pensez-vous être malade ? (excepté les samedis et dimanches)
B28: Question 8 - Quel est le nombre de jours estimés qui ne pourra pas être presté pour cause d'intempéries ? (pour une année standard, excepté les samedis et dimanches)
B31: Selon ces informations, vous travailleriez au total | F31: =365-52-52-B21-B23-B25-B27-B29+B17+B19 -> 236 | G31: sur une année. | I31: Pour info : un ouvrier travaille maximum 219 jours sur une année.
B34: étape 3 - Déterminer le nombre d’heures
B36: Question 9 - Combien d'heures pensez-vous travailler par journée de travail ? (Voir la remarque de l’étape 2)
B37: 10
B38: Question 10 - Combien d'heures pensez-vous travailler le samedi ?
B39: 4
B40: Question 11 - Combien d'heures pensez-vous travailler le dimanche ?
B43: Selon ces informations, vous travailleriez au total | F43: =(365-52-52-B21-B23-B25-B27-B29)*B37+B17*B39+B19*B41 -> 2300 | G43: sur une année. | I43: Pour info : un ouvrier travaille maximum 1.752 heures sur une année.
B45: Remarque : Parmi ces heures prestées, combien d'entre elles pourront être valorisées ? En d’autres termes, combien de ces heures seront-elles facturées ET payées par les clients ? Les questions suivantes vous aideront à les déterminer.
B48: Question 12 - Combien d'heures par semaine pensez-vous effectuer des travaux non facturables ?
B49: 3 | D49: par semaine | E49: sur une année : | F49: =(52-($B$21+$B$23+$B$25+$B$27+$B$29)/5)*B49 -> 135 | G49: Pour info : les données introduites à l'étape 2 sont prises en compte.
B50: Question 13 - Combien d'heures par semaine pensez-vous perdre en raison d'une mauvaise estimation de la durée des tâches ?
B51: 2 | D51: par semaine | E51: sur une année : | F51: =(52-($B$21+$B$23+$B$25+$B$27+$B$29)/5)*B51 -> 90
B52: Question 14 - Combien d'heures par semaine pensez-vous perdre en raison des déplacements (y compris embouteillages) ?
B53: 1 | D53: par semaine | E53: sur une année : | F53: =(52-($B$21+$B$23+$B$25+$B$27+$B$29)/5)*B53 -> 45
B54: Question 15 - Combien d'heures par semaine pensez-vous consacrer aux tâches administratives ?
B55: 4 | D55: par semaine | E55: sur une année : | F55: =(52-($B$21+$B$23+$B$25+$B$27+$B$29)/5)*B55 -> 180
B57: Selon ces informations, vous travailleriez au total | F57: =F49+F51+F53+F55 -> 450 | G57: non facturables à vos clients.
B58: Soit un pourcentage de | F58: =IFERROR(F57/F43,"") -> 0.1956521739
B59: Les heures que vous factureriez s’élèvent à | F59: =F43-F57 -> 1850 | G59: par an (attention, une heure "facturée", ne signifie pas toujours "payée")
B60: Cela correspond à un pourcentage de | F60: =IFERROR(F59/F43,"") -> 0.8043478261
B62: ="Remarque : Le calcul ci-dessous est effectué entièrement en fonction des heures que vous prévoyez de facturer à vos clients. Dans ce cas "&F59&" heures." -> Remarque : Le calcul ci-dessous est effectué entièrement en fonction des heures que vous prévoyez de facturer à vos clients. Dans ce cas 1850 heures.
B66: étape 4 - Estimation des impôts dont vous devrez vous acquitter (y compris la taxe communale de 7 %)
B68: Question 16 - Quel est votre état civil ?
B69: célibataire
B70: =IF(B69="marié","Question 17 - Votre conjoint a-t-il des revenus ?","Question 17 - Non pertinent.") -> Question 17 - Non pertinent.
B72: Question 18 - Combien d’enfants avez-vous à votre charge ?
B73: 0
B75: Estimation des impôts à payer mensuellement : | F75: =IF(B71="non",'Berekening BV (Bruto->Netto)'!C72,'Berekening BV (Bruto->Netto)'!B72) -> 949.4320092 | G75: Économie maximale en cas de paiement anticipé : | L75: =IF(B71="non",'Berekening BV (Bruto->Netto)'!C68,'Berekening BV (Bruto->Netto)'!B68) -> 224.0609611
B76: Estimation des impôts à payer annuellement : | F76: =F75*12 -> 11393.18411
B79: étape 5 - Estimation des cotisations sociales à payer (y compris la cotisation spéciale pour la sécurité sociale)
B81: Question 19 - Quel est le pourcentage des frais de gestion pour votre caisse d'assurances sociales ?
B82: 0.0305 | J82: Exemples de frais de gestion (2020) :
J83: Liantis : 3,95 % | L83: Securex : 4,10 %
J84: Acerta : 3,05 % | L84: UCM : 4,05 %
J85: Group S : 3,90 % | L85: Partena : 4,25 %
J86: Xerius : 3,05 % | L86: CNH : 4,25 %
J87: Attentia : 3,95 % | L87: Entraide : 4,25 %
B89: Cotisations sociales à payer mensuellement : | F89: =IF((B5+F75)*12<'Gegevens sociale bijdrage &VAPZ'!B1,'Gegevens sociale bijdrage &VAPZ'!B2/3,IF(AND((B5+F75)*12>='Gegevens sociale bijdrage &VAPZ'!B1,(B5+F75)*12<='Gegevens sociale bijdrage &VAPZ'!M4),(B5+F75)*'Gegevens sociale bijdrage &VAPZ'!I4,IF(AND((B5+F75)*12>'Gegevens sociale bijdrage &VAPZ'!M4,(B5+F75)*12<='Gegevens sociale bijdrage &VAPZ'!M5),'Gegevens sociale bijdrage &VAPZ'!P4/12+(((B5+F75)*12-'Gegevens sociale bijdrage &VAPZ'!K5)*'Gegevens sociale bijdrage &VAPZ'!I5)/12,'Gegevens sociale bijdrage &VAPZ'!P5/12)))*(1+B82) -> 623.0748855
B90: Cotisations sociales à payer chaque trimestre : | F90: =F89*3 -> 1869.224657
B91: Cotisations sociales à payer annuellement : | F91: =F89*12 -> 7476.898626
B93: Nous sommes maintenant en mesure de calculer le coût d'une heure de travail (= salaire horaire)
B94: Coût total du travail = (étape 1 + étape 4 + étape 5) | E94: =F6+F76+F91 -> 42870.08274 | G94: =IFERROR(E94/E95,"") -> 23.1730177 | H94: correspond au coût d'une heure de travail.
B95: Nombre d’heures facturables = | E95: =F59 -> 1850
B98: étape 6 - Déterminer les coûts directs (CD)
B100: Remarque : Les Coûts Directs (CD) concernent les frais liés au projet, qui sont impactables et facturables à 100% aux clients et généralement associables à des postes du métré (installation de chantier comprise). Ils sont relatifs à la main d'oeuvre, aux matériaux, à la sous-traitance, au matériel, aux locations, à la gestion des déchets, ... Dans le tableau ci-dessous, il vous sera demandé d'introduire, sur base annuelle, tous projets confondus, les estimations de coûts pour les différentes catégories de coûts directs outre les coûts de la main d'oeuvre (précédemment calculés et repris automatiquement) Votre comptable peut certainement vous aider à cet égard. Si votre comptable n'est pas en mesure de vous aider, vous pouvez également appliquer la règle de trois. (Exemple : supposons que vous sachiez que vous dépensez en moyenne 3.000 € en achats de matériaux pour chaque projet et que vous réalisez environ 20 projets similaires. Dans ce cas, les achats de matériaux seront estimés à 60.000 €.)
B105: Question 20 - Quels sont vos coûts directs ? (sur base annuelle)
E107: coûts salariaux récupérés des questions précédentes ← | F107: Coûts salariaux : | G107: =F6+F76+F91 -> 42870.08274 | I107: =IFERROR(G107/$G$117,0) -> 0.4616134871
F108: Achats de matériaux : | G108: 45000 | I108: =IFERROR(G108/$G$117,0) -> 0.4845478616
F109: Coûts de sous-traitance : | G109: 5000 | I109: 0.05383865129
F110: Coûts de matériel (entreprise) : | I110: 0
F111: Autres coûts directs - gestion des déchets : | I111: 0
F112: Autres coûts directs - location de matériel : | I112: 0
F113: Autre coût direct 1 : | I113: 0
F114: Autre coût direct 2 : | I114: 0
F115: Autre coût direct 3 : | I115: 0
F116: Autre coût direct 4 : | I116: 0
F117: Total : | G117: =SUM(G107:H116) -> 92870.08274 | I117: 1
B120: étape 7 - Déterminer les coûts indirects (CI)
B121: Remarque : Les Coûts Indirects (CI) concernent les coûts n’étant pas directement liés à des projets. Autrement dit, tous les frais « généraux » ou dit « de fonctionnement » qui sont nécessaires à la vie de l’entreprise mais qui ne sont pas facturables aux clients de façon « directe ». Dans le tableau ci-dessous, il vous sera demandé d'introduire, sur base annuelle, les estimations de coûts pour les différentes catégories de coûts indirects. Votre comptable peut certainement vous aider à cet égard.
B122: Question 21 - Quels sont vos coûts indirects ? (sur base annuelle)
B124: Question 22 - Quel type de pension complémentaire choisissez-vous ? → | F124: PCLIS | G124: =IF(AND(F124="PCLI",(F6+F76)*'Gegevens sociale bijdrage &VAPZ'!B12<'Gegevens sociale bijdrage &VAPZ'!B11),(F6+F76)*'Gegevens sociale bijdrage &VAPZ'!B9,IF(AND(F124="PCLI",(F6+F76)*'Gegevens sociale bijdrage &VAPZ'!B9>='Gegevens sociale bijdrage &VAPZ'!B11),'Gegevens sociale bijdrage &VAPZ'!B11,IF(AND(F124="PCLIS",(F6+F76)*'Gegevens sociale bijdrage &VAPZ'!B10<'Gegevens sociale bijdrage &VAPZ'!B12),(F6+F76)*'Gegevens sociale bijdrage &VAPZ'!B10,IF(AND(F124="PCLIS",(F6+F76)*'Gegevens sociale bijdrage &VAPZ'!B10>='Gegevens sociale bijdrage &VAPZ'!B12),'Gegevens sociale bijdrage &VAPZ'!B12,0)))) -> 3326.959306 | I124: =IFERROR(G124/$G$166,0) -> 0.0830774896
D125: Comptable | G125: 3600 | I125: =IFERROR(G125/$G$166,0) -> 0.08989558783
D126: Véhicules (Amortissement ou leasing) | G126: 6000 | I126: 0.1498259797 | J126: Note : | K126: amortissable sur 5 ans
D127: Carburant véhicules | G127: 1800 | I127: 0.04494779392
D128: Assurances véhicules | G128: 1100 | I128: 0.02746809628
D129: Entretien, consommables (pneus, …) et réparations véhicules | G129: 800 | I129: 0.0199767973
D130: Taxes véhicules | G130: 180 | I130: 0.004494779392
D131: Car-wash, frais de parking et contrôle technique | G131: 200 | I131: 0.004994199324
B132: Frais de téléphonie (achat et abonnement) | G132: 610 | I132: 0.01523230794 | J132: Note : | K132: achat amortissable sur 3 ans
D133: Ordinateur portable et tablette | G133: 850 | I133: 0.02122534713 | J133: Note : | K133: achat amortissable sur 3 ans
D134: Frais de logiciel | G134: 500 | I134: 0.01248549831
B135: Inscription à la banque carrefour des entreprises et inscription à la T.V.A. | G135: 144.5 | I135: 0.003608309012
B136: Outillage (échelle, brouette, marteau, ...) | G136: 2500 | I136: 0.06242749155
B137: Petit matériel électrique (visseuse, meuleuse, perceuse, ...) | G137: 1500 | I137: 0.03745649493
D138: Frais des locaux (loyer bureau, entretien des locaux, énergies, ...) | G138: 6000 | I138: 0.1498259797
D139: Avocat | G139: 450 | I139: 0.01123694848
D140: Publicité, promotion, impression et sponsoring | G140: 250 | I140: 0.006242749155
D141: Site Internet | G141: 500 | I141: 0.01248549831
D142: Assurances (RC, incendie, etc.) | G142: 1500 | I142: 0.03745649493
D143: Assurance-vie / assurance groupe | G143: 2500 | I143: 0.06242749155
B144: Assurance hospitalisation, assurance revenu garanti | G144: 1350 | I144: 0.03371084544
D145: Coûts financiers | G145: 250 | I145: 0.006242749155
B146: Frais administratifs (timbres, courriers recommandé, papier, fournitures de bureau) | G146: 150 | I146: 0.003745649493
D147: Formations | G147: 300 | I147: 0.007491298986
D148: Gestion déchets de l'entreprise | G148: 500 | I148: 0.01248549831
D149: Frais de représentation | G149: 650 | I149: 0.0162311478
B150: Cotisations à des associations (association professionnelle, CSTC, ...) | G150: 360 | I150: 0.008989558783
D151: Taxes provinciales | G151: 375 | I151: 0.009364123733
D152: Frais de restaurant | G152: 500 | I152: 0.01248549831
D153: Consultance | G153: 800 | I153: 0.0199767973
D154: Vêtements de travail | G154: 350 | I154: 0.008739848817
D155: Frais de cantine | G155: 150 | I155: 0.003745649493
D156: Autre coût indirect 1 | I156: 0
D157: Autre coût indirect 2 | I157: 0
D158: Autre coût indirect 3 | I158: 0
D159: Autre coût indirect 4 | I159: 0
D160: Autre coût indirect 5 | I160: 0
D161: Autre coût indirect 6 | I161: 0
D162: Autre coût indirect 7 | I162: 0
D163: Autre coût indirect 8 | I163: 0
D164: Autre coût indirect 9 | I164: 0
D165: Autre coût indirect 10 | I165: 0
F166: Total : | G166: =SUM(G124:H165) -> 40046.45931 | I166: 1
B168: COUVERTURE DES COUTS = | F168: =G166/G117 -> 0.4312094716
B171: Remarque : La couverture des coûts traduit la clé de répartition nécessaire à la couverture des frais généraux (coûts indirects). Il indique le pourcentage minimum que vous devez ajouter à vos coûts directs (CD) pour pouvoir payer tous vos coûts indirects (CI). En d’autres termes, les coûts de main d'oeuvre, de matériaux, de sous-traitance, ... (autrement dit, tous les coûts directs CD)) devront être majoré par ce pourcentage.
B177: étape 8 - Personnaliser les pourcentages de majoration pour la couverture des coûts indirects (facultatif)
B179: Remarque : Il n'est pas toujours judicieux d'appliquer un coefficient de majoration unique à tous les coûts directs. Cette manière de procéder risque fort d'entraîner un écart par rapport aux prix du marché. Il vous appartiendra donc de définir vos propres coefficients, qui présentent certes le même but que l'utilisation du pourcentage de majoration unique. Il est préférable de se baser sur les ristournes reçues auprès de chacun de vos fournisseurs afin de définir les clés qui leur seront associées. (Exemple : une ristourne de fournisseur de 20 % correspond un pourcentage de majoration de 25 %). Retrouvez ce tableau dans l'onglet « relation réduction & majoration ». Une fois les pourcentages de majoration appliqués, un calcul est automatiquement effectué pour déterminer la part de coûts indirects encore non récupérée. Pour récupérer cette part, il conviendra de prévoir un supplément sur la main d'oeuvre (calculé automatiquement dans le tableau ci-dessous). Plus ce supplément sera élevé, plus le montant à facturer par heure à vos clients sera élevé lui aussi.
B189: Question 23 - Désirez-vous personnaliser les pourcentages de majoration que vous souhaitez prendre sur les coûts directs ?
G191: % de majoration unique | J191: OU % de majoration personnalisés | M191: Tarif horaire (prix de revient pour 1 heure)
G192: Majoration | H192: Montant (CI) | J192: Majoration | K192: Montant (CI)
B193: ="Sur "&F107&" (€ "&ROUND(G107,0)&")" -> Sur Coûts salariaux : (€ 42870) | G193: =$F$168 -> 0.4312094716 | H193: =G193*G107 -> 18485.98573 | J193: =IFERROR($K$193/$G$107,0) -> 0.7125355809 | K193: =G166-SUM(K194:L202) -> 30546.45931
B194: Sur Achats de matériaux : (€ 45000) | G194: =$F$168 -> 0.4312094716 | H194: 19404.42622 | J194: 0.2 | K194: =J194*G108 -> 9000
B195: Sur Coûts de sous-traitance : (€ 5000) | G195: 0.4312094716 | H195: 2156.047358 | J195: 0.1 | K195: 500
B196: Sur Coûts de matériel (entreprise) : (€ 0) | G196: 0.4312094716 | H196: 0 | K196: 0
B197: Sur Autres coûts directs - gestion des déchets : (€ 0) | G197: 0.4312094716 | H197: 0 | K197: 0
B198: Sur Autres coûts directs - location de matériel : (€ 0) | G198: 0.4312094716 | H198: 0 | K198: 0 | M198: =IFERROR(G94+G94*J193,"info manque") -> 39.68461732
B199: Sur Autre coût direct 1 : (€ 0) | G199: 0.4312094716 | H199: 0 | K199: 0
B200: Sur Autre coût direct 2 : (€ 0) | G200: 0.4312094716 | H200: 0 | K200: 0
B201: Sur Autre coût direct 3 : (€ 0) | G201: 0.4312094716 | H201: 0 | K201: 0
B202: Sur Autre coût direct 4 : (€ 0) | G202: 0.4312094716 | H202: 0 | K202: 0 | M202: Changez vos % → le taux horaire changera.
B203: Total général des coûts indirects remboursés : | H203: =SUM(H193:I202) -> 40046.45931 | J203: = | K203: =SUM(K193:L202) -> 40046.45931
B206: étape 9 - Résumé
B208: Chiffre d’affaires final que vous souhaitez atteindre : | G208: =G117+G166 -> 132916.542
B209: Pour ce faire, vous travailleriez : | G209: =F43 -> 2300
B210: Pour ce faire, vous factureriez : | G210: =F59 -> 1850
B211: Nombre de jours que vous presteriez : | G211: =F31 -> 236
B212: Chiffre d’affaires quotidien que vous souhaitez réaliser : | G212: =G208/G211 -> 563.2056866
B214: Chaque jour, vous travailleriez en moyenne : | G214: =G209/G211 -> 9.745762712
B215: Chaque jour, vous factureriez en moyenne : | G215: =G210/G211 -> 7.838983051
B216: Nombre d'heures travaillées moyen par jour NON facturée : | G216: =G214-G215 -> 1.906779661
B218: Votre salaire net souhaité : | G218: =B5 -> 2000
B219: Tarif horaire net : | G219: =IFERROR(F6/F59,"") -> 12.97297297
B220: Coût d'une heure de travail (coût direct) : | G220: =G94 -> 23.1730177
B221: Tarif horaire à demander à vos clients (prix de vente) : | G221: =M198 -> 39.68461732
B223: Moyenne à facturer chaque jour : | G223: =IFERROR(G215*G221,"") -> 311.0870426 | I223: en main d'œuvre
G224: =(G108*(1+J194))/G211 -> 228.8135593 | I224: en matériaux
G225: =((G109*(1+J195))+(G110*(1+J196))+(G111*(1+J197))+(G112*(1+J198))+(G113*(1+J199))+(G114*(1+J200))+(G115*(1+J201))+(G116*(1+J202)))/G211 -> 23.30508475 | I225: pour les autres coûts directs
B227: Moyenne à payer chaque jour : | G227: =G108/G211 -> 190.6779661 | I227: en matériaux
B228: Vous devez valoriser chaque jour : | G228: =G166/G211 -> 169.6883869 | I228: pour vos coûts indirects

Sheet Tableau de suivi (hidden)
B2: Remarque : Les onglets précédents sont basés sur un certain nombre d'hypothèses, nous allons désormais vous proposer de suivre l'évolution des chiffres réels. L'objectif de cet onglet consiste à suivre vos estimations, de préférence au moins une fois par mois. Un suivi régulier permet de confirmer si vous êtes sur la bonne voie et de procéder à des ajustements si nécessaire.
B8: Définissez l'année comptable : | D8: 2022
B10: Matériaux - suivi des achats | G10: Main d'œuvre - suivi des heures facturables
B11: Sur base annuelle : | D11: ='Calcul du tarif horaire'!G108 -> 45000 | G11: =B11 -> Sur base annuelle : | I11: ='Calcul du tarif horaire'!E95 -> 1850
B12: =D8 -> 2022 | C12: Objectif mensuel | D12: Réalisé | E12: OK/PAS OK | G12: =B12 -> 2022 | H12: =C12 -> Objectif mensuel | I12: =D12 -> Réalisé | J12: =E12 -> OK/PAS OK | M12: Heures effectivement travaillées (au sens large)
B13: Janvier | C13: =$D$11/12 -> 3750 | E13: =IF('Tableau de suivi'!$D13>='Tableau de suivi'!$C13,"OK","PAS OK") -> PAS OK | G13: =B13 -> Janvier | H13: =$I$11/12 -> 154.1666667 | I13: =TRANSPOSE(Gefactureerde_uren) -> 0 | J13: =IF('Tableau de suivi'!$I13>='Tableau de suivi'!$H13,"OK","PAS OK") -> PAS OK | M13: ='Encodage des heures prestées'!E39 -> 0 | N13: ="en "&B13 -> en Janvier | O13: Pour info : Les champs vert clair contiennent des formules liées à la page "Encodage des heures prestées", mais peuvent être remplacés manuellement si vous le souhaitez.
B14: Févier | C14: =$D$11/12 -> 3750 | E14: =IF('Tableau de suivi'!$D14>='Tableau de suivi'!$C14,"OK","PAS OK") -> PAS OK | G14: =B14 -> Févier | H14: 154.1666667 | I14: 0 | J14: =IF('Tableau de suivi'!$I14>='Tableau de suivi'!$H14,"OK","PAS OK") -> PAS OK | M14: ='Encodage des heures prestées'!E69 -> 0 | N14: ="en "&B14 -> en Févier
B15: Mars | C15: 3750 | E15: =IF('Tableau de suivi'!$D15>='Tableau de suivi'!$C15,"OK","PAS OK") -> PAS OK | G15: Mars | H15: 154.1666667 | I15: 0 | J15: =IF('Tableau de suivi'!$I15>='Tableau de suivi'!$H15,"OK","PAS OK") -> PAS OK | M15: ='Encodage des heures prestées'!E101 -> 0 | N15: ="en "&B15 -> en Mars
B16: Avril | C16: 3750 | E16: =IF('Tableau de suivi'!$D16>='Tableau de suivi'!$C16,"OK","PAS OK") -> PAS OK | G16: Avril | H16: 154.1666667 | I16: 0 | J16: =IF('Tableau de suivi'!$I16>='Tableau de suivi'!$H16,"OK","PAS OK") -> PAS OK | M16: ='Encodage des heures prestées'!E132 -> 0 | N16: en Avril
B17: Mai | C17: 3750 | E17: =IF('Tableau de suivi'!$D17>='Tableau de suivi'!$C17,"OK","PAS OK") -> PAS OK | G17: Mai | H17: 154.1666667 | I17: 0 | J17: =IF('Tableau de suivi'!$I17>='Tableau de suivi'!$H17,"OK","PAS OK") -> PAS OK | M17: ='Encodage des heures prestées'!E164 -> 0 | N17: en Mai
B18: Juin | C18: 3750 | E18: =IF('Tableau de suivi'!$D18>='Tableau de suivi'!$C18,"OK","PAS OK") -> PAS OK | G18: Juin | H18: 154.1666667 | I18: 0 | J18: =IF('Tableau de suivi'!$I18>='Tableau de suivi'!$H18,"OK","PAS OK") -> PAS OK | M18: ='Encodage des heures prestées'!E195 -> 0 | N18: en Juin
B19: Juillet | C19: 3750 | E19: =IF('Tableau de suivi'!$D19>='Tableau de suivi'!$C19,"OK","PAS OK") -> PAS OK | G19: Juillet | H19: 154.1666667 | I19: 0 | J19: =IF('Tableau de suivi'!$I19>='Tableau de suivi'!$H19,"OK","PAS OK") -> PAS OK | M19: ='Encodage des heures prestées'!E227 -> 0 | N19: en Juillet
B20: Août | C20: 3750 | E20: =IF('Tableau de suivi'!$D20>='Tableau de suivi'!$C20,"OK","PAS OK") -> PAS OK | G20: Août | H20: 154.1666667 | I20: 0 | J20: =IF('Tableau de suivi'!$I20>='Tableau de suivi'!$H20,"OK","PAS OK") -> PAS OK | M20: ='Encodage des heures prestées'!E259 -> 0 | N20: en Août
B21: Septembre | C21: 3750 | E21: =IF('Tableau de suivi'!$D21>='Tableau de suivi'!$C21,"OK","PAS OK") -> PAS OK | G21: Septembre | H21: 154.1666667 | I21: 0 | J21: =IF('Tableau de suivi'!$I21>='Tableau de suivi'!$H21,"OK","PAS OK") -> PAS OK | M21: ='Encodage des heures prestées'!E290 -> 0 | N21: en Septembre
B22: Octobre | C22: 3750 | E22: =IF('Tableau de suivi'!$D22>='Tableau de suivi'!$C22,"OK","PAS OK") -> PAS OK | G22: Octobre | H22: 154.1666667 | I22: 0 | J22: =IF('Tableau de suivi'!$I22>='Tableau de suivi'!$H22,"OK","PAS OK") -> PAS OK | M22: ='Encodage des heures prestées'!E322 -> 0 | N22: en Octobre
B23: Novembre | C23: 3750 | E23: =IF('Tableau de suivi'!$D23>='Tableau de suivi'!$C23,"OK","PAS OK") -> PAS OK | G23: Novembre | H23: 154.1666667 | I23: 0 | J23: =IF('Tableau de suivi'!$I23>='Tableau de suivi'!$H23,"OK","PAS OK") -> PAS OK | M23: ='Encodage des heures prestées'!E353 -> 0 | N23: en Novembre
B24: Décembre | C24: 3750 | E24: =IF('Tableau de suivi'!$D24>='Tableau de suivi'!$C24,"OK","PAS OK") -> PAS OK | G24: Décembre | H24: 154.1666667 | I24: 0 | J24: =IF('Tableau de suivi'!$I24>='Tableau de suivi'!$H24,"OK","PAS OK") -> PAS OK | M24: ='Encodage des heures prestées'!E385 -> 0 | N24: en Décembre
B25: TOTAL : | C25: =SUMIF(D13:D24,"<>",C13:C24) -> 0 | D25: =SUM(D13:D24) -> 0 | E25: =D25-C25 -> 0 | G25: =B25 -> TOTAL : | H25: =SUMIF(I13:I24,"<>0",H13:H24) -> 0 | I25: =SUM(I13:I24) -> 0 | J25: =I25-H25 -> 0 | M25: =SUM(M13:M24) -> 0 | N25: =I25-M25 -> 0
E26: =IF(E25>0,"en avance", "en retard") -> en retard | J26: =IF(J25>0,"en avance", "en retard") -> en retard | N26: =IF(N25>0,"moins travaillé que reçu", "plus travaillé que reçu") -> plus travaillé que reçu
B28: Chiffre d'affaires - suivi facturation clients | G28: Coûts indirects - suivi des frais généraux
B29: =B11 -> Sur base annuelle : | D29: ='Calcul du tarif horaire'!G208 -> 132916.542 | G29: =B11 -> Sur base annuelle : | I29: ='Calcul du tarif horaire'!G166 -> 40046.45931
B30: =B12 -> 2022 | C30: =C12 -> Objectif mensuel | D30: =D12 -> Réalisé | E30: =E12 -> OK/PAS OK | G30: =B12 -> 2022 | H30: =C12 -> Objectif mensuel | I30: =D12 -> Réalisé | J30: =E12 -> OK/PAS OK
B31: =B13 -> Janvier | C31: =$D$29/12 -> 11076.3785 | E31: =IF('Tableau de suivi'!$D31>='Tableau de suivi'!$C31,"OK","PAS OK") -> PAS OK | G31: =B13 -> Janvier | H31: =$I$29/12 -> 3337.204942 | J31: =IF('Tableau de suivi'!$I31<='Tableau de suivi'!$H31,"OK","PAS OK") -> OK
B32: =B14 -> Févier | C32: =$D$29/12 -> 11076.3785 | E32: =IF('Tableau de suivi'!$D32>='Tableau de suivi'!$C32,"OK","PAS OK") -> PAS OK | G32: =B14 -> Févier | H32: =$I$29/12 -> 3337.204942 | J32: =IF('Tableau de suivi'!$I32<='Tableau de suivi'!$H32,"OK","PAS OK") -> OK
B33: Mars | C33: 11076.3785 | E33: =IF('Tableau de suivi'!$D33>='Tableau de suivi'!$C33,"OK","PAS OK") -> PAS OK | G33: Mars | H33: 3337.204942 | J33: =IF('Tableau de suivi'!$I33<='Tableau de suivi'!$H33,"OK","PAS OK") -> OK
B34: Avril | C34: 11076.3785 | E34: =IF('Tableau de suivi'!$D34>='Tableau de suivi'!$C34,"OK","PAS OK") -> PAS OK | G34: Avril | H34: 3337.204942 | J34: =IF('Tableau de suivi'!$I34<='Tableau de suivi'!$H34,"OK","PAS OK") -> OK
B35: Mai | C35: 11076.3785 | E35: =IF('Tableau de suivi'!$D35>='Tableau de suivi'!$C35,"OK","PAS OK") -> PAS OK | G35: Mai | H35: 3337.204942 | J35: =IF('Tableau de suivi'!$I35<='Tableau de suivi'!$H35,"OK","PAS OK") -> OK
B36: Juin | C36: 11076.3785 | E36: =IF('Tableau de suivi'!$D36>='Tableau de suivi'!$C36,"OK","PAS OK") -> PAS OK | G36: Juin | H36: 3337.204942 | J36: =IF('Tableau de suivi'!$I36<='Tableau de suivi'!$H36,"OK","PAS OK") -> OK
B37: Juillet | C37: 11076.3785 | E37: =IF('Tableau de suivi'!$D37>='Tableau de suivi'!$C37,"OK","PAS OK") -> PAS OK | G37: Juillet | H37: 3337.204942 | J37: =IF('Tableau de suivi'!$I37<='Tableau de suivi'!$H37,"OK","PAS OK") -> OK
B38: Août | C38: 11076.3785 | E38: =IF('Tableau de suivi'!$D38>='Tableau de suivi'!$C38,"OK","PAS OK") -> PAS OK | G38: Août | H38: 3337.204942 | J38: =IF('Tableau de suivi'!$I38<='Tableau de suivi'!$H38,"OK","PAS OK") -> OK
B39: Septembre | C39: 11076.3785 | E39: =IF('Tableau de suivi'!$D39>='Tableau de suivi'!$C39,"OK","PAS OK") -> PAS OK | G39: Septembre | H39: 3337.204942 | J39: =IF('Tableau de suivi'!$I39<='Tableau de suivi'!$H39,"OK","PAS OK") -> OK
B40: Octobre | C40: 11076.3785 | E40: =IF('Tableau de suivi'!$D40>='Tableau de suivi'!$C40,"OK","PAS OK") -> PAS OK | G40: Octobre | H40: 3337.204942 | J40: =IF('Tableau de suivi'!$I40<='Tableau de suivi'!$H40,"OK","PAS OK") -> OK
B41: Novembre | C41: 11076.3785 | E41: =IF('Tableau de suivi'!$D41>='Tableau de suivi'!$C41,"OK","PAS OK") -> PAS OK | G41: Novembre | H41: 3337.204942 | J41: =IF('Tableau de suivi'!$I41<='Tableau de suivi'!$H41,"OK","PAS OK") -> OK
B42: Décembre | C42: 11076.3785 | E42: =IF('Tableau de suivi'!$D42>='Tableau de suivi'!$C42,"OK","PAS OK") -> PAS OK | G42: Décembre | H42: 3337.204942 | J42: =IF('Tableau de suivi'!$I42<='Tableau de suivi'!$H42,"OK","PAS OK") -> OK
B43: =B25 -> TOTAL : | C43: =SUMIF(D31:D42,"<>",C31:C42) -> 0 | D43: =SUM(D31:D42) -> 0 | E43: =D43-C43 -> 0 | G43: =B25 -> TOTAL : | H43: =SUMIF(I31:I42,"<>",H31:H42) -> 0 | I43: =SUM(I31:I42) -> 0 | J43: =H43-I43 -> 0
E44: =IF(E43>0,"en avance", "en retard") -> en retard | J44: =IF(J43>0,"moins de coûts indirects", "plus de coûts indirects") -> plus de coûts indirects
B46: Sous-traitance - suivi des coûts | G46: Autres coûts directs - suivi des coûts
B47: =B11 -> Sur base annuelle : | D47: ='Calcul du tarif horaire'!G109 -> 5000 | G47: =B11 -> Sur base annuelle : | I47: =SUM('Calcul du tarif horaire'!G110:G116) -> 0
B48: =B30 -> 2022 | C48: =C12 -> Objectif mensuel | D48: =D12 -> Réalisé | E48: =E12 -> OK/PAS OK | G48: =G30 -> 2022 | H48: =C12 -> Objectif mensuel | I48: =D12 -> Réalisé | J48: =E12 -> OK/PAS OK
B49: =B13 -> Janvier | C49: =$D$47/12 -> 416.6666667 | E49: =IF('Tableau de suivi'!$D49>='Tableau de suivi'!$C49,"OK","PAS OK") -> PAS OK | G49: =B13 -> Janvier | H49: =$I$47/12 -> 0 | J49: =IF('Tableau de suivi'!$I49>='Tableau de suivi'!$H49,"OK","PAS OK") -> OK
B50: =B14 -> Févier | C50: =$D$47/12 -> 416.6666667 | E50: =IF('Tableau de suivi'!$D50>='Tableau de suivi'!$C50,"OK","PAS OK") -> PAS OK | G50: =B14 -> Févier | H50: =$I$47/12 -> 0 | J50: =IF('Tableau de suivi'!$I50>='Tableau de suivi'!$H50,"OK","PAS OK") -> OK
B51: Mars | C51: 416.6666667 | E51: =IF('Tableau de suivi'!$D51>='Tableau de suivi'!$C51,"OK","PAS OK") -> PAS OK | G51: Mars | H51: 0 | J51: =IF('Tableau de suivi'!$I51>='Tableau de suivi'!$H51,"OK","PAS OK") -> OK
B52: Avril | C52: 416.6666667 | E52: =IF('Tableau de suivi'!$D52>='Tableau de suivi'!$C52,"OK","PAS OK") -> PAS OK | G52: Avril | H52: 0 | J52: =IF('Tableau de suivi'!$I52>='Tableau de suivi'!$H52,"OK","PAS OK") -> OK
B53: Mai | C53: 416.6666667 | E53: =IF('Tableau de suivi'!$D53>='Tableau de suivi'!$C53,"OK","PAS OK") -> PAS OK | G53: Mai | H53: 0 | J53: =IF('Tableau de suivi'!$I53>='Tableau de suivi'!$H53,"OK","PAS OK") -> OK
B54: Juin | C54: 416.6666667 | E54: =IF('Tableau de suivi'!$D54>='Tableau de suivi'!$C54,"OK","PAS OK") -> PAS OK | G54: Juin | H54: 0 | J54: =IF('Tableau de suivi'!$I54>='Tableau de suivi'!$H54,"OK","PAS OK") -> OK
B55: Juillet | C55: 416.6666667 | E55: =IF('Tableau de suivi'!$D55>='Tableau de suivi'!$C55,"OK","PAS OK") -> PAS OK | G55: Juillet | H55: 0 | J55: =IF('Tableau de suivi'!$I55>='Tableau de suivi'!$H55,"OK","PAS OK") -> OK
B56: Août | C56: 416.6666667 | E56: =IF('Tableau de suivi'!$D56>='Tableau de suivi'!$C56,"OK","PAS OK") -> PAS OK | G56: Août | H56: 0 | J56: =IF('Tableau de suivi'!$I56>='Tableau de suivi'!$H56,"OK","PAS OK") -> OK
B57: Septembre | C57: 416.6666667 | E57: =IF('Tableau de suivi'!$D57>='Tableau de suivi'!$C57,"OK","PAS OK") -> PAS OK | G57: Septembre | H57: 0 | J57: =IF('Tableau de suivi'!$I57>='Tableau de suivi'!$H57,"OK","PAS OK") -> OK
B58: Octobre | C58: 416.6666667 | E58: =IF('Tableau de suivi'!$D58>='Tableau de suivi'!$C58,"OK","PAS OK") -> PAS OK | G58: Octobre | H58: 0 | J58: =IF('Tableau de suivi'!$I58>='Tableau de suivi'!$H58,"OK","PAS OK") -> OK
B59: Novembre | C59: 416.6666667 | E59: =IF('Tableau de suivi'!$D59>='Tableau de suivi'!$C59,"OK","PAS OK") -> PAS OK | G59: Novembre | H59: 0 | J59: =IF('Tableau de suivi'!$I59>='Tableau de suivi'!$H59,"OK","PAS OK") -> OK
B60: Décembre | C60: 416.6666667 | E60: =IF('Tableau de suivi'!$D60>='Tableau de suivi'!$C60,"OK","PAS OK") -> PAS OK | G60: Décembre | H60: 0 | J60: =IF('Tableau de suivi'!$I60>='Tableau de suivi'!$H60,"OK","PAS OK") -> OK
B61: =B25 -> TOTAL : | C61: =SUMIF(D49:D60,"<>",C49:C60) -> 0 | D61: =SUM(D49:D60) -> 0 | E61: =D61-C61 -> 0 | G61: =B25 -> TOTAL : | H61: =SUMIF(I49:I60,"<>",H49:H60) -> 0 | I61: =SUM(I49:I60) -> 0 | J61: =I61-H61 -> 0
E62: =IF(E61>0,"en avance", "en retard") -> en retard | J62: =IF(J61>0,"en avance", "en retard") -> en retard

Sheet Suivi des heures facturées (hidden)
B2: Remarque : Ce tableau vous permet de savoir combien d'heures vous avez effectivement facturées et si ces heures correspondent à vos estimations. Dans une première étape, entrez les données de votre projet. Les champs "Nombre d'heures prévues" et "Montant total du projet/travail supplémentaire" sont obligatoires pour que cette page fonctionne correctement. Si vous cliquez sur le symbole « plus » à l'extrême gauche de cette feuille Excel , vous pouvez lister les factures par projet. Les champs "Date de la facture" et "Montant de la facture" sont obligatoires pour un fonctionnement correct de cette page. Regardez attentivement les 2 exemples, cela rendra certainement les choses plus claires. Les champs grisés ne sont pas pertinents et ne doivent pas être remplis. Tous les autres champs sont automatiquement remplis ou calculés.
B7: mois de départ de l'année comptable : | E7: janvier | F7: Année comptable : | I7: ='Tableau de suivi'!D8 -> 2022 | J7: Total --> | K7: =IFERROR(SUM(K11:K199928),0) -> 0 | L7: =IFERROR(SUM(L11:L199928),0) -> 0 | M7: 0 | N7: 0 | O7: 0 | P7: 0 | Q7: 0 | R7: 0 | S7: 0 | T7: 0 | U7: 0 | V7: 0
B8: Numéro projet | C8: Date de début du projet | D8: Description projets / avenants | E8: Nombre d'heures estimées | F8: Prix de vente projet (Avenants compris) HTVA | H8: ="% objectif "&$I$7 -> % objectif 2022 | I8: Heures déjà facturées | K8: ="facturé en "&E7 -> facturé en janvier | L8: ="facturé en "&TEXT(DATE(2000,MONTH(DATEVALUE($E$7&" 1"))+1,1),"mmmm") ->  | M8: ="facturé en "&TEXT(DATE(2000,MONTH(DATEVALUE($E$7&" 1"))+2,1),"mmmm") ->  | N8: ="facturé en "&TEXT(DATE(2000,MONTH(DATEVALUE($E$7&" 1"))+3,1),"mmmm") ->  | O8: ="facturé en "&TEXT(DATE(2000,MONTH(DATEVALUE($E$7&" 1"))+4,1),"mmmm") ->  | P8: ="facturé en "&TEXT(DATE(2000,MONTH(DATEVALUE($E$7&" 1"))+5,1),"mmmm") ->  | Q8: ="facturé en "&TEXT(DATE(2000,MONTH(DATEVALUE($E$7&" 1"))+6,1),"mmmm") ->  | R8: ="facturé en "&TEXT(DATE(2000,MONTH(DATEVALUE($E$7&" 1"))+7,1),"mmmm") ->  | S8: ="facturé en "&TEXT(DATE(2000,MONTH(DATEVALUE($E$7&" 1"))+8,1),"mmmm") ->  | T8: ="facturé en "&TEXT(DATE(2000,MONTH(DATEVALUE($E$7&" 1"))+9,1),"mmmm") ->  | U8: ="facturé en "&TEXT(DATE(2000,MONTH(DATEVALUE($E$7&" 1"))+10,1),"mmmm") ->  | V8: ="facturé en "&TEXT(DATE(2000,MONTH(DATEVALUE($E$7&" 1"))+11,1),"mmmm") ->  | W8: contrôle
H9: =IFERROR(I9/E9,0) -> 0 | I9: =SUM(I10:J20) -> 0 | W9: =IF(H9<>100%,"Pas ok","ok") -> Pas ok
B10: réf. Facture | C10: date facture | D10: Description facture | E10: Montant facture (HTVA)
I11: =SUM(K11:V11) -> 0 | K11: =IF(ISBLANK(C11),"",IF(MONTH(C11)=MONTH(DATEVALUE($E$7&" 1")),E11/F9*E9,"")) ->  | L11: =IF(ISBLANK(C11),"",IF(MONTH(C11)=MONTH(DATEVALUE(TEXT(DATE(2000,MONTH(DATEVALUE($E$7&" 1"))+1,1),"mmmm")&" 1")),E11/F9*E9,"")) ->  | M11: =IF(ISBLANK(C11),"",IF(MONTH(C11)=MONTH(DATEVALUE(TEXT(DATE(2000,MONTH(DATEVALUE($E$7&" 1"))+2,1),"mmmm")&" 1")),E11/F9*E9,"")) ->  | N11: =IF(ISBLANK(C11),"",IF(MONTH(C11)=MONTH(DATEVALUE(TEXT(DATE(2000,MONTH(DATEVALUE($E$7&" 1"))+3,1),"mmmm")&" 1")),E11/F9*E9,"")) ->  | O11: =IF(ISBLANK(C11),"",IF(MONTH(C11)=MONTH(DATEVALUE(TEXT(DATE(2000,MONTH(DATEVALUE($E$7&" 1"))+4,1),"mmmm")&" 1")),E11/F9*E9,"")) ->  | P11: =IF(ISBLANK(C11),"",IF(MONTH(C11)=MONTH(DATEVALUE(TEXT(DATE(2000,MONTH(DATEVALUE($E$7&" 1"))+5,1),"mmmm")&" 1")),E11/F9*E9,"")) ->  | Q11: =IF(ISBLANK(C11),"",IF(MONTH(C11)=MONTH(DATEVALUE(TEXT(DATE(2000,MONTH(DATEVALUE($E$7&" 1"))+6,1),"mmmm")&" 1")),E11/F9*E9,"")) ->  | R11: =IF(ISBLANK(C11),"",IF(MONTH(C11)=MONTH(DATEVALUE(TEXT(DATE(2000,MONTH(DATEVALUE($E$7&" 1"))+7,1),"mmmm")&" 1")),E11/F9*E9,"")) ->  | S11: =IF(ISBLANK(C11),"",IF(MONTH(C11)=MONTH(DATEVALUE(TEXT(DATE(2000,MONTH(DATEVALUE($E$7&" 1"))+8,1),"mmmm")&" 1")),E11/F9*E9,"")) ->  | T11: =IF(ISBLANK(C11),"",IF(MONTH(C11)=MONTH(DATEVALUE(TEXT(DATE(2000,MONTH(DATEVALUE($E$7&" 1"))+9,1),"mmmm")&" 1")),E11/F9*E9,"")) ->  | U11: =IF(ISBLANK(C11),"",IF(MONTH(C11)=MONTH(DATEVALUE(TEXT(DATE(2000,MONTH(DATEVALUE($E$7&" 1"))+10,1),"mmmm")&" 1")),E11/F9*E9,"")) ->  | V11: =IF(ISBLANK(C11),"",IF(MONTH(C11)=MONTH(DATEVALUE(TEXT(DATE(2000,MONTH(DATEVALUE($E$7&" 1"))+11,1),"mmmm")&" 1")),E11/F9*E9,"")) -> 
I12: 0 | K12: =IF(ISBLANK(C12),"",IF(MONTH(C12)=MONTH(DATEVALUE($E$7&" 1")),E12/F9*E9,"")) ->  | L12: =IF(ISBLANK(C12),"",IF(MONTH(C12)=MONTH(DATEVALUE(TEXT(DATE(2000,MONTH(DATEVALUE($E$7&" 1"))+1,1),"mmmm")&" 1")),E12/F9*E9,"")) ->  | M12: =IF(ISBLANK(C12),"",IF(MONTH(C12)=MONTH(DATEVALUE(TEXT(DATE(2000,MONTH(DATEVALUE($E$7&" 1"))+2,1),"mmmm")&" 1")),E12/F9*E9,"")) ->  | N12: =IF(ISBLANK(C12),"",IF(MONTH(C12)=MONTH(DATEVALUE(TEXT(DATE(2000,MONTH(DATEVALUE($E$7&" 1"))+3,1),"mmmm")&" 1")),E12/F9*E9,"")) ->  | O12: =IF(ISBLANK(C12),"",IF(MONTH(C12)=MONTH(DATEVALUE(TEXT(DATE(2000,MONTH(DATEVALUE($E$7&" 1"))+4,1),"mmmm")&" 1")),E12/F9*E9,"")) ->  | P12: =IF(ISBLANK(C12),"",IF(MONTH(C12)=MONTH(DATEVALUE(TEXT(DATE(2000,MONTH(DATEVALUE($E$7&" 1"))+5,1),"mmmm")&" 1")),E12/F9*E9,"")) ->  | Q12: =IF(ISBLANK(C12),"",IF(MONTH(C12)=MONTH(DATEVALUE(TEXT(DATE(2000,MONTH(DATEVALUE($E$7&" 1"))+6,1),"mmmm")&" 1")),E12/F9*E9,"")) ->  | R12: =IF(ISBLANK(C12),"",IF(MONTH(C12)=MONTH(DATEVALUE(TEXT(DATE(2000,MONTH(DATEVALUE($E$7&" 1"))+7,1),"mmmm")&" 1")),E12/F9*E9,"")) ->  | S12: =IF(ISBLANK(C12),"",IF(MONTH(C12)=MONTH(DATEVALUE(TEXT(DATE(2000,MONTH(DATEVALUE($E$7&" 1"))+8,1),"mmmm")&" 1")),E12/F9*E9,"")) ->  | T12: =IF(ISBLANK(C12),"",IF(MONTH(C12)=MONTH(DATEVALUE(TEXT(DATE(2000,MONTH(DATEVALUE($E$7&" 1"))+9,1),"mmmm")&" 1")),E12/F9*E9,"")) ->  | U12: =IF(ISBLANK(C12),"",IF(MONTH(C12)=MONTH(DATEVALUE(TEXT(DATE(2000,MONTH(DATEVALUE($E$7&" 1"))+10,1),"mmmm")&" 1")),E12/F9*E9,"")) ->  | V12: =IF(ISBLANK(C12),"",IF(MONTH(C12)=MONTH(DATEVALUE(TEXT(DATE(2000,MONTH(DATEVALUE($E$7&" 1"))+11,1),"mmmm")&" 1")),E12/F9*E9,"")) -> 
I13: 0 | K13: =IF(ISBLANK(C13),"",IF(MONTH(C13)=MONTH(DATEVALUE($E$7&" 1")),E13/F9*E9,"")) ->  | L13: =IF(ISBLANK(C13),"",IF(MONTH(C13)=MONTH(DATEVALUE(TEXT(DATE(2000,MONTH(DATEVALUE($E$7&" 1"))+1,1),"mmmm")&" 1")),E13/F9*E9,"")) ->  | M13: =IF(ISBLANK(C13),"",IF(MONTH(C13)=MONTH(DATEVALUE(TEXT(DATE(2000,MONTH(DATEVALUE($E$7&" 1"))+2,1),"mmmm")&" 1")),E13/F9*E9,"")) ->  | N13: =IF(ISBLANK(C13),"",IF(MONTH(C13)=MONTH(DATEVALUE(TEXT(DATE(2000,MONTH(DATEVALUE($E$7&" 1"))+3,1),"mmmm")&" 1")),E13/F9*E9,"")) ->  | O13: =IF(ISBLANK(C13),"",IF(MONTH(C13)=MONTH(DATEVALUE(TEXT(DATE(2000,MONTH(DATEVALUE($E$7&" 1"))+4,1),"mmmm")&" 1")),E13/F9*E9,"")) ->  | P13: =IF(ISBLANK(C13),"",IF(MONTH(C13)=MONTH(DATEVALUE(TEXT(DATE(2000,MONTH(DATEVALUE($E$7&" 1"))+5,1),"mmmm")&" 1")),E13/F9*E9,"")) ->  | Q13: =IF(ISBLANK(C13),"",IF(MONTH(C13)=MONTH(DATEVALUE(TEXT(DATE(2000,MONTH(DATEVALUE($E$7&" 1"))+6,1),"mmmm")&" 1")),E13/F9*E9,"")) ->  | R13: =IF(ISBLANK(C13),"",IF(MONTH(C13)=MONTH(DATEVALUE(TEXT(DATE(2000,MONTH(DATEVALUE($E$7&" 1"))+7,1),"mmmm")&" 1")),E13/F9*E9,"")) ->  | S13: =IF(ISBLANK(C13),"",IF(MONTH(C13)=MONTH(DATEVALUE(TEXT(DATE(2000,MONTH(DATEVALUE($E$7&" 1"))+8,1),"mmmm")&" 1")),E13/F9*E9,"")) ->  | T13: =IF(ISBLANK(C13),"",IF(MONTH(C13)=MONTH(DATEVALUE(TEXT(DATE(2000,MONTH(DATEVALUE($E$7&" 1"))+9,1),"mmmm")&" 1")),E13/F9*E9,"")) ->  | U13: =IF(ISBLANK(C13),"",IF(MONTH(C13)=MONTH(DATEVALUE(TEXT(DATE(2000,MONTH(DATEVALUE($E$7&" 1"))+10,1),"mmmm")&" 1")),E13/F9*E9,"")) ->  | V13: =IF(ISBLANK(C13),"",IF(MONTH(C13)=MONTH(DATEVALUE(TEXT(DATE(2000,MONTH(DATEVALUE($E$7&" 1"))+11,1),"mmmm")&" 1")),E13/F9*E9,"")) -> 
I14: 0 | K14: =IF(ISBLANK(C14),"",IF(MONTH(C14)=MONTH(DATEVALUE($E$7&" 1")),E14/F9*E9,"")) ->  | L14: =IF(ISBLANK(C14),"",IF(MONTH(C14)=MONTH(DATEVALUE(TEXT(DATE(2000,MONTH(DATEVALUE($E$7&" 1"))+1,1),"mmmm")&" 1")),E14/F9*E9,"")) ->  | M14: =IF(ISBLANK(C14),"",IF(MONTH(C14)=MONTH(DATEVALUE(TEXT(DATE(2000,MONTH(DATEVALUE($E$7&" 1"))+2,1),"mmmm")&" 1")),E14/F9*E9,"")) ->  | N14: =IF(ISBLANK(C14),"",IF(MONTH(C14)=MONTH(DATEVALUE(TEXT(DATE(2000,MONTH(DATEVALUE($E$7&" 1"))+3,1),"mmmm")&" 1")),E14/F9*E9,"")) ->  | O14: =IF(ISBLANK(C14),"",IF(MONTH(C14)=MONTH(DATEVALUE(TEXT(DATE(2000,MONTH(DATEVALUE($E$7&" 1"))+4,1),"mmmm")&" 1")),E14/F9*E9,"")) ->  | P14: =IF(ISBLANK(C14),"",IF(MONTH(C14)=MONTH(DATEVALUE(TEXT(DATE(2000,MONTH(DATEVALUE($E$7&" 1"))+5,1),"mmmm")&" 1")),E14/F9*E9,"")) ->  | Q14: =IF(ISBLANK(C14),"",IF(MONTH(C14)=MONTH(DATEVALUE(TEXT(DATE(2000,MONTH(DATEVALUE($E$7&" 1"))+6,1),"mmmm")&" 1")),E14/F9*E9,"")) ->  | R14: =IF(ISBLANK(C14),"",IF(MONTH(C14)=MONTH(DATEVALUE(TEXT(DATE(2000,MONTH(DATEVALUE($E$7&" 1"))+7,1),"mmmm")&" 1")),E14/F9*E9,"")) ->  | S14: =IF(ISBLANK(C14),"",IF(MONTH(C14)=MONTH(DATEVALUE(TEXT(DATE(2000,MONTH(DATEVALUE($E$7&" 1"))+8,1),"mmmm")&" 1")),E14/F9*E9,"")) ->  | T14: =IF(ISBLANK(C14),"",IF(MONTH(C14)=MONTH(DATEVALUE(TEXT(DATE(2000,MONTH(DATEVALUE($E$7&" 1"))+9,1),"mmmm")&" 1")),E14/F9*E9,"")) ->  | U14: =IF(ISBLANK(C14),"",IF(MONTH(C14)=MONTH(DATEVALUE(TEXT(DATE(2000,MONTH(DATEVALUE($E$7&" 1"))+10,1),"mmmm")&" 1")),E14/F9*E9,"")) ->  | V14: =IF(ISBLANK(C14),"",IF(MONTH(C14)=MONTH(DATEVALUE(TEXT(DATE(2000,MONTH(DATEVALUE($E$7&" 1"))+11,1),"mmmm")&" 1")),E14/F9*E9,"")) -> 
I15: 0 | K15: =IF(ISBLANK(C15),"",IF(MONTH(C15)=MONTH(DATEVALUE($E$7&" 1")),E15/F9*E9,"")) ->  | L15: =IF(ISBLANK(C15),"",IF(MONTH(C15)=MONTH(DATEVALUE(TEXT(DATE(2000,MONTH(DATEVALUE($E$7&" 1"))+1,1),"mmmm")&" 1")),E15/F9*E9,"")) ->  | M15: =IF(ISBLANK(C15),"",IF(MONTH(C15)=MONTH(DATEVALUE(TEXT(DATE(2000,MONTH(DATEVALUE($E$7&" 1"))+2,1),"mmmm")&" 1")),E15/F9*E9,"")) ->  | N15: =IF(ISBLANK(C15),"",IF(MONTH(C15)=MONTH(DATEVALUE(TEXT(DATE(2000,MONTH(DATEVALUE($E$7&" 1"))+3,1),"mmmm")&" 1")),E15/F9*E9,"")) ->  | O15: =IF(ISBLANK(C15),"",IF(MONTH(C15)=MONTH(DATEVALUE(TEXT(DATE(2000,MONTH(DATEVALUE($E$7&" 1"))+4,1),"mmmm")&" 1")),E15/F9*E9,"")) ->  | P15: =IF(ISBLANK(C15),"",IF(MONTH(C15)=MONTH(DATEVALUE(TEXT(DATE(2000,MONTH(DATEVALUE($E$7&" 1"))+5,1),"mmmm")&" 1")),E15/F9*E9,"")) ->  | Q15: =IF(ISBLANK(C15),"",IF(MONTH(C15)=MONTH(DATEVALUE(TEXT(DATE(2000,MONTH(DATEVALUE($E$7&" 1"))+6,1),"mmmm")&" 1")),E15/F9*E9,"")) ->  | R15: =IF(ISBLANK(C15),"",IF(MONTH(C15)=MONTH(DATEVALUE(TEXT(DATE(2000,MONTH(DATEVALUE($E$7&" 1"))+7,1),"mmmm")&" 1")),E15/F9*E9,"")) ->  | S15: =IF(ISBLANK(C15),"",IF(MONTH(C15)=MONTH(DATEVALUE(TEXT(DATE(2000,MONTH(DATEVALUE($E$7&" 1"))+8,1),"mmmm")&" 1")),E15/F9*E9,"")) ->  | T15: =IF(ISBLANK(C15),"",IF(MONTH(C15)=MONTH(DATEVALUE(TEXT(DATE(2000,MONTH(DATEVALUE($E$7&" 1"))+9,1),"mmmm")&" 1")),E15/F9*E9,"")) ->  | U15: =IF(ISBLANK(C15),"",IF(MONTH(C15)=MONTH(DATEVALUE(TEXT(DATE(2000,MONTH(DATEVALUE($E$7&" 1"))+10,1),"mmmm")&" 1")),E15/F9*E9,"")) ->  | V15: =IF(ISBLANK(C15),"",IF(MONTH(C15)=MONTH(DATEVALUE(TEXT(DATE(2000,MONTH(DATEVALUE($E$7&" 1"))+11,1),"mmmm")&" 1")),E15/F9*E9,"")) -> 
I16: 0 | K16: =IF(ISBLANK(C16),"",IF(MONTH(C16)=MONTH(DATEVALUE($E$7&" 1")),E16/F9*E9,"")) ->  | L16: =IF(ISBLANK(C16),"",IF(MONTH(C16)=MONTH(DATEVALUE(TEXT(DATE(2000,MONTH(DATEVALUE($E$7&" 1"))+1,1),"mmmm")&" 1")),E16/F9*E9,"")) ->  | M16: =IF(ISBLANK(C16),"",IF(MONTH(C16)=MONTH(DATEVALUE(TEXT(DATE(2000,MONTH(DATEVALUE($E$7&" 1"))+2,1),"mmmm")&" 1")),E16/F9*E9,"")) ->  | N16: =IF(ISBLANK(C16),"",IF(MONTH(C16)=MONTH(DATEVALUE(TEXT(DATE(2000,MONTH(DATEVALUE($E$7&" 1"))+3,1),"mmmm")&" 1")),E16/F9*E9,"")) ->  | O16: =IF(ISBLANK(C16),"",IF(MONTH(C16)=MONTH(DATEVALUE(TEXT(DATE(2000,MONTH(DATEVALUE($E$7&" 1"))+4,1),"mmmm")&" 1")),E16/F9*E9,"")) ->  | P16: =IF(ISBLANK(C16),"",IF(MONTH(C16)=MONTH(DATEVALUE(TEXT(DATE(2000,MONTH(DATEVALUE($E$7&" 1"))+5,1),"mmmm")&" 1")),E16/F9*E9,"")) ->  | Q16: =IF(ISBLANK(C16),"",IF(MONTH(C16)=MONTH(DATEVALUE(TEXT(DATE(2000,MONTH(DATEVALUE($E$7&" 1"))+6,1),"mmmm")&" 1")),E16/F9*E9,"")) ->  | R16: =IF(ISBLANK(C16),"",IF(MONTH(C16)=MONTH(DATEVALUE(TEXT(DATE(2000,MONTH(DATEVALUE($E$7&" 1"))+7,1),"mmmm")&" 1")),E16/F9*E9,"")) ->  | S16: =IF(ISBLANK(C16),"",IF(MONTH(C16)=MONTH(DATEVALUE(TEXT(DATE(2000,MONTH(DATEVALUE($E$7&" 1"))+8,1),"mmmm")&" 1")),E16/F9*E9,"")) ->  | T16: =IF(ISBLANK(C16),"",IF(MONTH(C16)=MONTH(DATEVALUE(TEXT(DATE(2000,MONTH(DATEVALUE($E$7&" 1"))+9,1),"mmmm")&" 1")),E16/F9*E9,"")) ->  | U16: =IF(ISBLANK(C16),"",IF(MONTH(C16)=MONTH(DATEVALUE(TEXT(DATE(2000,MONTH(DATEVALUE($E$7&" 1"))+10,1),"mmmm")&" 1")),E16/F9*E9,"")) ->  | V16: =IF(ISBLANK(C16),"",IF(MONTH(C16)=MONTH(DATEVALUE(TEXT(DATE(2000,MONTH(DATEVALUE($E$7&" 1"))+11,1),"mmmm")&" 1")),E16/F9*E9,"")) -> 
I17: 0 | K17: =IF(ISBLANK(C17),"",IF(MONTH(C17)=MONTH(DATEVALUE($E$7&" 1")),E17/F9*E9,"")) ->  | L17: =IF(ISBLANK(C17),"",IF(MONTH(C17)=MONTH(DATEVALUE(TEXT(DATE(2000,MONTH(DATEVALUE($E$7&" 1"))+1,1),"mmmm")&" 1")),E17/F9*E9,"")) ->  | M17: =IF(ISBLANK(C17),"",IF(MONTH(C17)=MONTH(DATEVALUE(TEXT(DATE(2000,MONTH(DATEVALUE($E$7&" 1"))+2,1),"mmmm")&" 1")),E17/F9*E9,"")) ->  | N17: =IF(ISBLANK(C17),"",IF(MONTH(C17)=MONTH(DATEVALUE(TEXT(DATE(2000,MONTH(DATEVALUE($E$7&" 1"))+3,1),"mmmm")&" 1")),E17/F9*E9,"")) ->  | O17: =IF(ISBLANK(C17),"",IF(MONTH(C17)=MONTH(DATEVALUE(TEXT(DATE(2000,MONTH(DATEVALUE($E$7&" 1"))+4,1),"mmmm")&" 1")),E17/F9*E9,"")) ->  | P17: =IF(ISBLANK(C17),"",IF(MONTH(C17)=MONTH(DATEVALUE(TEXT(DATE(2000,MONTH(DATEVALUE($E$7&" 1"))+5,1),"mmmm")&" 1")),E17/F9*E9,"")) ->  | Q17: =IF(ISBLANK(C17),"",IF(MONTH(C17)=MONTH(DATEVALUE(TEXT(DATE(2000,MONTH(DATEVALUE($E$7&" 1"))+6,1),"mmmm")&" 1")),E17/F9*E9,"")) ->  | R17: =IF(ISBLANK(C17),"",IF(MONTH(C17)=MONTH(DATEVALUE(TEXT(DATE(2000,MONTH(DATEVALUE($E$7&" 1"))+7,1),"mmmm")&" 1")),E17/F9*E9,"")) ->  | S17: =IF(ISBLANK(C17),"",IF(MONTH(C17)=MONTH(DATEVALUE(TEXT(DATE(2000,MONTH(DATEVALUE($E$7&" 1"))+8,1),"mmmm")&" 1")),E17/F9*E9,"")) ->  | T17: =IF(ISBLANK(C17),"",IF(MONTH(C17)=MONTH(DATEVALUE(TEXT(DATE(2000,MONTH(DATEVALUE($E$7&" 1"))+9,1),"mmmm")&" 1")),E17/F9*E9,"")) ->  | U17: =IF(ISBLANK(C17),"",IF(MONTH(C17)=MONTH(DATEVALUE(TEXT(DATE(2000,MONTH(DATEVALUE($E$7&" 1"))+10,1),"mmmm")&" 1")),E17/F9*E9,"")) ->  | V17: =IF(ISBLANK(C17),"",IF(MONTH(C17)=MONTH(DATEVALUE(TEXT(DATE(2000,MONTH(DATEVALUE($E$7&" 1"))+11,1),"mmmm")&" 1")),E17/F9*E9,"")) -> 
I18: 0 | K18: =IF(ISBLANK(C18),"",IF(MONTH(C18)=MONTH(DATEVALUE($E$7&" 1")),E18/F9*E9,"")) ->  | L18: =IF(ISBLANK(C18),"",IF(MONTH(C18)=MONTH(DATEVALUE(TEXT(DATE(2000,MONTH(DATEVALUE($E$7&" 1"))+1,1),"mmmm")&" 1")),E18/F9*E9,"")) ->  | M18: =IF(ISBLANK(C18),"",IF(MONTH(C18)=MONTH(DATEVALUE(TEXT(DATE(2000,MONTH(DATEVALUE($E$7&" 1"))+2,1),"mmmm")&" 1")),E18/F9*E9,"")) ->  | N18: =IF(ISBLANK(C18),"",IF(MONTH(C18)=MONTH(DATEVALUE(TEXT(DATE(2000,MONTH(DATEVALUE($E$7&" 1"))+3,1),"mmmm")&" 1")),E18/F9*E9,"")) ->  | O18: =IF(ISBLANK(C18),"",IF(MONTH(C18)=MONTH(DATEVALUE(TEXT(DATE(2000,MONTH(DATEVALUE($E$7&" 1"))+4,1),"mmmm")&" 1")),E18/F9*E9,"")) ->  | P18: =IF(ISBLANK(C18),"",IF(MONTH(C18)=MONTH(DATEVALUE(TEXT(DATE(2000,MONTH(DATEVALUE($E$7&" 1"))+5,1),"mmmm")&" 1")),E18/F9*E9,"")) ->  | Q18: =IF(ISBLANK(C18),"",IF(MONTH(C18)=MONTH(DATEVALUE(TEXT(DATE(2000,MONTH(DATEVALUE($E$7&" 1"))+6,1),"mmmm")&" 1")),E18/F9*E9,"")) ->  | R18: =IF(ISBLANK(C18),"",IF(MONTH(C18)=MONTH(DATEVALUE(TEXT(DATE(2000,MONTH(DATEVALUE($E$7&" 1"))+7,1),"mmmm")&" 1")),E18/F9*E9,"")) ->  | S18: =IF(ISBLANK(C18),"",IF(MONTH(C18)=MONTH(DATEVALUE(TEXT(DATE(2000,MONTH(DATEVALUE($E$7&" 1"))+8,1),"mmmm")&" 1")),E18/F9*E9,"")) ->  | T18: =IF(ISBLANK(C18),"",IF(MONTH(C18)=MONTH(DATEVALUE(TEXT(DATE(2000,MONTH(DATEVALUE($E$7&" 1"))+9,1),"mmmm")&" 1")),E18/F9*E9,"")) ->  | U18: =IF(ISBLANK(C18),"",IF(MONTH(C18)=MONTH(DATEVALUE(TEXT(DATE(2000,MONTH(DATEVALUE($E$7&" 1"))+10,1),"mmmm")&" 1")),E18/F9*E9,"")) ->  | V18: =IF(ISBLANK(C18),"",IF(MONTH(C18)=MONTH(DATEVALUE(TEXT(DATE(2000,MONTH(DATEVALUE($E$7&" 1"))+11,1),"mmmm")&" 1")),E18/F9*E9,"")) -> 
I19: 0 | K19: =IF(ISBLANK(C19),"",IF(MONTH(C19)=MONTH(DATEVALUE($E$7&" 1")),E19/F9*E9,"")) ->  | L19: =IF(ISBLANK(C19),"",IF(MONTH(C19)=MONTH(DATEVALUE(TEXT(DATE(2000,MONTH(DATEVALUE($E$7&" 1"))+1,1),"mmmm")&" 1")),E19/F9*E9,"")) ->  | M19: =IF(ISBLANK(C19),"",IF(MONTH(C19)=MONTH(DATEVALUE(TEXT(DATE(2000,MONTH(DATEVALUE($E$7&" 1"))+2,1),"mmmm")&" 1")),E19/F9*E9,"")) ->  | N19: =IF(ISBLANK(C19),"",IF(MONTH(C19)=MONTH(DATEVALUE(TEXT(DATE(2000,MONTH(DATEVALUE($E$7&" 1"))+3,1),"mmmm")&" 1")),E19/F9*E9,"")) ->  | O19: =IF(ISBLANK(C19),"",IF(MONTH(C19)=MONTH(DATEVALUE(TEXT(DATE(2000,MONTH(DATEVALUE($E$7&" 1"))+4,1),"mmmm")&" 1")),E19/F9*E9,"")) ->  | P19: =IF(ISBLANK(C19),"",IF(MONTH(C19)=MONTH(DATEVALUE(TEXT(DATE(2000,MONTH(DATEVALUE($E$7&" 1"))+5,1),"mmmm")&" 1")),E19/F9*E9,"")) ->  | Q19: =IF(ISBLANK(C19),"",IF(MONTH(C19)=MONTH(DATEVALUE(TEXT(DATE(2000,MONTH(DATEVALUE($E$7&" 1"))+6,1),"mmmm")&" 1")),E19/F9*E9,"")) ->  | R19: =IF(ISBLANK(C19),"",IF(MONTH(C19)=MONTH(DATEVALUE(TEXT(DATE(2000,MONTH(DATEVALUE($E$7&" 1"))+7,1),"mmmm")&" 1")),E19/F9*E9,"")) ->  | S19: =IF(ISBLANK(C19),"",IF(MONTH(C19)=MONTH(DATEVALUE(TEXT(DATE(2000,MONTH(DATEVALUE($E$7&" 1"))+8,1),"mmmm")&" 1")),E19/F9*E9,"")) ->  | T19: =IF(ISBLANK(C19),"",IF(MONTH(C19)=MONTH(DATEVALUE(TEXT(DATE(2000,MONTH(DATEVALUE($E$7&" 1"))+9,1),"mmmm")&" 1")),E19/F9*E9,"")) ->  | U19: =IF(ISBLANK(C19),"",IF(MONTH(C19)=MONTH(DATEVALUE(TEXT(DATE(2000,MONTH(DATEVALUE($E$7&" 1"))+10,1),"mmmm")&" 1")),E19/F9*E9,"")) ->  | V19: =IF(ISBLANK(C19),"",IF(MONTH(C19)=MONTH(DATEVALUE(TEXT(DATE(2000,MONTH(DATEVALUE($E$7&" 1"))+11,1),"mmmm")&" 1")),E19/F9*E9,"")) -> 
I20: 0 | K20: =IF(ISBLANK(C20),"",IF(MONTH(C20)=MONTH(DATEVALUE($E$7&" 1")),E20/F9*E9,"")) ->  | L20: =IF(ISBLANK(C20),"",IF(MONTH(C20)=MONTH(DATEVALUE(TEXT(DATE(2000,MONTH(DATEVALUE($E$7&" 1"))+1,1),"mmmm")&" 1")),E20/F9*E9,"")) ->  | M20: =IF(ISBLANK(C20),"",IF(MONTH(C20)=MONTH(DATEVALUE(TEXT(DATE(2000,MONTH(DATEVALUE($E$7&" 1"))+2,1),"mmmm")&" 1")),E20/F9*E9,"")) ->  | N20: =IF(ISBLANK(C20),"",IF(MONTH(C20)=MONTH(DATEVALUE(TEXT(DATE(2000,MONTH(DATEVALUE($E$7&" 1"))+3,1),"mmmm")&" 1")),E20/F9*E9,"")) ->  | O20: =IF(ISBLANK(C20),"",IF(MONTH(C20)=MONTH(DATEVALUE(TEXT(DATE(2000,MONTH(DATEVALUE($E$7&" 1"))+4,1),"mmmm")&" 1")),E20/F9*E9,"")) ->  | P20: =IF(ISBLANK(C20),"",IF(MONTH(C20)=MONTH(DATEVALUE(TEXT(DATE(2000,MONTH(DATEVALUE($E$7&" 1"))+5,1),"mmmm")&" 1")),E20/F9*E9,"")) ->  | Q20: =IF(ISBLANK(C20),"",IF(MONTH(C20)=MONTH(DATEVALUE(TEXT(DATE(2000,MONTH(DATEVALUE($E$7&" 1"))+6,1),"mmmm")&" 1")),E20/F9*E9,"")) ->  | R20: =IF(ISBLANK(C20),"",IF(MONTH(C20)=MONTH(DATEVALUE(TEXT(DATE(2000,MONTH(DATEVALUE($E$7&" 1"))+7,1),"mmmm")&" 1")),E20/F9*E9,"")) ->  | S20: =IF(ISBLANK(C20),"",IF(MONTH(C20)=MONTH(DATEVALUE(TEXT(DATE(2000,MONTH(DATEVALUE($E$7&" 1"))+8,1),"mmmm")&" 1")),E20/F9*E9,"")) ->  | T20: =IF(ISBLANK(C20),"",IF(MONTH(C20)=MONTH(DATEVALUE(TEXT(DATE(2000,MONTH(DATEVALUE($E$7&" 1"))+9,1),"mmmm")&" 1")),E20/F9*E9,"")) ->  | U20: =IF(ISBLANK(C20),"",IF(MONTH(C20)=MONTH(DATEVALUE(TEXT(DATE(2000,MONTH(DATEVALUE($E$7&" 1"))+10,1),"mmmm")&" 1")),E20/F9*E9,"")) ->  | V20: =IF(ISBLANK(C20),"",IF(MONTH(C20)=MONTH(DATEVALUE(TEXT(DATE(2000,MONTH(DATEVALUE($E$7&" 1"))+11,1),"mmmm")&" 1")),E20/F9*E9,"")) -> 
H21: =IFERROR(I21/E21,0) -> 0 | I21: =SUM(I22:J32) -> 0 | W21: =IF(H21<>100%,"Pas ok","ok") -> Pas ok
B22: =$B$10 -> réf. Facture | C22: =$C$10 -> date facture | D22: =$D$10 -> Description facture | E22: =$E$10 -> Montant facture (HTVA)
I23: =SUM(K23:V23) -> 0 | K23: =IF(ISBLANK(C23),"",IF(MONTH(C23)=MONTH(DATEVALUE($E$7&" 1")),E23/F21*E21,"")) ->  | L23: =IF(ISBLANK(C23),"",IF(MONTH(C23)=MONTH(DATEVALUE(TEXT(DATE(2000,MONTH(DATEVALUE($E$7&" 1"))+1,1),"mmmm")&" 1")),E23/F21*E21,"")) ->  | M23: =IF(ISBLANK(C23),"",IF(MONTH(C23)=MONTH(DATEVALUE(TEXT(DATE(2000,MONTH(DATEVALUE($E$7&" 1"))+2,1),"mmmm")&" 1")),E23/F21*E21,"")) ->  | N23: =IF(ISBLANK(C23),"",IF(MONTH(C23)=MONTH(DATEVALUE(TEXT(DATE(2000,MONTH(DATEVALUE($E$7&" 1"))+3,1),"mmmm")&" 1")),E23/F21*E21,"")) ->  | O23: =IF(ISBLANK(C23),"",IF(MONTH(C23)=MONTH(DATEVALUE(TEXT(DATE(2000,MONTH(DATEVALUE($E$7&" 1"))+4,1),"mmmm")&" 1")),E23/F21*E21,"")) ->  | P23: =IF(ISBLANK(C23),"",IF(MONTH(C23)=MONTH(DATEVALUE(TEXT(DATE(2000,MONTH(DATEVALUE($E$7&" 1"))+5,1),"mmmm")&" 1")),E23/F21*E21,"")) ->  | Q23: =IF(ISBLANK(C23),"",IF(MONTH(C23)=MONTH(DATEVALUE(TEXT(DATE(2000,MONTH(DATEVALUE($E$7&" 1"))+6,1),"mmmm")&" 1")),E23/F21*E21,"")) ->  | R23: =IF(ISBLANK(C23),"",IF(MONTH(C23)=MONTH(DATEVALUE(TEXT(DATE(2000,MONTH(DATEVALUE($E$7&" 1"))+7,1),"mmmm")&" 1")),E23/F21*E21,"")) ->  | S23: =IF(ISBLANK(C23),"",IF(MONTH(C23)=MONTH(DATEVALUE(TEXT(DATE(2000,MONTH(DATEVALUE($E$7&" 1"))+8,1),"mmmm")&" 1")),E23/F21*E21,"")) ->  | T23: =IF(ISBLANK(C23),"",IF(MONTH(C23)=MONTH(DATEVALUE(TEXT(DATE(2000,MONTH(DATEVALUE($E$7&" 1"))+9,1),"mmmm")&" 1")),E23/F21*E21,"")) ->  | U23: =IF(ISBLANK(C23),"",IF(MONTH(C23)=MONTH(DATEVALUE(TEXT(DATE(2000,MONTH(DATEVALUE($E$7&" 1"))+10,1),"mmmm")&" 1")),E23/F21*E21,"")) ->  | V23: =IF(ISBLANK(C23),"",IF(MONTH(C23)=MONTH(DATEVALUE(TEXT(DATE(2000,MONTH(DATEVALUE($E$7&" 1"))+11,1),"mmmm")&" 1")),E23/F21*E21,"")) -> 
I24: 0 | K24: =IF(ISBLANK(C24),"",IF(MONTH(C24)=MONTH(DATEVALUE($E$7&" 1")),E24/F21*E21,"")) ->  | L24: =IF(ISBLANK(C24),"",IF(MONTH(C24)=MONTH(DATEVALUE(TEXT(DATE(2000,MONTH(DATEVALUE($E$7&" 1"))+1,1),"mmmm")&" 1")),E24/F21*E21,"")) ->  | M24: =IF(ISBLANK(C24),"",IF(MONTH(C24)=MONTH(DATEVALUE(TEXT(DATE(2000,MONTH(DATEVALUE($E$7&" 1"))+2,1),"mmmm")&" 1")),E24/F21*E21,"")) ->  | N24: =IF(ISBLANK(C24),"",IF(MONTH(C24)=MONTH(DATEVALUE(TEXT(DATE(2000,MONTH(DATEVALUE($E$7&" 1"))+3,1),"mmmm")&" 1")),E24/F21*E21,"")) ->  | O24: =IF(ISBLANK(C24),"",IF(MONTH(C24)=MONTH(DATEVALUE(TEXT(DATE(2000,MONTH(DATEVALUE($E$7&" 1"))+4,1),"mmmm")&" 1")),E24/F21*E21,"")) ->  | P24: =IF(ISBLANK(C24),"",IF(MONTH(C24)=MONTH(DATEVALUE(TEXT(DATE(2000,MONTH(DATEVALUE($E$7&" 1"))+5,1),"mmmm")&" 1")),E24/F21*E21,"")) ->  | Q24: =IF(ISBLANK(C24),"",IF(MONTH(C24)=MONTH(DATEVALUE(TEXT(DATE(2000,MONTH(DATEVALUE($E$7&" 1"))+6,1),"mmmm")&" 1")),E24/F21*E21,"")) ->  | R24: =IF(ISBLANK(C24),"",IF(MONTH(C24)=MONTH(DATEVALUE(TEXT(DATE(2000,MONTH(DATEVALUE($E$7&" 1"))+7,1),"mmmm")&" 1")),E24/F21*E21,"")) ->  | S24: =IF(ISBLANK(C24),"",IF(MONTH(C24)=MONTH(DATEVALUE(TEXT(DATE(2000,MONTH(DATEVALUE($E$7&" 1"))+8,1),"mmmm")&" 1")),E24/F21*E21,"")) ->  | T24: =IF(ISBLANK(C24),"",IF(MONTH(C24)=MONTH(DATEVALUE(TEXT(DATE(2000,MONTH(DATEVALUE($E$7&" 1"))+9,1),"mmmm")&" 1")),E24/F21*E21,"")) ->  | U24: =IF(ISBLANK(C24),"",IF(MONTH(C24)=MONTH(DATEVALUE(TEXT(DATE(2000,MONTH(DATEVALUE($E$7&" 1"))+10,1),"mmmm")&" 1")),E24/F21*E21,"")) ->  | V24: =IF(ISBLANK(C24),"",IF(MONTH(C24)=MONTH(DATEVALUE(TEXT(DATE(2000,MONTH(DATEVALUE($E$7&" 1"))+11,1),"mmmm")&" 1")),E24/F21*E21,"")) -> 
I25: 0 | K25: =IF(ISBLANK(C25),"",IF(MONTH(C25)=MONTH(DATEVALUE($E$7&" 1")),E25/F21*E21,"")) ->  | L25: =IF(ISBLANK(C25),"",IF(MONTH(C25)=MONTH(DATEVALUE(TEXT(DATE(2000,MONTH(DATEVALUE($E$7&" 1"))+1,1),"mmmm")&" 1")),E25/F21*E21,"")) ->  | M25: =IF(ISBLANK(C25),"",IF(MONTH(C25)=MONTH(DATEVALUE(TEXT(DATE(2000,MONTH(DATEVALUE($E$7&" 1"))+2,1),"mmmm")&" 1")),E25/F21*E21,"")) ->  | N25: =IF(ISBLANK(C25),"",IF(MONTH(C25)=MONTH(DATEVALUE(TEXT(DATE(2000,MONTH(DATEVALUE($E$7&" 1"))+3,1),"mmmm")&" 1")),E25/F21*E21,"")) ->  | O25: =IF(ISBLANK(C25),"",IF(MONTH(C25)=MONTH(DATEVALUE(TEXT(DATE(2000,MONTH(DATEVALUE($E$7&" 1"))+4,1),"mmmm")&" 1")),E25/F21*E21,"")) ->  | P25: =IF(ISBLANK(C25),"",IF(MONTH(C25)=MONTH(DATEVALUE(TEXT(DATE(2000,MONTH(DATEVALUE($E$7&" 1"))+5,1),"mmmm")&" 1")),E25/F21*E21,"")) ->  | Q25: =IF(ISBLANK(C25),"",IF(MONTH(C25)=MONTH(DATEVALUE(TEXT(DATE(2000,MONTH(DATEVALUE($E$7&" 1"))+6,1),"mmmm")&" 1")),E25/F21*E21,"")) ->  | R25: =IF(ISBLANK(C25),"",IF(MONTH(C25)=MONTH(DATEVALUE(TEXT(DATE(2000,MONTH(DATEVALUE($E$7&" 1"))+7,1),"mmmm")&" 1")),E25/F21*E21,"")) ->  | S25: =IF(ISBLANK(C25),"",IF(MONTH(C25)=MONTH(DATEVALUE(TEXT(DATE(2000,MONTH(DATEVALUE($E$7&" 1"))+8,1),"mmmm")&" 1")),E25/F21*E21,"")) ->  | T25: =IF(ISBLANK(C25),"",IF(MONTH(C25)=MONTH(DATEVALUE(TEXT(DATE(2000,MONTH(DATEVALUE($E$7&" 1"))+9,1),"mmmm")&" 1")),E25/F21*E21,"")) ->  | U25: =IF(ISBLANK(C25),"",IF(MONTH(C25)=MONTH(DATEVALUE(TEXT(DATE(2000,MONTH(DATEVALUE($E$7&" 1"))+10,1),"mmmm")&" 1")),E25/F21*E21,"")) ->  | V25: =IF(ISBLANK(C25),"",IF(MONTH(C25)=MONTH(DATEVALUE(TEXT(DATE(2000,MONTH(DATEVALUE($E$7&" 1"))+11,1),"mmmm")&" 1")),E25/F21*E21,"")) -> 
I26: 0 | K26: =IF(ISBLANK(C26),"",IF(MONTH(C26)=MONTH(DATEVALUE($E$7&" 1")),E26/F21*E21,"")) ->  | L26: =IF(ISBLANK(C26),"",IF(MONTH(C26)=MONTH(DATEVALUE(TEXT(DATE(2000,MONTH(DATEVALUE($E$7&" 1"))+1,1),"mmmm")&" 1")),E26/F21*E21,"")) ->  | M26: =IF(ISBLANK(C26),"",IF(MONTH(C26)=MONTH(DATEVALUE(TEXT(DATE(2000,MONTH(DATEVALUE($E$7&" 1"))+2,1),"mmmm")&" 1")),E26/F21*E21,"")) ->  | N26: =IF(ISBLANK(C26),"",IF(MONTH(C26)=MONTH(DATEVALUE(TEXT(DATE(2000,MONTH(DATEVALUE($E$7&" 1"))+3,1),"mmmm")&" 1")),E26/F21*E21,"")) ->  | O26: =IF(ISBLANK(C26),"",IF(MONTH(C26)=MONTH(DATEVALUE(TEXT(DATE(2000,MONTH(DATEVALUE($E$7&" 1"))+4,1),"mmmm")&" 1")),E26/F21*E21,"")) ->  | P26: =IF(ISBLANK(C26),"",IF(MONTH(C26)=MONTH(DATEVALUE(TEXT(DATE(2000,MONTH(DATEVALUE($E$7&" 1"))+5,1),"mmmm")&" 1")),E26/F21*E21,"")) ->  | Q26: =IF(ISBLANK(C26),"",IF(MONTH(C26)=MONTH(DATEVALUE(TEXT(DATE(2000,MONTH(DATEVALUE($E$7&" 1"))+6,1),"mmmm")&" 1")),E26/F21*E21,"")) ->  | R26: =IF(ISBLANK(C26),"",IF(MONTH(C26)=MONTH(DATEVALUE(TEXT(DATE(2000,MONTH(DATEVALUE($E$7&" 1"))+7,1),"mmmm")&" 1")),E26/F21*E21,"")) ->  | S26: =IF(ISBLANK(C26),"",IF(MONTH(C26)=MONTH(DATEVALUE(TEXT(DATE(2000,MONTH(DATEVALUE($E$7&" 1"))+8,1),"mmmm")&" 1")),E26/F21*E21,"")) ->  | T26: =IF(ISBLANK(C26),"",IF(MONTH(C26)=MONTH(DATEVALUE(TEXT(DATE(2000,MONTH(DATEVALUE($E$7&" 1"))+9,1),"mmmm")&" 1")),E26/F21*E21,"")) ->  | U26: =IF(ISBLANK(C26),"",IF(MONTH(C26)=MONTH(DATEVALUE(TEXT(DATE(2000,MONTH(DATEVALUE($E$7&" 1"))+10,1),"mmmm")&" 1")),E26/F21*E21,"")) ->  | V26: =IF(ISBLANK(C26),"",IF(MONTH(C26)=MONTH(DATEVALUE(TEXT(DATE(2000,MONTH(DATEVALUE($E$7&" 1"))+11,1),"mmmm")&" 1")),E26/F21*E21,"")) -> 
I27: 0 | K27: =IF(ISBLANK(C27),"",IF(MONTH(C27)=MONTH(DATEVALUE($E$7&" 1")),E27/F21*E21,"")) ->  | L27: =IF(ISBLANK(C27),"",IF(MONTH(C27)=MONTH(DATEVALUE(TEXT(DATE(2000,MONTH(DATEVALUE($E$7&" 1"))+1,1),"mmmm")&" 1")),E27/F21*E21,"")) ->  | M27: =IF(ISBLANK(C27),"",IF(MONTH(C27)=MONTH(DATEVALUE(TEXT(DATE(2000,MONTH(DATEVALUE($E$7&" 1"))+2,1),"mmmm")&" 1")),E27/F21*E21,"")) ->  | N27: =IF(ISBLANK(C27),"",IF(MONTH(C27)=MONTH(DATEVALUE(TEXT(DATE(2000,MONTH(DATEVALUE($E$7&" 1"))+3,1),"mmmm")&" 1")),E27/F21*E21,"")) ->  | O27: =IF(ISBLANK(C27),"",IF(MONTH(C27)=MONTH(DATEVALUE(TEXT(DATE(2000,MONTH(DATEVALUE($E$7&" 1"))+4,1),"mmmm")&" 1")),E27/F21*E21,"")) ->  | P27: =IF(ISBLANK(C27),"",IF(MONTH(C27)=MONTH(DATEVALUE(TEXT(DATE(2000,MONTH(DATEVALUE($E$7&" 1"))+5,1),"mmmm")&" 1")),E27/F21*E21,"")) ->  | Q27: =IF(ISBLANK(C27),"",IF(MONTH(C27)=MONTH(DATEVALUE(TEXT(DATE(2000,MONTH(DATEVALUE($E$7&" 1"))+6,1),"mmmm")&" 1")),E27/F21*E21,"")) ->  | R27: =IF(ISBLANK(C27),"",IF(MONTH(C27)=MONTH(DATEVALUE(TEXT(DATE(2000,MONTH(DATEVALUE($E$7&" 1"))+7,1),"mmmm")&" 1")),E27/F21*E21,"")) ->  | S27: =IF(ISBLANK(C27),"",IF(MONTH(C27)=MONTH(DATEVALUE(TEXT(DATE(2000,MONTH(DATEVALUE($E$7&" 1"))+8,1),"mmmm")&" 1")),E27/F21*E21,"")) ->  | T27: =IF(ISBLANK(C27),"",IF(MONTH(C27)=MONTH(DATEVALUE(TEXT(DATE(2000,MONTH(DATEVALUE($E$7&" 1"))+9,1),"mmmm")&" 1")),E27/F21*E21,"")) ->  | U27: =IF(ISBLANK(C27),"",IF(MONTH(C27)=MONTH(DATEVALUE(TEXT(DATE(2000,MONTH(DATEVALUE($E$7&" 1"))+10,1),"mmmm")&" 1")),E27/F21*E21,"")) ->  | V27: =IF(ISBLANK(C27),"",IF(MONTH(C27)=MONTH(DATEVALUE(TEXT(DATE(2000,MONTH(DATEVALUE($E$7&" 1"))+11,1),"mmmm")&" 1")),E27/F21*E21,"")) -> 
I28: 0 | K28: =IF(ISBLANK(C28),"",IF(MONTH(C28)=MONTH(DATEVALUE($E$7&" 1")),E28/F21*E21,"")) ->  | L28: =IF(ISBLANK(C28),"",IF(MONTH(C28)=MONTH(DATEVALUE(TEXT(DATE(2000,MONTH(DATEVALUE($E$7&" 1"))+1,1),"mmmm")&" 1")),E28/F21*E21,"")) ->  | M28: =IF(ISBLANK(C28),"",IF(MONTH(C28)=MONTH(DATEVALUE(TEXT(DATE(2000,MONTH(DATEVALUE($E$7&" 1"))+2,1),"mmmm")&" 1")),E28/F21*E21,"")) ->  | N28: =IF(ISBLANK(C28),"",IF(MONTH(C28)=MONTH(DATEVALUE(TEXT(DATE(2000,MONTH(DATEVALUE($E$7&" 1"))+3,1),"mmmm")&" 1")),E28/F21*E21,"")) ->  | O28: =IF(ISBLANK(C28),"",IF(MONTH(C28)=MONTH(DATEVALUE(TEXT(DATE(2000,MONTH(DATEVALUE($E$7&" 1"))+4,1),"mmmm")&" 1")),E28/F21*E21,"")) ->  | P28: =IF(ISBLANK(C28),"",IF(MONTH(C28)=MONTH(DATEVALUE(TEXT(DATE(2000,MONTH(DATEVALUE($E$7&" 1"))+5,1),"mmmm")&" 1")),E28/F21*E21,"")) ->  | Q28: =IF(ISBLANK(C28),"",IF(MONTH(C28)=MONTH(DATEVALUE(TEXT(DATE(2000,MONTH(DATEVALUE($E$7&" 1"))+6,1),"mmmm")&" 1")),E28/F21*E21,"")) ->  | R28: =IF(ISBLANK(C28),"",IF(MONTH(C28)=MONTH(DATEVALUE(TEXT(DATE(2000,MONTH(DATEVALUE($E$7&" 1"))+7,1),"mmmm")&" 1")),E28/F21*E21,"")) ->  | S28: =IF(ISBLANK(C28),"",IF(MONTH(C28)=MONTH(DATEVALUE(TEXT(DATE(2000,MONTH(DATEVALUE($E$7&" 1"))+8,1),"mmmm")&" 1")),E28/F21*E21,"")) ->  | T28: =IF(ISBLANK(C28),"",IF(MONTH(C28)=MONTH(DATEVALUE(TEXT(DATE(2000,MONTH(DATEVALUE($E$7&" 1"))+9,1),"mmmm")&" 1")),E28/F21*E21,"")) ->  | U28: =IF(ISBLANK(C28),"",IF(MONTH(C28)=MONTH(DATEVALUE(TEXT(DATE(2000,MONTH(DATEVALUE($E$7&" 1"))+10,1),"mmmm")&" 1")),E28/F21*E21,"")) ->  | V28: =IF(ISBLANK(C28),"",IF(MONTH(C28)=MONTH(DATEVALUE(TEXT(DATE(2000,MONTH(DATEVALUE($E$7&" 1"))+11,1),"mmmm")&" 1")),E28/F21*E21,"")) -> 
I29: 0 | K29: =IF(ISBLANK(C29),"",IF(MONTH(C29)=MONTH(DATEVALUE($E$7&" 1")),E29/F21*E21,"")) ->  | L29: =IF(ISBLANK(C29),"",IF(MONTH(C29)=MONTH(DATEVALUE(TEXT(DATE(2000,MONTH(DATEVALUE($E$7&" 1"))+1,1),"mmmm")&" 1")),E29/F21*E21,"")) ->  | M29: =IF(ISBLANK(C29),"",IF(MONTH(C29)=MONTH(DATEVALUE(TEXT(DATE(2000,MONTH(DATEVALUE($E$7&" 1"))+2,1),"mmmm")&" 1")),E29/F21*E21,"")) ->  | N29: =IF(ISBLANK(C29),"",IF(MONTH(C29)=MONTH(DATEVALUE(TEXT(DATE(2000,MONTH(DATEVALUE($E$7&" 1"))+3,1),"mmmm")&" 1")),E29/F21*E21,"")) ->  | O29: =IF(ISBLANK(C29),"",IF(MONTH(C29)=MONTH(DATEVALUE(TEXT(DATE(2000,MONTH(DATEVALUE($E$7&" 1"))+4,1),"mmmm")&" 1")),E29/F21*E21,"")) ->  | P29: =IF(ISBLANK(C29),"",IF(MONTH(C29)=MONTH(DATEVALUE(TEXT(DATE(2000,MONTH(DATEVALUE($E$7&" 1"))+5,1),"mmmm")&" 1")),E29/F21*E21,"")) ->  | Q29: =IF(ISBLANK(C29),"",IF(MONTH(C29)=MONTH(DATEVALUE(TEXT(DATE(2000,MONTH(DATEVALUE($E$7&" 1"))+6,1),"mmmm")&" 1")),E29/F21*E21,"")) ->  | R29: =IF(ISBLANK(C29),"",IF(MONTH(C29)=MONTH(DATEVALUE(TEXT(DATE(2000,MONTH(DATEVALUE($E$7&" 1"))+7,1),"mmmm")&" 1")),E29/F21*E21,"")) ->  | S29: =IF(ISBLANK(C29),"",IF(MONTH(C29)=MONTH(DATEVALUE(TEXT(DATE(2000,MONTH(DATEVALUE($E$7&" 1"))+8,1),"mmmm")&" 1")),E29/F21*E21,"")) ->  | T29: =IF(ISBLANK(C29),"",IF(MONTH(C29)=MONTH(DATEVALUE(TEXT(DATE(2000,MONTH(DATEVALUE($E$7&" 1"))+9,1),"mmmm")&" 1")),E29/F21*E21,"")) ->  | U29: =IF(ISBLANK(C29),"",IF(MONTH(C29)=MONTH(DATEVALUE(TEXT(DATE(2000,MONTH(DATEVALUE($E$7&" 1"))+10,1),"mmmm")&" 1")),E29/F21*E21,"")) ->  | V29: =IF(ISBLANK(C29),"",IF(MONTH(C29)=MONTH(DATEVALUE(TEXT(DATE(2000,MONTH(DATEVALUE($E$7&" 1"))+11,1),"mmmm")&" 1")),E29/F21*E21,"")) -> 
I30: 0 | K30: =IF(ISBLANK(C30),"",IF(MONTH(C30)=MONTH(DATEVALUE($E$7&" 1")),E30/F21*E21,"")) ->  | L30: =IF(ISBLANK(C30),"",IF(MONTH(C30)=MONTH(DATEVALUE(TEXT(DATE(2000,MONTH(DATEVALUE($E$7&" 1"))+1,1),"mmmm")&" 1")),E30/F21*E21,"")) ->  | M30: =IF(ISBLANK(C30),"",IF(MONTH(C30)=MONTH(DATEVALUE(TEXT(DATE(2000,MONTH(DATEVALUE($E$7&" 1"))+2,1),"mmmm")&" 1")),E30/F21*E21,"")) ->  | N30: =IF(ISBLANK(C30),"",IF(MONTH(C30)=MONTH(DATEVALUE(TEXT(DATE(2000,MONTH(DATEVALUE($E$7&" 1"))+3,1),"mmmm")&" 1")),E30/F21*E21,"")) ->  | O30: =IF(ISBLANK(C30),"",IF(MONTH(C30)=MONTH(DATEVALUE(TEXT(DATE(2000,MONTH(DATEVALUE($E$7&" 1"))+4,1),"mmmm")&" 1")),E30/F21*E21,"")) ->  | P30: =IF(ISBLANK(C30),"",IF(MONTH(C30)=MONTH(DATEVALUE(TEXT(DATE(2000,MONTH(DATEVALUE($E$7&" 1"))+5,1),"mmmm")&" 1")),E30/F21*E21,"")) ->  | Q30: =IF(ISBLANK(C30),"",IF(MONTH(C30)=MONTH(DATEVALUE(TEXT(DATE(2000,MONTH(DATEVALUE($E$7&" 1"))+6,1),"mmmm")&" 1")),E30/F21*E21,"")) ->  | R30: =IF(ISBLANK(C30),"",IF(MONTH(C30)=MONTH(DATEVALUE(TEXT(DATE(2000,MONTH(DATEVALUE($E$7&" 1"))+7,1),"mmmm")&" 1")),E30/F21*E21,"")) ->  | S30: =IF(ISBLANK(C30),"",IF(MONTH(C30)=MONTH(DATEVALUE(TEXT(DATE(2000,MONTH(DATEVALUE($E$7&" 1"))+8,1),"mmmm")&" 1")),E30/F21*E21,"")) ->  | T30: =IF(ISBLANK(C30),"",IF(MONTH(C30)=MONTH(DATEVALUE(TEXT(DATE(2000,MONTH(DATEVALUE($E$7&" 1"))+9,1),"mmmm")&" 1")),E30/F21*E21,"")) ->  | U30: =IF(ISBLANK(C30),"",IF(MONTH(C30)=MONTH(DATEVALUE(TEXT(DATE(2000,MONTH(DATEVALUE($E$7&" 1"))+10,1),"mmmm")&" 1")),E30/F21*E21,"")) ->  | V30: =IF(ISBLANK(C30),"",IF(MONTH(C30)=MONTH(DATEVALUE(TEXT(DATE(2000,MONTH(DATEVALUE($E$7&" 1"))+11,1),"mmmm")&" 1")),E30/F21*E21,"")) -> 
I31: 0 | K31: =IF(ISBLANK(C31),"",IF(MONTH(C31)=MONTH(DATEVALUE($E$7&" 1")),E31/F21*E21,"")) ->  | L31: =IF(ISBLANK(C31),"",IF(MONTH(C31)=MONTH(DATEVALUE(TEXT(DATE(2000,MONTH(DATEVALUE($E$7&" 1"))+1,1),"mmmm")&" 1")),E31/F21*E21,"")) ->  | M31: =IF(ISBLANK(C31),"",IF(MONTH(C31)=MONTH(DATEVALUE(TEXT(DATE(2000,MONTH(DATEVALUE($E$7&" 1"))+2,1),"mmmm")&" 1")),E31/F21*E21,"")) ->  | N31: =IF(ISBLANK(C31),"",IF(MONTH(C31)=MONTH(DATEVALUE(TEXT(DATE(2000,MONTH(DATEVALUE($E$7&" 1"))+3,1),"mmmm")&" 1")),E31/F21*E21,"")) ->  | O31: =IF(ISBLANK(C31),"",IF(MONTH(C31)=MONTH(DATEVALUE(TEXT(DATE(2000,MONTH(DATEVALUE($E$7&" 1"))+4,1),"mmmm")&" 1")),E31/F21*E21,"")) ->  | P31: =IF(ISBLANK(C31),"",IF(MONTH(C31)=MONTH(DATEVALUE(TEXT(DATE(2000,MONTH(DATEVALUE($E$7&" 1"))+5,1),"mmmm")&" 1")),E31/F21*E21,"")) ->  | Q31: =IF(ISBLANK(C31),"",IF(MONTH(C31)=MONTH(DATEVALUE(TEXT(DATE(2000,MONTH(DATEVALUE($E$7&" 1"))+6,1),"mmmm")&" 1")),E31/F21*E21,"")) ->  | R31: =IF(ISBLANK(C31),"",IF(MONTH(C31)=MONTH(DATEVALUE(TEXT(DATE(2000,MONTH(DATEVALUE($E$7&" 1"))+7,1),"mmmm")&" 1")),E31/F21*E21,"")) ->  | S31: =IF(ISBLANK(C31),"",IF(MONTH(C31)=MONTH(DATEVALUE(TEXT(DATE(2000,MONTH(DATEVALUE($E$7&" 1"))+8,1),"mmmm")&" 1")),E31/F21*E21,"")) ->  | T31: =IF(ISBLANK(C31),"",IF(MONTH(C31)=MONTH(DATEVALUE(TEXT(DATE(2000,MONTH(DATEVALUE($E$7&" 1"))+9,1),"mmmm")&" 1")),E31/F21*E21,"")) ->  | U31: =IF(ISBLANK(C31),"",IF(MONTH(C31)=MONTH(DATEVALUE(TEXT(DATE(2000,MONTH(DATEVALUE($E$7&" 1"))+10,1),"mmmm")&" 1")),E31/F21*E21,"")) ->  | V31: =IF(ISBLANK(C31),"",IF(MONTH(C31)=MONTH(DATEVALUE(TEXT(DATE(2000,MONTH(DATEVALUE($E$7&" 1"))+11,1),"mmmm")&" 1")),E31/F21*E21,"")) -> 
I32: 0 | K32: =IF(ISBLANK(C32),"",IF(MONTH(C32)=MONTH(DATEVALUE($E$7&" 1")),E32/F21*E21,"")) ->  | L32: =IF(ISBLANK(C32),"",IF(MONTH(C32)=MONTH(DATEVALUE(TEXT(DATE(2000,MONTH(DATEVALUE($E$7&" 1"))+1,1),"mmmm")&" 1")),E32/F21*E21,"")) ->  | M32: =IF(ISBLANK(C32),"",IF(MONTH(C32)=MONTH(DATEVALUE(TEXT(DATE(2000,MONTH(DATEVALUE($E$7&" 1"))+2,1),"mmmm")&" 1")),E32/F21*E21,"")) ->  | N32: =IF(ISBLANK(C32),"",IF(MONTH(C32)=MONTH(DATEVALUE(TEXT(DATE(2000,MONTH(DATEVALUE($E$7&" 1"))+3,1),"mmmm")&" 1")),E32/F21*E21,"")) ->  | O32: =IF(ISBLANK(C32),"",IF(MONTH(C32)=MONTH(DATEVALUE(TEXT(DATE(2000,MONTH(DATEVALUE($E$7&" 1"))+4,1),"mmmm")&" 1")),E32/F21*E21,"")) ->  | P32: =IF(ISBLANK(C32),"",IF(MONTH(C32)=MONTH(DATEVALUE(TEXT(DATE(2000,MONTH(DATEVALUE($E$7&" 1"))+5,1),"mmmm")&" 1")),E32/F21*E21,"")) ->  | Q32: =IF(ISBLANK(C32),"",IF(MONTH(C32)=MONTH(DATEVALUE(TEXT(DATE(2000,MONTH(DATEVALUE($E$7&" 1"))+6,1),"mmmm")&" 1")),E32/F21*E21,"")) ->  | R32: =IF(ISBLANK(C32),"",IF(MONTH(C32)=MONTH(DATEVALUE(TEXT(DATE(2000,MONTH(DATEVALUE($E$7&" 1"))+7,1),"mmmm")&" 1")),E32/F21*E21,"")) ->  | S32: =IF(ISBLANK(C32),"",IF(MONTH(C32)=MONTH(DATEVALUE(TEXT(DATE(2000,MONTH(DATEVALUE($E$7&" 1"))+8,1),"mmmm")&" 1")),E32/F21*E21,"")) ->  | T32: =IF(ISBLANK(C32),"",IF(MONTH(C32)=MONTH(DATEVALUE(TEXT(DATE(2000,MONTH(DATEVALUE($E$7&" 1"))+9,1),"mmmm")&" 1")),E32/F21*E21,"")) ->  | U32: =IF(ISBLANK(C32),"",IF(MONTH(C32)=MONTH(DATEVALUE(TEXT(DATE(2000,MONTH(DATEVALUE($E$7&" 1"))+10,1),"mmmm")&" 1")),E32/F21*E21,"")) ->  | V32: =IF(ISBLANK(C32),"",IF(MONTH(C32)=MONTH(DATEVALUE(TEXT(DATE(2000,MONTH(DATEVALUE($E$7&" 1"))+11,1),"mmmm")&" 1")),E32/F21*E21,"")) -> 
H33: =IFERROR(I33/E33,0) -> 0 | I33: =SUM(I34:J44) -> 0 | W33: =IF(H33<>100%,"Pas ok","ok") -> Pas ok
B34: =$B$10 -> réf. Facture | C34: =$C$10 -> date facture | D34: =$D$10 -> Description facture | E34: =$E$10 -> Montant facture (HTVA)
I35: =SUM(K35:V35) -> 0 | K35: =IF(ISBLANK(C35),"",IF(MONTH(C35)=MONTH(DATEVALUE($E$7&" 1")),E35/F33*E33,"")) ->  | L35: =IF(ISBLANK(C35),"",IF(MONTH(C35)=MONTH(DATEVALUE(TEXT(DATE(2000,MONTH(DATEVALUE($E$7&" 1"))+1,1),"mmmm")&" 1")),E35/F33*E33,"")) ->  | M35: =IF(ISBLANK(C35),"",IF(MONTH(C35)=MONTH(DATEVALUE(TEXT(DATE(2000,MONTH(DATEVALUE($E$7&" 1"))+2,1),"mmmm")&" 1")),E35/F33*E33,"")) ->  | N35: =IF(ISBLANK(C35),"",IF(MONTH(C35)=MONTH(DATEVALUE(TEXT(DATE(2000,MONTH(DATEVALUE($E$7&" 1"))+3,1),"mmmm")&" 1")),E35/F33*E33,"")) ->  | O35: =IF(ISBLANK(C35),"",IF(MONTH(C35)=MONTH(DATEVALUE(TEXT(DATE(2000,MONTH(DATEVALUE($E$7&" 1"))+4,1),"mmmm")&" 1")),E35/F33*E33,"")) ->  | P35: =IF(ISBLANK(C35),"",IF(MONTH(C35)=MONTH(DATEVALUE(TEXT(DATE(2000,MONTH(DATEVALUE($E$7&" 1"))+5,1),"mmmm")&" 1")),E35/F33*E33,"")) ->  | Q35: =IF(ISBLANK(C35),"",IF(MONTH(C35)=MONTH(DATEVALUE(TEXT(DATE(2000,MONTH(DATEVALUE($E$7&" 1"))+6,1),"mmmm")&" 1")),E35/F33*E33,"")) ->  | R35: =IF(ISBLANK(C35),"",IF(MONTH(C35)=MONTH(DATEVALUE(TEXT(DATE(2000,MONTH(DATEVALUE($E$7&" 1"))+7,1),"mmmm")&" 1")),E35/F33*E33,"")) ->  | S35: =IF(ISBLANK(C35),"",IF(MONTH(C35)=MONTH(DATEVALUE(TEXT(DATE(2000,MONTH(DATEVALUE($E$7&" 1"))+8,1),"mmmm")&" 1")),E35/F33*E33,"")) ->  | T35: =IF(ISBLANK(C35),"",IF(MONTH(C35)=MONTH(DATEVALUE(TEXT(DATE(2000,MONTH(DATEVALUE($E$7&" 1"))+9,1),"mmmm")&" 1")),E35/F33*E33,"")) ->  | U35: =IF(ISBLANK(C35),"",IF(MONTH(C35)=MONTH(DATEVALUE(TEXT(DATE(2000,MONTH(DATEVALUE($E$7&" 1"))+10,1),"mmmm")&" 1")),E35/F33*E33,"")) ->  | V35: =IF(ISBLANK(C35),"",IF(MONTH(C35)=MONTH(DATEVALUE(TEXT(DATE(2000,MONTH(DATEVALUE($E$7&" 1"))+11,1),"mmmm")&" 1")),E35/F33*E33,"")) -> 
I36: 0 | K36: =IF(ISBLANK(C36),"",IF(MONTH(C36)=MONTH(DATEVALUE($E$7&" 1")),E36/F33*E33,"")) ->  | L36: =IF(ISBLANK(C36),"",IF(MONTH(C36)=MONTH(DATEVALUE(TEXT(DATE(2000,MONTH(DATEVALUE($E$7&" 1"))+1,1),"mmmm")&" 1")),E36/F33*E33,"")) ->  | M36: =IF(ISBLANK(C36),"",IF(MONTH(C36)=MONTH(DATEVALUE(TEXT(DATE(2000,MONTH(DATEVALUE($E$7&" 1"))+2,1),"mmmm")&" 1")),E36/F33*E33,"")) ->  | N36: =IF(ISBLANK(C36),"",IF(MONTH(C36)=MONTH(DATEVALUE(TEXT(DATE(2000,MONTH(DATEVALUE($E$7&" 1"))+3,1),"mmmm")&" 1")),E36/F33*E33,"")) ->  | O36: =IF(ISBLANK(C36),"",IF(MONTH(C36)=MONTH(DATEVALUE(TEXT(DATE(2000,MONTH(DATEVALUE($E$7&" 1"))+4,1),"mmmm")&" 1")),E36/F33*E33,"")) ->  | P36: =IF(ISBLANK(C36),"",IF(MONTH(C36)=MONTH(DATEVALUE(TEXT(DATE(2000,MONTH(DATEVALUE($E$7&" 1"))+5,1),"mmmm")&" 1")),E36/F33*E33,"")) ->  | Q36: =IF(ISBLANK(C36),"",IF(MONTH(C36)=MONTH(DATEVALUE(TEXT(DATE(2000,MONTH(DATEVALUE($E$7&" 1"))+6,1),"mmmm")&" 1")),E36/F33*E33,"")) ->  | R36: =IF(ISBLANK(C36),"",IF(MONTH(C36)=MONTH(DATEVALUE(TEXT(DATE(2000,MONTH(DATEVALUE($E$7&" 1"))+7,1),"mmmm")&" 1")),E36/F33*E33,"")) ->  | S36: =IF(ISBLANK(C36),"",IF(MONTH(C36)=MONTH(DATEVALUE(TEXT(DATE(2000,MONTH(DATEVALUE($E$7&" 1"))+8,1),"mmmm")&" 1")),E36/F33*E33,"")) ->  | T36: =IF(ISBLANK(C36),"",IF(MONTH(C36)=MONTH(DATEVALUE(TEXT(DATE(2000,MONTH(DATEVALUE($E$7&" 1"))+9,1),"mmmm")&" 1")),E36/F33*E33,"")) ->  | U36: =IF(ISBLANK(C36),"",IF(MONTH(C36)=MONTH(DATEVALUE(TEXT(DATE(2000,MONTH(DATEVALUE($E$7&" 1"))+10,1),"mmmm")&" 1")),E36/F33*E33,"")) ->  | V36: =IF(ISBLANK(C36),"",IF(MONTH(C36)=MONTH(DATEVALUE(TEXT(DATE(2000,MONTH(DATEVALUE($E$7&" 1"))+11,1),"mmmm")&" 1")),E36/F33*E33,"")) -> 
I37: 0 | K37: =IF(ISBLANK(C37),"",IF(MONTH(C37)=MONTH(DATEVALUE($E$7&" 1")),E37/F33*E33,"")) ->  | L37: =IF(ISBLANK(C37),"",IF(MONTH(C37)=MONTH(DATEVALUE(TEXT(DATE(2000,MONTH(DATEVALUE($E$7&" 1"))+1,1),"mmmm")&" 1")),E37/F33*E33,"")) ->  | M37: =IF(ISBLANK(C37),"",IF(MONTH(C37)=MONTH(DATEVALUE(TEXT(DATE(2000,MONTH(DATEVALUE($E$7&" 1"))+2,1),"mmmm")&" 1")),E37/F33*E33,"")) ->  | N37: =IF(ISBLANK(C37),"",IF(MONTH(C37)=MONTH(DATEVALUE(TEXT(DATE(2000,MONTH(DATEVALUE($E$7&" 1"))+3,1),"mmmm")&" 1")),E37/F33*E33,"")) ->  | O37: =IF(ISBLANK(C37),"",IF(MONTH(C37)=MONTH(DATEVALUE(TEXT(DATE(2000,MONTH(DATEVALUE($E$7&" 1"))+4,1),"mmmm")&" 1")),E37/F33*E33,"")) ->  | P37: =IF(ISBLANK(C37),"",IF(MONTH(C37)=MONTH(DATEVALUE(TEXT(DATE(2000,MONTH(DATEVALUE($E$7&" 1"))+5,1),"mmmm")&" 1")),E37/F33*E33,"")) ->  | Q37: =IF(ISBLANK(C37),"",IF(MONTH(C37)=MONTH(DATEVALUE(TEXT(DATE(2000,MONTH(DATEVALUE($E$7&" 1"))+6,1),"mmmm")&" 1")),E37/F33*E33,"")) ->  | R37: =IF(ISBLANK(C37),"",IF(MONTH(C37)=MONTH(DATEVALUE(TEXT(DATE(2000,MONTH(DATEVALUE($E$7&" 1"))+7,1),"mmmm")&" 1")),E37/F33*E33,"")) ->  | S37: =IF(ISBLANK(C37),"",IF(MONTH(C37)=MONTH(DATEVALUE(TEXT(DATE(2000,MONTH(DATEVALUE($E$7&" 1"))+8,1),"mmmm")&" 1")),E37/F33*E33,"")) ->  | T37: =IF(ISBLANK(C37),"",IF(MONTH(C37)=MONTH(DATEVALUE(TEXT(DATE(2000,MONTH(DATEVALUE($E$7&" 1"))+9,1),"mmmm")&" 1")),E37/F33*E33,"")) ->  | U37: =IF(ISBLANK(C37),"",IF(MONTH(C37)=MONTH(DATEVALUE(TEXT(DATE(2000,MONTH(DATEVALUE($E$7&" 1"))+10,1),"mmmm")&" 1")),E37/F33*E33,"")) ->  | V37: =IF(ISBLANK(C37),"",IF(MONTH(C37)=MONTH(DATEVALUE(TEXT(DATE(2000,MONTH(DATEVALUE($E$7&" 1"))+11,1),"mmmm")&" 1")),E37/F33*E33,"")) -> 
I38: 0 | K38: =IF(ISBLANK(C38),"",IF(MONTH(C38)=MONTH(DATEVALUE($E$7&" 1")),E38/F33*E33,"")) ->  | L38: =IF(ISBLANK(C38),"",IF(MONTH(C38)=MONTH(DATEVALUE(TEXT(DATE(2000,MONTH(DATEVALUE($E$7&" 1"))+1,1),"mmmm")&" 1")),E38/F33*E33,"")) ->  | M38: =IF(ISBLANK(C38),"",IF(MONTH(C38)=MONTH(DATEVALUE(TEXT(DATE(2000,MONTH(DATEVALUE($E$7&" 1"))+2,1),"mmmm")&" 1")),E38/F33*E33,"")) ->  | N38: =IF(ISBLANK(C38),"",IF(MONTH(C38)=MONTH(DATEVALUE(TEXT(DATE(2000,MONTH(DATEVALUE($E$7&" 1"))+3,1),"mmmm")&" 1")),E38/F33*E33,"")) ->  | O38: =IF(ISBLANK(C38),"",IF(MONTH(C38)=MONTH(DATEVALUE(TEXT(DATE(2000,MONTH(DATEVALUE($E$7&" 1"))+4,1),"mmmm")&" 1")),E38/F33*E33,"")) ->  | P38: =IF(ISBLANK(C38),"",IF(MONTH(C38)=MONTH(DATEVALUE(TEXT(DATE(2000,MONTH(DATEVALUE($E$7&" 1"))+5,1),"mmmm")&" 1")),E38/F33*E33,"")) ->  | Q38: =IF(ISBLANK(C38),"",IF(MONTH(C38)=MONTH(DATEVALUE(TEXT(DATE(2000,MONTH(DATEVALUE($E$7&" 1"))+6,1),"mmmm")&" 1")),E38/F33*E33,"")) ->  | R38: =IF(ISBLANK(C38),"",IF(MONTH(C38)=MONTH(DATEVALUE(TEXT(DATE(2000,MONTH(DATEVALUE($E$7&" 1"))+7,1),"mmmm")&" 1")),E38/F33*E33,"")) ->  | S38: =IF(ISBLANK(C38),"",IF(MONTH(C38)=MONTH(DATEVALUE(TEXT(DATE(2000,MONTH(DATEVALUE($E$7&" 1"))+8,1),"mmmm")&" 1")),E38/F33*E33,"")) ->  | T38: =IF(ISBLANK(C38),"",IF(MONTH(C38)=MONTH(DATEVALUE(TEXT(DATE(2000,MONTH(DATEVALUE($E$7&" 1"))+9,1),"mmmm")&" 1")),E38/F33*E33,"")) ->  | U38: =IF(ISBLANK(C38),"",IF(MONTH(C38)=MONTH(DATEVALUE(TEXT(DATE(2000,MONTH(DATEVALUE($E$7&" 1"))+10,1),"mmmm")&" 1")),E38/F33*E33,"")) ->  | V38: =IF(ISBLANK(C38),"",IF(MONTH(C38)=MONTH(DATEVALUE(TEXT(DATE(2000,MONTH(DATEVALUE($E$7&" 1"))+11,1),"mmmm")&" 1")),E38/F33*E33,"")) -> 
I39: 0 | K39: =IF(ISBLANK(C39),"",IF(MONTH(C39)=MONTH(DATEVALUE($E$7&" 1")),E39/F33*E33,"")) ->  | L39: =IF(ISBLANK(C39),"",IF(MONTH(C39)=MONTH(DATEVALUE(TEXT(DATE(2000,MONTH(DATEVALUE($E$7&" 1"))+1,1),"mmmm")&" 1")),E39/F33*E33,"")) ->  | M39: =IF(ISBLANK(C39),"",IF(MONTH(C39)=MONTH(DATEVALUE(TEXT(DATE(2000,MONTH(DATEVALUE($E$7&" 1"))+2,1),"mmmm")&" 1")),E39/F33*E33,"")) ->  | N39: =IF(ISBLANK(C39),"",IF(MONTH(C39)=MONTH(DATEVALUE(TEXT(DATE(2000,MONTH(DATEVALUE($E$7&" 1"))+3,1),"mmmm")&" 1")),E39/F33*E33,"")) ->  | O39: =IF(ISBLANK(C39),"",IF(MONTH(C39)=MONTH(DATEVALUE(TEXT(DATE(2000,MONTH(DATEVALUE($E$7&" 1"))+4,1),"mmmm")&" 1")),E39/F33*E33,"")) ->  | P39: =IF(ISBLANK(C39),"",IF(MONTH(C39)=MONTH(DATEVALUE(TEXT(DATE(2000,MONTH(DATEVALUE($E$7&" 1"))+5,1),"mmmm")&" 1")),E39/F33*E33,"")) ->  | Q39: =IF(ISBLANK(C39),"",IF(MONTH(C39)=MONTH(DATEVALUE(TEXT(DATE(2000,MONTH(DATEVALUE($E$7&" 1"))+6,1),"mmmm")&" 1")),E39/F33*E33,"")) ->  | R39: =IF(ISBLANK(C39),"",IF(MONTH(C39)=MONTH(DATEVALUE(TEXT(DATE(2000,MONTH(DATEVALUE($E$7&" 1"))+7,1),"mmmm")&" 1")),E39/F33*E33,"")) ->  | S39: =IF(ISBLANK(C39),"",IF(MONTH(C39)=MONTH(DATEVALUE(TEXT(DATE(2000,MONTH(DATEVALUE($E$7&" 1"))+8,1),"mmmm")&" 1")),E39/F33*E33,"")) ->  | T39: =IF(ISBLANK(C39),"",IF(MONTH(C39)=MONTH(DATEVALUE(TEXT(DATE(2000,MONTH(DATEVALUE($E$7&" 1"))+9,1),"mmmm")&" 1")),E39/F33*E33,"")) ->  | U39: =IF(ISBLANK(C39),"",IF(MONTH(C39)=MONTH(DATEVALUE(TEXT(DATE(2000,MONTH(DATEVALUE($E$7&" 1"))+10,1),"mmmm")&" 1")),E39/F33*E33,"")) ->  | V39: =IF(ISBLANK(C39),"",IF(MONTH(C39)=MONTH(DATEVALUE(TEXT(DATE(2000,MONTH(DATEVALUE($E$7&" 1"))+11,1),"mmmm")&" 1")),E39/F33*E33,"")) -> 
I40: 0 | K40: =IF(ISBLANK(C40),"",IF(MONTH(C40)=MONTH(DATEVALUE($E$7&" 1")),E40/F33*E33,"")) ->  | L40: =IF(ISBLANK(C40),"",IF(MONTH(C40)=MONTH(DATEVALUE(TEXT(DATE(2000,MONTH(DATEVALUE($E$7&" 1"))+1,1),"mmmm")&" 1")),E40/F33*E33,"")) ->  | M40: =IF(ISBLANK(C40),"",IF(MONTH(C40)=MONTH(DATEVALUE(TEXT(DATE(2000,MONTH(DATEVALUE($E$7&" 1"))+2,1),"mmmm")&" 1")),E40/F33*E33,"")) ->  | N40: =IF(ISBLANK(C40),"",IF(MONTH(C40)=MONTH(DATEVALUE(TEXT(DATE(2000,MONTH(DATEVALUE($E$7&" 1"))+3,1),"mmmm")&" 1")),E40/F33*E33,"")) ->  | O40: =IF(ISBLANK(C40),"",IF(MONTH(C40)=MONTH(DATEVALUE(TEXT(DATE(2000,MONTH(DATEVALUE($E$7&" 1"))+4,1),"mmmm")&" 1")),E40/F33*E33,"")) ->  | P40: =IF(ISBLANK(C40),"",IF(MONTH(C40)=MONTH(DATEVALUE(TEXT(DATE(2000,MONTH(DATEVALUE($E$7&" 1"))+5,1),"mmmm")&" 1")),E40/F33*E33,"")) ->  | Q40: =IF(ISBLANK(C40),"",IF(MONTH(C40)=MONTH(DATEVALUE(TEXT(DATE(2000,MONTH(DATEVALUE($E$7&" 1"))+6,1),"mmmm")&" 1")),E40/F33*E33,"")) ->  | R40: =IF(ISBLANK(C40),"",IF(MONTH(C40)=MONTH(DATEVALUE(TEXT(DATE(2000,MONTH(DATEVALUE($E$7&" 1"))+7,1),"mmmm")&" 1")),E40/F33*E33,"")) ->  | S40: =IF(ISBLANK(C40),"",IF(MONTH(C40)=MONTH(DATEVALUE(TEXT(DATE(2000,MONTH(DATEVALUE($E$7&" 1"))+8,1),"mmmm")&" 1")),E40/F33*E33,"")) ->  | T40: =IF(ISBLANK(C40),"",IF(MONTH(C40)=MONTH(DATEVALUE(TEXT(DATE(2000,MONTH(DATEVALUE($E$7&" 1"))+9,1),"mmmm")&" 1")),E40/F33*E33,"")) ->  | U40: =IF(ISBLANK(C40),"",IF(MONTH(C40)=MONTH(DATEVALUE(TEXT(DATE(2000,MONTH(DATEVALUE($E$7&" 1"))+10,1),"mmmm")&" 1")),E40/F33*E33,"")) ->  | V40: =IF(ISBLANK(C40),"",IF(MONTH(C40)=MONTH(DATEVALUE(TEXT(DATE(2000,MONTH(DATEVALUE($E$7&" 1"))+11,1),"mmmm")&" 1")),E40/F33*E33,"")) -> 
I41: 0 | K41: =IF(ISBLANK(C41),"",IF(MONTH(C41)=MONTH(DATEVALUE($E$7&" 1")),E41/F33*E33,"")) ->  | L41: =IF(ISBLANK(C41),"",IF(MONTH(C41)=MONTH(DATEVALUE(TEXT(DATE(2000,MONTH(DATEVALUE($E$7&" 1"))+1,1),"mmmm")&" 1")),E41/F33*E33,"")) ->  | M41: =IF(ISBLANK(C41),"",IF(MONTH(C41)=MONTH(DATEVALUE(TEXT(DATE(2000,MONTH(DATEVALUE($E$7&" 1"))+2,1),"mmmm")&" 1")),E41/F33*E33,"")) ->  | N41: =IF(ISBLANK(C41),"",IF(MONTH(C41)=MONTH(DATEVALUE(TEXT(DATE(2000,MONTH(DATEVALUE($E$7&" 1"))+3,1),"mmmm")&" 1")),E41/F33*E33,"")) ->  | O41: =IF(ISBLANK(C41),"",IF(MONTH(C41)=MONTH(DATEVALUE(TEXT(DATE(2000,MONTH(DATEVALUE($E$7&" 1"))+4,1),"mmmm")&" 1")),E41/F33*E33,"")) ->  | P41: =IF(ISBLANK(C41),"",IF(MONTH(C41)=MONTH(DATEVALUE(TEXT(DATE(2000,MONTH(DATEVALUE($E$7&" 1"))+5,1),"mmmm")&" 1")),E41/F33*E33,"")) ->  | Q41: =IF(ISBLANK(C41),"",IF(MONTH(C41)=MONTH(DATEVALUE(TEXT(DATE(2000,MONTH(DATEVALUE($E$7&" 1"))+6,1),"mmmm")&" 1")),E41/F33*E33,"")) ->  | R41: =IF(ISBLANK(C41),"",IF(MONTH(C41)=MONTH(DATEVALUE(TEXT(DATE(2000,MONTH(DATEVALUE($E$7&" 1"))+7,1),"mmmm")&" 1")),E41/F33*E33,"")) ->  | S41: =IF(ISBLANK(C41),"",IF(MONTH(C41)=MONTH(DATEVALUE(TEXT(DATE(2000,MONTH(DATEVALUE($E$7&" 1"))+8,1),"mmmm")&" 1")),E41/F33*E33,"")) ->  | T41: =IF(ISBLANK(C41),"",IF(MONTH(C41)=MONTH(DATEVALUE(TEXT(DATE(2000,MONTH(DATEVALUE($E$7&" 1"))+9,1),"mmmm")&" 1")),E41/F33*E33,"")) ->  | U41: =IF(ISBLANK(C41),"",IF(MONTH(C41)=MONTH(DATEVALUE(TEXT(DATE(2000,MONTH(DATEVALUE($E$7&" 1"))+10,1),"mmmm")&" 1")),E41/F33*E33,"")) ->  | V41: =IF(ISBLANK(C41),"",IF(MONTH(C41)=MONTH(DATEVALUE(TEXT(DATE(2000,MONTH(DATEVALUE($E$7&" 1"))+11,1),"mmmm")&" 1")),E41/F33*E33,"")) -> 
I42: 0 | K42: =IF(ISBLANK(C42),"",IF(MONTH(C42)=MONTH(DATEVALUE($E$7&" 1")),E42/F33*E33,"")) ->  | L42: =IF(ISBLANK(C42),"",IF(MONTH(C42)=MONTH(DATEVALUE(TEXT(DATE(2000,MONTH(DATEVALUE($E$7&" 1"))+1,1),"mmmm")&" 1")),E42/F33*E33,"")) ->  | M42: =IF(ISBLANK(C42),"",IF(MONTH(C42)=MONTH(DATEVALUE(TEXT(DATE(2000,MONTH(DATEVALUE($E$7&" 1"))+2,1),"mmmm")&" 1")),E42/F33*E33,"")) ->  | N42: =IF(ISBLANK(C42),"",IF(MONTH(C42)=MONTH(DATEVALUE(TEXT(DATE(2000,MONTH(DATEVALUE($E$7&" 1"))+3,1),"mmmm")&" 1")),E42/F33*E33,"")) ->  | O42: =IF(ISBLANK(C42),"",IF(MONTH(C42)=MONTH(DATEVALUE(TEXT(DATE(2000,MONTH(DATEVALUE($E$7&" 1"))+4,1),"mmmm")&" 1")),E42/F33*E33,"")) ->  | P42: =IF(ISBLANK(C42),"",IF(MONTH(C42)=MONTH(DATEVALUE(TEXT(DATE(2000,MONTH(DATEVALUE($E$7&" 1"))+5,1),"mmmm")&" 1")),E42/F33*E33,"")) ->  | Q42: =IF(ISBLANK(C42),"",IF(MONTH(C42)=MONTH(DATEVALUE(TEXT(DATE(2000,MONTH(DATEVALUE($E$7&" 1"))+6,1),"mmmm")&" 1")),E42/F33*E33,"")) ->  | R42: =IF(ISBLANK(C42),"",IF(MONTH(C42)=MONTH(DATEVALUE(TEXT(DATE(2000,MONTH(DATEVALUE($E$7&" 1"))+7,1),"mmmm")&" 1")),E42/F33*E33,"")) ->  | S42: =IF(ISBLANK(C42),"",IF(MONTH(C42)=MONTH(DATEVALUE(TEXT(DATE(2000,MONTH(DATEVALUE($E$7&" 1"))+8,1),"mmmm")&" 1")),E42/F33*E33,"")) ->  | T42: =IF(ISBLANK(C42),"",IF(MONTH(C42)=MONTH(DATEVALUE(TEXT(DATE(2000,MONTH(DATEVALUE($E$7&" 1"))+9,1),"mmmm")&" 1")),E42/F33*E33,"")) ->  | U42: =IF(ISBLANK(C42),"",IF(MONTH(C42)=MONTH(DATEVALUE(TEXT(DATE(2000,MONTH(DATEVALUE($E$7&" 1"))+10,1),"mmmm")&" 1")),E42/F33*E33,"")) ->  | V42: =IF(ISBLANK(C42),"",IF(MONTH(C42)=MONTH(DATEVALUE(TEXT(DATE(2000,MONTH(DATEVALUE($E$7&" 1"))+11,1),"mmmm")&" 1")),E42/F33*E33,"")) -> 
I43: 0 | K43: =IF(ISBLANK(C43),"",IF(MONTH(C43)=MONTH(DATEVALUE($E$7&" 1")),E43/F33*E33,"")) ->  | L43: =IF(ISBLANK(C43),"",IF(MONTH(C43)=MONTH(DATEVALUE(TEXT(DATE(2000,MONTH(DATEVALUE($E$7&" 1"))+1,1),"mmmm")&" 1")),E43/F33*E33,"")) ->  | M43: =IF(ISBLANK(C43),"",IF(MONTH(C43)=MONTH(DATEVALUE(TEXT(DATE(2000,MONTH(DATEVALUE($E$7&" 1"))+2,1),"mmmm")&" 1")),E43/F33*E33,"")) ->  | N43: =IF(ISBLANK(C43),"",IF(MONTH(C43)=MONTH(DATEVALUE(TEXT(DATE(2000,MONTH(DATEVALUE($E$7&" 1"))+3,1),"mmmm")&" 1")),E43/F33*E33,"")) ->  | O43: =IF(ISBLANK(C43),"",IF(MONTH(C43)=MONTH(DATEVALUE(TEXT(DATE(2000,MONTH(DATEVALUE($E$7&" 1"))+4,1),"mmmm")&" 1")),E43/F33*E33,"")) ->  | P43: =IF(ISBLANK(C43),"",IF(MONTH(C43)=MONTH(DATEVALUE(TEXT(DATE(2000,MONTH(DATEVALUE($E$7&" 1"))+5,1),"mmmm")&" 1")),E43/F33*E33,"")) ->  | Q43: =IF(ISBLANK(C43),"",IF(MONTH(C43)=MONTH(DATEVALUE(TEXT(DATE(2000,MONTH(DATEVALUE($E$7&" 1"))+6,1),"mmmm")&" 1")),E43/F33*E33,"")) ->  | R43: =IF(ISBLANK(C43),"",IF(MONTH(C43)=MONTH(DATEVALUE(TEXT(DATE(2000,MONTH(DATEVALUE($E$7&" 1"))+7,1),"mmmm")&" 1")),E43/F33*E33,"")) ->  | S43: =IF(ISBLANK(C43),"",IF(MONTH(C43)=MONTH(DATEVALUE(TEXT(DATE(2000,MONTH(DATEVALUE($E$7&" 1"))+8,1),"mmmm")&" 1")),E43/F33*E33,"")) ->  | T43: =IF(ISBLANK(C43),"",IF(MONTH(C43)=MONTH(DATEVALUE(TEXT(DATE(2000,MONTH(DATEVALUE($E$7&" 1"))+9,1),"mmmm")&" 1")),E43/F33*E33,"")) ->  | U43: =IF(ISBLANK(C43),"",IF(MONTH(C43)=MONTH(DATEVALUE(TEXT(DATE(2000,MONTH(DATEVALUE($E$7&" 1"))+10,1),"mmmm")&" 1")),E43/F33*E33,"")) ->  | V43: =IF(ISBLANK(C43),"",IF(MONTH(C43)=MONTH(DATEVALUE(TEXT(DATE(2000,MONTH(DATEVALUE($E$7&" 1"))+11,1),"mmmm")&" 1")),E43/F33*E33,"")) -> 
I44: 0 | K44: =IF(ISBLANK(C44),"",IF(MONTH(C44)=MONTH(DATEVALUE($E$7&" 1")),E44/F33*E33,"")) ->  | L44: =IF(ISBLANK(C44),"",IF(MONTH(C44)=MONTH(DATEVALUE(TEXT(DATE(2000,MONTH(DATEVALUE($E$7&" 1"))+1,1),"mmmm")&" 1")),E44/F33*E33,"")) ->  | M44: =IF(ISBLANK(C44),"",IF(MONTH(C44)=MONTH(DATEVALUE(TEXT(DATE(2000,MONTH(DATEVALUE($E$7&" 1"))+2,1),"mmmm")&" 1")),E44/F33*E33,"")) ->  | N44: =IF(ISBLANK(C44),"",IF(MONTH(C44)=MONTH(DATEVALUE(TEXT(DATE(2000,MONTH(DATEVALUE($E$7&" 1"))+3,1),"mmmm")&" 1")),E44/F33*E33,"")) ->  | O44: =IF(ISBLANK(C44),"",IF(MONTH(C44)=MONTH(DATEVALUE(TEXT(DATE(2000,MONTH(DATEVALUE($E$7&" 1"))+4,1),"mmmm")&" 1")),E44/F33*E33,"")) ->  | P44: =IF(ISBLANK(C44),"",IF(MONTH(C44)=MONTH(DATEVALUE(TEXT(DATE(2000,MONTH(DATEVALUE($E$7&" 1"))+5,1),"mmmm")&" 1")),E44/F33*E33,"")) ->  | Q44: =IF(ISBLANK(C44),"",IF(MONTH(C44)=MONTH(DATEVALUE(TEXT(DATE(2000,MONTH(DATEVALUE($E$7&" 1"))+6,1),"mmmm")&" 1")),E44/F33*E33,"")) ->  | R44: =IF(ISBLANK(C44),"",IF(MONTH(C44)=MONTH(DATEVALUE(TEXT(DATE(2000,MONTH(DATEVALUE($E$7&" 1"))+7,1),"mmmm")&" 1")),E44/F33*E33,"")) ->  | S44: =IF(ISBLANK(C44),"",IF(MONTH(C44)=MONTH(DATEVALUE(TEXT(DATE(2000,MONTH(DATEVALUE($E$7&" 1"))+8,1),"mmmm")&" 1")),E44/F33*E33,"")) ->  | T44: =IF(ISBLANK(C44),"",IF(MONTH(C44)=MONTH(DATEVALUE(TEXT(DATE(2000,MONTH(DATEVALUE($E$7&" 1"))+9,1),"mmmm")&" 1")),E44/F33*E33,"")) ->  | U44: =IF(ISBLANK(C44),"",IF(MONTH(C44)=MONTH(DATEVALUE(TEXT(DATE(2000,MONTH(DATEVALUE($E$7&" 1"))+10,1),"mmmm")&" 1")),E44/F33*E33,"")) ->  | V44: =IF(ISBLANK(C44),"",IF(MONTH(C44)=MONTH(DATEVALUE(TEXT(DATE(2000,MONTH(DATEVALUE($E$7&" 1"))+11,1),"mmmm")&" 1")),E44/F33*E33,"")) -> 
H45: =IFERROR(I45/E45,0) -> 0 | I45: =SUM(I46:J56) -> 0 | W45: =IF(H45<>100%,"Pas ok","ok") -> Pas ok
B46: =$B$10 -> réf. Facture | C46: =$C$10 -> date facture | D46: =$D$10 -> Description facture | E46: =$E$10 -> Montant facture (HTVA)
I47: =SUM(K47:V47) -> 0 | K47: =IF(ISBLANK(C47),"",IF(MONTH(C47)=MONTH(DATEVALUE($E$7&" 1")),E47/F45*E45,"")) ->  | L47: =IF(ISBLANK(C47),"",IF(MONTH(C47)=MONTH(DATEVALUE(TEXT(DATE(2000,MONTH(DATEVALUE($E$7&" 1"))+1,1),"mmmm")&" 1")),E47/F45*E45,"")) ->  | M47: =IF(ISBLANK(C47),"",IF(MONTH(C47)=MONTH(DATEVALUE(TEXT(DATE(2000,MONTH(DATEVALUE($E$7&" 1"))+2,1),"mmmm")&" 1")),E47/F45*E45,"")) ->  | N47: =IF(ISBLANK(C47),"",IF(MONTH(C47)=MONTH(DATEVALUE(TEXT(DATE(2000,MONTH(DATEVALUE($E$7&" 1"))+3,1),"mmmm")&" 1")),E47/F45*E45,"")) ->  | O47: =IF(ISBLANK(C47),"",IF(MONTH(C47)=MONTH(DATEVALUE(TEXT(DATE(2000,MONTH(DATEVALUE($E$7&" 1"))+4,1),"mmmm")&" 1")),E47/F45*E45,"")) ->  | P47: =IF(ISBLANK(C47),"",IF(MONTH(C47)=MONTH(DATEVALUE(TEXT(DATE(2000,MONTH(DATEVALUE($E$7&" 1"))+5,1),"mmmm")&" 1")),E47/F45*E45,"")) ->  | Q47: =IF(ISBLANK(C47),"",IF(MONTH(C47)=MONTH(DATEVALUE(TEXT(DATE(2000,MONTH(DATEVALUE($E$7&" 1"))+6,1),"mmmm")&" 1")),E47/F45*E45,"")) ->  | R47: =IF(ISBLANK(C47),"",IF(MONTH(C47)=MONTH(DATEVALUE(TEXT(DATE(2000,MONTH(DATEVALUE($E$7&" 1"))+7,1),"mmmm")&" 1")),E47/F45*E45,"")) ->  | S47: =IF(ISBLANK(C47),"",IF(MONTH(C47)=MONTH(DATEVALUE(TEXT(DATE(2000,MONTH(DATEVALUE($E$7&" 1"))+8,1),"mmmm")&" 1")),E47/F45*E45,"")) ->  | T47: =IF(ISBLANK(C47),"",IF(MONTH(C47)=MONTH(DATEVALUE(TEXT(DATE(2000,MONTH(DATEVALUE($E$7&" 1"))+9,1),"mmmm")&" 1")),E47/F45*E45,"")) ->  | U47: =IF(ISBLANK(C47),"",IF(MONTH(C47)=MONTH(DATEVALUE(TEXT(DATE(2000,MONTH(DATEVALUE($E$7&" 1"))+10,1),"mmmm")&" 1")),E47/F45*E45,"")) ->  | V47: =IF(ISBLANK(C47),"",IF(MONTH(C47)=MONTH(DATEVALUE(TEXT(DATE(2000,MONTH(DATEVALUE($E$7&" 1"))+11,1),"mmmm")&" 1")),E47/F45*E45,"")) -> 
I48: 0 | K48: =IF(ISBLANK(C48),"",IF(MONTH(C48)=MONTH(DATEVALUE($E$7&" 1")),E48/F45*E45,"")) ->  | L48: =IF(ISBLANK(C48),"",IF(MONTH(C48)=MONTH(DATEVALUE(TEXT(DATE(2000,MONTH(DATEVALUE($E$7&" 1"))+1,1),"mmmm")&" 1")),E48/F45*E45,"")) ->  | M48: =IF(ISBLANK(C48),"",IF(MONTH(C48)=MONTH(DATEVALUE(TEXT(DATE(2000,MONTH(DATEVALUE($E$7&" 1"))+2,1),"mmmm")&" 1")),E48/F45*E45,"")) ->  | N48: =IF(ISBLANK(C48),"",IF(MONTH(C48)=MONTH(DATEVALUE(TEXT(DATE(2000,MONTH(DATEVALUE($E$7&" 1"))+3,1),"mmmm")&" 1")),E48/F45*E45,"")) ->  | O48: =IF(ISBLANK(C48),"",IF(MONTH(C48)=MONTH(DATEVALUE(TEXT(DATE(2000,MONTH(DATEVALUE($E$7&" 1"))+4,1),"mmmm")&" 1")),E48/F45*E45,"")) ->  | P48: =IF(ISBLANK(C48),"",IF(MONTH(C48)=MONTH(DATEVALUE(TEXT(DATE(2000,MONTH(DATEVALUE($E$7&" 1"))+5,1),"mmmm")&" 1")),E48/F45*E45,"")) ->  | Q48: =IF(ISBLANK(C48),"",IF(MONTH(C48)=MONTH(DATEVALUE(TEXT(DATE(2000,MONTH(DATEVALUE($E$7&" 1"))+6,1),"mmmm")&" 1")),E48/F45*E45,"")) ->  | R48: =IF(ISBLANK(C48),"",IF(MONTH(C48)=MONTH(DATEVALUE(TEXT(DATE(2000,MONTH(DATEVALUE($E$7&" 1"))+7,1),"mmmm")&" 1")),E48/F45*E45,"")) ->  | S48: =IF(ISBLANK(C48),"",IF(MONTH(C48)=MONTH(DATEVALUE(TEXT(DATE(2000,MONTH(DATEVALUE($E$7&" 1"))+8,1),"mmmm")&" 1")),E48/F45*E45,"")) ->  | T48: =IF(ISBLANK(C48),"",IF(MONTH(C48)=MONTH(DATEVALUE(TEXT(DATE(2000,MONTH(DATEVALUE($E$7&" 1"))+9,1),"mmmm")&" 1")),E48/F45*E45,"")) ->  | U48: =IF(ISBLANK(C48),"",IF(MONTH(C48)=MONTH(DATEVALUE(TEXT(DATE(2000,MONTH(DATEVALUE($E$7&" 1"))+10,1),"mmmm")&" 1")),E48/F45*E45,"")) ->  | V48: =IF(ISBLANK(C48),"",IF(MONTH(C48)=MONTH(DATEVALUE(TEXT(DATE(2000,MONTH(DATEVALUE($E$7&" 1"))+11,1),"mmmm")&" 1")),E48/F45*E45,"")) -> 
I49: 0 | K49: =IF(ISBLANK(C49),"",IF(MONTH(C49)=MONTH(DATEVALUE($E$7&" 1")),E49/F45*E45,"")) ->  | L49: =IF(ISBLANK(C49),"",IF(MONTH(C49)=MONTH(DATEVALUE(TEXT(DATE(2000,MONTH(DATEVALUE($E$7&" 1"))+1,1),"mmmm")&" 1")),E49/F45*E45,"")) ->  | M49: =IF(ISBLANK(C49),"",IF(MONTH(C49)=MONTH(DATEVALUE(TEXT(DATE(2000,MONTH(DATEVALUE($E$7&" 1"))+2,1),"mmmm")&" 1")),E49/F45*E45,"")) ->  | N49: =IF(ISBLANK(C49),"",IF(MONTH(C49)=MONTH(DATEVALUE(TEXT(DATE(2000,MONTH(DATEVALUE($E$7&" 1"))+3,1),"mmmm")&" 1")),E49/F45*E45,"")) ->  | O49: =IF(ISBLANK(C49),"",IF(MONTH(C49)=MONTH(DATEVALUE(TEXT(DATE(2000,MONTH(DATEVALUE($E$7&" 1"))+4,1),"mmmm")&" 1")),E49/F45*E45,"")) ->  | P49: =IF(ISBLANK(C49),"",IF(MONTH(C49)=MONTH(DATEVALUE(TEXT(DATE(2000,MONTH(DATEVALUE($E$7&" 1"))+5,1),"mmmm")&" 1")),E49/F45*E45,"")) ->  | Q49: =IF(ISBLANK(C49),"",IF(MONTH(C49)=MONTH(DATEVALUE(TEXT(DATE(2000,MONTH(DATEVALUE($E$7&" 1"))+6,1),"mmmm")&" 1")),E49/F45*E45,"")) ->  | R49: =IF(ISBLANK(C49),"",IF(MONTH(C49)=MONTH(DATEVALUE(TEXT(DATE(2000,MONTH(DATEVALUE($E$7&" 1"))+7,1),"mmmm")&" 1")),E49/F45*E45,"")) ->  | S49: =IF(ISBLANK(C49),"",IF(MONTH(C49)=MONTH(DATEVALUE(TEXT(DATE(2000,MONTH(DATEVALUE($E$7&" 1"))+8,1),"mmmm")&" 1")),E49/F45*E45,"")) ->  | T49: =IF(ISBLANK(C49),"",IF(MONTH(C49)=MONTH(DATEVALUE(TEXT(DATE(2000,MONTH(DATEVALUE($E$7&" 1"))+9,1),"mmmm")&" 1")),E49/F45*E45,"")) ->  | U49: =IF(ISBLANK(C49),"",IF(MONTH(C49)=MONTH(DATEVALUE(TEXT(DATE(2000,MONTH(DATEVALUE($E$7&" 1"))+10,1),"mmmm")&" 1")),E49/F45*E45,"")) ->  | V49: =IF(ISBLANK(C49),"",IF(MONTH(C49)=MONTH(DATEVALUE(TEXT(DATE(2000,MONTH(DATEVALUE($E$7&" 1"))+11,1),"mmmm")&" 1")),E49/F45*E45,"")) -> 
I50: 0 | K50: =IF(ISBLANK(C50),"",IF(MONTH(C50)=MONTH(DATEVALUE($E$7&" 1")),E50/F45*E45,"")) ->  | L50: =IF(ISBLANK(C50),"",IF(MONTH(C50)=MONTH(DATEVALUE(TEXT(DATE(2000,MONTH(DATEVALUE($E$7&" 1"))+1,1),"mmmm")&" 1")),E50/F45*E45,"")) ->  | M50: =IF(ISBLANK(C50),"",IF(MONTH(C50)=MONTH(DATEVALUE(TEXT(DATE(2000,MONTH(DATEVALUE($E$7&" 1"))+2,1),"mmmm")&" 1")),E50/F45*E45,"")) ->  | N50: =IF(ISBLANK(C50),"",IF(MONTH(C50)=MONTH(DATEVALUE(TEXT(DATE(2000,MONTH(DATEVALUE($E$7&" 1"))+3,1),"mmmm")&" 1")),E50/F45*E45,"")) ->  | O50: =IF(ISBLANK(C50),"",IF(MONTH(C50)=MONTH(DATEVALUE(TEXT(DATE(2000,MONTH(DATEVALUE($E$7&" 1"))+4,1),"mmmm")&" 1")),E50/F45*E45,"")) ->  | P50: =IF(ISBLANK(C50),"",IF(MONTH(C50)=MONTH(DATEVALUE(TEXT(DATE(2000,MONTH(DATEVALUE($E$7&" 1"))+5,1),"mmmm")&" 1")),E50/F45*E45,"")) ->  | Q50: =IF(ISBLANK(C50),"",IF(MONTH(C50)=MONTH(DATEVALUE(TEXT(DATE(2000,MONTH(DATEVALUE($E$7&" 1"))+6,1),"mmmm")&" 1")),E50/F45*E45,"")) ->  | R50: =IF(ISBLANK(C50),"",IF(MONTH(C50)=MONTH(DATEVALUE(TEXT(DATE(2000,MONTH(DATEVALUE($E$7&" 1"))+7,1),"mmmm")&" 1")),E50/F45*E45,"")) ->  | S50: =IF(ISBLANK(C50),"",IF(MONTH(C50)=MONTH(DATEVALUE(TEXT(DATE(2000,MONTH(DATEVALUE($E$7&" 1"))+8,1),"mmmm")&" 1")),E50/F45*E45,"")) ->  | T50: =IF(ISBLANK(C50),"",IF(MONTH(C50)=MONTH(DATEVALUE(TEXT(DATE(2000,MONTH(DATEVALUE($E$7&" 1"))+9,1),"mmmm")&" 1")),E50/F45*E45,"")) ->  | U50: =IF(ISBLANK(C50),"",IF(MONTH(C50)=MONTH(DATEVALUE(TEXT(DATE(2000,MONTH(DATEVALUE($E$7&" 1"))+10,1),"mmmm")&" 1")),E50/F45*E45,"")) ->  | V50: =IF(ISBLANK(C50),"",IF(MONTH(C50)=MONTH(DATEVALUE(TEXT(DATE(2000,MONTH(DATEVALUE($E$7&" 1"))+11,1),"mmmm")&" 1")),E50/F45*E45,"")) -> 
I51: 0 | K51: =IF(ISBLANK(C51),"",IF(MONTH(C51)=MONTH(DATEVALUE($E$7&" 1")),E51/F45*E45,"")) ->  | L51: =IF(ISBLANK(C51),"",IF(MONTH(C51)=MONTH(DATEVALUE(TEXT(DATE(2000,MONTH(DATEVALUE($E$7&" 1"))+1,1),"mmmm")&" 1")),E51/F45*E45,"")) ->  | M51: =IF(ISBLANK(C51),"",IF(MONTH(C51)=MONTH(DATEVALUE(TEXT(DATE(2000,MONTH(DATEVALUE($E$7&" 1"))+2,1),"mmmm")&" 1")),E51/F45*E45,"")) ->  | N51: =IF(ISBLANK(C51),"",IF(MONTH(C51)=MONTH(DATEVALUE(TEXT(DATE(2000,MONTH(DATEVALUE($E$7&" 1"))+3,1),"mmmm")&" 1")),E51/F45*E45,"")) ->  | O51: =IF(ISBLANK(C51),"",IF(MONTH(C51)=MONTH(DATEVALUE(TEXT(DATE(2000,MONTH(DATEVALUE($E$7&" 1"))+4,1),"mmmm")&" 1")),E51/F45*E45,"")) ->  | P51: =IF(ISBLANK(C51),"",IF(MONTH(C51)=MONTH(DATEVALUE(TEXT(DATE(2000,MONTH(DATEVALUE($E$7&" 1"))+5,1),"mmmm")&" 1")),E51/F45*E45,"")) ->  | Q51: =IF(ISBLANK(C51),"",IF(MONTH(C51)=MONTH(DATEVALUE(TEXT(DATE(2000,MONTH(DATEVALUE($E$7&" 1"))+6,1),"mmmm")&" 1")),E51/F45*E45,"")) ->  | R51: =IF(ISBLANK(C51),"",IF(MONTH(C51)=MONTH(DATEVALUE(TEXT(DATE(2000,MONTH(DATEVALUE($E$7&" 1"))+7,1),"mmmm")&" 1")),E51/F45*E45,"")) ->  | S51: =IF(ISBLANK(C51),"",IF(MONTH(C51)=MONTH(DATEVALUE(TEXT(DATE(2000,MONTH(DATEVALUE($E$7&" 1"))+8,1),"mmmm")&" 1")),E51/F45*E45,"")) ->  | T51: =IF(ISBLANK(C51),"",IF(MONTH(C51)=MONTH(DATEVALUE(TEXT(DATE(2000,MONTH(DATEVALUE($E$7&" 1"))+9,1),"mmmm")&" 1")),E51/F45*E45,"")) ->  | U51: =IF(ISBLANK(C51),"",IF(MONTH(C51)=MONTH(DATEVALUE(TEXT(DATE(2000,MONTH(DATEVALUE($E$7&" 1"))+10,1),"mmmm")&" 1")),E51/F45*E45,"")) ->  | V51: =IF(ISBLANK(C51),"",IF(MONTH(C51)=MONTH(DATEVALUE(TEXT(DATE(2000,MONTH(DATEVALUE($E$7&" 1"))+11,1),"mmmm")&" 1")),E51/F45*E45,"")) -> 
I52: 0 | K52: =IF(ISBLANK(C52),"",IF(MONTH(C52)=MONTH(DATEVALUE($E$7&" 1")),E52/F45*E45,"")) ->  | L52: =IF(ISBLANK(C52),"",IF(MONTH(C52)=MONTH(DATEVALUE(TEXT(DATE(2000,MONTH(DATEVALUE($E$7&" 1"))+1,1),"mmmm")&" 1")),E52/F45*E45,"")) ->  | M52: =IF(ISBLANK(C52),"",IF(MONTH(C52)=MONTH(DATEVALUE(TEXT(DATE(2000,MONTH(DATEVALUE($E$7&" 1"))+2,1),"mmmm")&" 1")),E52/F45*E45,"")) ->  | N52: =IF(ISBLANK(C52),"",IF(MONTH(C52)=MONTH(DATEVALUE(TEXT(DATE(2000,MONTH(DATEVALUE($E$7&" 1"))+3,1),"mmmm")&" 1")),E52/F45*E45,"")) ->  | O52: =IF(ISBLANK(C52),"",IF(MONTH(C52)=MONTH(DATEVALUE(TEXT(DATE(2000,MONTH(DATEVALUE($E$7&" 1"))+4,1),"mmmm")&" 1")),E52/F45*E45,"")) ->  | P52: =IF(ISBLANK(C52),"",IF(MONTH(C52)=MONTH(DATEVALUE(TEXT(DATE(2000,MONTH(DATEVALUE($E$7&" 1"))+5,1),"mmmm")&" 1")),E52/F45*E45,"")) ->  | Q52: =IF(ISBLANK(C52),"",IF(MONTH(C52)=MONTH(DATEVALUE(TEXT(DATE(2000,MONTH(DATEVALUE($E$7&" 1"))+6,1),"mmmm")&" 1")),E52/F45*E45,"")) ->  | R52: =IF(ISBLANK(C52),"",IF(MONTH(C52)=MONTH(DATEVALUE(TEXT(DATE(2000,MONTH(DATEVALUE($E$7&" 1"))+7,1),"mmmm")&" 1")),E52/F45*E45,"")) ->  | S52: =IF(ISBLANK(C52),"",IF(MONTH(C52)=MONTH(DATEVALUE(TEXT(DATE(2000,MONTH(DATEVALUE($E$7&" 1"))+8,1),"mmmm")&" 1")),E52/F45*E45,"")) ->  | T52: =IF(ISBLANK(C52),"",IF(MONTH(C52)=MONTH(DATEVALUE(TEXT(DATE(2000,MONTH(DATEVALUE($E$7&" 1"))+9,1),"mmmm")&" 1")),E52/F45*E45,"")) ->  | U52: =IF(ISBLANK(C52),"",IF(MONTH(C52)=MONTH(DATEVALUE(TEXT(DATE(2000,MONTH(DATEVALUE($E$7&" 1"))+10,1),"mmmm")&" 1")),E52/F45*E45,"")) ->  | V52: =IF(ISBLANK(C52),"",IF(MONTH(C52)=MONTH(DATEVALUE(TEXT(DATE(2000,MONTH(DATEVALUE($E$7&" 1"))+11,1),"mmmm")&" 1")),E52/F45*E45,"")) -> 
I53: 0 | K53: =IF(ISBLANK(C53),"",IF(MONTH(C53)=MONTH(DATEVALUE($E$7&" 1")),E53/F45*E45,"")) ->  | L53: =IF(ISBLANK(C53),"",IF(MONTH(C53)=MONTH(DATEVALUE(TEXT(DATE(2000,MONTH(DATEVALUE($E$7&" 1"))+1,1),"mmmm")&" 1")),E53/F45*E45,"")) ->  | M53: =IF(ISBLANK(C53),"",IF(MONTH(C53)=MONTH(DATEVALUE(TEXT(DATE(2000,MONTH(DATEVALUE($E$7&" 1"))+2,1),"mmmm")&" 1")),E53/F45*E45,"")) ->  | N53: =IF(ISBLANK(C53),"",IF(MONTH(C53)=MONTH(DATEVALUE(TEXT(DATE(2000,MONTH(DATEVALUE($E$7&" 1"))+3,1),"mmmm")&" 1")),E53/F45*E45,"")) ->  | O53: =IF(ISBLANK(C53),"",IF(MONTH(C53)=MONTH(DATEVALUE(TEXT(DATE(2000,MONTH(DATEVALUE($E$7&" 1"))+4,1),"mmmm")&" 1")),E53/F45*E45,"")) ->  | P53: =IF(ISBLANK(C53),"",IF(MONTH(C53)=MONTH(DATEVALUE(TEXT(DATE(2000,MONTH(DATEVALUE($E$7&" 1"))+5,1),"mmmm")&" 1")),E53/F45*E45,"")) ->  | Q53: =IF(ISBLANK(C53),"",IF(MONTH(C53)=MONTH(DATEVALUE(TEXT(DATE(2000,MONTH(DATEVALUE($E$7&" 1"))+6,1),"mmmm")&" 1")),E53/F45*E45,"")) ->  | R53: =IF(ISBLANK(C53),"",IF(MONTH(C53)=MONTH(DATEVALUE(TEXT(DATE(2000,MONTH(DATEVALUE($E$7&" 1"))+7,1),"mmmm")&" 1")),E53/F45*E45,"")) ->  | S53: =IF(ISBLANK(C53),"",IF(MONTH(C53)=MONTH(DATEVALUE(TEXT(DATE(2000,MONTH(DATEVALUE($E$7&" 1"))+8,1),"mmmm")&" 1")),E53/F45*E45,"")) ->  | T53: =IF(ISBLANK(C53),"",IF(MONTH(C53)=MONTH(DATEVALUE(TEXT(DATE(2000,MONTH(DATEVALUE($E$7&" 1"))+9,1),"mmmm")&" 1")),E53/F45*E45,"")) ->  | U53: =IF(ISBLANK(C53),"",IF(MONTH(C53)=MONTH(DATEVALUE(TEXT(DATE(2000,MONTH(DATEVALUE($E$7&" 1"))+10,1),"mmmm")&" 1")),E53/F45*E45,"")) ->  | V53: =IF(ISBLANK(C53),"",IF(MONTH(C53)=MONTH(DATEVALUE(TEXT(DATE(2000,MONTH(DATEVALUE($E$7&" 1"))+11,1),"mmmm")&" 1")),E53/F45*E45,"")) -> 
I54: 0 | K54: =IF(ISBLANK(C54),"",IF(MONTH(C54)=MONTH(DATEVALUE($E$7&" 1")),E54/F45*E45,"")) ->  | L54: =IF(ISBLANK(C54),"",IF(MONTH(C54)=MONTH(DATEVALUE(TEXT(DATE(2000,MONTH(DATEVALUE($E$7&" 1"))+1,1),"mmmm")&" 1")),E54/F45*E45,"")) ->  | M54: =IF(ISBLANK(C54),"",IF(MONTH(C54)=MONTH(DATEVALUE(TEXT(DATE(2000,MONTH(DATEVALUE($E$7&" 1"))+2,1),"mmmm")&" 1")),E54/F45*E45,"")) ->  | N54: =IF(ISBLANK(C54),"",IF(MONTH(C54)=MONTH(DATEVALUE(TEXT(DATE(2000,MONTH(DATEVALUE($E$7&" 1"))+3,1),"mmmm")&" 1")),E54/F45*E45,"")) ->  | O54: =IF(ISBLANK(C54),"",IF(MONTH(C54)=MONTH(DATEVALUE(TEXT(DATE(2000,MONTH(DATEVALUE($E$7&" 1"))+4,1),"mmmm")&" 1")),E54/F45*E45,"")) ->  | P54: =IF(ISBLANK(C54),"",IF(MONTH(C54)=MONTH(DATEVALUE(TEXT(DATE(2000,MONTH(DATEVALUE($E$7&" 1"))+5,1),"mmmm")&" 1")),E54/F45*E45,"")) ->  | Q54: =IF(ISBLANK(C54),"",IF(MONTH(C54)=MONTH(DATEVALUE(TEXT(DATE(2000,MONTH(DATEVALUE($E$7&" 1"))+6,1),"mmmm")&" 1")),E54/F45*E45,"")) ->  | R54: =IF(ISBLANK(C54),"",IF(MONTH(C54)=MONTH(DATEVALUE(TEXT(DATE(2000,MONTH(DATEVALUE($E$7&" 1"))+7,1),"mmmm")&" 1")),E54/F45*E45,"")) ->  | S54: =IF(ISBLANK(C54),"",IF(MONTH(C54)=MONTH(DATEVALUE(TEXT(DATE(2000,MONTH(DATEVALUE($E$7&" 1"))+8,1),"mmmm")&" 1")),E54/F45*E45,"")) ->  | T54: =IF(ISBLANK(C54),"",IF(MONTH(C54)=MONTH(DATEVALUE(TEXT(DATE(2000,MONTH(DATEVALUE($E$7&" 1"))+9,1),"mmmm")&" 1")),E54/F45*E45,"")) ->  | U54: =IF(ISBLANK(C54),"",IF(MONTH(C54)=MONTH(DATEVALUE(TEXT(DATE(2000,MONTH(DATEVALUE($E$7&" 1"))+10,1),"mmmm")&" 1")),E54/F45*E45,"")) ->  | V54: =IF(ISBLANK(C54),"",IF(MONTH(C54)=MONTH(DATEVALUE(TEXT(DATE(2000,MONTH(DATEVALUE($E$7&" 1"))+11,1),"mmmm")&" 1")),E54/F45*E45,"")) -> 
I55: 0 | K55: =IF(ISBLANK(C55),"",IF(MONTH(C55)=MONTH(DATEVALUE($E$7&" 1")),E55/F45*E45,"")) ->  | L55: =IF(ISBLANK(C55),"",IF(MONTH(C55)=MONTH(DATEVALUE(TEXT(DATE(2000,MONTH(DATEVALUE($E$7&" 1"))+1,1),"mmmm")&" 1")),E55/F45*E45,"")) ->  | M55: =IF(ISBLANK(C55),"",IF(MONTH(C55)=MONTH(DATEVALUE(TEXT(DATE(2000,MONTH(DATEVALUE($E$7&" 1"))+2,1),"mmmm")&" 1")),E55/F45*E45,"")) ->  | N55: =IF(ISBLANK(C55),"",IF(MONTH(C55)=MONTH(DATEVALUE(TEXT(DATE(2000,MONTH(DATEVALUE($E$7&" 1"))+3,1),"mmmm")&" 1")),E55/F45*E45,"")) ->  | O55: =IF(ISBLANK(C55),"",IF(MONTH(C55)=MONTH(DATEVALUE(TEXT(DATE(2000,MONTH(DATEVALUE($E$7&" 1"))+4,1),"mmmm")&" 1")),E55/F45*E45,"")) ->  | P55: =IF(ISBLANK(C55),"",IF(MONTH(C55)=MONTH(DATEVALUE(TEXT(DATE(2000,MONTH(DATEVALUE($E$7&" 1"))+5,1),"mmmm")&" 1")),E55/F45*E45,"")) ->  | Q55: =IF(ISBLANK(C55),"",IF(MONTH(C55)=MONTH(DATEVALUE(TEXT(DATE(2000,MONTH(DATEVALUE($E$7&" 1"))+6,1),"mmmm")&" 1")),E55/F45*E45,"")) ->  | R55: =IF(ISBLANK(C55),"",IF(MONTH(C55)=MONTH(DATEVALUE(TEXT(DATE(2000,MONTH(DATEVALUE($E$7&" 1"))+7,1),"mmmm")&" 1")),E55/F45*E45,"")) ->  | S55: =IF(ISBLANK(C55),"",IF(MONTH(C55)=MONTH(DATEVALUE(TEXT(DATE(2000,MONTH(DATEVALUE($E$7&" 1"))+8,1),"mmmm")&" 1")),E55/F45*E45,"")) ->  | T55: =IF(ISBLANK(C55),"",IF(MONTH(C55)=MONTH(DATEVALUE(TEXT(DATE(2000,MONTH(DATEVALUE($E$7&" 1"))+9,1),"mmmm")&" 1")),E55/F45*E45,"")) ->  | U55: =IF(ISBLANK(C55),"",IF(MONTH(C55)=MONTH(DATEVALUE(TEXT(DATE(2000,MONTH(DATEVALUE($E$7&" 1"))+10,1),"mmmm")&" 1")),E55/F45*E45,"")) ->  | V55: =IF(ISBLANK(C55),"",IF(MONTH(C55)=MONTH(DATEVALUE(TEXT(DATE(2000,MONTH(DATEVALUE($E$7&" 1"))+11,1),"mmmm")&" 1")),E55/F45*E45,"")) -> 
I56: 0 | K56: =IF(ISBLANK(C56),"",IF(MONTH(C56)=MONTH(DATEVALUE($E$7&" 1")),E56/F45*E45,"")) ->  | L56: =IF(ISBLANK(C56),"",IF(MONTH(C56)=MONTH(DATEVALUE(TEXT(DATE(2000,MONTH(DATEVALUE($E$7&" 1"))+1,1),"mmmm")&" 1")),E56/F45*E45,"")) ->  | M56: =IF(ISBLANK(C56),"",IF(MONTH(C56)=MONTH(DATEVALUE(TEXT(DATE(2000,MONTH(DATEVALUE($E$7&" 1"))+2,1),"mmmm")&" 1")),E56/F45*E45,"")) ->  | N56: =IF(ISBLANK(C56),"",IF(MONTH(C56)=MONTH(DATEVALUE(TEXT(DATE(2000,MONTH(DATEVALUE($E$7&" 1"))+3,1),"mmmm")&" 1")),E56/F45*E45,"")) ->  | O56: =IF(ISBLANK(C56),"",IF(MONTH(C56)=MONTH(DATEVALUE(TEXT(DATE(2000,MONTH(DATEVALUE($E$7&" 1"))+4,1),"mmmm")&" 1")),E56/F45*E45,"")) ->  | P56: =IF(ISBLANK(C56),"",IF(MONTH(C56)=MONTH(DATEVALUE(TEXT(DATE(2000,MONTH(DATEVALUE($E$7&" 1"))+5,1),"mmmm")&" 1")),E56/F45*E45,"")) ->  | Q56: =IF(ISBLANK(C56),"",IF(MONTH(C56)=MONTH(DATEVALUE(TEXT(DATE(2000,MONTH(DATEVALUE($E$7&" 1"))+6,1),"mmmm")&" 1")),E56/F45*E45,"")) ->  | R56: =IF(ISBLANK(C56),"",IF(MONTH(C56)=MONTH(DATEVALUE(TEXT(DATE(2000,MONTH(DATEVALUE($E$7&" 1"))+7,1),"mmmm")&" 1")),E56/F45*E45,"")) ->  | S56: =IF(ISBLANK(C56),"",IF(MONTH(C56)=MONTH(DATEVALUE(TEXT(DATE(2000,MONTH(DATEVALUE($E$7&" 1"))+8,1),"mmmm")&" 1")),E56/F45*E45,"")) ->  | T56: =IF(ISBLANK(C56),"",IF(MONTH(C56)=MONTH(DATEVALUE(TEXT(DATE(2000,MONTH(DATEVALUE($E$7&" 1"))+9,1),"mmmm")&" 1")),E56/F45*E45,"")) ->  | U56: =IF(ISBLANK(C56),"",IF(MONTH(C56)=MONTH(DATEVALUE(TEXT(DATE(2000,MONTH(DATEVALUE($E$7&" 1"))+10,1),"mmmm")&" 1")),E56/F45*E45,"")) ->  | V56: =IF(ISBLANK(C56),"",IF(MONTH(C56)=MONTH(DATEVALUE(TEXT(DATE(2000,MONTH(DATEVALUE($E$7&" 1"))+11,1),"mmmm")&" 1")),E56/F45*E45,"")) -> 
H57: =IFERROR(I57/E57,0) -> 0 | I57: =SUM(I58:J68) -> 0 | W57: =IF(H57<>100%,"Pas ok","ok") -> Pas ok
B58: =$B$10 -> réf. Facture | C58: =$C$10 -> date facture | D58: =$D$10 -> Description facture | E58: =$E$10 -> Montant facture (HTVA)
I59: =SUM(K59:V59) -> 0 | K59: =IF(ISBLANK(C59),"",IF(MONTH(C59)=MONTH(DATEVALUE($E$7&" 1")),E59/F57*E57,"")) ->  | L59: =IF(ISBLANK(C59),"",IF(MONTH(C59)=MONTH(DATEVALUE(TEXT(DATE(2000,MONTH(DATEVALUE($E$7&" 1"))+1,1),"mmmm")&" 1")),E59/F57*E57,"")) ->  | M59: =IF(ISBLANK(C59),"",IF(MONTH(C59)=MONTH(DATEVALUE(TEXT(DATE(2000,MONTH(DATEVALUE($E$7&" 1"))+2,1),"mmmm")&" 1")),E59/F57*E57,"")) ->  | N59: =IF(ISBLANK(C59),"",IF(MONTH(C59)=MONTH(DATEVALUE(TEXT(DATE(2000,MONTH(DATEVALUE($E$7&" 1"))+3,1),"mmmm")&" 1")),E59/F57*E57,"")) ->  | O59: =IF(ISBLANK(C59),"",IF(MONTH(C59)=MONTH(DATEVALUE(TEXT(DATE(2000,MONTH(DATEVALUE($E$7&" 1"))+4,1),"mmmm")&" 1")),E59/F57*E57,"")) ->  | P59: =IF(ISBLANK(C59),"",IF(MONTH(C59)=MONTH(DATEVALUE(TEXT(DATE(2000,MONTH(DATEVALUE($E$7&" 1"))+5,1),"mmmm")&" 1")),E59/F57*E57,"")) ->  | Q59: =IF(ISBLANK(C59),"",IF(MONTH(C59)=MONTH(DATEVALUE(TEXT(DATE(2000,MONTH(DATEVALUE($E$7&" 1"))+6,1),"mmmm")&" 1")),E59/F57*E57,"")) ->  | R59: =IF(ISBLANK(C59),"",IF(MONTH(C59)=MONTH(DATEVALUE(TEXT(DATE(2000,MONTH(DATEVALUE($E$7&" 1"))+7,1),"mmmm")&" 1")),E59/F57*E57,"")) ->  | S59: =IF(ISBLANK(C59),"",IF(MONTH(C59)=MONTH(DATEVALUE(TEXT(DATE(2000,MONTH(DATEVALUE($E$7&" 1"))+8,1),"mmmm")&" 1")),E59/F57*E57,"")) ->  | T59: =IF(ISBLANK(C59),"",IF(MONTH(C59)=MONTH(DATEVALUE(TEXT(DATE(2000,MONTH(DATEVALUE($E$7&" 1"))+9,1),"mmmm")&" 1")),E59/F57*E57,"")) ->  | U59: =IF(ISBLANK(C59),"",IF(MONTH(C59)=MONTH(DATEVALUE(TEXT(DATE(2000,MONTH(DATEVALUE($E$7&" 1"))+10,1),"mmmm")&" 1")),E59/F57*E57,"")) ->  | V59: =IF(ISBLANK(C59),"",IF(MONTH(C59)=MONTH(DATEVALUE(TEXT(DATE(2000,MONTH(DATEVALUE($E$7&" 1"))+11,1),"mmmm")&" 1")),E59/F57*E57,"")) -> 
I60: 0 | K60: =IF(ISBLANK(C60),"",IF(MONTH(C60)=MONTH(DATEVALUE($E$7&" 1")),E60/F57*E57,"")) ->  | L60: =IF(ISBLANK(C60),"",IF(MONTH(C60)=MONTH(DATEVALUE(TEXT(DATE(2000,MONTH(DATEVALUE($E$7&" 1"))+1,1),"mmmm")&" 1")),E60/F57*E57,"")) ->  | M60: =IF(ISBLANK(C60),"",IF(MONTH(C60)=MONTH(DATEVALUE(TEXT(DATE(2000,MONTH(DATEVALUE($E$7&" 1"))+2,1),"mmmm")&" 1")),E60/F57*E57,"")) ->  | N60: =IF(ISBLANK(C60),"",IF(MONTH(C60)=MONTH(DATEVALUE(TEXT(DATE(2000,MONTH(DATEVALUE($E$7&" 1"))+3,1),"mmmm")&" 1")),E60/F57*E57,"")) ->  | O60: =IF(ISBLANK(C60),"",IF(MONTH(C60)=MONTH(DATEVALUE(TEXT(DATE(2000,MONTH(DATEVALUE($E$7&" 1"))+4,1),"mmmm")&" 1")),E60/F57*E57,"")) ->  | P60: =IF(ISBLANK(C60),"",IF(MONTH(C60)=MONTH(DATEVALUE(TEXT(DATE(2000,MONTH(DATEVALUE($E$7&" 1"))+5,1),"mmmm")&" 1")),E60/F57*E57,"")) ->  | Q60: =IF(ISBLANK(C60),"",IF(MONTH(C60)=MONTH(DATEVALUE(TEXT(DATE(2000,MONTH(DATEVALUE($E$7&" 1"))+6,1),"mmmm")&" 1")),E60/F57*E57,"")) ->  | R60: =IF(ISBLANK(C60),"",IF(MONTH(C60)=MONTH(DATEVALUE(TEXT(DATE(2000,MONTH(DATEVALUE($E$7&" 1"))+7,1),"mmmm")&" 1")),E60/F57*E57,"")) ->  | S60: =IF(ISBLANK(C60),"",IF(MONTH(C60)=MONTH(DATEVALUE(TEXT(DATE(2000,MONTH(DATEVALUE($E$7&" 1"))+8,1),"mmmm")&" 1")),E60/F57*E57,"")) ->  | T60: =IF(ISBLANK(C60),"",IF(MONTH(C60)=MONTH(DATEVALUE(TEXT(DATE(2000,MONTH(DATEVALUE($E$7&" 1"))+9,1),"mmmm")&" 1")),E60/F57*E57,"")) ->  | U60: =IF(ISBLANK(C60),"",IF(MONTH(C60)=MONTH(DATEVALUE(TEXT(DATE(2000,MONTH(DATEVALUE($E$7&" 1"))+10,1),"mmmm")&" 1")),E60/F57*E57,"")) ->  | V60: =IF(ISBLANK(C60),"",IF(MONTH(C60)=MONTH(DATEVALUE(TEXT(DATE(2000,MONTH(DATEVALUE($E$7&" 1"))+11,1),"mmmm")&" 1")),E60/F57*E57,"")) -> 
I61: 0 | K61: =IF(ISBLANK(C61),"",IF(MONTH(C61)=MONTH(DATEVALUE($E$7&" 1")),E61/F57*E57,"")) ->  | L61: =IF(ISBLANK(C61),"",IF(MONTH(C61)=MONTH(DATEVALUE(TEXT(DATE(2000,MONTH(DATEVALUE($E$7&" 1"))+1,1),"mmmm")&" 1")),E61/F57*E57,"")) ->  | M61: =IF(ISBLANK(C61),"",IF(MONTH(C61)=MONTH(DATEVALUE(TEXT(DATE(2000,MONTH(DATEVALUE($E$7&" 1"))+2,1),"mmmm")&" 1")),E61/F57*E57,"")) ->  | N61: =IF(ISBLANK(C61),"",IF(MONTH(C61)=MONTH(DATEVALUE(TEXT(DATE(2000,MONTH(DATEVALUE($E$7&" 1"))+3,1),"mmmm")&" 1")),E61/F57*E57,"")) ->  | O61: =IF(ISBLANK(C61),"",IF(MONTH(C61)=MONTH(DATEVALUE(TEXT(DATE(2000,MONTH(DATEVALUE($E$7&" 1"))+4,1),"mmmm")&" 1")),E61/F57*E57,"")) ->  | P61: =IF(ISBLANK(C61),"",IF(MONTH(C61)=MONTH(DATEVALUE(TEXT(DATE(2000,MONTH(DATEVALUE($E$7&" 1"))+5,1),"mmmm")&" 1")),E61/F57*E57,"")) ->  | Q61: =IF(ISBLANK(C61),"",IF(MONTH(C61)=MONTH(DATEVALUE(TEXT(DATE(2000,MONTH(DATEVALUE($E$7&" 1"))+6,1),"mmmm")&" 1")),E61/F57*E57,"")) ->  | R61: =IF(ISBLANK(C61),"",IF(MONTH(C61)=MONTH(DATEVALUE(TEXT(DATE(2000,MONTH(DATEVALUE($E$7&" 1"))+7,1),"mmmm")&" 1")),E61/F57*E57,"")) ->  | S61: =IF(ISBLANK(C61),"",IF(MONTH(C61)=MONTH(DATEVALUE(TEXT(DATE(2000,MONTH(DATEVALUE($E$7&" 1"))+8,1),"mmmm")&" 1")),E61/F57*E57,"")) ->  | T61: =IF(ISBLANK(C61),"",IF(MONTH(C61)=MONTH(DATEVALUE(TEXT(DATE(2000,MONTH(DATEVALUE($E$7&" 1"))+9,1),"mmmm")&" 1")),E61/F57*E57,"")) ->  | U61: =IF(ISBLANK(C61),"",IF(MONTH(C61)=MONTH(DATEVALUE(TEXT(DATE(2000,MONTH(DATEVALUE($E$7&" 1"))+10,1),"mmmm")&" 1")),E61/F57*E57,"")) ->  | V61: =IF(ISBLANK(C61),"",IF(MONTH(C61)=MONTH(DATEVALUE(TEXT(DATE(2000,MONTH(DATEVALUE($E$7&" 1"))+11,1),"mmmm")&" 1")),E61/F57*E57,"")) -> 
I62: 0 | K62: =IF(ISBLANK(C62),"",IF(MONTH(C62)=MONTH(DATEVALUE($E$7&" 1")),E62/F57*E57,"")) ->  | L62: =IF(ISBLANK(C62),"",IF(MONTH(C62)=MONTH(DATEVALUE(TEXT(DATE(2000,MONTH(DATEVALUE($E$7&" 1"))+1,1),"mmmm")&" 1")),E62/F57*E57,"")) ->  | M62: =IF(ISBLANK(C62),"",IF(MONTH(C62)=MONTH(DATEVALUE(TEXT(DATE(2000,MONTH(DATEVALUE($E$7&" 1"))+2,1),"mmmm")&" 1")),E62/F57*E57,"")) ->  | N62: =IF(ISBLANK(C62),"",IF(MONTH(C62)=MONTH(DATEVALUE(TEXT(DATE(2000,MONTH(DATEVALUE($E$7&" 1"))+3,1),"mmmm")&" 1")),E62/F57*E57,"")) ->  | O62: =IF(ISBLANK(C62),"",IF(MONTH(C62)=MONTH(DATEVALUE(TEXT(DATE(2000,MONTH(DATEVALUE($E$7&" 1"))+4,1),"mmmm")&" 1")),E62/F57*E57,"")) ->  | P62: =IF(ISBLANK(C62),"",IF(MONTH(C62)=MONTH(DATEVALUE(TEXT(DATE(2000,MONTH(DATEVALUE($E$7&" 1"))+5,1),"mmmm")&" 1")),E62/F57*E57,"")) ->  | Q62: =IF(ISBLANK(C62),"",IF(MONTH(C62)=MONTH(DATEVALUE(TEXT(DATE(2000,MONTH(DATEVALUE($E$7&" 1"))+6,1),"mmmm")&" 1")),E62/F57*E57,"")) ->  | R62: =IF(ISBLANK(C62),"",IF(MONTH(C62)=MONTH(DATEVALUE(TEXT(DATE(2000,MONTH(DATEVALUE($E$7&" 1"))+7,1),"mmmm")&" 1")),E62/F57*E57,"")) ->  | S62: =IF(ISBLANK(C62),"",IF(MONTH(C62)=MONTH(DATEVALUE(TEXT(DATE(2000,MONTH(DATEVALUE($E$7&" 1"))+8,1),"mmmm")&" 1")),E62/F57*E57,"")) ->  | T62: =IF(ISBLANK(C62),"",IF(MONTH(C62)=MONTH(DATEVALUE(TEXT(DATE(2000,MONTH(DATEVALUE($E$7&" 1"))+9,1),"mmmm")&" 1")),E62/F57*E57,"")) ->  | U62: =IF(ISBLANK(C62),"",IF(MONTH(C62)=MONTH(DATEVALUE(TEXT(DATE(2000,MONTH(DATEVALUE($E$7&" 1"))+10,1),"mmmm")&" 1")),E62/F57*E57,"")) ->  | V62: =IF(ISBLANK(C62),"",IF(MONTH(C62)=MONTH(DATEVALUE(TEXT(DATE(2000,MONTH(DATEVALUE($E$7&" 1"))+11,1),"mmmm")&" 1")),E62/F57*E57,"")) -> 
I63: 0 | K63: =IF(ISBLANK(C63),"",IF(MONTH(C63)=MONTH(DATEVALUE($E$7&" 1")),E63/F57*E57,"")) ->  | L63: =IF(ISBLANK(C63),"",IF(MONTH(C63)=MONTH(DATEVALUE(TEXT(DATE(2000,MONTH(DATEVALUE($E$7&" 1"))+1,1),"mmmm")&" 1")),E63/F57*E57,"")) ->  | M63: =IF(ISBLANK(C63),"",IF(MONTH(C63)=MONTH(DATEVALUE(TEXT(DATE(2000,MONTH(DATEVALUE($E$7&" 1"))+2,1),"mmmm")&" 1")),E63/F57*E57,"")) ->  | N63: =IF(ISBLANK(C63),"",IF(MONTH(C63)=MONTH(DATEVALUE(TEXT(DATE(2000,MONTH(DATEVALUE($E$7&" 1"))+3,1),"mmmm")&" 1")),E63/F57*E57,"")) ->  | O63: =IF(ISBLANK(C63),"",IF(MONTH(C63)=MONTH(DATEVALUE(TEXT(DATE(2000,MONTH(DATEVALUE($E$7&" 1"))+4,1),"mmmm")&" 1")),E63/F57*E57,"")) ->  | P63: =IF(ISBLANK(C63),"",IF(MONTH(C63)=MONTH(DATEVALUE(TEXT(DATE(2000,MONTH(DATEVALUE($E$7&" 1"))+5,1),"mmmm")&" 1")),E63/F57*E57,"")) ->  | Q63: =IF(ISBLANK(C63),"",IF(MONTH(C63)=MONTH(DATEVALUE(TEXT(DATE(2000,MONTH(DATEVALUE($E$7&" 1"))+6,1),"mmmm")&" 1")),E63/F57*E57,"")) ->  | R63: =IF(ISBLANK(C63),"",IF(MONTH(C63)=MONTH(DATEVALUE(TEXT(DATE(2000,MONTH(DATEVALUE($E$7&" 1"))+7,1),"mmmm")&" 1")),E63/F57*E57,"")) ->  | S63: =IF(ISBLANK(C63),"",IF(MONTH(C63)=MONTH(DATEVALUE(TEXT(DATE(2000,MONTH(DATEVALUE($E$7&" 1"))+8,1),"mmmm")&" 1")),E63/F57*E57,"")) ->  | T63: =IF(ISBLANK(C63),"",IF(MONTH(C63)=MONTH(DATEVALUE(TEXT(DATE(2000,MONTH(DATEVALUE($E$7&" 1"))+9,1),"mmmm")&" 1")),E63/F57*E57,"")) ->  | U63: =IF(ISBLANK(C63),"",IF(MONTH(C63)=MONTH(DATEVALUE(TEXT(DATE(2000,MONTH(DATEVALUE($E$7&" 1"))+10,1),"mmmm")&" 1")),E63/F57*E57,"")) ->  | V63: =IF(ISBLANK(C63),"",IF(MONTH(C63)=MONTH(DATEVALUE(TEXT(DATE(2000,MONTH(DATEVALUE($E$7&" 1"))+11,1),"mmmm")&" 1")),E63/F57*E57,"")) -> 
I64: 0 | K64: =IF(ISBLANK(C64),"",IF(MONTH(C64)=MONTH(DATEVALUE($E$7&" 1")),E64/F57*E57,"")) ->  | L64: =IF(ISBLANK(C64),"",IF(MONTH(C64)=MONTH(DATEVALUE(TEXT(DATE(2000,MONTH(DATEVALUE($E$7&" 1"))+1,1),"mmmm")&" 1")),E64/F57*E57,"")) ->  | M64: =IF(ISBLANK(C64),"",IF(MONTH(C64)=MONTH(DATEVALUE(TEXT(DATE(2000,MONTH(DATEVALUE($E$7&" 1"))+2,1),"mmmm")&" 1")),E64/F57*E57,"")) ->  | N64: =IF(ISBLANK(C64),"",IF(MONTH(C64)=MONTH(DATEVALUE(TEXT(DATE(2000,MONTH(DATEVALUE($E$7&" 1"))+3,1),"mmmm")&" 1")),E64/F57*E57,"")) ->  | O64: =IF(ISBLANK(C64),"",IF(MONTH(C64)=MONTH(DATEVALUE(TEXT(DATE(2000,MONTH(DATEVALUE($E$7&" 1"))+4,1),"mmmm")&" 1")),E64/F57*E57,"")) ->  | P64: =IF(ISBLANK(C64),"",IF(MONTH(C64)=MONTH(DATEVALUE(TEXT(DATE(2000,MONTH(DATEVALUE($E$7&" 1"))+5,1),"mmmm")&" 1")),E64/F57*E57,"")) ->  | Q64: =IF(ISBLANK(C64),"",IF(MONTH(C64)=MONTH(DATEVALUE(TEXT(DATE(2000,MONTH(DATEVALUE($E$7&" 1"))+6,1),"mmmm")&" 1")),E64/F57*E57,"")) ->  | R64: =IF(ISBLANK(C64),"",IF(MONTH(C64)=MONTH(DATEVALUE(TEXT(DATE(2000,MONTH(DATEVALUE($E$7&" 1"))+7,1),"mmmm")&" 1")),E64/F57*E57,"")) ->  | S64: =IF(ISBLANK(C64),"",IF(MONTH(C64)=MONTH(DATEVALUE(TEXT(DATE(2000,MONTH(DATEVALUE($E$7&" 1"))+8,1),"mmmm")&" 1")),E64/F57*E57,"")) ->  | T64: =IF(ISBLANK(C64),"",IF(MONTH(C64)=MONTH(DATEVALUE(TEXT(DATE(2000,MONTH(DATEVALUE($E$7&" 1"))+9,1),"mmmm")&" 1")),E64/F57*E57,"")) ->  | U64: =IF(ISBLANK(C64),"",IF(MONTH(C64)=MONTH(DATEVALUE(TEXT(DATE(2000,MONTH(DATEVALUE($E$7&" 1"))+10,1),"mmmm")&" 1")),E64/F57*E57,"")) ->  | V64: =IF(ISBLANK(C64),"",IF(MONTH(C64)=MONTH(DATEVALUE(TEXT(DATE(2000,MONTH(DATEVALUE($E$7&" 1"))+11,1),"mmmm")&" 1")),E64/F57*E57,"")) -> 
I65: 0 | K65: =IF(ISBLANK(C65),"",IF(MONTH(C65)=MONTH(DATEVALUE($E$7&" 1")),E65/F57*E57,"")) ->  | L65: =IF(ISBLANK(C65),"",IF(MONTH(C65)=MONTH(DATEVALUE(TEXT(DATE(2000,MONTH(DATEVALUE($E$7&" 1"))+1,1),"mmmm")&" 1")),E65/F57*E57,"")) ->  | M65: =IF(ISBLANK(C65),"",IF(MONTH(C65)=MONTH(DATEVALUE(TEXT(DATE(2000,MONTH(DATEVALUE($E$7&" 1"))+2,1),"mmmm")&" 1")),E65/F57*E57,"")) ->  | N65: =IF(ISBLANK(C65),"",IF(MONTH(C65)=MONTH(DATEVALUE(TEXT(DATE(2000,MONTH(DATEVALUE($E$7&" 1"))+3,1),"mmmm")&" 1")),E65/F57*E57,"")) ->  | O65: =IF(ISBLANK(C65),"",IF(MONTH(C65)=MONTH(DATEVALUE(TEXT(DATE(2000,MONTH(DATEVALUE($E$7&" 1"))+4,1),"mmmm")&" 1")),E65/F57*E57,"")) ->  | P65: =IF(ISBLANK(C65),"",IF(MONTH(C65)=MONTH(DATEVALUE(TEXT(DATE(2000,MONTH(DATEVALUE($E$7&" 1"))+5,1),"mmmm")&" 1")),E65/F57*E57,"")) ->  | Q65: =IF(ISBLANK(C65),"",IF(MONTH(C65)=MONTH(DATEVALUE(TEXT(DATE(2000,MONTH(DATEVALUE($E$7&" 1"))+6,1),"mmmm")&" 1")),E65/F57*E57,"")) ->  | R65: =IF(ISBLANK(C65),"",IF(MONTH(C65)=MONTH(DATEVALUE(TEXT(DATE(2000,MONTH(DATEVALUE($E$7&" 1"))+7,1),"mmmm")&" 1")),E65/F57*E57,"")) ->  | S65: =IF(ISBLANK(C65),"",IF(MONTH(C65)=MONTH(DATEVALUE(TEXT(DATE(2000,MONTH(DATEVALUE($E$7&" 1"))+8,1),"mmmm")&" 1")),E65/F57*E57,"")) ->  | T65: =IF(ISBLANK(C65),"",IF(MONTH(C65)=MONTH(DATEVALUE(TEXT(DATE(2000,MONTH(DATEVALUE($E$7&" 1"))+9,1),"mmmm")&" 1")),E65/F57*E57,"")) ->  | U65: =IF(ISBLANK(C65),"",IF(MONTH(C65)=MONTH(DATEVALUE(TEXT(DATE(2000,MONTH(DATEVALUE($E$7&" 1"))+10,1),"mmmm")&" 1")),E65/F57*E57,"")) ->  | V65: =IF(ISBLANK(C65),"",IF(MONTH(C65)=MONTH(DATEVALUE(TEXT(DATE(2000,MONTH(DATEVALUE($E$7&" 1"))+11,1),"mmmm")&" 1")),E65/F57*E57,"")) -> 
I66: 0 | K66: =IF(ISBLANK(C66),"",IF(MONTH(C66)=MONTH(DATEVALUE($E$7&" 1")),E66/F57*E57,"")) ->  | L66: =IF(ISBLANK(C66),"",IF(MONTH(C66)=MONTH(DATEVALUE(TEXT(DATE(2000,MONTH(DATEVALUE($E$7&" 1"))+1,1),"mmmm")&" 1")),E66/F57*E57,"")) ->  | M66: =IF(ISBLANK(C66),"",IF(MONTH(C66)=MONTH(DATEVALUE(TEXT(DATE(2000,MONTH(DATEVALUE($E$7&" 1"))+2,1),"mmmm")&" 1")),E66/F57*E57,"")) ->  | N66: =IF(ISBLANK(C66),"",IF(MONTH(C66)=MONTH(DATEVALUE(TEXT(DATE(2000,MONTH(DATEVALUE($E$7&" 1"))+3,1),"mmmm")&" 1")),E66/F57*E57,"")) ->  | O66: =IF(ISBLANK(C66),"",IF(MONTH(C66)=MONTH(DATEVALUE(TEXT(DATE(2000,MONTH(DATEVALUE($E$7&" 1"))+4,1),"mmmm")&" 1")),E66/F57*E57,"")) ->  | P66: =IF(ISBLANK(C66),"",IF(MONTH(C66)=MONTH(DATEVALUE(TEXT(DATE(2000,MONTH(DATEVALUE($E$7&" 1"))+5,1),"mmmm")&" 1")),E66/F57*E57,"")) ->  | Q66: =IF(ISBLANK(C66),"",IF(MONTH(C66)=MONTH(DATEVALUE(TEXT(DATE(2000,MONTH(DATEVALUE($E$7&" 1"))+6,1),"mmmm")&" 1")),E66/F57*E57,"")) ->  | R66: =IF(ISBLANK(C66),"",IF(MONTH(C66)=MONTH(DATEVALUE(TEXT(DATE(2000,MONTH(DATEVALUE($E$7&" 1"))+7,1),"mmmm")&" 1")),E66/F57*E57,"")) ->  | S66: =IF(ISBLANK(C66),"",IF(MONTH(C66)=MONTH(DATEVALUE(TEXT(DATE(2000,MONTH(DATEVALUE($E$7&" 1"))+8,1),"mmmm")&" 1")),E66/F57*E57,"")) ->  | T66: =IF(ISBLANK(C66),"",IF(MONTH(C66)=MONTH(DATEVALUE(TEXT(DATE(2000,MONTH(DATEVALUE($E$7&" 1"))+9,1),"mmmm")&" 1")),E66/F57*E57,"")) ->  | U66: =IF(ISBLANK(C66),"",IF(MONTH(C66)=MONTH(DATEVALUE(TEXT(DATE(2000,MONTH(DATEVALUE($E$7&" 1"))+10,1),"mmmm")&" 1")),E66/F57*E57,"")) ->  | V66: =IF(ISBLANK(C66),"",IF(MONTH(C66)=MONTH(DATEVALUE(TEXT(DATE(2000,MONTH(DATEVALUE($E$7&" 1"))+11,1),"mmmm")&" 1")),E66/F57*E57,"")) -> 
I67: 0 | K67: =IF(ISBLANK(C67),"",IF(MONTH(C67)=MONTH(DATEVALUE($E$7&" 1")),E67/F57*E57,"")) ->  | L67: =IF(ISBLANK(C67),"",IF(MONTH(C67)=MONTH(DATEVALUE(TEXT(DATE(2000,MONTH(DATEVALUE($E$7&" 1"))+1,1),"mmmm")&" 1")),E67/F57*E57,"")) ->  | M67: =IF(ISBLANK(C67),"",IF(MONTH(C67)=MONTH(DATEVALUE(TEXT(DATE(2000,MONTH(DATEVALUE($E$7&" 1"))+2,1),"mmmm")&" 1")),E67/F57*E57,"")) ->  | N67: =IF(ISBLANK(C67),"",IF(MONTH(C67)=MONTH(DATEVALUE(TEXT(DATE(2000,MONTH(DATEVALUE($E$7&" 1"))+3,1),"mmmm")&" 1")),E67/F57*E57,"")) ->  | O67: =IF(ISBLANK(C67),"",IF(MONTH(C67)=MONTH(DATEVALUE(TEXT(DATE(2000,MONTH(DATEVALUE($E$7&" 1"))+4,1),"mmmm")&" 1")),E67/F57*E57,"")) ->  | P67: =IF(ISBLANK(C67),"",IF(MONTH(C67)=MONTH(DATEVALUE(TEXT(DATE(2000,MONTH(DATEVALUE($E$7&" 1"))+5,1),"mmmm")&" 1")),E67/F57*E57,"")) ->  | Q67: =IF(ISBLANK(C67),"",IF(MONTH(C67)=MONTH(DATEVALUE(TEXT(DATE(2000,MONTH(DATEVALUE($E$7&" 1"))+6,1),"mmmm")&" 1")),E67/F57*E57,"")) ->  | R67: =IF(ISBLANK(C67),"",IF(MONTH(C67)=MONTH(DATEVALUE(TEXT(DATE(2000,MONTH(DATEVALUE($E$7&" 1"))+7,1),"mmmm")&" 1")),E67/F57*E57,"")) ->  | S67: =IF(ISBLANK(C67),"",IF(MONTH(C67)=MONTH(DATEVALUE(TEXT(DATE(2000,MONTH(DATEVALUE($E$7&" 1"))+8,1),"mmmm")&" 1")),E67/F57*E57,"")) ->  | T67: =IF(ISBLANK(C67),"",IF(MONTH(C67)=MONTH(DATEVALUE(TEXT(DATE(2000,MONTH(DATEVALUE($E$7&" 1"))+9,1),"mmmm")&" 1")),E67/F57*E57,"")) ->  | U67: =IF(ISBLANK(C67),"",IF(MONTH(C67)=MONTH(DATEVALUE(TEXT(DATE(2000,MONTH(DATEVALUE($E$7&" 1"))+10,1),"mmmm")&" 1")),E67/F57*E57,"")) ->  | V67: =IF(ISBLANK(C67),"",IF(MONTH(C67)=MONTH(DATEVALUE(TEXT(DATE(2000,MONTH(DATEVALUE($E$7&" 1"))+11,1),"mmmm")&" 1")),E67/F57*E57,"")) -> 
I68: 0 | K68: =IF(ISBLANK(C68),"",IF(MONTH(C68)=MONTH(DATEVALUE($E$7&" 1")),E68/F57*E57,"")) ->  | L68: =IF(ISBLANK(C68),"",IF(MONTH(C68)=MONTH(DATEVALUE(TEXT(DATE(2000,MONTH(DATEVALUE($E$7&" 1"))+1,1),"mmmm")&" 1")),E68/F57*E57,"")) ->  | M68: =IF(ISBLANK(C68),"",IF(MONTH(C68)=MONTH(DATEVALUE(TEXT(DATE(2000,MONTH(DATEVALUE($E$7&" 1"))+2,1),"mmmm")&" 1")),E68/F57*E57,"")) ->  | N68: =IF(ISBLANK(C68),"",IF(MONTH(C68)=MONTH(DATEVALUE(TEXT(DATE(2000,MONTH(DATEVALUE($E$7&" 1"))+3,1),"mmmm")&" 1")),E68/F57*E57,"")) ->  | O68: =IF(ISBLANK(C68),"",IF(MONTH(C68)=MONTH(DATEVALUE(TEXT(DATE(2000,MONTH(DATEVALUE($E$7&" 1"))+4,1),"mmmm")&" 1")),E68/F57*E57,"")) ->  | P68: =IF(ISBLANK(C68),"",IF(MONTH(C68)=MONTH(DATEVALUE(TEXT(DATE(2000,MONTH(DATEVALUE($E$7&" 1"))+5,1),"mmmm")&" 1")),E68/F57*E57,"")) ->  | Q68: =IF(ISBLANK(C68),"",IF(MONTH(C68)=MONTH(DATEVALUE(TEXT(DATE(2000,MONTH(DATEVALUE($E$7&" 1"))+6,1),"mmmm")&" 1")),E68/F57*E57,"")) ->  | R68: =IF(ISBLANK(C68),"",IF(MONTH(C68)=MONTH(DATEVALUE(TEXT(DATE(2000,MONTH(DATEVALUE($E$7&" 1"))+7,1),"mmmm")&" 1")),E68/F57*E57,"")) ->  | S68: =IF(ISBLANK(C68),"",IF(MONTH(C68)=MONTH(DATEVALUE(TEXT(DATE(2000,MONTH(DATEVALUE($E$7&" 1"))+8,1),"mmmm")&" 1")),E68/F57*E57,"")) ->  | T68: =IF(ISBLANK(C68),"",IF(MONTH(C68)=MONTH(DATEVALUE(TEXT(DATE(2000,MONTH(DATEVALUE($E$7&" 1"))+9,1),"mmmm")&" 1")),E68/F57*E57,"")) ->  | U68: =IF(ISBLANK(C68),"",IF(MONTH(C68)=MONTH(DATEVALUE(TEXT(DATE(2000,MONTH(DATEVALUE($E$7&" 1"))+10,1),"mmmm")&" 1")),E68/F57*E57,"")) ->  | V68: =IF(ISBLANK(C68),"",IF(MONTH(C68)=MONTH(DATEVALUE(TEXT(DATE(2000,MONTH(DATEVALUE($E$7&" 1"))+11,1),"mmmm")&" 1")),E68/F57*E57,"")) -> 
H69: =IFERROR(I69/E69,0) -> 0 | I69: =SUM(I70:J80) -> 0 | W69: =IF(H69<>100%,"Pas ok","ok") -> Pas ok
B70: =$B$10 -> réf. Facture | C70: =$C$10 -> date facture | D70: =$D$10 -> Description facture | E70: =$E$10 -> Montant facture (HTVA)
I71: =SUM(K71:V71) -> 0 | K71: =IF(ISBLANK(C71),"",IF(MONTH(C71)=MONTH(DATEVALUE($E$7&" 1")),E71/F69*E69,"")) ->  | L71: =IF(ISBLANK(C71),"",IF(MONTH(C71)=MONTH(DATEVALUE(TEXT(DATE(2000,MONTH(DATEVALUE($E$7&" 1"))+1,1),"mmmm")&" 1")),E71/F69*E69,"")) ->  | M71: =IF(ISBLANK(C71),"",IF(MONTH(C71)=MONTH(DATEVALUE(TEXT(DATE(2000,MONTH(DATEVALUE($E$7&" 1"))+2,1),"mmmm")&" 1")),E71/F69*E69,"")) ->  | N71: =IF(ISBLANK(C71),"",IF(MONTH(C71)=MONTH(DATEVALUE(TEXT(DATE(2000,MONTH(DATEVALUE($E$7&" 1"))+3,1),"mmmm")&" 1")),E71/F69*E69,"")) ->  | O71: =IF(ISBLANK(C71),"",IF(MONTH(C71)=MONTH(DATEVALUE(TEXT(DATE(2000,MONTH(DATEVALUE($E$7&" 1"))+4,1),"mmmm")&" 1")),E71/F69*E69,"")) ->  | P71: =IF(ISBLANK(C71),"",IF(MONTH(C71)=MONTH(DATEVALUE(TEXT(DATE(2000,MONTH(DATEVALUE($E$7&" 1"))+5,1),"mmmm")&" 1")),E71/F69*E69,"")) ->  | Q71: =IF(ISBLANK(C71),"",IF(MONTH(C71)=MONTH(DATEVALUE(TEXT(DATE(2000,MONTH(DATEVALUE($E$7&" 1"))+6,1),"mmmm")&" 1")),E71/F69*E69,"")) ->  | R71: =IF(ISBLANK(C71),"",IF(MONTH(C71)=MONTH(DATEVALUE(TEXT(DATE(2000,MONTH(DATEVALUE($E$7&" 1"))+7,1),"mmmm")&" 1")),E71/F69*E69,"")) ->  | S71: =IF(ISBLANK(C71),"",IF(MONTH(C71)=MONTH(DATEVALUE(TEXT(DATE(2000,MONTH(DATEVALUE($E$7&" 1"))+8,1),"mmmm")&" 1")),E71/F69*E69,"")) ->  | T71: =IF(ISBLANK(C71),"",IF(MONTH(C71)=MONTH(DATEVALUE(TEXT(DATE(2000,MONTH(DATEVALUE($E$7&" 1"))+9,1),"mmmm")&" 1")),E71/F69*E69,"")) ->  | U71: =IF(ISBLANK(C71),"",IF(MONTH(C71)=MONTH(DATEVALUE(TEXT(DATE(2000,MONTH(DATEVALUE($E$7&" 1"))+10,1),"mmmm")&" 1")),E71/F69*E69,"")) ->  | V71: =IF(ISBLANK(C71),"",IF(MONTH(C71)=MONTH(DATEVALUE(TEXT(DATE(2000,MONTH(DATEVALUE($E$7&" 1"))+11,1),"mmmm")&" 1")),E71/F69*E69,"")) -> 
I72: 0 | K72: =IF(ISBLANK(C72),"",IF(MONTH(C72)=MONTH(DATEVALUE($E$7&" 1")),E72/F69*E69,"")) ->  | L72: =IF(ISBLANK(C72),"",IF(MONTH(C72)=MONTH(DATEVALUE(TEXT(DATE(2000,MONTH(DATEVALUE($E$7&" 1"))+1,1),"mmmm")&" 1")),E72/F69*E69,"")) ->  | M72: =IF(ISBLANK(C72),"",IF(MONTH(C72)=MONTH(DATEVALUE(TEXT(DATE(2000,MONTH(DATEVALUE($E$7&" 1"))+2,1),"mmmm")&" 1")),E72/F69*E69,"")) ->  | N72: =IF(ISBLANK(C72),"",IF(MONTH(C72)=MONTH(DATEVALUE(TEXT(DATE(2000,MONTH(DATEVALUE($E$7&" 1"))+3,1),"mmmm")&" 1")),E72/F69*E69,"")) ->  | O72: =IF(ISBLANK(C72),"",IF(MONTH(C72)=MONTH(DATEVALUE(TEXT(DATE(2000,MONTH(DATEVALUE($E$7&" 1"))+4,1),"mmmm")&" 1")),E72/F69*E69,"")) ->  | P72: =IF(ISBLANK(C72),"",IF(MONTH(C72)=MONTH(DATEVALUE(TEXT(DATE(2000,MONTH(DATEVALUE($E$7&" 1"))+5,1),"mmmm")&" 1")),E72/F69*E69,"")) ->  | Q72: =IF(ISBLANK(C72),"",IF(MONTH(C72)=MONTH(DATEVALUE(TEXT(DATE(2000,MONTH(DATEVALUE($E$7&" 1"))+6,1),"mmmm")&" 1")),E72/F69*E69,"")) ->  | R72: =IF(ISBLANK(C72),"",IF(MONTH(C72)=MONTH(DATEVALUE(TEXT(DATE(2000,MONTH(DATEVALUE($E$7&" 1"))+7,1),"mmmm")&" 1")),E72/F69*E69,"")) ->  | S72: =IF(ISBLANK(C72),"",IF(MONTH(C72)=MONTH(DATEVALUE(TEXT(DATE(2000,MONTH(DATEVALUE($E$7&" 1"))+8,1),"mmmm")&" 1")),E72/F69*E69,"")) ->  | T72: =IF(ISBLANK(C72),"",IF(MONTH(C72)=MONTH(DATEVALUE(TEXT(DATE(2000,MONTH(DATEVALUE($E$7&" 1"))+9,1),"mmmm")&" 1")),E72/F69*E69,"")) ->  | U72: =IF(ISBLANK(C72),"",IF(MONTH(C72)=MONTH(DATEVALUE(TEXT(DATE(2000,MONTH(DATEVALUE($E$7&" 1"))+10,1),"mmmm")&" 1")),E72/F69*E69,"")) ->  | V72: =IF(ISBLANK(C72),"",IF(MONTH(C72)=MONTH(DATEVALUE(TEXT(DATE(2000,MONTH(DATEVALUE($E$7&" 1"))+11,1),"mmmm")&" 1")),E72/F69*E69,"")) -> 
I73: 0 | K73: =IF(ISBLANK(C73),"",IF(MONTH(C73)=MONTH(DATEVALUE($E$7&" 1")),E73/F69*E69,"")) ->  | L73: =IF(ISBLANK(C73),"",IF(MONTH(C73)=MONTH(DATEVALUE(TEXT(DATE(2000,MONTH(DATEVALUE($E$7&" 1"))+1,1),"mmmm")&" 1")),E73/F69*E69,"")) ->  | M73: =IF(ISBLANK(C73),"",IF(MONTH(C73)=MONTH(DATEVALUE(TEXT(DATE(2000,MONTH(DATEVALUE($E$7&" 1"))+2,1),"mmmm")&" 1")),E73/F69*E69,"")) ->  | N73: =IF(ISBLANK(C73),"",IF(MONTH(C73)=MONTH(DATEVALUE(TEXT(DATE(2000,MONTH(DATEVALUE($E$7&" 1"))+3,1),"mmmm")&" 1")),E73/F69*E69,"")) ->  | O73: =IF(ISBLANK(C73),"",IF(MONTH(C73)=MONTH(DATEVALUE(TEXT(DATE(2000,MONTH(DATEVALUE($E$7&" 1"))+4,1),"mmmm")&" 1")),E73/F69*E69,"")) ->  | P73: =IF(ISBLANK(C73),"",IF(MONTH(C73)=MONTH(DATEVALUE(TEXT(DATE(2000,MONTH(DATEVALUE($E$7&" 1"))+5,1),"mmmm")&" 1")),E73/F69*E69,"")) ->  | Q73: =IF(ISBLANK(C73),"",IF(MONTH(C73)=MONTH(DATEVALUE(TEXT(DATE(2000,MONTH(DATEVALUE($E$7&" 1"))+6,1),"mmmm")&" 1")),E73/F69*E69,"")) ->  | R73: =IF(ISBLANK(C73),"",IF(MONTH(C73)=MONTH(DATEVALUE(TEXT(DATE(2000,MONTH(DATEVALUE($E$7&" 1"))+7,1),"mmmm")&" 1")),E73/F69*E69,"")) ->  | S73: =IF(ISBLANK(C73),"",IF(MONTH(C73)=MONTH(DATEVALUE(TEXT(DATE(2000,MONTH(DATEVALUE($E$7&" 1"))+8,1),"mmmm")&" 1")),E73/F69*E69,"")) ->  | T73: =IF(ISBLANK(C73),"",IF(MONTH(C73)=MONTH(DATEVALUE(TEXT(DATE(2000,MONTH(DATEVALUE($E$7&" 1"))+9,1),"mmmm")&" 1")),E73/F69*E69,"")) ->  | U73: =IF(ISBLANK(C73),"",IF(MONTH(C73)=MONTH(DATEVALUE(TEXT(DATE(2000,MONTH(DATEVALUE($E$7&" 1"))+10,1),"mmmm")&" 1")),E73/F69*E69,"")) ->  | V73: =IF(ISBLANK(C73),"",IF(MONTH(C73)=MONTH(DATEVALUE(TEXT(DATE(2000,MONTH(DATEVALUE($E$7&" 1"))+11,1),"mmmm")&" 1")),E73/F69*E69,"")) -> 
I74: 0 | K74: =IF(ISBLANK(C74),"",IF(MONTH(C74)=MONTH(DATEVALUE($E$7&" 1")),E74/F69*E69,"")) ->  | L74: =IF(ISBLANK(C74),"",IF(MONTH(C74)=MONTH(DATEVALUE(TEXT(DATE(2000,MONTH(DATEVALUE($E$7&" 1"))+1,1),"mmmm")&" 1")),E74/F69*E69,"")) ->  | M74: =IF(ISBLANK(C74),"",IF(MONTH(C74)=MONTH(DATEVALUE(TEXT(DATE(2000,MONTH(DATEVALUE($E$7&" 1"))+2,1),"mmmm")&" 1")),E74/F69*E69,"")) ->  | N74: =IF(ISBLANK(C74),"",IF(MONTH(C74)=MONTH(DATEVALUE(TEXT(DATE(2000,MONTH(DATEVALUE($E$7&" 1"))+3,1),"mmmm")&" 1")),E74/F69*E69,"")) ->  | O74: =IF(ISBLANK(C74),"",IF(MONTH(C74)=MONTH(DATEVALUE(TEXT(DATE(2000,MONTH(DATEVALUE($E$7&" 1"))+4,1),"mmmm")&" 1")),E74/F69*E69,"")) ->  | P74: =IF(ISBLANK(C74),"",IF(MONTH(C74)=MONTH(DATEVALUE(TEXT(DATE(2000,MONTH(DATEVALUE($E$7&" 1"))+5,1),"mmmm")&" 1")),E74/F69*E69,"")) ->  | Q74: =IF(ISBLANK(C74),"",IF(MONTH(C74)=MONTH(DATEVALUE(TEXT(DATE(2000,MONTH(DATEVALUE($E$7&" 1"))+6,1),"mmmm")&" 1")),E74/F69*E69,"")) ->  | R74: =IF(ISBLANK(C74),"",IF(MONTH(C74)=MONTH(DATEVALUE(TEXT(DATE(2000,MONTH(DATEVALUE($E$7&" 1"))+7,1),"mmmm")&" 1")),E74/F69*E69,"")) ->  | S74: =IF(ISBLANK(C74),"",IF(MONTH(C74)=MONTH(DATEVALUE(TEXT(DATE(2000,MONTH(DATEVALUE($E$7&" 1"))+8,1),"mmmm")&" 1")),E74/F69*E69,"")) ->  | T74: =IF(ISBLANK(C74),"",IF(MONTH(C74)=MONTH(DATEVALUE(TEXT(DATE(2000,MONTH(DATEVALUE($E$7&" 1"))+9,1),"mmmm")&" 1")),E74/F69*E69,"")) ->  | U74: =IF(ISBLANK(C74),"",IF(MONTH(C74)=MONTH(DATEVALUE(TEXT(DATE(2000,MONTH(DATEVALUE($E$7&" 1"))+10,1),"mmmm")&" 1")),E74/F69*E69,"")) ->  | V74: =IF(ISBLANK(C74),"",IF(MONTH(C74)=MONTH(DATEVALUE(TEXT(DATE(2000,MONTH(DATEVALUE($E$7&" 1"))+11,1),"mmmm")&" 1")),E74/F69*E69,"")) -> 
I75: 0 | K75: =IF(ISBLANK(C75),"",IF(MONTH(C75)=MONTH(DATEVALUE($E$7&" 1")),E75/F69*E69,"")) ->  | L75: =IF(ISBLANK(C75),"",IF(MONTH(C75)=MONTH(DATEVALUE(TEXT(DATE(2000,MONTH(DATEVALUE($E$7&" 1"))+1,1),"mmmm")&" 1")),E75/F69*E69,"")) ->  | M75: =IF(ISBLANK(C75),"",IF(MONTH(C75)=MONTH(DATEVALUE(TEXT(DATE(2000,MONTH(DATEVALUE($E$7&" 1"))+2,1),"mmmm")&" 1")),E75/F69*E69,"")) ->  | N75: =IF(ISBLANK(C75),"",IF(MONTH(C75)=MONTH(DATEVALUE(TEXT(DATE(2000,MONTH(DATEVALUE($E$7&" 1"))+3,1),"mmmm")&" 1")),E75/F69*E69,"")) ->  | O75: =IF(ISBLANK(C75),"",IF(MONTH(C75)=MONTH(DATEVALUE(TEXT(DATE(2000,MONTH(DATEVALUE($E$7&" 1"))+4,1),"mmmm")&" 1")),E75/F69*E69,"")) ->  | P75: =IF(ISBLANK(C75),"",IF(MONTH(C75)=MONTH(DATEVALUE(TEXT(DATE(2000,MONTH(DATEVALUE($E$7&" 1"))+5,1),"mmmm")&" 1")),E75/F69*E69,"")) ->  | Q75: =IF(ISBLANK(C75),"",IF(MONTH(C75)=MONTH(DATEVALUE(TEXT(DATE(2000,MONTH(DATEVALUE($E$7&" 1"))+6,1),"mmmm")&" 1")),E75/F69*E69,"")) ->  | R75: =IF(ISBLANK(C75),"",IF(MONTH(C75)=MONTH(DATEVALUE(TEXT(DATE(2000,MONTH(DATEVALUE($E$7&" 1"))+7,1),"mmmm")&" 1")),E75/F69*E69,"")) ->  | S75: =IF(ISBLANK(C75),"",IF(MONTH(C75)=MONTH(DATEVALUE(TEXT(DATE(2000,MONTH(DATEVALUE($E$7&" 1"))+8,1),"mmmm")&" 1")),E75/F69*E69,"")) ->  | T75: =IF(ISBLANK(C75),"",IF(MONTH(C75)=MONTH(DATEVALUE(TEXT(DATE(2000,MONTH(DATEVALUE($E$7&" 1"))+9,1),"mmmm")&" 1")),E75/F69*E69,"")) ->  | U75: =IF(ISBLANK(C75),"",IF(MONTH(C75)=MONTH(DATEVALUE(TEXT(DATE(2000,MONTH(DATEVALUE($E$7&" 1"))+10,1),"mmmm")&" 1")),E75/F69*E69,"")) ->  | V75: =IF(ISBLANK(C75),"",IF(MONTH(C75)=MONTH(DATEVALUE(TEXT(DATE(2000,MONTH(DATEVALUE($E$7&" 1"))+11,1),"mmmm")&" 1")),E75/F69*E69,"")) -> 
I76: 0 | K76: =IF(ISBLANK(C76),"",IF(MONTH(C76)=MONTH(DATEVALUE($E$7&" 1")),E76/F69*E69,"")) ->  | L76: =IF(ISBLANK(C76),"",IF(MONTH(C76)=MONTH(DATEVALUE(TEXT(DATE(2000,MONTH(DATEVALUE($E$7&" 1"))+1,1),"mmmm")&" 1")),E76/F69*E69,"")) ->  | M76: =IF(ISBLANK(C76),"",IF(MONTH(C76)=MONTH(DATEVALUE(TEXT(DATE(2000,MONTH(DATEVALUE($E$7&" 1"))+2,1),"mmmm")&" 1")),E76/F69*E69,"")) ->  | N76: =IF(ISBLANK(C76),"",IF(MONTH(C76)=MONTH(DATEVALUE(TEXT(DATE(2000,MONTH(DATEVALUE($E$7&" 1"))+3,1),"mmmm")&" 1")),E76/F69*E69,"")) ->  | O76: =IF(ISBLANK(C76),"",IF(MONTH(C76)=MONTH(DATEVALUE(TEXT(DATE(2000,MONTH(DATEVALUE($E$7&" 1"))+4,1),"mmmm")&" 1")),E76/F69*E69,"")) ->  | P76: =IF(ISBLANK(C76),"",IF(MONTH(C76)=MONTH(DATEVALUE(TEXT(DATE(2000,MONTH(DATEVALUE($E$7&" 1"))+5,1),"mmmm")&" 1")),E76/F69*E69,"")) ->  | Q76: =IF(ISBLANK(C76),"",IF(MONTH(C76)=MONTH(DATEVALUE(TEXT(DATE(2000,MONTH(DATEVALUE($E$7&" 1"))+6,1),"mmmm")&" 1")),E76/F69*E69,"")) ->  | R76: =IF(ISBLANK(C76),"",IF(MONTH(C76)=MONTH(DATEVALUE(TEXT(DATE(2000,MONTH(DATEVALUE($E$7&" 1"))+7,1),"mmmm")&" 1")),E76/F69*E69,"")) ->  | S76: =IF(ISBLANK(C76),"",IF(MONTH(C76)=MONTH(DATEVALUE(TEXT(DATE(2000,MONTH(DATEVALUE($E$7&" 1"))+8,1),"mmmm")&" 1")),E76/F69*E69,"")) ->  | T76: =IF(ISBLANK(C76),"",IF(MONTH(C76)=MONTH(DATEVALUE(TEXT(DATE(2000,MONTH(DATEVALUE($E$7&" 1"))+9,1),"mmmm")&" 1")),E76/F69*E69,"")) ->  | U76: =IF(ISBLANK(C76),"",IF(MONTH(C76)=MONTH(DATEVALUE(TEXT(DATE(2000,MONTH(DATEVALUE($E$7&" 1"))+10,1),"mmmm")&" 1")),E76/F69*E69,"")) ->  | V76: =IF(ISBLANK(C76),"",IF(MONTH(C76)=MONTH(DATEVALUE(TEXT(DATE(2000,MONTH(DATEVALUE($E$7&" 1"))+11,1),"mmmm")&" 1")),E76/F69*E69,"")) -> 
I77: 0 | K77: =IF(ISBLANK(C77),"",IF(MONTH(C77)=MONTH(DATEVALUE($E$7&" 1")),E77/F69*E69,"")) ->  | L77: =IF(ISBLANK(C77),"",IF(MONTH(C77)=MONTH(DATEVALUE(TEXT(DATE(2000,MONTH(DATEVALUE($E$7&" 1"))+1,1),"mmmm")&" 1")),E77/F69*E69,"")) ->  | M77: =IF(ISBLANK(C77),"",IF(MONTH(C77)=MONTH(DATEVALUE(TEXT(DATE(2000,MONTH(DATEVALUE($E$7&" 1"))+2,1),"mmmm")&" 1")),E77/F69*E69,"")) ->  | N77: =IF(ISBLANK(C77),"",IF(MONTH(C77)=MONTH(DATEVALUE(TEXT(DATE(2000,MONTH(DATEVALUE($E$7&" 1"))+3,1),"mmmm")&" 1")),E77/F69*E69,"")) ->  | O77: =IF(ISBLANK(C77),"",IF(MONTH(C77)=MONTH(DATEVALUE(TEXT(DATE(2000,MONTH(DATEVALUE($E$7&" 1"))+4,1),"mmmm")&" 1")),E77/F69*E69,"")) ->  | P77: =IF(ISBLANK(C77),"",IF(MONTH(C77)=MONTH(DATEVALUE(TEXT(DATE(2000,MONTH(DATEVALUE($E$7&" 1"))+5,1),"mmmm")&" 1")),E77/F69*E69,"")) ->  | Q77: =IF(ISBLANK(C77),"",IF(MONTH(C77)=MONTH(DATEVALUE(TEXT(DATE(2000,MONTH(DATEVALUE($E$7&" 1"))+6,1),"mmmm")&" 1")),E77/F69*E69,"")) ->  | R77: =IF(ISBLANK(C77),"",IF(MONTH(C77)=MONTH(DATEVALUE(TEXT(DATE(2000,MONTH(DATEVALUE($E$7&" 1"))+7,1),"mmmm")&" 1")),E77/F69*E69,"")) ->  | S77: =IF(ISBLANK(C77),"",IF(MONTH(C77)=MONTH(DATEVALUE(TEXT(DATE(2000,MONTH(DATEVALUE($E$7&" 1"))+8,1),"mmmm")&" 1")),E77/F69*E69,"")) ->  | T77: =IF(ISBLANK(C77),"",IF(MONTH(C77)=MONTH(DATEVALUE(TEXT(DATE(2000,MONTH(DATEVALUE($E$7&" 1"))+9,1),"mmmm")&" 1")),E77/F69*E69,"")) ->  | U77: =IF(ISBLANK(C77),"",IF(MONTH(C77)=MONTH(DATEVALUE(TEXT(DATE(2000,MONTH(DATEVALUE($E$7&" 1"))+10,1),"mmmm")&" 1")),E77/F69*E69,"")) ->  | V77: =IF(ISBLANK(C77),"",IF(MONTH(C77)=MONTH(DATEVALUE(TEXT(DATE(2000,MONTH(DATEVALUE($E$7&" 1"))+11,1),"mmmm")&" 1")),E77/F69*E69,"")) -> 
I78: 0 | K78: =IF(ISBLANK(C78),"",IF(MONTH(C78)=MONTH(DATEVALUE($E$7&" 1")),E78/F69*E69,"")) ->  | L78: =IF(ISBLANK(C78),"",IF(MONTH(C78)=MONTH(DATEVALUE(TEXT(DATE(2000,MONTH(DATEVALUE($E$7&" 1"))+1,1),"mmmm")&" 1")),E78/F69*E69,"")) ->  | M78: =IF(ISBLANK(C78),"",IF(MONTH(C78)=MONTH(DATEVALUE(TEXT(DATE(2000,MONTH(DATEVALUE($E$7&" 1"))+2,1),"mmmm")&" 1")),E78/F69*E69,"")) ->  | N78: =IF(ISBLANK(C78),"",IF(MONTH(C78)=MONTH(DATEVALUE(TEXT(DATE(2000,MONTH(DATEVALUE($E$7&" 1"))+3,1),"mmmm")&" 1")),E78/F69*E69,"")) ->  | O78: =IF(ISBLANK(C78),"",IF(MONTH(C78)=MONTH(DATEVALUE(TEXT(DATE(2000,MONTH(DATEVALUE($E$7&" 1"))+4,1),"mmmm")&" 1")),E78/F69*E69,"")) ->  | P78: =IF(ISBLANK(C78),"",IF(MONTH(C78)=MONTH(DATEVALUE(TEXT(DATE(2000,MONTH(DATEVALUE($E$7&" 1"))+5,1),"mmmm")&" 1")),E78/F69*E69,"")) ->  | Q78: =IF(ISBLANK(C78),"",IF(MONTH(C78)=MONTH(DATEVALUE(TEXT(DATE(2000,MONTH(DATEVALUE($E$7&" 1"))+6,1),"mmmm")&" 1")),E78/F69*E69,"")) ->  | R78: =IF(ISBLANK(C78),"",IF(MONTH(C78)=MONTH(DATEVALUE(TEXT(DATE(2000,MONTH(DATEVALUE($E$7&" 1"))+7,1),"mmmm")&" 1")),E78/F69*E69,"")) ->  | S78: =IF(ISBLANK(C78),"",IF(MONTH(C78)=MONTH(DATEVALUE(TEXT(DATE(2000,MONTH(DATEVALUE($E$7&" 1"))+8,1),"mmmm")&" 1")),E78/F69*E69,"")) ->  | T78: =IF(ISBLANK(C78),"",IF(MONTH(C78)=MONTH(DATEVALUE(TEXT(DATE(2000,MONTH(DATEVALUE($E$7&" 1"))+9,1),"mmmm")&" 1")),E78/F69*E69,"")) ->  | U78: =IF(ISBLANK(C78),"",IF(MONTH(C78)=MONTH(DATEVALUE(TEXT(DATE(2000,MONTH(DATEVALUE($E$7&" 1"))+10,1),"mmmm")&" 1")),E78/F69*E69,"")) ->  | V78: =IF(ISBLANK(C78),"",IF(MONTH(C78)=MONTH(DATEVALUE(TEXT(DATE(2000,MONTH(DATEVALUE($E$7&" 1"))+11,1),"mmmm")&" 1")),E78/F69*E69,"")) -> 
I79: 0 | K79: =IF(ISBLANK(C79),"",IF(MONTH(C79)=MONTH(DATEVALUE($E$7&" 1")),E79/F69*E69,"")) ->  | L79: =IF(ISBLANK(C79),"",IF(MONTH(C79)=MONTH(DATEVALUE(TEXT(DATE(2000,MONTH(DATEVALUE($E$7&" 1"))+1,1),"mmmm")&" 1")),E79/F69*E69,"")) ->  | M79: =IF(ISBLANK(C79),"",IF(MONTH(C79)=MONTH(DATEVALUE(TEXT(DATE(2000,MONTH(DATEVALUE($E$7&" 1"))+2,1),"mmmm")&" 1")),E79/F69*E69,"")) ->  | N79: =IF(ISBLANK(C79),"",IF(MONTH(C79)=MONTH(DATEVALUE(TEXT(DATE(2000,MONTH(DATEVALUE($E$7&" 1"))+3,1),"mmmm")&" 1")),E79/F69*E69,"")) ->  | O79: =IF(ISBLANK(C79),"",IF(MONTH(C79)=MONTH(DATEVALUE(TEXT(DATE(2000,MONTH(DATEVALUE($E$7&" 1"))+4,1),"mmmm")&" 1")),E79/F69*E69,"")) ->  | P79: =IF(ISBLANK(C79),"",IF(MONTH(C79)=MONTH(DATEVALUE(TEXT(DATE(2000,MONTH(DATEVALUE($E$7&" 1"))+5,1),"mmmm")&" 1")),E79/F69*E69,"")) ->  | Q79: =IF(ISBLANK(C79),"",IF(MONTH(C79)=MONTH(DATEVALUE(TEXT(DATE(2000,MONTH(DATEVALUE($E$7&" 1"))+6,1),"mmmm")&" 1")),E79/F69*E69,"")) ->  | R79: =IF(ISBLANK(C79),"",IF(MONTH(C79)=MONTH(DATEVALUE(TEXT(DATE(2000,MONTH(DATEVALUE($E$7&" 1"))+7,1),"mmmm")&" 1")),E79/F69*E69,"")) ->  | S79: =IF(ISBLANK(C79),"",IF(MONTH(C79)=MONTH(DATEVALUE(TEXT(DATE(2000,MONTH(DATEVALUE($E$7&" 1"))+8,1),"mmmm")&" 1")),E79/F69*E69,"")) ->  | T79: =IF(ISBLANK(C79),"",IF(MONTH(C79)=MONTH(DATEVALUE(TEXT(DATE(2000,MONTH(DATEVALUE($E$7&" 1"))+9,1),"mmmm")&" 1")),E79/F69*E69,"")) ->  | U79: =IF(ISBLANK(C79),"",IF(MONTH(C79)=MONTH(DATEVALUE(TEXT(DATE(2000,MONTH(DATEVALUE($E$7&" 1"))+10,1),"mmmm")&" 1")),E79/F69*E69,"")) ->  | V79: =IF(ISBLANK(C79),"",IF(MONTH(C79)=MONTH(DATEVALUE(TEXT(DATE(2000,MONTH(DATEVALUE($E$7&" 1"))+11,1),"mmmm")&" 1")),E79/F69*E69,"")) -> 
I80: 0 | K80: =IF(ISBLANK(C80),"",IF(MONTH(C80)=MONTH(DATEVALUE($E$7&" 1")),E80/F69*E69,"")) ->  | L80: =IF(ISBLANK(C80),"",IF(MONTH(C80)=MONTH(DATEVALUE(TEXT(DATE(2000,MONTH(DATEVALUE($E$7&" 1"))+1,1),"mmmm")&" 1")),E80/F69*E69,"")) ->  | M80: =IF(ISBLANK(C80),"",IF(MONTH(C80)=MONTH(DATEVALUE(TEXT(DATE(2000,MONTH(DATEVALUE($E$7&" 1"))+2,1),"mmmm")&" 1")),E80/F69*E69,"")) ->  | N80: =IF(ISBLANK(C80),"",IF(MONTH(C80)=MONTH(DATEVALUE(TEXT(DATE(2000,MONTH(DATEVALUE($E$7&" 1"))+3,1),"mmmm")&" 1")),E80/F69*E69,"")) ->  | O80: =IF(ISBLANK(C80),"",IF(MONTH(C80)=MONTH(DATEVALUE(TEXT(DATE(2000,MONTH(DATEVALUE($E$7&" 1"))+4,1),"mmmm")&" 1")),E80/F69*E69,"")) ->  | P80: =IF(ISBLANK(C80),"",IF(MONTH(C80)=MONTH(DATEVALUE(TEXT(DATE(2000,MONTH(DATEVALUE($E$7&" 1"))+5,1),"mmmm")&" 1")),E80/F69*E69,"")) ->  | Q80: =IF(ISBLANK(C80),"",IF(MONTH(C80)=MONTH(DATEVALUE(TEXT(DATE(2000,MONTH(DATEVALUE($E$7&" 1"))+6,1),"mmmm")&" 1")),E80/F69*E69,"")) ->  | R80: =IF(ISBLANK(C80),"",IF(MONTH(C80)=MONTH(DATEVALUE(TEXT(DATE(2000,MONTH(DATEVALUE($E$7&" 1"))+7,1),"mmmm")&" 1")),E80/F69*E69,"")) ->  | S80: =IF(ISBLANK(C80),"",IF(MONTH(C80)=MONTH(DATEVALUE(TEXT(DATE(2000,MONTH(DATEVALUE($E$7&" 1"))+8,1),"mmmm")&" 1")),E80/F69*E69,"")) ->  | T80: =IF(ISBLANK(C80),"",IF(MONTH(C80)=MONTH(DATEVALUE(TEXT(DATE(2000,MONTH(DATEVALUE($E$7&" 1"))+9,1),"mmmm")&" 1")),E80/F69*E69,"")) ->  | U80: =IF(ISBLANK(C80),"",IF(MONTH(C80)=MONTH(DATEVALUE(TEXT(DATE(2000,MONTH(DATEVALUE($E$7&" 1"))+10,1),"mmmm")&" 1")),E80/F69*E69,"")) ->  | V80: =IF(ISBLANK(C80),"",IF(MONTH(C80)=MONTH(DATEVALUE(TEXT(DATE(2000,MONTH(DATEVALUE($E$7&" 1"))+11,1),"mmmm")&" 1")),E80/F69*E69,"")) -> 
H81: =IFERROR(I81/E81,0) -> 0 | I81: =SUM(I82:J92) -> 0 | W81: =IF(H81<>100%,"Pas ok","ok") -> Pas ok
B82: =$B$10 -> réf. Facture | C82: =$C$10 -> date facture | D82: =$D$10 -> Description facture | E82: =$E$10 -> Montant facture (HTVA)
I83: =SUM(K83:V83) -> 0 | K83: =IF(ISBLANK(C83),"",IF(MONTH(C83)=MONTH(DATEVALUE($E$7&" 1")),E83/F81*E81,"")) ->  | L83: =IF(ISBLANK(C83),"",IF(MONTH(C83)=MONTH(DATEVALUE(TEXT(DATE(2000,MONTH(DATEVALUE($E$7&" 1"))+1,1),"mmmm")&" 1")),E83/F81*E81,"")) ->  | M83: =IF(ISBLANK(C83),"",IF(MONTH(C83)=MONTH(DATEVALUE(TEXT(DATE(2000,MONTH(DATEVALUE($E$7&" 1"))+2,1),"mmmm")&" 1")),E83/F81*E81,"")) ->  | N83: =IF(ISBLANK(C83),"",IF(MONTH(C83)=MONTH(DATEVALUE(TEXT(DATE(2000,MONTH(DATEVALUE($E$7&" 1"))+3,1),"mmmm")&" 1")),E83/F81*E81,"")) ->  | O83: =IF(ISBLANK(C83),"",IF(MONTH(C83)=MONTH(DATEVALUE(TEXT(DATE(2000,MONTH(DATEVALUE($E$7&" 1"))+4,1),"mmmm")&" 1")),E83/F81*E81,"")) ->  | P83: =IF(ISBLANK(C83),"",IF(MONTH(C83)=MONTH(DATEVALUE(TEXT(DATE(2000,MONTH(DATEVALUE($E$7&" 1"))+5,1),"mmmm")&" 1")),E83/F81*E81,"")) ->  | Q83: =IF(ISBLANK(C83),"",IF(MONTH(C83)=MONTH(DATEVALUE(TEXT(DATE(2000,MONTH(DATEVALUE($E$7&" 1"))+6,1),"mmmm")&" 1")),E83/F81*E81,"")) ->  | R83: =IF(ISBLANK(C83),"",IF(MONTH(C83)=MONTH(DATEVALUE(TEXT(DATE(2000,MONTH(DATEVALUE($E$7&" 1"))+7,1),"mmmm")&" 1")),E83/F81*E81,"")) ->  | S83: =IF(ISBLANK(C83),"",IF(MONTH(C83)=MONTH(DATEVALUE(TEXT(DATE(2000,MONTH(DATEVALUE($E$7&" 1"))+8,1),"mmmm")&" 1")),E83/F81*E81,"")) ->  | T83: =IF(ISBLANK(C83),"",IF(MONTH(C83)=MONTH(DATEVALUE(TEXT(DATE(2000,MONTH(DATEVALUE($E$7&" 1"))+9,1),"mmmm")&" 1")),E83/F81*E81,"")) ->  | U83: =IF(ISBLANK(C83),"",IF(MONTH(C83)=MONTH(DATEVALUE(TEXT(DATE(2000,MONTH(DATEVALUE($E$7&" 1"))+10,1),"mmmm")&" 1")),E83/F81*E81,"")) ->  | V83: =IF(ISBLANK(C83),"",IF(MONTH(C83)=MONTH(DATEVALUE(TEXT(DATE(2000,MONTH(DATEVALUE($E$7&" 1"))+11,1),"mmmm")&" 1")),E83/F81*E81,"")) -> 
I84: 0 | K84: =IF(ISBLANK(C84),"",IF(MONTH(C84)=MONTH(DATEVALUE($E$7&" 1")),E84/F81*E81,"")) ->  | L84: =IF(ISBLANK(C84),"",IF(MONTH(C84)=MONTH(DATEVALUE(TEXT(DATE(2000,MONTH(DATEVALUE($E$7&" 1"))+1,1),"mmmm")&" 1")),E84/F81*E81,"")) ->  | M84: =IF(ISBLANK(C84),"",IF(MONTH(C84)=MONTH(DATEVALUE(TEXT(DATE(2000,MONTH(DATEVALUE($E$7&" 1"))+2,1),"mmmm")&" 1")),E84/F81*E81,"")) ->  | N84: =IF(ISBLANK(C84),"",IF(MONTH(C84)=MONTH(DATEVALUE(TEXT(DATE(2000,MONTH(DATEVALUE($E$7&" 1"))+3,1),"mmmm")&" 1")),E84/F81*E81,"")) ->  | O84: =IF(ISBLANK(C84),"",IF(MONTH(C84)=MONTH(DATEVALUE(TEXT(DATE(2000,MONTH(DATEVALUE($E$7&" 1"))+4,1),"mmmm")&" 1")),E84/F81*E81,"")) ->  | P84: =IF(ISBLANK(C84),"",IF(MONTH(C84)=MONTH(DATEVALUE(TEXT(DATE(2000,MONTH(DATEVALUE($E$7&" 1"))+5,1),"mmmm")&" 1")),E84/F81*E81,"")) ->  | Q84: =IF(ISBLANK(C84),"",IF(MONTH(C84)=MONTH(DATEVALUE(TEXT(DATE(2000,MONTH(DATEVALUE($E$7&" 1"))+6,1),"mmmm")&" 1")),E84/F81*E81,"")) ->  | R84: =IF(ISBLANK(C84),"",IF(MONTH(C84)=MONTH(DATEVALUE(TEXT(DATE(2000,MONTH(DATEVALUE($E$7&" 1"))+7,1),"mmmm")&" 1")),E84/F81*E81,"")) ->  | S84: =IF(ISBLANK(C84),"",IF(MONTH(C84)=MONTH(DATEVALUE(TEXT(DATE(2000,MONTH(DATEVALUE($E$7&" 1"))+8,1),"mmmm")&" 1")),E84/F81*E81,"")) ->  | T84: =IF(ISBLANK(C84),"",IF(MONTH(C84)=MONTH(DATEVALUE(TEXT(DATE(2000,MONTH(DATEVALUE($E$7&" 1"))+9,1),"mmmm")&" 1")),E84/F81*E81,"")) ->  | U84: =IF(ISBLANK(C84),"",IF(MONTH(C84)=MONTH(DATEVALUE(TEXT(DATE(2000,MONTH(DATEVALUE($E$7&" 1"))+10,1),"mmmm")&" 1")),E84/F81*E81,"")) ->  | V84: =IF(ISBLANK(C84),"",IF(MONTH(C84)=MONTH(DATEVALUE(TEXT(DATE(2000,MONTH(DATEVALUE($E$7&" 1"))+11,1),"mmmm")&" 1")),E84/F81*E81,"")) -> 
I85: 0 | K85: =IF(ISBLANK(C85),"",IF(MONTH(C85)=MONTH(DATEVALUE($E$7&" 1")),E85/F81*E81,"")) ->  | L85: =IF(ISBLANK(C85),"",IF(MONTH(C85)=MONTH(DATEVALUE(TEXT(DATE(2000,MONTH(DATEVALUE($E$7&" 1"))+1,1),"mmmm")&" 1")),E85/F81*E81,"")) ->  | M85: =IF(ISBLANK(C85),"",IF(MONTH(C85)=MONTH(DATEVALUE(TEXT(DATE(2000,MONTH(DATEVALUE($E$7&" 1"))+2,1),"mmmm")&" 1")),E85/F81*E81,"")) ->  | N85: =IF(ISBLANK(C85),"",IF(MONTH(C85)=MONTH(DATEVALUE(TEXT(DATE(2000,MONTH(DATEVALUE($E$7&" 1"))+3,1),"mmmm")&" 1")),E85/F81*E81,"")) ->  | O85: =IF(ISBLANK(C85),"",IF(MONTH(C85)=MONTH(DATEVALUE(TEXT(DATE(2000,MONTH(DATEVALUE($E$7&" 1"))+4,1),"mmmm")&" 1")),E85/F81*E81,"")) ->  | P85: =IF(ISBLANK(C85),"",IF(MONTH(C85)=MONTH(DATEVALUE(TEXT(DATE(2000,MONTH(DATEVALUE($E$7&" 1"))+5,1),"mmmm")&" 1")),E85/F81*E81,"")) ->  | Q85: =IF(ISBLANK(C85),"",IF(MONTH(C85)=MONTH(DATEVALUE(TEXT(DATE(2000,MONTH(DATEVALUE($E$7&" 1"))+6,1),"mmmm")&" 1")),E85/F81*E81,"")) ->  | R85: =IF(ISBLANK(C85),"",IF(MONTH(C85)=MONTH(DATEVALUE(TEXT(DATE(2000,MONTH(DATEVALUE($E$7&" 1"))+7,1),"mmmm")&" 1")),E85/F81*E81,"")) ->  | S85: =IF(ISBLANK(C85),"",IF(MONTH(C85)=MONTH(DATEVALUE(TEXT(DATE(2000,MONTH(DATEVALUE($E$7&" 1"))+8,1),"mmmm")&" 1")),E85/F81*E81,"")) ->  | T85: =IF(ISBLANK(C85),"",IF(MONTH(C85)=MONTH(DATEVALUE(TEXT(DATE(2000,MONTH(DATEVALUE($E$7&" 1"))+9,1),"mmmm")&" 1")),E85/F81*E81,"")) ->  | U85: =IF(ISBLANK(C85),"",IF(MONTH(C85)=MONTH(DATEVALUE(TEXT(DATE(2000,MONTH(DATEVALUE($E$7&" 1"))+10,1),"mmmm")&" 1")),E85/F81*E81,"")) ->  | V85: =IF(ISBLANK(C85),"",IF(MONTH(C85)=MONTH(DATEVALUE(TEXT(DATE(2000,MONTH(DATEVALUE($E$7&" 1"))+11,1),"mmmm")&" 1")),E85/F81*E81,"")) -> 
I86: 0 | K86: =IF(ISBLANK(C86),"",IF(MONTH(C86)=MONTH(DATEVALUE($E$7&" 1")),E86/F81*E81,"")) ->  | L86: =IF(ISBLANK(C86),"",IF(MONTH(C86)=MONTH(DATEVALUE(TEXT(DATE(2000,MONTH(DATEVALUE($E$7&" 1"))+1,1),"mmmm")&" 1")),E86/F81*E81,"")) ->  | M86: =IF(ISBLANK(C86),"",IF(MONTH(C86)=MONTH(DATEVALUE(TEXT(DATE(2000,MONTH(DATEVALUE($E$7&" 1"))+2,1),"mmmm")&" 1")),E86/F81*E81,"")) ->  | N86: =IF(ISBLANK(C86),"",IF(MONTH(C86)=MONTH(DATEVALUE(TEXT(DATE(2000,MONTH(DATEVALUE($E$7&" 1"))+3,1),"mmmm")&" 1")),E86/F81*E81,"")) ->  | O86: =IF(ISBLANK(C86),"",IF(MONTH(C86)=MONTH(DATEVALUE(TEXT(DATE(2000,MONTH(DATEVALUE($E$7&" 1"))+4,1),"mmmm")&" 1")),E86/F81*E81,"")) ->  | P86: =IF(ISBLANK(C86),"",IF(MONTH(C86)=MONTH(DATEVALUE(TEXT(DATE(2000,MONTH(DATEVALUE($E$7&" 1"))+5,1),"mmmm")&" 1")),E86/F81*E81,"")) ->  | Q86: =IF(ISBLANK(C86),"",IF(MONTH(C86)=MONTH(DATEVALUE(TEXT(DATE(2000,MONTH(DATEVALUE($E$7&" 1"))+6,1),"mmmm")&" 1")),E86/F81*E81,"")) ->  | R86: =IF(ISBLANK(C86),"",IF(MONTH(C86)=MONTH(DATEVALUE(TEXT(DATE(2000,MONTH(DATEVALUE($E$7&" 1"))+7,1),"mmmm")&" 1")),E86/F81*E81,"")) ->  | S86: =IF(ISBLANK(C86),"",IF(MONTH(C86)=MONTH(DATEVALUE(TEXT(DATE(2000,MONTH(DATEVALUE($E$7&" 1"))+8,1),"mmmm")&" 1")),E86/F81*E81,"")) ->  | T86: =IF(ISBLANK(C86),"",IF(MONTH(C86)=MONTH(DATEVALUE(TEXT(DATE(2000,MONTH(DATEVALUE($E$7&" 1"))+9,1),"mmmm")&" 1")),E86/F81*E81,"")) ->  | U86: =IF(ISBLANK(C86),"",IF(MONTH(C86)=MONTH(DATEVALUE(TEXT(DATE(2000,MONTH(DATEVALUE($E$7&" 1"))+10,1),"mmmm")&" 1")),E86/F81*E81,"")) ->  | V86: =IF(ISBLANK(C86),"",IF(MONTH(C86)=MONTH(DATEVALUE(TEXT(DATE(2000,MONTH(DATEVALUE($E$7&" 1"))+11,1),"mmmm")&" 1")),E86/F81*E81,"")) -> 
I87: 0 | K87: =IF(ISBLANK(C87),"",IF(MONTH(C87)=MONTH(DATEVALUE($E$7&" 1")),E87/F81*E81,"")) ->  | L87: =IF(ISBLANK(C87),"",IF(MONTH(C87)=MONTH(DATEVALUE(TEXT(DATE(2000,MONTH(DATEVALUE($E$7&" 1"))+1,1),"mmmm")&" 1")),E87/F81*E81,"")) ->  | M87: =IF(ISBLANK(C87),"",IF(MONTH(C87)=MONTH(DATEVALUE(TEXT(DATE(2000,MONTH(DATEVALUE($E$7&" 1"))+2,1),"mmmm")&" 1")),E87/F81*E81,"")) ->  | N87: =IF(ISBLANK(C87),"",IF(MONTH(C87)=MONTH(DATEVALUE(TEXT(DATE(2000,MONTH(DATEVALUE($E$7&" 1"))+3,1),"mmmm")&" 1")),E87/F81*E81,"")) ->  | O87: =IF(ISBLANK(C87),"",IF(MONTH(C87)=MONTH(DATEVALUE(TEXT(DATE(2000,MONTH(DATEVALUE($E$7&" 1"))+4,1),"mmmm")&" 1")),E87/F81*E81,"")) ->  | P87: =IF(ISBLANK(C87),"",IF(MONTH(C87)=MONTH(DATEVALUE(TEXT(DATE(2000,MONTH(DATEVALUE($E$7&" 1"))+5,1),"mmmm")&" 1")),E87/F81*E81,"")) ->  | Q87: =IF(ISBLANK(C87),"",IF(MONTH(C87)=MONTH(DATEVALUE(TEXT(DATE(2000,MONTH(DATEVALUE($E$7&" 1"))+6,1),"mmmm")&" 1")),E87/F81*E81,"")) ->  | R87: =IF(ISBLANK(C87),"",IF(MONTH(C87)=MONTH(DATEVALUE(TEXT(DATE(2000,MONTH(DATEVALUE($E$7&" 1"))+7,1),"mmmm")&" 1")),E87/F81*E81,"")) ->  | S87: =IF(ISBLANK(C87),"",IF(MONTH(C87)=MONTH(DATEVALUE(TEXT(DATE(2000,MONTH(DATEVALUE($E$7&" 1"))+8,1),"mmmm")&" 1")),E87/F81*E81,"")) ->  | T87: =IF(ISBLANK(C87),"",IF(MONTH(C87)=MONTH(DATEVALUE(TEXT(DATE(2000,MONTH(DATEVALUE($E$7&" 1"))+9,1),"mmmm")&" 1")),E87/F81*E81,"")) ->  | U87: =IF(ISBLANK(C87),"",IF(MONTH(C87)=MONTH(DATEVALUE(TEXT(DATE(2000,MONTH(DATEVALUE($E$7&" 1"))+10,1),"mmmm")&" 1")),E87/F81*E81,"")) ->  | V87: =IF(ISBLANK(C87),"",IF(MONTH(C87)=MONTH(DATEVALUE(TEXT(DATE(2000,MONTH(DATEVALUE($E$7&" 1"))+11,1),"mmmm")&" 1")),E87/F81*E81,"")) -> 
I88: 0 | K88: =IF(ISBLANK(C88),"",IF(MONTH(C88)=MONTH(DATEVALUE($E$7&" 1")),E88/F81*E81,"")) ->  | L88: =IF(ISBLANK(C88),"",IF(MONTH(C88)=MONTH(DATEVALUE(TEXT(DATE(2000,MONTH(DATEVALUE($E$7&" 1"))+1,1),"mmmm")&" 1")),E88/F81*E81,"")) ->  | M88: =IF(ISBLANK(C88),"",IF(MONTH(C88)=MONTH(DATEVALUE(TEXT(DATE(2000,MONTH(DATEVALUE($E$7&" 1"))+2,1),"mmmm")&" 1")),E88/F81*E81,"")) ->  | N88: =IF(ISBLANK(C88),"",IF(MONTH(C88)=MONTH(DATEVALUE(TEXT(DATE(2000,MONTH(DATEVALUE($E$7&" 1"))+3,1),"mmmm")&" 1")),E88/F81*E81,"")) ->  | O88: =IF(ISBLANK(C88),"",IF(MONTH(C88)=MONTH(DATEVALUE(TEXT(DATE(2000,MONTH(DATEVALUE($E$7&" 1"))+4,1),"mmmm")&" 1")),E88/F81*E81,"")) ->  | P88: =IF(ISBLANK(C88),"",IF(MONTH(C88)=MONTH(DATEVALUE(TEXT(DATE(2000,MONTH(DATEVALUE($E$7&" 1"))+5,1),"mmmm")&" 1")),E88/F81*E81,"")) ->  | Q88: =IF(ISBLANK(C88),"",IF(MONTH(C88)=MONTH(DATEVALUE(TEXT(DATE(2000,MONTH(DATEVALUE($E$7&" 1"))+6,1),"mmmm")&" 1")),E88/F81*E81,"")) ->  | R88: =IF(ISBLANK(C88),"",IF(MONTH(C88)=MONTH(DATEVALUE(TEXT(DATE(2000,MONTH(DATEVALUE($E$7&" 1"))+7,1),"mmmm")&" 1")),E88/F81*E81,"")) ->  | S88: =IF(ISBLANK(C88),"",IF(MONTH(C88)=MONTH(DATEVALUE(TEXT(DATE(2000,MONTH(DATEVALUE($E$7&" 1"))+8,1),"mmmm")&" 1")),E88/F81*E81,"")) ->  | T88: =IF(ISBLANK(C88),"",IF(MONTH(C88)=MONTH(DATEVALUE(TEXT(DATE(2000,MONTH(DATEVALUE($E$7&" 1"))+9,1),"mmmm")&" 1")),E88/F81*E81,"")) ->  | U88: =IF(ISBLANK(C88),"",IF(MONTH(C88)=MONTH(DATEVALUE(TEXT(DATE(2000,MONTH(DATEVALUE($E$7&" 1"))+10,1),"mmmm")&" 1")),E88/F81*E81,"")) ->  | V88: =IF(ISBLANK(C88),"",IF(MONTH(C88)=MONTH(DATEVALUE(TEXT(DATE(2000,MONTH(DATEVALUE($E$7&" 1"))+11,1),"mmmm")&" 1")),E88/F81*E81,"")) -> 
I89: 0 | K89: =IF(ISBLANK(C89),"",IF(MONTH(C89)=MONTH(DATEVALUE($E$7&" 1")),E89/F81*E81,"")) ->  | L89: =IF(ISBLANK(C89),"",IF(MONTH(C89)=MONTH(DATEVALUE(TEXT(DATE(2000,MONTH(DATEVALUE($E$7&" 1"))+1,1),"mmmm")&" 1")),E89/F81*E81,"")) ->  | M89: =IF(ISBLANK(C89),"",IF(MONTH(C89)=MONTH(DATEVALUE(TEXT(DATE(2000,MONTH(DATEVALUE($E$7&" 1"))+2,1),"mmmm")&" 1")),E89/F81*E81,"")) ->  | N89: =IF(ISBLANK(C89),"",IF(MONTH(C89)=MONTH(DATEVALUE(TEXT(DATE(2000,MONTH(DATEVALUE($E$7&" 1"))+3,1),"mmmm")&" 1")),E89/F81*E81,"")) ->  | O89: =IF(ISBLANK(C89),"",IF(MONTH(C89)=MONTH(DATEVALUE(TEXT(DATE(2000,MONTH(DATEVALUE($E$7&" 1"))+4,1),"mmmm")&" 1")),E89/F81*E81,"")) ->  | P89: =IF(ISBLANK(C89),"",IF(MONTH(C89)=MONTH(DATEVALUE(TEXT(DATE(2000,MONTH(DATEVALUE($E$7&" 1"))+5,1),"mmmm")&" 1")),E89/F81*E81,"")) ->  | Q89: =IF(ISBLANK(C89),"",IF(MONTH(C89)=MONTH(DATEVALUE(TEXT(DATE(2000,MONTH(DATEVALUE($E$7&" 1"))+6,1),"mmmm")&" 1")),E89/F81*E81,"")) ->  | R89: =IF(ISBLANK(C89),"",IF(MONTH(C89)=MONTH(DATEVALUE(TEXT(DATE(2000,MONTH(DATEVALUE($E$7&" 1"))+7,1),"mmmm")&" 1")),E89/F81*E81,"")) ->  | S89: =IF(ISBLANK(C89),"",IF(MONTH(C89)=MONTH(DATEVALUE(TEXT(DATE(2000,MONTH(DATEVALUE($E$7&" 1"))+8,1),"mmmm")&" 1")),E89/F81*E81,"")) ->  | T89: =IF(ISBLANK(C89),"",IF(MONTH(C89)=MONTH(DATEVALUE(TEXT(DATE(2000,MONTH(DATEVALUE($E$7&" 1"))+9,1),"mmmm")&" 1")),E89/F81*E81,"")) ->  | U89: =IF(ISBLANK(C89),"",IF(MONTH(C89)=MONTH(DATEVALUE(TEXT(DATE(2000,MONTH(DATEVALUE($E$7&" 1"))+10,1),"mmmm")&" 1")),E89/F81*E81,"")) ->  | V89: =IF(ISBLANK(C89),"",IF(MONTH(C89)=MONTH(DATEVALUE(TEXT(DATE(2000,MONTH(DATEVALUE($E$7&" 1"))+11,1),"mmmm")&" 1")),E89/F81*E81,"")) -> 
I90: 0 | K90: =IF(ISBLANK(C90),"",IF(MONTH(C90)=MONTH(DATEVALUE($E$7&" 1")),E90/F81*E81,"")) ->  | L90: =IF(ISBLANK(C90),"",IF(MONTH(C90)=MONTH(DATEVALUE(TEXT(DATE(2000,MONTH(DATEVALUE($E$7&" 1"))+1,1),"mmmm")&" 1")),E90/F81*E81,"")) ->  | M90: =IF(ISBLANK(C90),"",IF(MONTH(C90)=MONTH(DATEVALUE(TEXT(DATE(2000,MONTH(DATEVALUE($E$7&" 1"))+2,1),"mmmm")&" 1")),E90/F81*E81,"")) ->  | N90: =IF(ISBLANK(C90),"",IF(MONTH(C90)=MONTH(DATEVALUE(TEXT(DATE(2000,MONTH(DATEVALUE($E$7&" 1"))+3,1),"mmmm")&" 1")),E90/F81*E81,"")) ->  | O90: =IF(ISBLANK(C90),"",IF(MONTH(C90)=MONTH(DATEVALUE(TEXT(DATE(2000,MONTH(DATEVALUE($E$7&" 1"))+4,1),"mmmm")&" 1")),E90/F81*E81,"")) ->  | P90: =IF(ISBLANK(C90),"",IF(MONTH(C90)=MONTH(DATEVALUE(TEXT(DATE(2000,MONTH(DATEVALUE($E$7&" 1"))+5,1),"mmmm")&" 1")),E90/F81*E81,"")) ->  | Q90: =IF(ISBLANK(C90),"",IF(MONTH(C90)=MONTH(DATEVALUE(TEXT(DATE(2000,MONTH(DATEVALUE($E$7&" 1"))+6,1),"mmmm")&" 1")),E90/F81*E81,"")) ->  | R90: =IF(ISBLANK(C90),"",IF(MONTH(C90)=MONTH(DATEVALUE(TEXT(DATE(2000,MONTH(DATEVALUE($E$7&" 1"))+7,1),"mmmm")&" 1")),E90/F81*E81,"")) ->  | S90: =IF(ISBLANK(C90),"",IF(MONTH(C90)=MONTH(DATEVALUE(TEXT(DATE(2000,MONTH(DATEVALUE($E$7&" 1"))+8,1),"mmmm")&" 1")),E90/F81*E81,"")) ->  | T90: =IF(ISBLANK(C90),"",IF(MONTH(C90)=MONTH(DATEVALUE(TEXT(DATE(2000,MONTH(DATEVALUE($E$7&" 1"))+9,1),"mmmm")&" 1")),E90/F81*E81,"")) ->  | U90: =IF(ISBLANK(C90),"",IF(MONTH(C90)=MONTH(DATEVALUE(TEXT(DATE(2000,MONTH(DATEVALUE($E$7&" 1"))+10,1),"mmmm")&" 1")),E90/F81*E81,"")) ->  | V90: =IF(ISBLANK(C90),"",IF(MONTH(C90)=MONTH(DATEVALUE(TEXT(DATE(2000,MONTH(DATEVALUE($E$7&" 1"))+11,1),"mmmm")&" 1")),E90/F81*E81,"")) -> 
I91: 0 | K91: =IF(ISBLANK(C91),"",IF(MONTH(C91)=MONTH(DATEVALUE($E$7&" 1")),E91/F81*E81,"")) ->  | L91: =IF(ISBLANK(C91),"",IF(MONTH(C91)=MONTH(DATEVALUE(TEXT(DATE(2000,MONTH(DATEVALUE($E$7&" 1"))+1,1),"mmmm")&" 1")),E91/F81*E81,"")) ->  | M91: =IF(ISBLANK(C91),"",IF(MONTH(C91)=MONTH(DATEVALUE(TEXT(DATE(2000,MONTH(DATEVALUE($E$7&" 1"))+2,1),"mmmm")&" 1")),E91/F81*E81,"")) ->  | N91: =IF(ISBLANK(C91),"",IF(MONTH(C91)=MONTH(DATEVALUE(TEXT(DATE(2000,MONTH(DATEVALUE($E$7&" 1"))+3,1),"mmmm")&" 1")),E91/F81*E81,"")) ->  | O91: =IF(ISBLANK(C91),"",IF(MONTH(C91)=MONTH(DATEVALUE(TEXT(DATE(2000,MONTH(DATEVALUE($E$7&" 1"))+4,1),"mmmm")&" 1")),E91/F81*E81,"")) ->  | P91: =IF(ISBLANK(C91),"",IF(MONTH(C91)=MONTH(DATEVALUE(TEXT(DATE(2000,MONTH(DATEVALUE($E$7&" 1"))+5,1),"mmmm")&" 1")),E91/F81*E81,"")) ->  | Q91: =IF(ISBLANK(C91),"",IF(MONTH(C91)=MONTH(DATEVALUE(TEXT(DATE(2000,MONTH(DATEVALUE($E$7&" 1"))+6,1),"mmmm")&" 1")),E91/F81*E81,"")) ->  | R91: =IF(ISBLANK(C91),"",IF(MONTH(C91)=MONTH(DATEVALUE(TEXT(DATE(2000,MONTH(DATEVALUE($E$7&" 1"))+7,1),"mmmm")&" 1")),E91/F81*E81,"")) ->  | S91: =IF(ISBLANK(C91),"",IF(MONTH(C91)=MONTH(DATEVALUE(TEXT(DATE(2000,MONTH(DATEVALUE($E$7&" 1"))+8,1),"mmmm")&" 1")),E91/F81*E81,"")) ->  | T91: =IF(ISBLANK(C91),"",IF(MONTH(C91)=MONTH(DATEVALUE(TEXT(DATE(2000,MONTH(DATEVALUE($E$7&" 1"))+9,1),"mmmm")&" 1")),E91/F81*E81,"")) ->  | U91: =IF(ISBLANK(C91),"",IF(MONTH(C91)=MONTH(DATEVALUE(TEXT(DATE(2000,MONTH(DATEVALUE($E$7&" 1"))+10,1),"mmmm")&" 1")),E91/F81*E81,"")) ->  | V91: =IF(ISBLANK(C91),"",IF(MONTH(C91)=MONTH(DATEVALUE(TEXT(DATE(2000,MONTH(DATEVALUE($E$7&" 1"))+11,1),"mmmm")&" 1")),E91/F81*E81,"")) -> 
I92: 0 | K92: =IF(ISBLANK(C92),"",IF(MONTH(C92)=MONTH(DATEVALUE($E$7&" 1")),E92/F81*E81,"")) ->  | L92: =IF(ISBLANK(C92),"",IF(MONTH(C92)=MONTH(DATEVALUE(TEXT(DATE(2000,MONTH(DATEVALUE($E$7&" 1"))+1,1),"mmmm")&" 1")),E92/F81*E81,"")) ->  | M92: =IF(ISBLANK(C92),"",IF(MONTH(C92)=MONTH(DATEVALUE(TEXT(DATE(2000,MONTH(DATEVALUE($E$7&" 1"))+2,1),"mmmm")&" 1")),E92/F81*E81,"")) ->  | N92: =IF(ISBLANK(C92),"",IF(MONTH(C92)=MONTH(DATEVALUE(TEXT(DATE(2000,MONTH(DATEVALUE($E$7&" 1"))+3,1),"mmmm")&" 1")),E92/F81*E81,"")) ->  | O92: =IF(ISBLANK(C92),"",IF(MONTH(C92)=MONTH(DATEVALUE(TEXT(DATE(2000,MONTH(DATEVALUE($E$7&" 1"))+4,1),"mmmm")&" 1")),E92/F81*E81,"")) ->  | P92: =IF(ISBLANK(C92),"",IF(MONTH(C92)=MONTH(DATEVALUE(TEXT(DATE(2000,MONTH(DATEVALUE($E$7&" 1"))+5,1),"mmmm")&" 1")),E92/F81*E81,"")) ->  | Q92: =IF(ISBLANK(C92),"",IF(MONTH(C92)=MONTH(DATEVALUE(TEXT(DATE(2000,MONTH(DATEVALUE($E$7&" 1"))+6,1),"mmmm")&" 1")),E92/F81*E81,"")) ->  | R92: =IF(ISBLANK(C92),"",IF(MONTH(C92)=MONTH(DATEVALUE(TEXT(DATE(2000,MONTH(DATEVALUE($E$7&" 1"))+7,1),"mmmm")&" 1")),E92/F81*E81,"")) ->  | S92: =IF(ISBLANK(C92),"",IF(MONTH(C92)=MONTH(DATEVALUE(TEXT(DATE(2000,MONTH(DATEVALUE($E$7&" 1"))+8,1),"mmmm")&" 1")),E92/F81*E81,"")) ->  | T92: =IF(ISBLANK(C92),"",IF(MONTH(C92)=MONTH(DATEVALUE(TEXT(DATE(2000,MONTH(DATEVALUE($E$7&" 1"))+9,1),"mmmm")&" 1")),E92/F81*E81,"")) ->  | U92: =IF(ISBLANK(C92),"",IF(MONTH(C92)=MONTH(DATEVALUE(TEXT(DATE(2000,MONTH(DATEVALUE($E$7&" 1"))+10,1),"mmmm")&" 1")),E92/F81*E81,"")) ->  | V92: =IF(ISBLANK(C92),"",IF(MONTH(C92)=MONTH(DATEVALUE(TEXT(DATE(2000,MONTH(DATEVALUE($E$7&" 1"))+11,1),"mmmm")&" 1")),E92/F81*E81,"")) -> 
H93: =IFERROR(I93/E93,0) -> 0 | I93: =SUM(I94:J104) -> 0 | W93: =IF(H93<>100%,"Pas ok","ok") -> Pas ok
B94: =$B$10 -> réf. Facture | C94: =$C$10 -> date facture | D94: =$D$10 -> Description facture | E94: =$E$10 -> Montant facture (HTVA)
I95: =SUM(K95:V95) -> 0 | K95: =IF(ISBLANK(C95),"",IF(MONTH(C95)=MONTH(DATEVALUE($E$7&" 1")),E95/F93*E93,"")) ->  | L95: =IF(ISBLANK(C95),"",IF(MONTH(C95)=MONTH(DATEVALUE(TEXT(DATE(2000,MONTH(DATEVALUE($E$7&" 1"))+1,1),"mmmm")&" 1")),E95/F93*E93,"")) ->  | M95: =IF(ISBLANK(C95),"",IF(MONTH(C95)=MONTH(DATEVALUE(TEXT(DATE(2000,MONTH(DATEVALUE($E$7&" 1"))+2,1),"mmmm")&" 1")),E95/F93*E93,"")) ->  | N95: =IF(ISBLANK(C95),"",IF(MONTH(C95)=MONTH(DATEVALUE(TEXT(DATE(2000,MONTH(DATEVALUE($E$7&" 1"))+3,1),"mmmm")&" 1")),E95/F93*E93,"")) ->  | O95: =IF(ISBLANK(C95),"",IF(MONTH(C95)=MONTH(DATEVALUE(TEXT(DATE(2000,MONTH(DATEVALUE($E$7&" 1"))+4,1),"mmmm")&" 1")),E95/F93*E93,"")) ->  | P95: =IF(ISBLANK(C95),"",IF(MONTH(C95)=MONTH(DATEVALUE(TEXT(DATE(2000,MONTH(DATEVALUE($E$7&" 1"))+5,1),"mmmm")&" 1")),E95/F93*E93,"")) ->  | Q95: =IF(ISBLANK(C95),"",IF(MONTH(C95)=MONTH(DATEVALUE(TEXT(DATE(2000,MONTH(DATEVALUE($E$7&" 1"))+6,1),"mmmm")&" 1")),E95/F93*E93,"")) ->  | R95: =IF(ISBLANK(C95),"",IF(MONTH(C95)=MONTH(DATEVALUE(TEXT(DATE(2000,MONTH(DATEVALUE($E$7&" 1"))+7,1),"mmmm")&" 1")),E95/F93*E93,"")) ->  | S95: =IF(ISBLANK(C95),"",IF(MONTH(C95)=MONTH(DATEVALUE(TEXT(DATE(2000,MONTH(DATEVALUE($E$7&" 1"))+8,1),"mmmm")&" 1")),E95/F93*E93,"")) ->  | T95: =IF(ISBLANK(C95),"",IF(MONTH(C95)=MONTH(DATEVALUE(TEXT(DATE(2000,MONTH(DATEVALUE($E$7&" 1"))+9,1),"mmmm")&" 1")),E95/F93*E93,"")) ->  | U95: =IF(ISBLANK(C95),"",IF(MONTH(C95)=MONTH(DATEVALUE(TEXT(DATE(2000,MONTH(DATEVALUE($E$7&" 1"))+10,1),"mmmm")&" 1")),E95/F93*E93,"")) ->  | V95: =IF(ISBLANK(C95),"",IF(MONTH(C95)=MONTH(DATEVALUE(TEXT(DATE(2000,MONTH(DATEVALUE($E$7&" 1"))+11,1),"mmmm")&" 1")),E95/F93*E93,"")) -> 
I96: 0 | K96: =IF(ISBLANK(C96),"",IF(MONTH(C96)=MONTH(DATEVALUE($E$7&" 1")),E96/F93*E93,"")) ->  | L96: =IF(ISBLANK(C96),"",IF(MONTH(C96)=MONTH(DATEVALUE(TEXT(DATE(2000,MONTH(DATEVALUE($E$7&" 1"))+1,1),"mmmm")&" 1")),E96/F93*E93,"")) ->  | M96: =IF(ISBLANK(C96),"",IF(MONTH(C96)=MONTH(DATEVALUE(TEXT(DATE(2000,MONTH(DATEVALUE($E$7&" 1"))+2,1),"mmmm")&" 1")),E96/F93*E93,"")) ->  | N96: =IF(ISBLANK(C96),"",IF(MONTH(C96)=MONTH(DATEVALUE(TEXT(DATE(2000,MONTH(DATEVALUE($E$7&" 1"))+3,1),"mmmm")&" 1")),E96/F93*E93,"")) ->  | O96: =IF(ISBLANK(C96),"",IF(MONTH(C96)=MONTH(DATEVALUE(TEXT(DATE(2000,MONTH(DATEVALUE($E$7&" 1"))+4,1),"mmmm")&" 1")),E96/F93*E93,"")) ->  | P96: =IF(ISBLANK(C96),"",IF(MONTH(C96)=MONTH(DATEVALUE(TEXT(DATE(2000,MONTH(DATEVALUE($E$7&" 1"))+5,1),"mmmm")&" 1")),E96/F93*E93,"")) ->  | Q96: =IF(ISBLANK(C96),"",IF(MONTH(C96)=MONTH(DATEVALUE(TEXT(DATE(2000,MONTH(DATEVALUE($E$7&" 1"))+6,1),"mmmm")&" 1")),E96/F93*E93,"")) ->  | R96: =IF(ISBLANK(C96),"",IF(MONTH(C96)=MONTH(DATEVALUE(TEXT(DATE(2000,MONTH(DATEVALUE($E$7&" 1"))+7,1),"mmmm")&" 1")),E96/F93*E93,"")) ->  | S96: =IF(ISBLANK(C96),"",IF(MONTH(C96)=MONTH(DATEVALUE(TEXT(DATE(2000,MONTH(DATEVALUE($E$7&" 1"))+8,1),"mmmm")&" 1")),E96/F93*E93,"")) ->  | T96: =IF(ISBLANK(C96),"",IF(MONTH(C96)=MONTH(DATEVALUE(TEXT(DATE(2000,MONTH(DATEVALUE($E$7&" 1"))+9,1),"mmmm")&" 1")),E96/F93*E93,"")) ->  | U96: =IF(ISBLANK(C96),"",IF(MONTH(C96)=MONTH(DATEVALUE(TEXT(DATE(2000,MONTH(DATEVALUE($E$7&" 1"))+10,1),"mmmm")&" 1")),E96/F93*E93,"")) ->  | V96: =IF(ISBLANK(C96),"",IF(MONTH(C96)=MONTH(DATEVALUE(TEXT(DATE(2000,MONTH(DATEVALUE($E$7&" 1"))+11,1),"mmmm")&" 1")),E96/F93*E93,"")) -> 
I97: 0 | K97: =IF(ISBLANK(C97),"",IF(MONTH(C97)=MONTH(DATEVALUE($E$7&" 1")),E97/F93*E93,"")) ->  | L97: =IF(ISBLANK(C97),"",IF(MONTH(C97)=MONTH(DATEVALUE(TEXT(DATE(2000,MONTH(DATEVALUE($E$7&" 1"))+1,1),"mmmm")&" 1")),E97/F93*E93,"")) ->  | M97: =IF(ISBLANK(C97),"",IF(MONTH(C97)=MONTH(DATEVALUE(TEXT(DATE(2000,MONTH(DATEVALUE($E$7&" 1"))+2,1),"mmmm")&" 1")),E97/F93*E93,"")) ->  | N97: =IF(ISBLANK(C97),"",IF(MONTH(C97)=MONTH(DATEVALUE(TEXT(DATE(2000,MONTH(DATEVALUE($E$7&" 1"))+3,1),"mmmm")&" 1")),E97/F93*E93,"")) ->  | O97: =IF(ISBLANK(C97),"",IF(MONTH(C97)=MONTH(DATEVALUE(TEXT(DATE(2000,MONTH(DATEVALUE($E$7&" 1"))+4,1),"mmmm")&" 1")),E97/F93*E93,"")) ->  | P97: =IF(ISBLANK(C97),"",IF(MONTH(C97)=MONTH(DATEVALUE(TEXT(DATE(2000,MONTH(DATEVALUE($E$7&" 1"))+5,1),"mmmm")&" 1")),E97/F93*E93,"")) ->  | Q97: =IF(ISBLANK(C97),"",IF(MONTH(C97)=MONTH(DATEVALUE(TEXT(DATE(2000,MONTH(DATEVALUE($E$7&" 1"))+6,1),"mmmm")&" 1")),E97/F93*E93,"")) ->  | R97: =IF(ISBLANK(C97),"",IF(MONTH(C97)=MONTH(DATEVALUE(TEXT(DATE(2000,MONTH(DATEVALUE($E$7&" 1"))+7,1),"mmmm")&" 1")),E97/F93*E93,"")) ->  | S97: =IF(ISBLANK(C97),"",IF(MONTH(C97)=MONTH(DATEVALUE(TEXT(DATE(2000,MONTH(DATEVALUE($E$7&" 1"))+8,1),"mmmm")&" 1")),E97/F93*E93,"")) ->  | T97: =IF(ISBLANK(C97),"",IF(MONTH(C97)=MONTH(DATEVALUE(TEXT(DATE(2000,MONTH(DATEVALUE($E$7&" 1"))+9,1),"mmmm")&" 1")),E97/F93*E93,"")) ->  | U97: =IF(ISBLANK(C97),"",IF(MONTH(C97)=MONTH(DATEVALUE(TEXT(DATE(2000,MONTH(DATEVALUE($E$7&" 1"))+10,1),"mmmm")&" 1")),E97/F93*E93,"")) ->  | V97: =IF(ISBLANK(C97),"",IF(MONTH(C97)=MONTH(DATEVALUE(TEXT(DATE(2000,MONTH(DATEVALUE($E$7&" 1"))+11,1),"mmmm")&" 1")),E97/F93*E93,"")) -> 
I98: 0 | K98: =IF(ISBLANK(C98),"",IF(MONTH(C98)=MONTH(DATEVALUE($E$7&" 1")),E98/F93*E93,"")) ->  | L98: =IF(ISBLANK(C98),"",IF(MONTH(C98)=MONTH(DATEVALUE(TEXT(DATE(2000,MONTH(DATEVALUE($E$7&" 1"))+1,1),"mmmm")&" 1")),E98/F93*E93,"")) ->  | M98: =IF(ISBLANK(C98),"",IF(MONTH(C98)=MONTH(DATEVALUE(TEXT(DATE(2000,MONTH(DATEVALUE($E$7&" 1"))+2,1),"mmmm")&" 1")),E98/F93*E93,"")) ->  | N98: =IF(ISBLANK(C98),"",IF(MONTH(C98)=MONTH(DATEVALUE(TEXT(DATE(2000,MONTH(DATEVALUE($E$7&" 1"))+3,1),"mmmm")&" 1")),E98/F93*E93,"")) ->  | O98: =IF(ISBLANK(C98),"",IF(MONTH(C98)=MONTH(DATEVALUE(TEXT(DATE(2000,MONTH(DATEVALUE($E$7&" 1"))+4,1),"mmmm")&" 1")),E98/F93*E93,"")) ->  | P98: =IF(ISBLANK(C98),"",IF(MONTH(C98)=MONTH(DATEVALUE(TEXT(DATE(2000,MONTH(DATEVALUE($E$7&" 1"))+5,1),"mmmm")&" 1")),E98/F93*E93,"")) ->  | Q98: =IF(ISBLANK(C98),"",IF(MONTH(C98)=MONTH(DATEVALUE(TEXT(DATE(2000,MONTH(DATEVALUE($E$7&" 1"))+6,1),"mmmm")&" 1")),E98/F93*E93,"")) ->  | R98: =IF(ISBLANK(C98),"",IF(MONTH(C98)=MONTH(DATEVALUE(TEXT(DATE(2000,MONTH(DATEVALUE($E$7&" 1"))+7,1),"mmmm")&" 1")),E98/F93*E93,"")) ->  | S98: =IF(ISBLANK(C98),"",IF(MONTH(C98)=MONTH(DATEVALUE(TEXT(DATE(2000,MONTH(DATEVALUE($E$7&" 1"))+8,1),"mmmm")&" 1")),E98/F93*E93,"")) ->  | T98: =IF(ISBLANK(C98),"",IF(MONTH(C98)=MONTH(DATEVALUE(TEXT(DATE(2000,MONTH(DATEVALUE($E$7&" 1"))+9,1),"mmmm")&" 1")),E98/F93*E93,"")) ->  | U98: =IF(ISBLANK(C98),"",IF(MONTH(C98)=MONTH(DATEVALUE(TEXT(DATE(2000,MONTH(DATEVALUE($E$7&" 1"))+10,1),"mmmm")&" 1")),E98/F93*E93,"")) ->  | V98: =IF(ISBLANK(C98),"",IF(MONTH(C98)=MONTH(DATEVALUE(TEXT(DATE(2000,MONTH(DATEVALUE($E$7&" 1"))+11,1),"mmmm")&" 1")),E98/F93*E93,"")) -> 
I99: 0 | K99: =IF(ISBLANK(C99),"",IF(MONTH(C99)=MONTH(DATEVALUE($E$7&" 1")),E99/F93*E93,"")) ->  | L99: =IF(ISBLANK(C99),"",IF(MONTH(C99)=MONTH(DATEVALUE(TEXT(DATE(2000,MONTH(DATEVALUE($E$7&" 1"))+1,1),"mmmm")&" 1")),E99/F93*E93,"")) ->  | M99: =IF(ISBLANK(C99),"",IF(MONTH(C99)=MONTH(DATEVALUE(TEXT(DATE(2000,MONTH(DATEVALUE($E$7&" 1"))+2,1),"mmmm")&" 1")),E99/F93*E93,"")) ->  | N99: =IF(ISBLANK(C99),"",IF(MONTH(C99)=MONTH(DATEVALUE(TEXT(DATE(2000,MONTH(DATEVALUE($E$7&" 1"))+3,1),"mmmm")&" 1")),E99/F93*E93,"")) ->  | O99: =IF(ISBLANK(C99),"",IF(MONTH(C99)=MONTH(DATEVALUE(TEXT(DATE(2000,MONTH(DATEVALUE($E$7&" 1"))+4,1),"mmmm")&" 1")),E99/F93*E93,"")) ->  | P99: =IF(ISBLANK(C99),"",IF(MONTH(C99)=MONTH(DATEVALUE(TEXT(DATE(2000,MONTH(DATEVALUE($E$7&" 1"))+5,1),"mmmm")&" 1")),E99/F93*E93,"")) ->  | Q99: =IF(ISBLANK(C99),"",IF(MONTH(C99)=MONTH(DATEVALUE(TEXT(DATE(2000,MONTH(DATEVALUE($E$7&" 1"))+6,1),"mmmm")&" 1")),E99/F93*E93,"")) ->  | R99: =IF(ISBLANK(C99),"",IF(MONTH(C99)=MONTH(DATEVALUE(TEXT(DATE(2000,MONTH(DATEVALUE($E$7&" 1"))+7,1),"mmmm")&" 1")),E99/F93*E93,"")) ->  | S99: =IF(ISBLANK(C99),"",IF(MONTH(C99)=MONTH(DATEVALUE(TEXT(DATE(2000,MONTH(DATEVALUE($E$7&" 1"))+8,1),"mmmm")&" 1")),E99/F93*E93,"")) ->  | T99: =IF(ISBLANK(C99),"",IF(MONTH(C99)=MONTH(DATEVALUE(TEXT(DATE(2000,MONTH(DATEVALUE($E$7&" 1"))+9,1),"mmmm")&" 1")),E99/F93*E93,"")) ->  | U99: =IF(ISBLANK(C99),"",IF(MONTH(C99)=MONTH(DATEVALUE(TEXT(DATE(2000,MONTH(DATEVALUE($E$7&" 1"))+10,1),"mmmm")&" 1")),E99/F93*E93,"")) ->  | V99: =IF(ISBLANK(C99),"",IF(MONTH(C99)=MONTH(DATEVALUE(TEXT(DATE(2000,MONTH(DATEVALUE($E$7&" 1"))+11,1),"mmmm")&" 1")),E99/F93*E93,"")) -> 
I100: 0 | K100: =IF(ISBLANK(C100),"",IF(MONTH(C100)=MONTH(DATEVALUE($E$7&" 1")),E100/F93*E93,"")) ->  | L100: =IF(ISBLANK(C100),"",IF(MONTH(C100)=MONTH(DATEVALUE(TEXT(DATE(2000,MONTH(DATEVALUE($E$7&" 1"))+1,1),"mmmm")&" 1")),E100/F93*E93,"")) ->  | M100: =IF(ISBLANK(C100),"",IF(MONTH(C100)=MONTH(DATEVALUE(TEXT(DATE(2000,MONTH(DATEVALUE($E$7&" 1"))+2,1),"mmmm")&" 1")),E100/F93*E93,"")) ->  | N100: =IF(ISBLANK(C100),"",IF(MONTH(C100)=MONTH(DATEVALUE(TEXT(DATE(2000,MONTH(DATEVALUE($E$7&" 1"))+3,1),"mmmm")&" 1")),E100/F93*E93,"")) ->  | O100: =IF(ISBLANK(C100),"",IF(MONTH(C100)=MONTH(DATEVALUE(TEXT(DATE(2000,MONTH(DATEVALUE($E$7&" 1"))+4,1),"mmmm")&" 1")),E100/F93*E93,"")) ->  | P100: =IF(ISBLANK(C100),"",IF(MONTH(C100)=MONTH(DATEVALUE(TEXT(DATE(2000,MONTH(DATEVALUE($E$7&" 1"))+5,1),"mmmm")&" 1")),E100/F93*E93,"")) ->  | Q100: =IF(ISBLANK(C100),"",IF(MONTH(C100)=MONTH(DATEVALUE(TEXT(DATE(2000,MONTH(DATEVALUE($E$7&" 1"))+6,1),"mmmm")&" 1")),E100/F93*E93,"")) ->  | R100: =IF(ISBLANK(C100),"",IF(MONTH(C100)=MONTH(DATEVALUE(TEXT(DATE(2000,MONTH(DATEVALUE($E$7&" 1"))+7,1),"mmmm")&" 1")),E100/F93*E93,"")) ->  | S100: =IF(ISBLANK(C100),"",IF(MONTH(C100)=MONTH(DATEVALUE(TEXT(DATE(2000,MONTH(DATEVALUE($E$7&" 1"))+8,1),"mmmm")&" 1")),E100/F93*E93,"")) ->  | T100: =IF(ISBLANK(C100),"",IF(MONTH(C100)=MONTH(DATEVALUE(TEXT(DATE(2000,MONTH(DATEVALUE($E$7&" 1"))+9,1),"mmmm")&" 1")),E100/F93*E93,"")) ->  | U100: =IF(ISBLANK(C100),"",IF(MONTH(C100)=MONTH(DATEVALUE(TEXT(DATE(2000,MONTH(DATEVALUE($E$7&" 1"))+10,1),"mmmm")&" 1")),E100/F93*E93,"")) ->  | V100: =IF(ISBLANK(C100),"",IF(MONTH(C100)=MONTH(DATEVALUE(TEXT(DATE(2000,MONTH(DATEVALUE($E$7&" 1"))+11,1),"mmmm")&" 1")),E100/F93*E93,"")) -> 
I101: 0 | K101: =IF(ISBLANK(C101),"",IF(MONTH(C101)=MONTH(DATEVALUE($E$7&" 1")),E101/F93*E93,"")) ->  | L101: =IF(ISBLANK(C101),"",IF(MONTH(C101)=MONTH(DATEVALUE(TEXT(DATE(2000,MONTH(DATEVALUE($E$7&" 1"))+1,1),"mmmm")&" 1")),E101/F93*E93,"")) ->  | M101: =IF(ISBLANK(C101),"",IF(MONTH(C101)=MONTH(DATEVALUE(TEXT(DATE(2000,MONTH(DATEVALUE($E$7&" 1"))+2,1),"mmmm")&" 1")),E101/F93*E93,"")) ->  | N101: =IF(ISBLANK(C101),"",IF(MONTH(C101)=MONTH(DATEVALUE(TEXT(DATE(2000,MONTH(DATEVALUE($E$7&" 1"))+3,1),"mmmm")&" 1")),E101/F93*E93,"")) ->  | O101: =IF(ISBLANK(C101),"",IF(MONTH(C101)=MONTH(DATEVALUE(TEXT(DATE(2000,MONTH(DATEVALUE($E$7&" 1"))+4,1),"mmmm")&" 1")),E101/F93*E93,"")) ->  | P101: =IF(ISBLANK(C101),"",IF(MONTH(C101)=MONTH(DATEVALUE(TEXT(DATE(2000,MONTH(DATEVALUE($E$7&" 1"))+5,1),"mmmm")&" 1")),E101/F93*E93,"")) ->  | Q101: =IF(ISBLANK(C101),"",IF(MONTH(C101)=MONTH(DATEVALUE(TEXT(DATE(2000,MONTH(DATEVALUE($E$7&" 1"))+6,1),"mmmm")&" 1")),E101/F93*E93,"")) ->  | R101: =IF(ISBLANK(C101),"",IF(MONTH(C101)=MONTH(DATEVALUE(TEXT(DATE(2000,MONTH(DATEVALUE($E$7&" 1"))+7,1),"mmmm")&" 1")),E101/F93*E93,"")) ->  | S101: =IF(ISBLANK(C101),"",IF(MONTH(C101)=MONTH(DATEVALUE(TEXT(DATE(2000,MONTH(DATEVALUE($E$7&" 1"))+8,1),"mmmm")&" 1")),E101/F93*E93,"")) ->  | T101: =IF(ISBLANK(C101),"",IF(MONTH(C101)=MONTH(DATEVALUE(TEXT(DATE(2000,MONTH(DATEVALUE($E$7&" 1"))+9,1),"mmmm")&" 1")),E101/F93*E93,"")) ->  | U101: =IF(ISBLANK(C101),"",IF(MONTH(C101)=MONTH(DATEVALUE(TEXT(DATE(2000,MONTH(DATEVALUE($E$7&" 1"))+10,1),"mmmm")&" 1")),E101/F93*E93,"")) ->  | V101: =IF(ISBLANK(C101),"",IF(MONTH(C101)=MONTH(DATEVALUE(TEXT(DATE(2000,MONTH(DATEVALUE($E$7&" 1"))+11,1),"mmmm")&" 1")),E101/F93*E93,"")) -> 
I102: 0 | K102: =IF(ISBLANK(C102),"",IF(MONTH(C102)=MONTH(DATEVALUE($E$7&" 1")),E102/F93*E93,"")) ->  | L102: =IF(ISBLANK(C102),"",IF(MONTH(C102)=MONTH(DATEVALUE(TEXT(DATE(2000,MONTH(DATEVALUE($E$7&" 1"))+1,1),"mmmm")&" 1")),E102/F93*E93,"")) ->  | M102: =IF(ISBLANK(C102),"",IF(MONTH(C102)=MONTH(DATEVALUE(TEXT(DATE(2000,MONTH(DATEVALUE($E$7&" 1"))+2,1),"mmmm")&" 1")),E102/F93*E93,"")) ->  | N102: =IF(ISBLANK(C102),"",IF(MONTH(C102)=MONTH(DATEVALUE(TEXT(DATE(2000,MONTH(DATEVALUE($E$7&" 1"))+3,1),"mmmm")&" 1")),E102/F93*E93,"")) ->  | O102: =IF(ISBLANK(C102),"",IF(MONTH(C102)=MONTH(DATEVALUE(TEXT(DATE(2000,MONTH(DATEVALUE($E$7&" 1"))+4,1),"mmmm")&" 1")),E102/F93*E93,"")) ->  | P102: =IF(ISBLANK(C102),"",IF(MONTH(C102)=MONTH(DATEVALUE(TEXT(DATE(2000,MONTH(DATEVALUE($E$7&" 1"))+5,1),"mmmm")&" 1")),E102/F93*E93,"")) ->  | Q102: =IF(ISBLANK(C102),"",IF(MONTH(C102)=MONTH(DATEVALUE(TEXT(DATE(2000,MONTH(DATEVALUE($E$7&" 1"))+6,1),"mmmm")&" 1")),E102/F93*E93,"")) ->  | R102: =IF(ISBLANK(C102),"",IF(MONTH(C102)=MONTH(DATEVALUE(TEXT(DATE(2000,MONTH(DATEVALUE($E$7&" 1"))+7,1),"mmmm")&" 1")),E102/F93*E93,"")) ->  | S102: =IF(ISBLANK(C102),"",IF(MONTH(C102)=MONTH(DATEVALUE(TEXT(DATE(2000,MONTH(DATEVALUE($E$7&" 1"))+8,1),"mmmm")&" 1")),E102/F93*E93,"")) ->  | T102: =IF(ISBLANK(C102),"",IF(MONTH(C102)=MONTH(DATEVALUE(TEXT(DATE(2000,MONTH(DATEVALUE($E$7&" 1"))+9,1),"mmmm")&" 1")),E102/F93*E93,"")) ->  | U102: =IF(ISBLANK(C102),"",IF(MONTH(C102)=MONTH(DATEVALUE(TEXT(DATE(2000,MONTH(DATEVALUE($E$7&" 1"))+10,1),"mmmm")&" 1")),E102/F93*E93,"")) ->  | V102: =IF(ISBLANK(C102),"",IF(MONTH(C102)=MONTH(DATEVALUE(TEXT(DATE(2000,MONTH(DATEVALUE($E$7&" 1"))+11,1),"mmmm")&" 1")),E102/F93*E93,"")) -> 
I103: 0 | K103: =IF(ISBLANK(C103),"",IF(MONTH(C103)=MONTH(DATEVALUE($E$7&" 1")),E103/F93*E93,"")) ->  | L103: =IF(ISBLANK(C103),"",IF(MONTH(C103)=MONTH(DATEVALUE(TEXT(DATE(2000,MONTH(DATEVALUE($E$7&" 1"))+1,1),"mmmm")&" 1")),E103/F93*E93,"")) ->  | M103: =IF(ISBLANK(C103),"",IF(MONTH(C103)=MONTH(DATEVALUE(TEXT(DATE(2000,MONTH(DATEVALUE($E$7&" 1"))+2,1),"mmmm")&" 1")),E103/F93*E93,"")) ->  | N103: =IF(ISBLANK(C103),"",IF(MONTH(C103)=MONTH(DATEVALUE(TEXT(DATE(2000,MONTH(DATEVALUE($E$7&" 1"))+3,1),"mmmm")&" 1")),E103/F93*E93,"")) ->  | O103: =IF(ISBLANK(C103),"",IF(MONTH(C103)=MONTH(DATEVALUE(TEXT(DATE(2000,MONTH(DATEVALUE($E$7&" 1"))+4,1),"mmmm")&" 1")),E103/F93*E93,"")) ->  | P103: =IF(ISBLANK(C103),"",IF(MONTH(C103)=MONTH(DATEVALUE(TEXT(DATE(2000,MONTH(DATEVALUE($E$7&" 1"))+5,1),"mmmm")&" 1")),E103/F93*E93,"")) ->  | Q103: =IF(ISBLANK(C103),"",IF(MONTH(C103)=MONTH(DATEVALUE(TEXT(DATE(2000,MONTH(DATEVALUE($E$7&" 1"))+6,1),"mmmm")&" 1")),E103/F93*E93,"")) ->  | R103: =IF(ISBLANK(C103),"",IF(MONTH(C103)=MONTH(DATEVALUE(TEXT(DATE(2000,MONTH(DATEVALUE($E$7&" 1"))+7,1),"mmmm")&" 1")),E103/F93*E93,"")) ->  | S103: =IF(ISBLANK(C103),"",IF(MONTH(C103)=MONTH(DATEVALUE(TEXT(DATE(2000,MONTH(DATEVALUE($E$7&" 1"))+8,1),"mmmm")&" 1")),E103/F93*E93,"")) ->  | T103: =IF(ISBLANK(C103),"",IF(MONTH(C103)=MONTH(DATEVALUE(TEXT(DATE(2000,MONTH(DATEVALUE($E$7&" 1"))+9,1),"mmmm")&" 1")),E103/F93*E93,"")) ->  | U103: =IF(ISBLANK(C103),"",IF(MONTH(C103)=MONTH(DATEVALUE(TEXT(DATE(2000,MONTH(DATEVALUE($E$7&" 1"))+10,1),"mmmm")&" 1")),E103/F93*E93,"")) ->  | V103: =IF(ISBLANK(C103),"",IF(MONTH(C103)=MONTH(DATEVALUE(TEXT(DATE(2000,MONTH(DATEVALUE($E$7&" 1"))+11,1),"mmmm")&" 1")),E103/F93*E93,"")) -> 
I104: 0 | K104: =IF(ISBLANK(C104),"",IF(MONTH(C104)=MONTH(DATEVALUE($E$7&" 1")),E104/F93*E93,"")) ->  | L104: =IF(ISBLANK(C104),"",IF(MONTH(C104)=MONTH(DATEVALUE(TEXT(DATE(2000,MONTH(DATEVALUE($E$7&" 1"))+1,1),"mmmm")&" 1")),E104/F93*E93,"")) ->  | M104: =IF(ISBLANK(C104),"",IF(MONTH(C104)=MONTH(DATEVALUE(TEXT(DATE(2000,MONTH(DATEVALUE($E$7&" 1"))+2,1),"mmmm")&" 1")),E104/F93*E93,"")) ->  | N104: =IF(ISBLANK(C104),"",IF(MONTH(C104)=MONTH(DATEVALUE(TEXT(DATE(2000,MONTH(DATEVALUE($E$7&" 1"))+3,1),"mmmm")&" 1")),E104/F93*E93,"")) ->  | O104: =IF(ISBLANK(C104),"",IF(MONTH(C104)=MONTH(DATEVALUE(TEXT(DATE(2000,MONTH(DATEVALUE($E$7&" 1"))+4,1),"mmmm")&" 1")),E104/F93*E93,"")) ->  | P104: =IF(ISBLANK(C104),"",IF(MONTH(C104)=MONTH(DATEVALUE(TEXT(DATE(2000,MONTH(DATEVALUE($E$7&" 1"))+5,1),"mmmm")&" 1")),E104/F93*E93,"")) ->  | Q104: =IF(ISBLANK(C104),"",IF(MONTH(C104)=MONTH(DATEVALUE(TEXT(DATE(2000,MONTH(DATEVALUE($E$7&" 1"))+6,1),"mmmm")&" 1")),E104/F93*E93,"")) ->  | R104: =IF(ISBLANK(C104),"",IF(MONTH(C104)=MONTH(DATEVALUE(TEXT(DATE(2000,MONTH(DATEVALUE($E$7&" 1"))+7,1),"mmmm")&" 1")),E104/F93*E93,"")) ->  | S104: =IF(ISBLANK(C104),"",IF(MONTH(C104)=MONTH(DATEVALUE(TEXT(DATE(2000,MONTH(DATEVALUE($E$7&" 1"))+8,1),"mmmm")&" 1")),E104/F93*E93,"")) ->  | T104: =IF(ISBLANK(C104),"",IF(MONTH(C104)=MONTH(DATEVALUE(TEXT(DATE(2000,MONTH(DATEVALUE($E$7&" 1"))+9,1),"mmmm")&" 1")),E104/F93*E93,"")) ->  | U104: =IF(ISBLANK(C104),"",IF(MONTH(C104)=MONTH(DATEVALUE(TEXT(DATE(2000,MONTH(DATEVALUE($E$7&" 1"))+10,1),"mmmm")&" 1")),E104/F93*E93,"")) ->  | V104: =IF(ISBLANK(C104),"",IF(MONTH(C104)=MONTH(DATEVALUE(TEXT(DATE(2000,MONTH(DATEVALUE($E$7&" 1"))+11,1),"mmmm")&" 1")),E104/F93*E93,"")) -> 
H105: =IFERROR(I105/E105,0) -> 0 | I105: =SUM(I106:J116) -> 0 | W105: =IF(H105<>100%,"Pas ok","ok") -> Pas ok
B106: =$B$10 -> réf. Facture | C106: =$C$10 -> date facture | D106: =$D$10 -> Description facture | E106: =$E$10 -> Montant facture (HTVA)
I107: =SUM(K107:V107) -> 0 | K107: =IF(ISBLANK(C107),"",IF(MONTH(C107)=MONTH(DATEVALUE($E$7&" 1")),E107/F105*E105,"")) ->  | L107: =IF(ISBLANK(C107),"",IF(MONTH(C107)=MONTH(DATEVALUE(TEXT(DATE(2000,MONTH(DATEVALUE($E$7&" 1"))+1,1),"mmmm")&" 1")),E107/F105*E105,"")) ->  | M107: =IF(ISBLANK(C107),"",IF(MONTH(C107)=MONTH(DATEVALUE(TEXT(DATE(2000,MONTH(DATEVALUE($E$7&" 1"))+2,1),"mmmm")&" 1")),E107/F105*E105,"")) ->  | N107: =IF(ISBLANK(C107),"",IF(MONTH(C107)=MONTH(DATEVALUE(TEXT(DATE(2000,MONTH(DATEVALUE($E$7&" 1"))+3,1),"mmmm")&" 1")),E107/F105*E105,"")) ->  | O107: =IF(ISBLANK(C107),"",IF(MONTH(C107)=MONTH(DATEVALUE(TEXT(DATE(2000,MONTH(DATEVALUE($E$7&" 1"))+4,1),"mmmm")&" 1")),E107/F105*E105,"")) ->  | P107: =IF(ISBLANK(C107),"",IF(MONTH(C107)=MONTH(DATEVALUE(TEXT(DATE(2000,MONTH(DATEVALUE($E$7&" 1"))+5,1),"mmmm")&" 1")),E107/F105*E105,"")) ->  | Q107: =IF(ISBLANK(C107),"",IF(MONTH(C107)=MONTH(DATEVALUE(TEXT(DATE(2000,MONTH(DATEVALUE($E$7&" 1"))+6,1),"mmmm")&" 1")),E107/F105*E105,"")) ->  | R107: =IF(ISBLANK(C107),"",IF(MONTH(C107)=MONTH(DATEVALUE(TEXT(DATE(2000,MONTH(DATEVALUE($E$7&" 1"))+7,1),"mmmm")&" 1")),E107/F105*E105,"")) ->  | S107: =IF(ISBLANK(C107),"",IF(MONTH(C107)=MONTH(DATEVALUE(TEXT(DATE(2000,MONTH(DATEVALUE($E$7&" 1"))+8,1),"mmmm")&" 1")),E107/F105*E105,"")) ->  | T107: =IF(ISBLANK(C107),"",IF(MONTH(C107)=MONTH(DATEVALUE(TEXT(DATE(2000,MONTH(DATEVALUE($E$7&" 1"))+9,1),"mmmm")&" 1")),E107/F105*E105,"")) ->  | U107: =IF(ISBLANK(C107),"",IF(MONTH(C107)=MONTH(DATEVALUE(TEXT(DATE(2000,MONTH(DATEVALUE($E$7&" 1"))+10,1),"mmmm")&" 1")),E107/F105*E105,"")) ->  | V107: =IF(ISBLANK(C107),"",IF(MONTH(C107)=MONTH(DATEVALUE(TEXT(DATE(2000,MONTH(DATEVALUE($E$7&" 1"))+11,1),"mmmm")&" 1")),E107/F105*E105,"")) -> 
I108: 0 | K108: =IF(ISBLANK(C108),"",IF(MONTH(C108)=MONTH(DATEVALUE($E$7&" 1")),E108/F105*E105,"")) ->  | L108: =IF(ISBLANK(C108),"",IF(MONTH(C108)=MONTH(DATEVALUE(TEXT(DATE(2000,MONTH(DATEVALUE($E$7&" 1"))+1,1),"mmmm")&" 1")),E108/F105*E105,"")) ->  | M108: =IF(ISBLANK(C108),"",IF(MONTH(C108)=MONTH(DATEVALUE(TEXT(DATE(2000,MONTH(DATEVALUE($E$7&" 1"))+2,1),"mmmm")&" 1")),E108/F105*E105,"")) ->  | N108: =IF(ISBLANK(C108),"",IF(MONTH(C108)=MONTH(DATEVALUE(TEXT(DATE(2000,MONTH(DATEVALUE($E$7&" 1"))+3,1),"mmmm")&" 1")),E108/F105*E105,"")) ->  | O108: =IF(ISBLANK(C108),"",IF(MONTH(C108)=MONTH(DATEVALUE(TEXT(DATE(2000,MONTH(DATEVALUE($E$7&" 1"))+4,1),"mmmm")&" 1")),E108/F105*E105,"")) ->  | P108: =IF(ISBLANK(C108),"",IF(MONTH(C108)=MONTH(DATEVALUE(TEXT(DATE(2000,MONTH(DATEVALUE($E$7&" 1"))+5,1),"mmmm")&" 1")),E108/F105*E105,"")) ->  | Q108: =IF(ISBLANK(C108),"",IF(MONTH(C108)=MONTH(DATEVALUE(TEXT(DATE(2000,MONTH(DATEVALUE($E$7&" 1"))+6,1),"mmmm")&" 1")),E108/F105*E105,"")) ->  | R108: =IF(ISBLANK(C108),"",IF(MONTH(C108)=MONTH(DATEVALUE(TEXT(DATE(2000,MONTH(DATEVALUE($E$7&" 1"))+7,1),"mmmm")&" 1")),E108/F105*E105,"")) ->  | S108: =IF(ISBLANK(C108),"",IF(MONTH(C108)=MONTH(DATEVALUE(TEXT(DATE(2000,MONTH(DATEVALUE($E$7&" 1"))+8,1),"mmmm")&" 1")),E108/F105*E105,"")) ->  | T108: =IF(ISBLANK(C108),"",IF(MONTH(C108)=MONTH(DATEVALUE(TEXT(DATE(2000,MONTH(DATEVALUE($E$7&" 1"))+9,1),"mmmm")&" 1")),E108/F105*E105,"")) ->  | U108: =IF(ISBLANK(C108),"",IF(MONTH(C108)=MONTH(DATEVALUE(TEXT(DATE(2000,MONTH(DATEVALUE($E$7&" 1"))+10,1),"mmmm")&" 1")),E108/F105*E105,"")) ->  | V108: =IF(ISBLANK(C108),"",IF(MONTH(C108)=MONTH(DATEVALUE(TEXT(DATE(2000,MONTH(DATEVALUE($E$7&" 1"))+11,1),"mmmm")&" 1")),E108/F105*E105,"")) -> 
I109: 0 | K109: =IF(ISBLANK(C109),"",IF(MONTH(C109)=MONTH(DATEVALUE($E$7&" 1")),E109/F105*E105,"")) ->  | L109: =IF(ISBLANK(C109),"",IF(MONTH(C109)=MONTH(DATEVALUE(TEXT(DATE(2000,MONTH(DATEVALUE($E$7&" 1"))+1,1),"mmmm")&" 1")),E109/F105*E105,"")) ->  | M109: =IF(ISBLANK(C109),"",IF(MONTH(C109)=MONTH(DATEVALUE(TEXT(DATE(2000,MONTH(DATEVALUE($E$7&" 1"))+2,1),"mmmm")&" 1")),E109/F105*E105,"")) ->  | N109: =IF(ISBLANK(C109),"",IF(MONTH(C109)=MONTH(DATEVALUE(TEXT(DATE(2000,MONTH(DATEVALUE($E$7&" 1"))+3,1),"mmmm")&" 1")),E109/F105*E105,"")) ->  | O109: =IF(ISBLANK(C109),"",IF(MONTH(C109)=MONTH(DATEVALUE(TEXT(DATE(2000,MONTH(DATEVALUE($E$7&" 1"))+4,1),"mmmm")&" 1")),E109/F105*E105,"")) ->  | P109: =IF(ISBLANK(C109),"",IF(MONTH(C109)=MONTH(DATEVALUE(TEXT(DATE(2000,MONTH(DATEVALUE($E$7&" 1"))+5,1),"mmmm")&" 1")),E109/F105*E105,"")) ->  | Q109: =IF(ISBLANK(C109),"",IF(MONTH(C109)=MONTH(DATEVALUE(TEXT(DATE(2000,MONTH(DATEVALUE($E$7&" 1"))+6,1),"mmmm")&" 1")),E109/F105*E105,"")) ->  | R109: =IF(ISBLANK(C109),"",IF(MONTH(C109)=MONTH(DATEVALUE(TEXT(DATE(2000,MONTH(DATEVALUE($E$7&" 1"))+7,1),"mmmm")&" 1")),E109/F105*E105,"")) ->  | S109: =IF(ISBLANK(C109),"",IF(MONTH(C109)=MONTH(DATEVALUE(TEXT(DATE(2000,MONTH(DATEVALUE($E$7&" 1"))+8,1),"mmmm")&" 1")),E109/F105*E105,"")) ->  | T109: =IF(ISBLANK(C109),"",IF(MONTH(C109)=MONTH(DATEVALUE(TEXT(DATE(2000,MONTH(DATEVALUE($E$7&" 1"))+9,1),"mmmm")&" 1")),E109/F105*E105,"")) ->  | U109: =IF(ISBLANK(C109),"",IF(MONTH(C109)=MONTH(DATEVALUE(TEXT(DATE(2000,MONTH(DATEVALUE($E$7&" 1"))+10,1),"mmmm")&" 1")),E109/F105*E105,"")) ->  | V109: =IF(ISBLANK(C109),"",IF(MONTH(C109)=MONTH(DATEVALUE(TEXT(DATE(2000,MONTH(DATEVALUE($E$7&" 1"))+11,1),"mmmm")&" 1")),E109/F105*E105,"")) -> 
I110: 0 | K110: =IF(ISBLANK(C110),"",IF(MONTH(C110)=MONTH(DATEVALUE($E$7&" 1")),E110/F105*E105,"")) ->  | L110: =IF(ISBLANK(C110),"",IF(MONTH(C110)=MONTH(DATEVALUE(TEXT(DATE(2000,MONTH(DATEVALUE($E$7&" 1"))+1,1),"mmmm")&" 1")),E110/F105*E105,"")) ->  | M110: =IF(ISBLANK(C110),"",IF(MONTH(C110)=MONTH(DATEVALUE(TEXT(DATE(2000,MONTH(DATEVALUE($E$7&" 1"))+2,1),"mmmm")&" 1")),E110/F105*E105,"")) ->  | N110: =IF(ISBLANK(C110),"",IF(MONTH(C110)=MONTH(DATEVALUE(TEXT(DATE(2000,MONTH(DATEVALUE($E$7&" 1"))+3,1),"mmmm")&" 1")),E110/F105*E105,"")) ->  | O110: =IF(ISBLANK(C110),"",IF(MONTH(C110)=MONTH(DATEVALUE(TEXT(DATE(2000,MONTH(DATEVALUE($E$7&" 1"))+4,1),"mmmm")&" 1")),E110/F105*E105,"")) ->  | P110: =IF(ISBLANK(C110),"",IF(MONTH(C110)=MONTH(DATEVALUE(TEXT(DATE(2000,MONTH(DATEVALUE($E$7&" 1"))+5,1),"mmmm")&" 1")),E110/F105*E105,"")) ->  | Q110: =IF(ISBLANK(C110),"",IF(MONTH(C110)=MONTH(DATEVALUE(TEXT(DATE(2000,MONTH(DATEVALUE($E$7&" 1"))+6,1),"mmmm")&" 1")),E110/F105*E105,"")) ->  | R110: =IF(ISBLANK(C110),"",IF(MONTH(C110)=MONTH(DATEVALUE(TEXT(DATE(2000,MONTH(DATEVALUE($E$7&" 1"))+7,1),"mmmm")&" 1")),E110/F105*E105,"")) ->  | S110: =IF(ISBLANK(C110),"",IF(MONTH(C110)=MONTH(DATEVALUE(TEXT(DATE(2000,MONTH(DATEVALUE($E$7&" 1"))+8,1),"mmmm")&" 1")),E110/F105*E105,"")) ->  | T110: =IF(ISBLANK(C110),"",IF(MONTH(C110)=MONTH(DATEVALUE(TEXT(DATE(2000,MONTH(DATEVALUE($E$7&" 1"))+9,1),"mmmm")&" 1")),E110/F105*E105,"")) ->  | U110: =IF(ISBLANK(C110),"",IF(MONTH(C110)=MONTH(DATEVALUE(TEXT(DATE(2000,MONTH(DATEVALUE($E$7&" 1"))+10,1),"mmmm")&" 1")),E110/F105*E105,"")) ->  | V110: =IF(ISBLANK(C110),"",IF(MONTH(C110)=MONTH(DATEVALUE(TEXT(DATE(2000,MONTH(DATEVALUE($E$7&" 1"))+11,1),"mmmm")&" 1")),E110/F105*E105,"")) -> 
I111: 0 | K111: =IF(ISBLANK(C111),"",IF(MONTH(C111)=MONTH(DATEVALUE($E$7&" 1")),E111/F105*E105,"")) ->  | L111: =IF(ISBLANK(C111),"",IF(MONTH(C111)=MONTH(DATEVALUE(TEXT(DATE(2000,MONTH(DATEVALUE($E$7&" 1"))+1,1),"mmmm")&" 1")),E111/F105*E105,"")) ->  | M111: =IF(ISBLANK(C111),"",IF(MONTH(C111)=MONTH(DATEVALUE(TEXT(DATE(2000,MONTH(DATEVALUE($E$7&" 1"))+2,1),"mmmm")&" 1")),E111/F105*E105,"")) ->  | N111: =IF(ISBLANK(C111),"",IF(MONTH(C111)=MONTH(DATEVALUE(TEXT(DATE(2000,MONTH(DATEVALUE($E$7&" 1"))+3,1),"mmmm")&" 1")),E111/F105*E105,"")) ->  | O111: =IF(ISBLANK(C111),"",IF(MONTH(C111)=MONTH(DATEVALUE(TEXT(DATE(2000,MONTH(DATEVALUE($E$7&" 1"))+4,1),"mmmm")&" 1")),E111/F105*E105,"")) ->  | P111: =IF(ISBLANK(C111),"",IF(MONTH(C111)=MONTH(DATEVALUE(TEXT(DATE(2000,MONTH(DATEVALUE($E$7&" 1"))+5,1),"mmmm")&" 1")),E111/F105*E105,"")) ->  | Q111: =IF(ISBLANK(C111),"",IF(MONTH(C111)=MONTH(DATEVALUE(TEXT(DATE(2000,MONTH(DATEVALUE($E$7&" 1"))+6,1),"mmmm")&" 1")),E111/F105*E105,"")) ->  | R111: =IF(ISBLANK(C111),"",IF(MONTH(C111)=MONTH(DATEVALUE(TEXT(DATE(2000,MONTH(DATEVALUE($E$7&" 1"))+7,1),"mmmm")&" 1")),E111/F105*E105,"")) ->  | S111: =IF(ISBLANK(C111),"",IF(MONTH(C111)=MONTH(DATEVALUE(TEXT(DATE(2000,MONTH(DATEVALUE($E$7&" 1"))+8,1),"mmmm")&" 1")),E111/F105*E105,"")) ->  | T111: =IF(ISBLANK(C111),"",IF(MONTH(C111)=MONTH(DATEVALUE(TEXT(DATE(2000,MONTH(DATEVALUE($E$7&" 1"))+9,1),"mmmm")&" 1")),E111/F105*E105,"")) ->  | U111: =IF(ISBLANK(C111),"",IF(MONTH(C111)=MONTH(DATEVALUE(TEXT(DATE(2000,MONTH(DATEVALUE($E$7&" 1"))+10,1),"mmmm")&" 1")),E111/F105*E105,"")) ->  | V111: =IF(ISBLANK(C111),"",IF(MONTH(C111)=MONTH(DATEVALUE(TEXT(DATE(2000,MONTH(DATEVALUE($E$7&" 1"))+11,1),"mmmm")&" 1")),E111/F105*E105,"")) -> 
I112: 0 | K112: =IF(ISBLANK(C112),"",IF(MONTH(C112)=MONTH(DATEVALUE($E$7&" 1")),E112/F105*E105,"")) ->  | L112: =IF(ISBLANK(C112),"",IF(MONTH(C112)=MONTH(DATEVALUE(TEXT(DATE(2000,MONTH(DATEVALUE($E$7&" 1"))+1,1),"mmmm")&" 1")),E112/F105*E105,"")) ->  | M112: =IF(ISBLANK(C112),"",IF(MONTH(C112)=MONTH(DATEVALUE(TEXT(DATE(2000,MONTH(DATEVALUE($E$7&" 1"))+2,1),"mmmm")&" 1")),E112/F105*E105,"")) ->  | N112: =IF(ISBLANK(C112),"",IF(MONTH(C112)=MONTH(DATEVALUE(TEXT(DATE(2000,MONTH(DATEVALUE($E$7&" 1"))+3,1),"mmmm")&" 1")),E112/F105*E105,"")) ->  | O112: =IF(ISBLANK(C112),"",IF(MONTH(C112)=MONTH(DATEVALUE(TEXT(DATE(2000,MONTH(DATEVALUE($E$7&" 1"))+4,1),"mmmm")&" 1")),E112/F105*E105,"")) ->  | P112: =IF(ISBLANK(C112),"",IF(MONTH(C112)=MONTH(DATEVALUE(TEXT(DATE(2000,MONTH(DATEVALUE($E$7&" 1"))+5,1),"mmmm")&" 1")),E112/F105*E105,"")) ->  | Q112: =IF(ISBLANK(C112),"",IF(MONTH(C112)=MONTH(DATEVALUE(TEXT(DATE(2000,MONTH(DATEVALUE($E$7&" 1"))+6,1),"mmmm")&" 1")),E112/F105*E105,"")) ->  | R112: =IF(ISBLANK(C112),"",IF(MONTH(C112)=MONTH(DATEVALUE(TEXT(DATE(2000,MONTH(DATEVALUE($E$7&" 1"))+7,1),"mmmm")&" 1")),E112/F105*E105,"")) ->  | S112: =IF(ISBLANK(C112),"",IF(MONTH(C112)=MONTH(DATEVALUE(TEXT(DATE(2000,MONTH(DATEVALUE($E$7&" 1"))+8,1),"mmmm")&" 1")),E112/F105*E105,"")) ->  | T112: =IF(ISBLANK(C112),"",IF(MONTH(C112)=MONTH(DATEVALUE(TEXT(DATE(2000,MONTH(DATEVALUE($E$7&" 1"))+9,1),"mmmm")&" 1")),E112/F105*E105,"")) ->  | U112: =IF(ISBLANK(C112),"",IF(MONTH(C112)=MONTH(DATEVALUE(TEXT(DATE(2000,MONTH(DATEVALUE($E$7&" 1"))+10,1),"mmmm")&" 1")),E112/F105*E105,"")) ->  | V112: =IF(ISBLANK(C112),"",IF(MONTH(C112)=MONTH(DATEVALUE(TEXT(DATE(2000,MONTH(DATEVALUE($E$7&" 1"))+11,1),"mmmm")&" 1")),E112/F105*E105,"")) -> 
I113: 0 | K113: =IF(ISBLANK(C113),"",IF(MONTH(C113)=MONTH(DATEVALUE($E$7&" 1")),E113/F105*E105,"")) ->  | L113: =IF(ISBLANK(C113),"",IF(MONTH(C113)=MONTH(DATEVALUE(TEXT(DATE(2000,MONTH(DATEVALUE($E$7&" 1"))+1,1),"mmmm")&" 1")),E113/F105*E105,"")) ->  | M113: =IF(ISBLANK(C113),"",IF(MONTH(C113)=MONTH(DATEVALUE(TEXT(DATE(2000,MONTH(DATEVALUE($E$7&" 1"))+2,1),"mmmm")&" 1")),E113/F105*E105,"")) ->  | N113: =IF(ISBLANK(C113),"",IF(MONTH(C113)=MONTH(DATEVALUE(TEXT(DATE(2000,MONTH(DATEVALUE($E$7&" 1"))+3,1),"mmmm")&" 1")),E113/F105*E105,"")) ->  | O113: =IF(ISBLANK(C113),"",IF(MONTH(C113)=MONTH(DATEVALUE(TEXT(DATE(2000,MONTH(DATEVALUE($E$7&" 1"))+4,1),"mmmm")&" 1")),E113/F105*E105,"")) ->  | P113: =IF(ISBLANK(C113),"",IF(MONTH(C113)=MONTH(DATEVALUE(TEXT(DATE(2000,MONTH(DATEVALUE($E$7&" 1"))+5,1),"mmmm")&" 1")),E113/F105*E105,"")) ->  | Q113: =IF(ISBLANK(C113),"",IF(MONTH(C113)=MONTH(DATEVALUE(TEXT(DATE(2000,MONTH(DATEVALUE($E$7&" 1"))+6,1),"mmmm")&" 1")),E113/F105*E105,"")) ->  | R113: =IF(ISBLANK(C113),"",IF(MONTH(C113)=MONTH(DATEVALUE(TEXT(DATE(2000,MONTH(DATEVALUE($E$7&" 1"))+7,1),"mmmm")&" 1")),E113/F105*E105,"")) ->  | S113: =IF(ISBLANK(C113),"",IF(MONTH(C113)=MONTH(DATEVALUE(TEXT(DATE(2000,MONTH(DATEVALUE($E$7&" 1"))+8,1),"mmmm")&" 1")),E113/F105*E105,"")) ->  | T113: =IF(ISBLANK(C113),"",IF(MONTH(C113)=MONTH(DATEVALUE(TEXT(DATE(2000,MONTH(DATEVALUE($E$7&" 1"))+9,1),"mmmm")&" 1")),E113/F105*E105,"")) ->  | U113: =IF(ISBLANK(C113),"",IF(MONTH(C113)=MONTH(DATEVALUE(TEXT(DATE(2000,MONTH(DATEVALUE($E$7&" 1"))+10,1),"mmmm")&" 1")),E113/F105*E105,"")) ->  | V113: =IF(ISBLANK(C113),"",IF(MONTH(C113)=MONTH(DATEVALUE(TEXT(DATE(2000,MONTH(DATEVALUE($E$7&" 1"))+11,1),"mmmm")&" 1")),E113/F105*E105,"")) -> 
I114: 0 | K114: =IF(ISBLANK(C114),"",IF(MONTH(C114)=MONTH(DATEVALUE($E$7&" 1")),E114/F105*E105,"")) ->  | L114: =IF(ISBLANK(C114),"",IF(MONTH(C114)=MONTH(DATEVALUE(TEXT(DATE(2000,MONTH(DATEVALUE($E$7&" 1"))+1,1),"mmmm")&" 1")),E114/F105*E105,"")) ->  | M114: =IF(ISBLANK(C114),"",IF(MONTH(C114)=MONTH(DATEVALUE(TEXT(DATE(2000,MONTH(DATEVALUE($E$7&" 1"))+2,1),"mmmm")&" 1")),E114/F105*E105,"")) ->  | N114: =IF(ISBLANK(C114),"",IF(MONTH(C114)=MONTH(DATEVALUE(TEXT(DATE(2000,MONTH(DATEVALUE($E$7&" 1"))+3,1),"mmmm")&" 1")),E114/F105*E105,"")) ->  | O114: =IF(ISBLANK(C114),"",IF(MONTH(C114)=MONTH(DATEVALUE(TEXT(DATE(2000,MONTH(DATEVALUE($E$7&" 1"))+4,1),"mmmm")&" 1")),E114/F105*E105,"")) ->  | P114: =IF(ISBLANK(C114),"",IF(MONTH(C114)=MONTH(DATEVALUE(TEXT(DATE(2000,MONTH(DATEVALUE($E$7&" 1"))+5,1),"mmmm")&" 1")),E114/F105*E105,"")) ->  | Q114: =IF(ISBLANK(C114),"",IF(MONTH(C114)=MONTH(DATEVALUE(TEXT(DATE(2000,MONTH(DATEVALUE($E$7&" 1"))+6,1),"mmmm")&" 1")),E114/F105*E105,"")) ->  | R114: =IF(ISBLANK(C114),"",IF(MONTH(C114)=MONTH(DATEVALUE(TEXT(DATE(2000,MONTH(DATEVALUE($E$7&" 1"))+7,1),"mmmm")&" 1")),E114/F105*E105,"")) ->  | S114: =IF(ISBLANK(C114),"",IF(MONTH(C114)=MONTH(DATEVALUE(TEXT(DATE(2000,MONTH(DATEVALUE($E$7&" 1"))+8,1),"mmmm")&" 1")),E114/F105*E105,"")) ->  | T114: =IF(ISBLANK(C114),"",IF(MONTH(C114)=MONTH(DATEVALUE(TEXT(DATE(2000,MONTH(DATEVALUE($E$7&" 1"))+9,1),"mmmm")&" 1")),E114/F105*E105,"")) ->  | U114: =IF(ISBLANK(C114),"",IF(MONTH(C114)=MONTH(DATEVALUE(TEXT(DATE(2000,MONTH(DATEVALUE($E$7&" 1"))+10,1),"mmmm")&" 1")),E114/F105*E105,"")) ->  | V114: =IF(ISBLANK(C114),"",IF(MONTH(C114)=MONTH(DATEVALUE(TEXT(DATE(2000,MONTH(DATEVALUE($E$7&" 1"))+11,1),"mmmm")&" 1")),E114/F105*E105,"")) -> 
I115: 0 | K115: =IF(ISBLANK(C115),"",IF(MONTH(C115)=MONTH(DATEVALUE($E$7&" 1")),E115/F105*E105,"")) ->  | L115: =IF(ISBLANK(C115),"",IF(MONTH(C115)=MONTH(DATEVALUE(TEXT(DATE(2000,MONTH(DATEVALUE($E$7&" 1"))+1,1),"mmmm")&" 1")),E115/F105*E105,"")) ->  | M115: =IF(ISBLANK(C115),"",IF(MONTH(C115)=MONTH(DATEVALUE(TEXT(DATE(2000,MONTH(DATEVALUE($E$7&" 1"))+2,1),"mmmm")&" 1")),E115/F105*E105,"")) ->  | N115: =IF(ISBLANK(C115),"",IF(MONTH(C115)=MONTH(DATEVALUE(TEXT(DATE(2000,MONTH(DATEVALUE($E$7&" 1"))+3,1),"mmmm")&" 1")),E115/F105*E105,"")) ->  | O115: =IF(ISBLANK(C115),"",IF(MONTH(C115)=MONTH(DATEVALUE(TEXT(DATE(2000,MONTH(DATEVALUE($E$7&" 1"))+4,1),"mmmm")&" 1")),E115/F105*E105,"")) ->  | P115: =IF(ISBLANK(C115),"",IF(MONTH(C115)=MONTH(DATEVALUE(TEXT(DATE(2000,MONTH(DATEVALUE($E$7&" 1"))+5,1),"mmmm")&" 1")),E115/F105*E105,"")) ->  | Q115: =IF(ISBLANK(C115),"",IF(MONTH(C115)=MONTH(DATEVALUE(TEXT(DATE(2000,MONTH(DATEVALUE($E$7&" 1"))+6,1),"mmmm")&" 1")),E115/F105*E105,"")) ->  | R115: =IF(ISBLANK(C115),"",IF(MONTH(C115)=MONTH(DATEVALUE(TEXT(DATE(2000,MONTH(DATEVALUE($E$7&" 1"))+7,1),"mmmm")&" 1")),E115/F105*E105,"")) ->  | S115: =IF(ISBLANK(C115),"",IF(MONTH(C115)=MONTH(DATEVALUE(TEXT(DATE(2000,MONTH(DATEVALUE($E$7&" 1"))+8,1),"mmmm")&" 1")),E115/F105*E105,"")) ->  | T115: =IF(ISBLANK(C115),"",IF(MONTH(C115)=MONTH(DATEVALUE(TEXT(DATE(2000,MONTH(DATEVALUE($E$7&" 1"))+9,1),"mmmm")&" 1")),E115/F105*E105,"")) ->  | U115: =IF(ISBLANK(C115),"",IF(MONTH(C115)=MONTH(DATEVALUE(TEXT(DATE(2000,MONTH(DATEVALUE($E$7&" 1"))+10,1),"mmmm")&" 1")),E115/F105*E105,"")) ->  | V115: =IF(ISBLANK(C115),"",IF(MONTH(C115)=MONTH(DATEVALUE(TEXT(DATE(2000,MONTH(DATEVALUE($E$7&" 1"))+11,1),"mmmm")&" 1")),E115/F105*E105,"")) -> 
I116: 0 | K116: =IF(ISBLANK(C116),"",IF(MONTH(C116)=MONTH(DATEVALUE($E$7&" 1")),E116/F105*E105,"")) ->  | L116: =IF(ISBLANK(C116),"",IF(MONTH(C116)=MONTH(DATEVALUE(TEXT(DATE(2000,MONTH(DATEVALUE($E$7&" 1"))+1,1),"mmmm")&" 1")),E116/F105*E105,"")) ->  | M116: =IF(ISBLANK(C116),"",IF(MONTH(C116)=MONTH(DATEVALUE(TEXT(DATE(2000,MONTH(DATEVALUE($E$7&" 1"))+2,1),"mmmm")&" 1")),E116/F105*E105,"")) ->  | N116: =IF(ISBLANK(C116),"",IF(MONTH(C116)=MONTH(DATEVALUE(TEXT(DATE(2000,MONTH(DATEVALUE($E$7&" 1"))+3,1),"mmmm")&" 1")),E116/F105*E105,"")) ->  | O116: =IF(ISBLANK(C116),"",IF(MONTH(C116)=MONTH(DATEVALUE(TEXT(DATE(2000,MONTH(DATEVALUE($E$7&" 1"))+4,1),"mmmm")&" 1")),E116/F105*E105,"")) ->  | P116: =IF(ISBLANK(C116),"",IF(MONTH(C116)=MONTH(DATEVALUE(TEXT(DATE(2000,MONTH(DATEVALUE($E$7&" 1"))+5,1),"mmmm")&" 1")),E116/F105*E105,"")) ->  | Q116: =IF(ISBLANK(C116),"",IF(MONTH(C116)=MONTH(DATEVALUE(TEXT(DATE(2000,MONTH(DATEVALUE($E$7&" 1"))+6,1),"mmmm")&" 1")),E116/F105*E105,"")) ->  | R116: =IF(ISBLANK(C116),"",IF(MONTH(C116)=MONTH(DATEVALUE(TEXT(DATE(2000,MONTH(DATEVALUE($E$7&" 1"))+7,1),"mmmm")&" 1")),E116/F105*E105,"")) ->  | S116: =IF(ISBLANK(C116),"",IF(MONTH(C116)=MONTH(DATEVALUE(TEXT(DATE(2000,MONTH(DATEVALUE($E$7&" 1"))+8,1),"mmmm")&" 1")),E116/F105*E105,"")) ->  | T116: =IF(ISBLANK(C116),"",IF(MONTH(C116)=MONTH(DATEVALUE(TEXT(DATE(2000,MONTH(DATEVALUE($E$7&" 1"))+9,1),"mmmm")&" 1")),E116/F105*E105,"")) ->  | U116: =IF(ISBLANK(C116),"",IF(MONTH(C116)=MONTH(DATEVALUE(TEXT(DATE(2000,MONTH(DATEVALUE($E$7&" 1"))+10,1),"mmmm")&" 1")),E116/F105*E105,"")) ->  | V116: =IF(ISBLANK(C116),"",IF(MONTH(C116)=MONTH(DATEVALUE(TEXT(DATE(2000,MONTH(DATEVALUE($E$7&" 1"))+11,1),"mmmm")&" 1")),E116/F105*E105,"")) -> 
H117: =IFERROR(I117/E117,0) -> 0 | I117: =SUM(I118:J128) -> 0 | W117: =IF(H117<>100%,"Pas ok","ok") -> Pas ok
B118: =$B$10 -> réf. Facture | C118: =$C$10 -> date facture | D118: =$D$10 -> Description facture | E118: =$E$10 -> Montant facture (HTVA)
I119: =SUM(K119:V119) -> 0 | K119: =IF(ISBLANK(C119),"",IF(MONTH(C119)=MONTH(DATEVALUE($E$7&" 1")),E119/F117*E117,"")) ->  | L119: =IF(ISBLANK(C119),"",IF(MONTH(C119)=MONTH(DATEVALUE(TEXT(DATE(2000,MONTH(DATEVALUE($E$7&" 1"))+1,1),"mmmm")&" 1")),E119/F117*E117,"")) ->  | M119: =IF(ISBLANK(C119),"",IF(MONTH(C119)=MONTH(DATEVALUE(TEXT(DATE(2000,MONTH(DATEVALUE($E$7&" 1"))+2,1),"mmmm")&" 1")),E119/F117*E117,"")) ->  | N119: =IF(ISBLANK(C119),"",IF(MONTH(C119)=MONTH(DATEVALUE(TEXT(DATE(2000,MONTH(DATEVALUE($E$7&" 1"))+3,1),"mmmm")&" 1")),E119/F117*E117,"")) ->  | O119: =IF(ISBLANK(C119),"",IF(MONTH(C119)=MONTH(DATEVALUE(TEXT(DATE(2000,MONTH(DATEVALUE($E$7&" 1"))+4,1),"mmmm")&" 1")),E119/F117*E117,"")) ->  | P119: =IF(ISBLANK(C119),"",IF(MONTH(C119)=MONTH(DATEVALUE(TEXT(DATE(2000,MONTH(DATEVALUE($E$7&" 1"))+5,1),"mmmm")&" 1")),E119/F117*E117,"")) ->  | Q119: =IF(ISBLANK(C119),"",IF(MONTH(C119)=MONTH(DATEVALUE(TEXT(DATE(2000,MONTH(DATEVALUE($E$7&" 1"))+6,1),"mmmm")&" 1")),E119/F117*E117,"")) ->  | R119: =IF(ISBLANK(C119),"",IF(MONTH(C119)=MONTH(DATEVALUE(TEXT(DATE(2000,MONTH(DATEVALUE($E$7&" 1"))+7,1),"mmmm")&" 1")),E119/F117*E117,"")) ->  | S119: =IF(ISBLANK(C119),"",IF(MONTH(C119)=MONTH(DATEVALUE(TEXT(DATE(2000,MONTH(DATEVALUE($E$7&" 1"))+8,1),"mmmm")&" 1")),E119/F117*E117,"")) ->  | T119: =IF(ISBLANK(C119),"",IF(MONTH(C119)=MONTH(DATEVALUE(TEXT(DATE(2000,MONTH(DATEVALUE($E$7&" 1"))+9,1),"mmmm")&" 1")),E119/F117*E117,"")) ->  | U119: =IF(ISBLANK(C119),"",IF(MONTH(C119)=MONTH(DATEVALUE(TEXT(DATE(2000,MONTH(DATEVALUE($E$7&" 1"))+10,1),"mmmm")&" 1")),E119/F117*E117,"")) ->  | V119: =IF(ISBLANK(C119),"",IF(MONTH(C119)=MONTH(DATEVALUE(TEXT(DATE(2000,MONTH(DATEVALUE($E$7&" 1"))+11,1),"mmmm")&" 1")),E119/F117*E117,"")) -> 
I120: 0 | K120: =IF(ISBLANK(C120),"",IF(MONTH(C120)=MONTH(DATEVALUE($E$7&" 1")),E120/F117*E117,"")) ->  | L120: =IF(ISBLANK(C120),"",IF(MONTH(C120)=MONTH(DATEVALUE(TEXT(DATE(2000,MONTH(DATEVALUE($E$7&" 1"))+1,1),"mmmm")&" 1")),E120/F117*E117,"")) ->  | M120: =IF(ISBLANK(C120),"",IF(MONTH(C120)=MONTH(DATEVALUE(TEXT(DATE(2000,MONTH(DATEVALUE($E$7&" 1"))+2,1),"mmmm")&" 1")),E120/F117*E117,"")) ->  | N120: =IF(ISBLANK(C120),"",IF(MONTH(C120)=MONTH(DATEVALUE(TEXT(DATE(2000,MONTH(DATEVALUE($E$7&" 1"))+3,1),"mmmm")&" 1")),E120/F117*E117,"")) ->  | O120: =IF(ISBLANK(C120),"",IF(MONTH(C120)=MONTH(DATEVALUE(TEXT(DATE(2000,MONTH(DATEVALUE($E$7&" 1"))+4,1),"mmmm")&" 1")),E120/F117*E117,"")) ->  | P120: =IF(ISBLANK(C120),"",IF(MONTH(C120)=MONTH(DATEVALUE(TEXT(DATE(2000,MONTH(DATEVALUE($E$7&" 1"))+5,1),"mmmm")&" 1")),E120/F117*E117,"")) ->  | Q120: =IF(ISBLANK(C120),"",IF(MONTH(C120)=MONTH(DATEVALUE(TEXT(DATE(2000,MONTH(DATEVALUE($E$7&" 1"))+6,1),"mmmm")&" 1")),E120/F117*E117,"")) ->  | R120: =IF(ISBLANK(C120),"",IF(MONTH(C120)=MONTH(DATEVALUE(TEXT(DATE(2000,MONTH(DATEVALUE($E$7&" 1"))+7,1),"mmmm")&" 1")),E120/F117*E117,"")) ->  | S120: =IF(ISBLANK(C120),"",IF(MONTH(C120)=MONTH(DATEVALUE(TEXT(DATE(2000,MONTH(DATEVALUE($E$7&" 1"))+8,1),"mmmm")&" 1")),E120/F117*E117,"")) ->  | T120: =IF(ISBLANK(C120),"",IF(MONTH(C120)=MONTH(DATEVALUE(TEXT(DATE(2000,MONTH(DATEVALUE($E$7&" 1"))+9,1),"mmmm")&" 1")),E120/F117*E117,"")) ->  | U120: =IF(ISBLANK(C120),"",IF(MONTH(C120)=MONTH(DATEVALUE(TEXT(DATE(2000,MONTH(DATEVALUE($E$7&" 1"))+10,1),"mmmm")&" 1")),E120/F117*E117,"")) ->  | V120: =IF(ISBLANK(C120),"",IF(MONTH(C120)=MONTH(DATEVALUE(TEXT(DATE(2000,MONTH(DATEVALUE($E$7&" 1"))+11,1),"mmmm")&" 1")),E120/F117*E117,"")) -> 
I121: 0 | K121: =IF(ISBLANK(C121),"",IF(MONTH(C121)=MONTH(DATEVALUE($E$7&" 1")),E121/F117*E117,"")) ->  | L121: =IF(ISBLANK(C121),"",IF(MONTH(C121)=MONTH(DATEVALUE(TEXT(DATE(2000,MONTH(DATEVALUE($E$7&" 1"))+1,1),"mmmm")&" 1")),E121/F117*E117,"")) ->  | M121: =IF(ISBLANK(C121),"",IF(MONTH(C121)=MONTH(DATEVALUE(TEXT(DATE(2000,MONTH(DATEVALUE($E$7&" 1"))+2,1),"mmmm")&" 1")),E121/F117*E117,"")) ->  | N121: =IF(ISBLANK(C121),"",IF(MONTH(C121)=MONTH(DATEVALUE(TEXT(DATE(2000,MONTH(DATEVALUE($E$7&" 1"))+3,1),"mmmm")&" 1")),E121/F117*E117,"")) ->  | O121: =IF(ISBLANK(C121),"",IF(MONTH(C121)=MONTH(DATEVALUE(TEXT(DATE(2000,MONTH(DATEVALUE($E$7&" 1"))+4,1),"mmmm")&" 1")),E121/F117*E117,"")) ->  | P121: =IF(ISBLANK(C121),"",IF(MONTH(C121)=MONTH(DATEVALUE(TEXT(DATE(2000,MONTH(DATEVALUE($E$7&" 1"))+5,1),"mmmm")&" 1")),E121/F117*E117,"")) ->  | Q121: =IF(ISBLANK(C121),"",IF(MONTH(C121)=MONTH(DATEVALUE(TEXT(DATE(2000,MONTH(DATEVALUE($E$7&" 1"))+6,1),"mmmm")&" 1")),E121/F117*E117,"")) ->  | R121: =IF(ISBLANK(C121),"",IF(MONTH(C121)=MONTH(DATEVALUE(TEXT(DATE(2000,MONTH(DATEVALUE($E$7&" 1"))+7,1),"mmmm")&" 1")),E121/F117*E117,"")) ->  | S121: =IF(ISBLANK(C121),"",IF(MONTH(C121)=MONTH(DATEVALUE(TEXT(DATE(2000,MONTH(DATEVALUE($E$7&" 1"))+8,1),"mmmm")&" 1")),E121/F117*E117,"")) ->  | T121: =IF(ISBLANK(C121),"",IF(MONTH(C121)=MONTH(DATEVALUE(TEXT(DATE(2000,MONTH(DATEVALUE($E$7&" 1"))+9,1),"mmmm")&" 1")),E121/F117*E117,"")) ->  | U121: =IF(ISBLANK(C121),"",IF(MONTH(C121)=MONTH(DATEVALUE(TEXT(DATE(2000,MONTH(DATEVALUE($E$7&" 1"))+10,1),"mmmm")&" 1")),E121/F117*E117,"")) ->  | V121: =IF(ISBLANK(C121),"",IF(MONTH(C121)=MONTH(DATEVALUE(TEXT(DATE(2000,MONTH(DATEVALUE($E$7&" 1"))+11,1),"mmmm")&" 1")),E121/F117*E117,"")) -> 
I122: 0 | K122: =IF(ISBLANK(C122),"",IF(MONTH(C122)=MONTH(DATEVALUE($E$7&" 1")),E122/F117*E117,"")) ->  | L122: =IF(ISBLANK(C122),"",IF(MONTH(C122)=MONTH(DATEVALUE(TEXT(DATE(2000,MONTH(DATEVALUE($E$7&" 1"))+1,1),"mmmm")&" 1")),E122/F117*E117,"")) ->  | M122: =IF(ISBLANK(C122),"",IF(MONTH(C122)=MONTH(DATEVALUE(TEXT(DATE(2000,MONTH(DATEVALUE($E$7&" 1"))+2,1),"mmmm")&" 1")),E122/F117*E117,"")) ->  | N122: =IF(ISBLANK(C122),"",IF(MONTH(C122)=MONTH(DATEVALUE(TEXT(DATE(2000,MONTH(DATEVALUE($E$7&" 1"))+3,1),"mmmm")&" 1")),E122/F117*E117,"")) ->  | O122: =IF(ISBLANK(C122),"",IF(MONTH(C122)=MONTH(DATEVALUE(TEXT(DATE(2000,MONTH(DATEVALUE($E$7&" 1"))+4,1),"mmmm")&" 1")),E122/F117*E117,"")) ->  | P122: =IF(ISBLANK(C122),"",IF(MONTH(C122)=MONTH(DATEVALUE(TEXT(DATE(2000,MONTH(DATEVALUE($E$7&" 1"))+5,1),"mmmm")&" 1")),E122/F117*E117,"")) ->  | Q122: =IF(ISBLANK(C122),"",IF(MONTH(C122)=MONTH(DATEVALUE(TEXT(DATE(2000,MONTH(DATEVALUE($E$7&" 1"))+6,1),"mmmm")&" 1")),E122/F117*E117,"")) ->  | R122: =IF(ISBLANK(C122),"",IF(MONTH(C122)=MONTH(DATEVALUE(TEXT(DATE(2000,MONTH(DATEVALUE($E$7&" 1"))+7,1),"mmmm")&" 1")),E122/F117*E117,"")) ->  | S122: =IF(ISBLANK(C122),"",IF(MONTH(C122)=MONTH(DATEVALUE(TEXT(DATE(2000,MONTH(DATEVALUE($E$7&" 1"))+8,1),"mmmm")&" 1")),E122/F117*E117,"")) ->  | T122: =IF(ISBLANK(C122),"",IF(MONTH(C122)=MONTH(DATEVALUE(TEXT(DATE(2000,MONTH(DATEVALUE($E$7&" 1"))+9,1),"mmmm")&" 1")),E122/F117*E117,"")) ->  | U122: =IF(ISBLANK(C122),"",IF(MONTH(C122)=MONTH(DATEVALUE(TEXT(DATE(2000,MONTH(DATEVALUE($E$7&" 1"))+10,1),"mmmm")&" 1")),E122/F117*E117,"")) ->  | V122: =IF(ISBLANK(C122),"",IF(MONTH(C122)=MONTH(DATEVALUE(TEXT(DATE(2000,MONTH(DATEVALUE($E$7&" 1"))+11,1),"mmmm")&" 1")),E122/F117*E117,"")) -> 
I123: 0 | K123: =IF(ISBLANK(C123),"",IF(MONTH(C123)=MONTH(DATEVALUE($E$7&" 1")),E123/F117*E117,"")) ->  | L123: =IF(ISBLANK(C123),"",IF(MONTH(C123)=MONTH(DATEVALUE(TEXT(DATE(2000,MONTH(DATEVALUE($E$7&" 1"))+1,1),"mmmm")&" 1")),E123/F117*E117,"")) ->  | M123: =IF(ISBLANK(C123),"",IF(MONTH(C123)=MONTH(DATEVALUE(TEXT(DATE(2000,MONTH(DATEVALUE($E$7&" 1"))+2,1),"mmmm")&" 1")),E123/F117*E117,"")) ->  | N123: =IF(ISBLANK(C123),"",IF(MONTH(C123)=MONTH(DATEVALUE(TEXT(DATE(2000,MONTH(DATEVALUE($E$7&" 1"))+3,1),"mmmm")&" 1")),E123/F117*E117,"")) ->  | O123: =IF(ISBLANK(C123),"",IF(MONTH(C123)=MONTH(DATEVALUE(TEXT(DATE(2000,MONTH(DATEVALUE($E$7&" 1"))+4,1),"mmmm")&" 1")),E123/F117*E117,"")) ->  | P123: =IF(ISBLANK(C123),"",IF(MONTH(C123)=MONTH(DATEVALUE(TEXT(DATE(2000,MONTH(DATEVALUE($E$7&" 1"))+5,1),"mmmm")&" 1")),E123/F117*E117,"")) ->  | Q123: =IF(ISBLANK(C123),"",IF(MONTH(C123)=MONTH(DATEVALUE(TEXT(DATE(2000,MONTH(DATEVALUE($E$7&" 1"))+6,1),"mmmm")&" 1")),E123/F117*E117,"")) ->  | R123: =IF(ISBLANK(C123),"",IF(MONTH(C123)=MONTH(DATEVALUE(TEXT(DATE(2000,MONTH(DATEVALUE($E$7&" 1"))+7,1),"mmmm")&" 1")),E123/F117*E117,"")) ->  | S123: =IF(ISBLANK(C123),"",IF(MONTH(C123)=MONTH(DATEVALUE(TEXT(DATE(2000,MONTH(DATEVALUE($E$7&" 1"))+8,1),"mmmm")&" 1")),E123/F117*E117,"")) ->  | T123: =IF(ISBLANK(C123),"",IF(MONTH(C123)=MONTH(DATEVALUE(TEXT(DATE(2000,MONTH(DATEVALUE($E$7&" 1"))+9,1),"mmmm")&" 1")),E123/F117*E117,"")) ->  | U123: =IF(ISBLANK(C123),"",IF(MONTH(C123)=MONTH(DATEVALUE(TEXT(DATE(2000,MONTH(DATEVALUE($E$7&" 1"))+10,1),"mmmm")&" 1")),E123/F117*E117,"")) ->  | V123: =IF(ISBLANK(C123),"",IF(MONTH(C123)=MONTH(DATEVALUE(TEXT(DATE(2000,MONTH(DATEVALUE($E$7&" 1"))+11,1),"mmmm")&" 1")),E123/F117*E117,"")) -> 
I124: 0 | K124: =IF(ISBLANK(C124),"",IF(MONTH(C124)=MONTH(DATEVALUE($E$7&" 1")),E124/F117*E117,"")) ->  | L124: =IF(ISBLANK(C124),"",IF(MONTH(C124)=MONTH(DATEVALUE(TEXT(DATE(2000,MONTH(DATEVALUE($E$7&" 1"))+1,1),"mmmm")&" 1")),E124/F117*E117,"")) ->  | M124: =IF(ISBLANK(C124),"",IF(MONTH(C124)=MONTH(DATEVALUE(TEXT(DATE(2000,MONTH(DATEVALUE($E$7&" 1"))+2,1),"mmmm")&" 1")),E124/F117*E117,"")) ->  | N124: =IF(ISBLANK(C124),"",IF(MONTH(C124)=MONTH(DATEVALUE(TEXT(DATE(2000,MONTH(DATEVALUE($E$7&" 1"))+3,1),"mmmm")&" 1")),E124/F117*E117,"")) ->  | O124: =IF(ISBLANK(C124),"",IF(MONTH(C124)=MONTH(DATEVALUE(TEXT(DATE(2000,MONTH(DATEVALUE($E$7&" 1"))+4,1),"mmmm")&" 1")),E124/F117*E117,"")) ->  | P124: =IF(ISBLANK(C124),"",IF(MONTH(C124)=MONTH(DATEVALUE(TEXT(DATE(2000,MONTH(DATEVALUE($E$7&" 1"))+5,1),"mmmm")&" 1")),E124/F117*E117,"")) ->  | Q124: =IF(ISBLANK(C124),"",IF(MONTH(C124)=MONTH(DATEVALUE(TEXT(DATE(2000,MONTH(DATEVALUE($E$7&" 1"))+6,1),"mmmm")&" 1")),E124/F117*E117,"")) ->  | R124: =IF(ISBLANK(C124),"",IF(MONTH(C124)=MONTH(DATEVALUE(TEXT(DATE(2000,MONTH(DATEVALUE($E$7&" 1"))+7,1),"mmmm")&" 1")),E124/F117*E117,"")) ->  | S124: =IF(ISBLANK(C124),"",IF(MONTH(C124)=MONTH(DATEVALUE(TEXT(DATE(2000,MONTH(DATEVALUE($E$7&" 1"))+8,1),"mmmm")&" 1")),E124/F117*E117,"")) ->  | T124: =IF(ISBLANK(C124),"",IF(MONTH(C124)=MONTH(DATEVALUE(TEXT(DATE(2000,MONTH(DATEVALUE($E$7&" 1"))+9,1),"mmmm")&" 1")),E124/F117*E117,"")) ->  | U124: =IF(ISBLANK(C124),"",IF(MONTH(C124)=MONTH(DATEVALUE(TEXT(DATE(2000,MONTH(DATEVALUE($E$7&" 1"))+10,1),"mmmm")&" 1")),E124/F117*E117,"")) ->  | V124: =IF(ISBLANK(C124),"",IF(MONTH(C124)=MONTH(DATEVALUE(TEXT(DATE(2000,MONTH(DATEVALUE($E$7&" 1"))+11,1),"mmmm")&" 1")),E124/F117*E117,"")) -> 
I125: 0 | K125: =IF(ISBLANK(C125),"",IF(MONTH(C125)=MONTH(DATEVALUE($E$7&" 1")),E125/F117*E117,"")) ->  | L125: =IF(ISBLANK(C125),"",IF(MONTH(C125)=MONTH(DATEVALUE(TEXT(DATE(2000,MONTH(DATEVALUE($E$7&" 1"))+1,1),"mmmm")&" 1")),E125/F117*E117,"")) ->  | M125: =IF(ISBLANK(C125),"",IF(MONTH(C125)=MONTH(DATEVALUE(TEXT(DATE(2000,MONTH(DATEVALUE($E$7&" 1"))+2,1),"mmmm")&" 1")),E125/F117*E117,"")) ->  | N125: =IF(ISBLANK(C125),"",IF(MONTH(C125)=MONTH(DATEVALUE(TEXT(DATE(2000,MONTH(DATEVALUE($E$7&" 1"))+3,1),"mmmm")&" 1")),E125/F117*E117,"")) ->  | O125: =IF(ISBLANK(C125),"",IF(MONTH(C125)=MONTH(DATEVALUE(TEXT(DATE(2000,MONTH(DATEVALUE($E$7&" 1"))+4,1),"mmmm")&" 1")),E125/F117*E117,"")) ->  | P125: =IF(ISBLANK(C125),"",IF(MONTH(C125)=MONTH(DATEVALUE(TEXT(DATE(2000,MONTH(DATEVALUE($E$7&" 1"))+5,1),"mmmm")&" 1")),E125/F117*E117,"")) ->  | Q125: =IF(ISBLANK(C125),"",IF(MONTH(C125)=MONTH(DATEVALUE(TEXT(DATE(2000,MONTH(DATEVALUE($E$7&" 1"))+6,1),"mmmm")&" 1")),E125/F117*E117,"")) ->  | R125: =IF(ISBLANK(C125),"",IF(MONTH(C125)=MONTH(DATEVALUE(TEXT(DATE(2000,MONTH(DATEVALUE($E$7&" 1"))+7,1),"mmmm")&" 1")),E125/F117*E117,"")) ->  | S125: =IF(ISBLANK(C125),"",IF(MONTH(C125)=MONTH(DATEVALUE(TEXT(DATE(2000,MONTH(DATEVALUE($E$7&" 1"))+8,1),"mmmm")&" 1")),E125/F117*E117,"")) ->  | T125: =IF(ISBLANK(C125),"",IF(MONTH(C125)=MONTH(DATEVALUE(TEXT(DATE(2000,MONTH(DATEVALUE($E$7&" 1"))+9,1),"mmmm")&" 1")),E125/F117*E117,"")) ->  | U125: =IF(ISBLANK(C125),"",IF(MONTH(C125)=MONTH(DATEVALUE(TEXT(DATE(2000,MONTH(DATEVALUE($E$7&" 1"))+10,1),"mmmm")&" 1")),E125/F117*E117,"")) ->  | V125: =IF(ISBLANK(C125),"",IF(MONTH(C125)=MONTH(DATEVALUE(TEXT(DATE(2000,MONTH(DATEVALUE($E$7&" 1"))+11,1),"mmmm")&" 1")),E125/F117*E117,"")) -> 
I126: 0 | K126: =IF(ISBLANK(C126),"",IF(MONTH(C126)=MONTH(DATEVALUE($E$7&" 1")),E126/F117*E117,"")) ->  | L126: =IF(ISBLANK(C126),"",IF(MONTH(C126)=MONTH(DATEVALUE(TEXT(DATE(2000,MONTH(DATEVALUE($E$7&" 1"))+1,1),"mmmm")&" 1")),E126/F117*E117,"")) ->  | M126: =IF(ISBLANK(C126),"",IF(MONTH(C126)=MONTH(DATEVALUE(TEXT(DATE(2000,MONTH(DATEVALUE($E$7&" 1"))+2,1),"mmmm")&" 1")),E126/F117*E117,"")) ->  | N126: =IF(ISBLANK(C126),"",IF(MONTH(C126)=MONTH(DATEVALUE(TEXT(DATE(2000,MONTH(DATEVALUE($E$7&" 1"))+3,1),"mmmm")&" 1")),E126/F117*E117,"")) ->  | O126: =IF(ISBLANK(C126),"",IF(MONTH(C126)=MONTH(DATEVALUE(TEXT(DATE(2000,MONTH(DATEVALUE($E$7&" 1"))+4,1),"mmmm")&" 1")),E126/F117*E117,"")) ->  | P126: =IF(ISBLANK(C126),"",IF(MONTH(C126)=MONTH(DATEVALUE(TEXT(DATE(2000,MONTH(DATEVALUE($E$7&" 1"))+5,1),"mmmm")&" 1")),E126/F117*E117,"")) ->  | Q126: =IF(ISBLANK(C126),"",IF(MONTH(C126)=MONTH(DATEVALUE(TEXT(DATE(2000,MONTH(DATEVALUE($E$7&" 1"))+6,1),"mmmm")&" 1")),E126/F117*E117,"")) ->  | R126: =IF(ISBLANK(C126),"",IF(MONTH(C126)=MONTH(DATEVALUE(TEXT(DATE(2000,MONTH(DATEVALUE($E$7&" 1"))+7,1),"mmmm")&" 1")),E126/F117*E117,"")) ->  | S126: =IF(ISBLANK(C126),"",IF(MONTH(C126)=MONTH(DATEVALUE(TEXT(DATE(2000,MONTH(DATEVALUE($E$7&" 1"))+8,1),"mmmm")&" 1")),E126/F117*E117,"")) ->  | T126: =IF(ISBLANK(C126),"",IF(MONTH(C126)=MONTH(DATEVALUE(TEXT(DATE(2000,MONTH(DATEVALUE($E$7&" 1"))+9,1),"mmmm")&" 1")),E126/F117*E117,"")) ->  | U126: =IF(ISBLANK(C126),"",IF(MONTH(C126)=MONTH(DATEVALUE(TEXT(DATE(2000,MONTH(DATEVALUE($E$7&" 1"))+10,1),"mmmm")&" 1")),E126/F117*E117,"")) ->  | V126: =IF(ISBLANK(C126),"",IF(MONTH(C126)=MONTH(DATEVALUE(TEXT(DATE(2000,MONTH(DATEVALUE($E$7&" 1"))+11,1),"mmmm")&" 1")),E126/F117*E117,"")) -> 
I127: 0 | K127: =IF(ISBLANK(C127),"",IF(MONTH(C127)=MONTH(DATEVALUE($E$7&" 1")),E127/F117*E117,"")) ->  | L127: =IF(ISBLANK(C127),"",IF(MONTH(C127)=MONTH(DATEVALUE(TEXT(DATE(2000,MONTH(DATEVALUE($E$7&" 1"))+1,1),"mmmm")&" 1")),E127/F117*E117,"")) ->  | M127: =IF(ISBLANK(C127),"",IF(MONTH(C127)=MONTH(DATEVALUE(TEXT(DATE(2000,MONTH(DATEVALUE($E$7&" 1"))+2,1),"mmmm")&" 1")),E127/F117*E117,"")) ->  | N127: =IF(ISBLANK(C127),"",IF(MONTH(C127)=MONTH(DATEVALUE(TEXT(DATE(2000,MONTH(DATEVALUE($E$7&" 1"))+3,1),"mmmm")&" 1")),E127/F117*E117,"")) ->  | O127: =IF(ISBLANK(C127),"",IF(MONTH(C127)=MONTH(DATEVALUE(TEXT(DATE(2000,MONTH(DATEVALUE($E$7&" 1"))+4,1),"mmmm")&" 1")),E127/F117*E117,"")) ->  | P127: =IF(ISBLANK(C127),"",IF(MONTH(C127)=MONTH(DATEVALUE(TEXT(DATE(2000,MONTH(DATEVALUE($E$7&" 1"))+5,1),"mmmm")&" 1")),E127/F117*E117,"")) ->  | Q127: =IF(ISBLANK(C127),"",IF(MONTH(C127)=MONTH(DATEVALUE(TEXT(DATE(2000,MONTH(DATEVALUE($E$7&" 1"))+6,1),"mmmm")&" 1")),E127/F117*E117,"")) ->  | R127: =IF(ISBLANK(C127),"",IF(MONTH(C127)=MONTH(DATEVALUE(TEXT(DATE(2000,MONTH(DATEVALUE($E$7&" 1"))+7,1),"mmmm")&" 1")),E127/F117*E117,"")) ->  | S127: =IF(ISBLANK(C127),"",IF(MONTH(C127)=MONTH(DATEVALUE(TEXT(DATE(2000,MONTH(DATEVALUE($E$7&" 1"))+8,1),"mmmm")&" 1")),E127/F117*E117,"")) ->  | T127: =IF(ISBLANK(C127),"",IF(MONTH(C127)=MONTH(DATEVALUE(TEXT(DATE(2000,MONTH(DATEVALUE($E$7&" 1"))+9,1),"mmmm")&" 1")),E127/F117*E117,"")) ->  | U127: =IF(ISBLANK(C127),"",IF(MONTH(C127)=MONTH(DATEVALUE(TEXT(DATE(2000,MONTH(DATEVALUE($E$7&" 1"))+10,1),"mmmm")&" 1")),E127/F117*E117,"")) ->  | V127: =IF(ISBLANK(C127),"",IF(MONTH(C127)=MONTH(DATEVALUE(TEXT(DATE(2000,MONTH(DATEVALUE($E$7&" 1"))+11,1),"mmmm")&" 1")),E127/F117*E117,"")) -> 
I128: 0 | K128: =IF(ISBLANK(C128),"",IF(MONTH(C128)=MONTH(DATEVALUE($E$7&" 1")),E128/F117*E117,"")) ->  | L128: =IF(ISBLANK(C128),"",IF(MONTH(C128)=MONTH(DATEVALUE(TEXT(DATE(2000,MONTH(DATEVALUE($E$7&" 1"))+1,1),"mmmm")&" 1")),E128/F117*E117,"")) ->  | M128: =IF(ISBLANK(C128),"",IF(MONTH(C128)=MONTH(DATEVALUE(TEXT(DATE(2000,MONTH(DATEVALUE($E$7&" 1"))+2,1),"mmmm")&" 1")),E128/F117*E117,"")) ->  | N128: =IF(ISBLANK(C128),"",IF(MONTH(C128)=MONTH(DATEVALUE(TEXT(DATE(2000,MONTH(DATEVALUE($E$7&" 1"))+3,1),"mmmm")&" 1")),E128/F117*E117,"")) ->  | O128: =IF(ISBLANK(C128),"",IF(MONTH(C128)=MONTH(DATEVALUE(TEXT(DATE(2000,MONTH(DATEVALUE($E$7&" 1"))+4,1),"mmmm")&" 1")),E128/F117*E117,"")) ->  | P128: =IF(ISBLANK(C128),"",IF(MONTH(C128)=MONTH(DATEVALUE(TEXT(DATE(2000,MONTH(DATEVALUE($E$7&" 1"))+5,1),"mmmm")&" 1")),E128/F117*E117,"")) ->  | Q128: =IF(ISBLANK(C128),"",IF(MONTH(C128)=MONTH(DATEVALUE(TEXT(DATE(2000,MONTH(DATEVALUE($E$7&" 1"))+6,1),"mmmm")&" 1")),E128/F117*E117,"")) ->  | R128: =IF(ISBLANK(C128),"",IF(MONTH(C128)=MONTH(DATEVALUE(TEXT(DATE(2000,MONTH(DATEVALUE($E$7&" 1"))+7,1),"mmmm")&" 1")),E128/F117*E117,"")) ->  | S128: =IF(ISBLANK(C128),"",IF(MONTH(C128)=MONTH(DATEVALUE(TEXT(DATE(2000,MONTH(DATEVALUE($E$7&" 1"))+8,1),"mmmm")&" 1")),E128/F117*E117,"")) ->  | T128: =IF(ISBLANK(C128),"",IF(MONTH(C128)=MONTH(DATEVALUE(TEXT(DATE(2000,MONTH(DATEVALUE($E$7&" 1"))+9,1),"mmmm")&" 1")),E128/F117*E117,"")) ->  | U128: =IF(ISBLANK(C128),"",IF(MONTH(C128)=MONTH(DATEVALUE(TEXT(DATE(2000,MONTH(DATEVALUE($E$7&" 1"))+10,1),"mmmm")&" 1")),E128/F117*E117,"")) ->  | V128: =IF(ISBLANK(C128),"",IF(MONTH(C128)=MONTH(DATEVALUE(TEXT(DATE(2000,MONTH(DATEVALUE($E$7&" 1"))+11,1),"mmmm")&" 1")),E128/F117*E117,"")) -> 
H129: =IFERROR(I129/E129,0) -> 0 | I129: =SUM(I130:J140) -> 0 | W129: =IF(H129<>100%,"Pas ok","ok") -> Pas ok
B130: =$B$10 -> réf. Facture | C130: =$C$10 -> date facture | D130: =$D$10 -> Description facture | E130: =$E$10 -> Montant facture (HTVA)
I131: =SUM(K131:V131) -> 0 | K131: =IF(ISBLANK(C131),"",IF(MONTH(C131)=MONTH(DATEVALUE($E$7&" 1")),E131/F129*E129,"")) ->  | L131: =IF(ISBLANK(C131),"",IF(MONTH(C131)=MONTH(DATEVALUE(TEXT(DATE(2000,MONTH(DATEVALUE($E$7&" 1"))+1,1),"mmmm")&" 1")),E131/F129*E129,"")) ->  | M131: =IF(ISBLANK(C131),"",IF(MONTH(C131)=MONTH(DATEVALUE(TEXT(DATE(2000,MONTH(DATEVALUE($E$7&" 1"))+2,1),"mmmm")&" 1")),E131/F129*E129,"")) ->  | N131: =IF(ISBLANK(C131),"",IF(MONTH(C131)=MONTH(DATEVALUE(TEXT(DATE(2000,MONTH(DATEVALUE($E$7&" 1"))+3,1),"mmmm")&" 1")),E131/F129*E129,"")) ->  | O131: =IF(ISBLANK(C131),"",IF(MONTH(C131)=MONTH(DATEVALUE(TEXT(DATE(2000,MONTH(DATEVALUE($E$7&" 1"))+4,1),"mmmm")&" 1")),E131/F129*E129,"")) ->  | P131: =IF(ISBLANK(C131),"",IF(MONTH(C131)=MONTH(DATEVALUE(TEXT(DATE(2000,MONTH(DATEVALUE($E$7&" 1"))+5,1),"mmmm")&" 1")),E131/F129*E129,"")) ->  | Q131: =IF(ISBLANK(C131),"",IF(MONTH(C131)=MONTH(DATEVALUE(TEXT(DATE(2000,MONTH(DATEVALUE($E$7&" 1"))+6,1),"mmmm")&" 1")),E131/F129*E129,"")) ->  | R131: =IF(ISBLANK(C131),"",IF(MONTH(C131)=MONTH(DATEVALUE(TEXT(DATE(2000,MONTH(DATEVALUE($E$7&" 1"))+7,1),"mmmm")&" 1")),E131/F129*E129,"")) ->  | S131: =IF(ISBLANK(C131),"",IF(MONTH(C131)=MONTH(DATEVALUE(TEXT(DATE(2000,MONTH(DATEVALUE($E$7&" 1"))+8,1),"mmmm")&" 1")),E131/F129*E129,"")) ->  | T131: =IF(ISBLANK(C131),"",IF(MONTH(C131)=MONTH(DATEVALUE(TEXT(DATE(2000,MONTH(DATEVALUE($E$7&" 1"))+9,1),"mmmm")&" 1")),E131/F129*E129,"")) ->  | U131: =IF(ISBLANK(C131),"",IF(MONTH(C131)=MONTH(DATEVALUE(TEXT(DATE(2000,MONTH(DATEVALUE($E$7&" 1"))+10,1),"mmmm")&" 1")),E131/F129*E129,"")) ->  | V131: =IF(ISBLANK(C131),"",IF(MONTH(C131)=MONTH(DATEVALUE(TEXT(DATE(2000,MONTH(DATEVALUE($E$7&" 1"))+11,1),"mmmm")&" 1")),E131/F129*E129,"")) -> 
I132: 0 | K132: =IF(ISBLANK(C132),"",IF(MONTH(C132)=MONTH(DATEVALUE($E$7&" 1")),E132/F129*E129,"")) ->  | L132: =IF(ISBLANK(C132),"",IF(MONTH(C132)=MONTH(DATEVALUE(TEXT(DATE(2000,MONTH(DATEVALUE($E$7&" 1"))+1,1),"mmmm")&" 1")),E132/F129*E129,"")) ->  | M132: =IF(ISBLANK(C132),"",IF(MONTH(C132)=MONTH(DATEVALUE(TEXT(DATE(2000,MONTH(DATEVALUE($E$7&" 1"))+2,1),"mmmm")&" 1")),E132/F129*E129,"")) ->  | N132: =IF(ISBLANK(C132),"",IF(MONTH(C132)=MONTH(DATEVALUE(TEXT(DATE(2000,MONTH(DATEVALUE($E$7&" 1"))+3,1),"mmmm")&" 1")),E132/F129*E129,"")) ->  | O132: =IF(ISBLANK(C132),"",IF(MONTH(C132)=MONTH(DATEVALUE(TEXT(DATE(2000,MONTH(DATEVALUE($E$7&" 1"))+4,1),"mmmm")&" 1")),E132/F129*E129,"")) ->  | P132: =IF(ISBLANK(C132),"",IF(MONTH(C132)=MONTH(DATEVALUE(TEXT(DATE(2000,MONTH(DATEVALUE($E$7&" 1"))+5,1),"mmmm")&" 1")),E132/F129*E129,"")) ->  | Q132: =IF(ISBLANK(C132),"",IF(MONTH(C132)=MONTH(DATEVALUE(TEXT(DATE(2000,MONTH(DATEVALUE($E$7&" 1"))+6,1),"mmmm")&" 1")),E132/F129*E129,"")) ->  | R132: =IF(ISBLANK(C132),"",IF(MONTH(C132)=MONTH(DATEVALUE(TEXT(DATE(2000,MONTH(DATEVALUE($E$7&" 1"))+7,1),"mmmm")&" 1")),E132/F129*E129,"")) ->  | S132: =IF(ISBLANK(C132),"",IF(MONTH(C132)=MONTH(DATEVALUE(TEXT(DATE(2000,MONTH(DATEVALUE($E$7&" 1"))+8,1),"mmmm")&" 1")),E132/F129*E129,"")) ->  | T132: =IF(ISBLANK(C132),"",IF(MONTH(C132)=MONTH(DATEVALUE(TEXT(DATE(2000,MONTH(DATEVALUE($E$7&" 1"))+9,1),"mmmm")&" 1")),E132/F129*E129,"")) ->  | U132: =IF(ISBLANK(C132),"",IF(MONTH(C132)=MONTH(DATEVALUE(TEXT(DATE(2000,MONTH(DATEVALUE($E$7&" 1"))+10,1),"mmmm")&" 1")),E132/F129*E129,"")) ->  | V132: =IF(ISBLANK(C132),"",IF(MONTH(C132)=MONTH(DATEVALUE(TEXT(DATE(2000,MONTH(DATEVALUE($E$7&" 1"))+11,1),"mmmm")&" 1")),E132/F129*E129,"")) -> 
I133: 0 | K133: =IF(ISBLANK(C133),"",IF(MONTH(C133)=MONTH(DATEVALUE($E$7&" 1")),E133/F129*E129,"")) ->  | L133: =IF(ISBLANK(C133),"",IF(MONTH(C133)=MONTH(DATEVALUE(TEXT(DATE(2000,MONTH(DATEVALUE($E$7&" 1"))+1,1),"mmmm")&" 1")),E133/F129*E129,"")) ->  | M133: =IF(ISBLANK(C133),"",IF(MONTH(C133)=MONTH(DATEVALUE(TEXT(DATE(2000,MONTH(DATEVALUE($E$7&" 1"))+2,1),"mmmm")&" 1")),E133/F129*E129,"")) ->  | N133: =IF(ISBLANK(C133),"",IF(MONTH(C133)=MONTH(DATEVALUE(TEXT(DATE(2000,MONTH(DATEVALUE($E$7&" 1"))+3,1),"mmmm")&" 1")),E133/F129*E129,"")) ->  | O133: =IF(ISBLANK(C133),"",IF(MONTH(C133)=MONTH(DATEVALUE(TEXT(DATE(2000,MONTH(DATEVALUE($E$7&" 1"))+4,1),"mmmm")&" 1")),E133/F129*E129,"")) ->  | P133: =IF(ISBLANK(C133),"",IF(MONTH(C133)=MONTH(DATEVALUE(TEXT(DATE(2000,MONTH(DATEVALUE($E$7&" 1"))+5,1),"mmmm")&" 1")),E133/F129*E129,"")) ->  | Q133: =IF(ISBLANK(C133),"",IF(MONTH(C133)=MONTH(DATEVALUE(TEXT(DATE(2000,MONTH(DATEVALUE($E$7&" 1"))+6,1),"mmmm")&" 1")),E133/F129*E129,"")) ->  | R133: =IF(ISBLANK(C133),"",IF(MONTH(C133)=MONTH(DATEVALUE(TEXT(DATE(2000,MONTH(DATEVALUE($E$7&" 1"))+7,1),"mmmm")&" 1")),E133/F129*E129,"")) ->  | S133: =IF(ISBLANK(C133),"",IF(MONTH(C133)=MONTH(DATEVALUE(TEXT(DATE(2000,MONTH(DATEVALUE($E$7&" 1"))+8,1),"mmmm")&" 1")),E133/F129*E129,"")) ->  | T133: =IF(ISBLANK(C133),"",IF(MONTH(C133)=MONTH(DATEVALUE(TEXT(DATE(2000,MONTH(DATEVALUE($E$7&" 1"))+9,1),"mmmm")&" 1")),E133/F129*E129,"")) ->  | U133: =IF(ISBLANK(C133),"",IF(MONTH(C133)=MONTH(DATEVALUE(TEXT(DATE(2000,MONTH(DATEVALUE($E$7&" 1"))+10,1),"mmmm")&" 1")),E133/F129*E129,"")) ->  | V133: =IF(ISBLANK(C133),"",IF(MONTH(C133)=MONTH(DATEVALUE(TEXT(DATE(2000,MONTH(DATEVALUE($E$7&" 1"))+11,1),"mmmm")&" 1")),E133/F129*E129,"")) -> 
I134: 0 | K134: =IF(ISBLANK(C134),"",IF(MONTH(C134)=MONTH(DATEVALUE($E$7&" 1")),E134/F129*E129,"")) ->  | L134: =IF(ISBLANK(C134),"",IF(MONTH(C134)=MONTH(DATEVALUE(TEXT(DATE(2000,MONTH(DATEVALUE($E$7&" 1"))+1,1),"mmmm")&" 1")),E134/F129*E129,"")) ->  | M134: =IF(ISBLANK(C134),"",IF(MONTH(C134)=MONTH(DATEVALUE(TEXT(DATE(2000,MONTH(DATEVALUE($E$7&" 1"))+2,1),"mmmm")&" 1")),E134/F129*E129,"")) ->  | N134: =IF(ISBLANK(C134),"",IF(MONTH(C134)=MONTH(DATEVALUE(TEXT(DATE(2000,MONTH(DATEVALUE($E$7&" 1"))+3,1),"mmmm")&" 1")),E134/F129*E129,"")) ->  | O134: =IF(ISBLANK(C134),"",IF(MONTH(C134)=MONTH(DATEVALUE(TEXT(DATE(2000,MONTH(DATEVALUE($E$7&" 1"))+4,1),"mmmm")&" 1")),E134/F129*E129,"")) ->  | P134: =IF(ISBLANK(C134),"",IF(MONTH(C134)=MONTH(DATEVALUE(TEXT(DATE(2000,MONTH(DATEVALUE($E$7&" 1"))+5,1),"mmmm")&" 1")),E134/F129*E129,"")) ->  | Q134: =IF(ISBLANK(C134),"",IF(MONTH(C134)=MONTH(DATEVALUE(TEXT(DATE(2000,MONTH(DATEVALUE($E$7&" 1"))+6,1),"mmmm")&" 1")),E134/F129*E129,"")) ->  | R134: =IF(ISBLANK(C134),"",IF(MONTH(C134)=MONTH(DATEVALUE(TEXT(DATE(2000,MONTH(DATEVALUE($E$7&" 1"))+7,1),"mmmm")&" 1")),E134/F129*E129,"")) ->  | S134: =IF(ISBLANK(C134),"",IF(MONTH(C134)=MONTH(DATEVALUE(TEXT(DATE(2000,MONTH(DATEVALUE($E$7&" 1"))+8,1),"mmmm")&" 1")),E134/F129*E129,"")) ->  | T134: =IF(ISBLANK(C134),"",IF(MONTH(C134)=MONTH(DATEVALUE(TEXT(DATE(2000,MONTH(DATEVALUE($E$7&" 1"))+9,1),"mmmm")&" 1")),E134/F129*E129,"")) ->  | U134: =IF(ISBLANK(C134),"",IF(MONTH(C134)=MONTH(DATEVALUE(TEXT(DATE(2000,MONTH(DATEVALUE($E$7&" 1"))+10,1),"mmmm")&" 1")),E134/F129*E129,"")) ->  | V134: =IF(ISBLANK(C134),"",IF(MONTH(C134)=MONTH(DATEVALUE(TEXT(DATE(2000,MONTH(DATEVALUE($E$7&" 1"))+11,1),"mmmm")&" 1")),E134/F129*E129,"")) -> 
I135: 0 | K135: =IF(ISBLANK(C135),"",IF(MONTH(C135)=MONTH(DATEVALUE($E$7&" 1")),E135/F129*E129,"")) ->  | L135: =IF(ISBLANK(C135),"",IF(MONTH(C135)=MONTH(DATEVALUE(TEXT(DATE(2000,MONTH(DATEVALUE($E$7&" 1"))+1,1),"mmmm")&" 1")),E135/F129*E129,"")) ->  | M135: =IF(ISBLANK(C135),"",IF(MONTH(C135)=MONTH(DATEVALUE(TEXT(DATE(2000,MONTH(DATEVALUE($E$7&" 1"))+2,1),"mmmm")&" 1")),E135/F129*E129,"")) ->  | N135: =IF(ISBLANK(C135),"",IF(MONTH(C135)=MONTH(DATEVALUE(TEXT(DATE(2000,MONTH(DATEVALUE($E$7&" 1"))+3,1),"mmmm")&" 1")),E135/F129*E129,"")) ->  | O135: =IF(ISBLANK(C135),"",IF(MONTH(C135)=MONTH(DATEVALUE(TEXT(DATE(2000,MONTH(DATEVALUE($E$7&" 1"))+4,1),"mmmm")&" 1")),E135/F129*E129,"")) ->  | P135: =IF(ISBLANK(C135),"",IF(MONTH(C135)=MONTH(DATEVALUE(TEXT(DATE(2000,MONTH(DATEVALUE($E$7&" 1"))+5,1),"mmmm")&" 1")),E135/F129*E129,"")) ->  | Q135: =IF(ISBLANK(C135),"",IF(MONTH(C135)=MONTH(DATEVALUE(TEXT(DATE(2000,MONTH(DATEVALUE($E$7&" 1"))+6,1),"mmmm")&" 1")),E135/F129*E129,"")) ->  | R135: =IF(ISBLANK(C135),"",IF(MONTH(C135)=MONTH(DATEVALUE(TEXT(DATE(2000,MONTH(DATEVALUE($E$7&" 1"))+7,1),"mmmm")&" 1")),E135/F129*E129,"")) ->  | S135: =IF(ISBLANK(C135),"",IF(MONTH(C135)=MONTH(DATEVALUE(TEXT(DATE(2000,MONTH(DATEVALUE($E$7&" 1"))+8,1),"mmmm")&" 1")),E135/F129*E129,"")) ->  | T135: =IF(ISBLANK(C135),"",IF(MONTH(C135)=MONTH(DATEVALUE(TEXT(DATE(2000,MONTH(DATEVALUE($E$7&" 1"))+9,1),"mmmm")&" 1")),E135/F129*E129,"")) ->  | U135: =IF(ISBLANK(C135),"",IF(MONTH(C135)=MONTH(DATEVALUE(TEXT(DATE(2000,MONTH(DATEVALUE($E$7&" 1"))+10,1),"mmmm")&" 1")),E135/F129*E129,"")) ->  | V135: =IF(ISBLANK(C135),"",IF(MONTH(C135)=MONTH(DATEVALUE(TEXT(DATE(2000,MONTH(DATEVALUE($E$7&" 1"))+11,1),"mmmm")&" 1")),E135/F129*E129,"")) -> 
I136: 0 | K136: =IF(ISBLANK(C136),"",IF(MONTH(C136)=MONTH(DATEVALUE($E$7&" 1")),E136/F129*E129,"")) ->  | L136: =IF(ISBLANK(C136),"",IF(MONTH(C136)=MONTH(DATEVALUE(TEXT(DATE(2000,MONTH(DATEVALUE($E$7&" 1"))+1,1),"mmmm")&" 1")),E136/F129*E129,"")) ->  | M136: =IF(ISBLANK(C136),"",IF(MONTH(C136)=MONTH(DATEVALUE(TEXT(DATE(2000,MONTH(DATEVALUE($E$7&" 1"))+2,1),"mmmm")&" 1")),E136/F129*E129,"")) ->  | N136: =IF(ISBLANK(C136),"",IF(MONTH(C136)=MONTH(DATEVALUE(TEXT(DATE(2000,MONTH(DATEVALUE($E$7&" 1"))+3,1),"mmmm")&" 1")),E136/F129*E129,"")) ->  | O136: =IF(ISBLANK(C136),"",IF(MONTH(C136)=MONTH(DATEVALUE(TEXT(DATE(2000,MONTH(DATEVALUE($E$7&" 1"))+4,1),"mmmm")&" 1")),E136/F129*E129,"")) ->  | P136: =IF(ISBLANK(C136),"",IF(MONTH(C136)=MONTH(DATEVALUE(TEXT(DATE(2000,MONTH(DATEVALUE($E$7&" 1"))+5,1),"mmmm")&" 1")),E136/F129*E129,"")) ->  | Q136: =IF(ISBLANK(C136),"",IF(MONTH(C136)=MONTH(DATEVALUE(TEXT(DATE(2000,MONTH(DATEVALUE($E$7&" 1"))+6,1),"mmmm")&" 1")),E136/F129*E129,"")) ->  | R136: =IF(ISBLANK(C136),"",IF(MONTH(C136)=MONTH(DATEVALUE(TEXT(DATE(2000,MONTH(DATEVALUE($E$7&" 1"))+7,1),"mmmm")&" 1")),E136/F129*E129,"")) ->  | S136: =IF(ISBLANK(C136),"",IF(MONTH(C136)=MONTH(DATEVALUE(TEXT(DATE(2000,MONTH(DATEVALUE($E$7&" 1"))+8,1),"mmmm")&" 1")),E136/F129*E129,"")) ->  | T136: =IF(ISBLANK(C136),"",IF(MONTH(C136)=MONTH(DATEVALUE(TEXT(DATE(2000,MONTH(DATEVALUE($E$7&" 1"))+9,1),"mmmm")&" 1")),E136/F129*E129,"")) ->  | U136: =IF(ISBLANK(C136),"",IF(MONTH(C136)=MONTH(DATEVALUE(TEXT(DATE(2000,MONTH(DATEVALUE($E$7&" 1"))+10,1),"mmmm")&" 1")),E136/F129*E129,"")) ->  | V136: =IF(ISBLANK(C136),"",IF(MONTH(C136)=MONTH(DATEVALUE(TEXT(DATE(2000,MONTH(DATEVALUE($E$7&" 1"))+11,1),"mmmm")&" 1")),E136/F129*E129,"")) -> 
I137: 0 | K137: =IF(ISBLANK(C137),"",IF(MONTH(C137)=MONTH(DATEVALUE($E$7&" 1")),E137/F129*E129,"")) ->  | L137: =IF(ISBLANK(C137),"",IF(MONTH(C137)=MONTH(DATEVALUE(TEXT(DATE(2000,MONTH(DATEVALUE($E$7&" 1"))+1,1),"mmmm")&" 1")),E137/F129*E129,"")) ->  | M137: =IF(ISBLANK(C137),"",IF(MONTH(C137)=MONTH(DATEVALUE(TEXT(DATE(2000,MONTH(DATEVALUE($E$7&" 1"))+2,1),"mmmm")&" 1")),E137/F129*E129,"")) ->  | N137: =IF(ISBLANK(C137),"",IF(MONTH(C137)=MONTH(DATEVALUE(TEXT(DATE(2000,MONTH(DATEVALUE($E$7&" 1"))+3,1),"mmmm")&" 1")),E137/F129*E129,"")) ->  | O137: =IF(ISBLANK(C137),"",IF(MONTH(C137)=MONTH(DATEVALUE(TEXT(DATE(2000,MONTH(DATEVALUE($E$7&" 1"))+4,1),"mmmm")&" 1")),E137/F129*E129,"")) ->  | P137: =IF(ISBLANK(C137),"",IF(MONTH(C137)=MONTH(DATEVALUE(TEXT(DATE(2000,MONTH(DATEVALUE($E$7&" 1"))+5,1),"mmmm")&" 1")),E137/F129*E129,"")) ->  | Q137: =IF(ISBLANK(C137),"",IF(MONTH(C137)=MONTH(DATEVALUE(TEXT(DATE(2000,MONTH(DATEVALUE($E$7&" 1"))+6,1),"mmmm")&" 1")),E137/F129*E129,"")) ->  | R137: =IF(ISBLANK(C137),"",IF(MONTH(C137)=MONTH(DATEVALUE(TEXT(DATE(2000,MONTH(DATEVALUE($E$7&" 1"))+7,1),"mmmm")&" 1")),E137/F129*E129,"")) ->  | S137: =IF(ISBLANK(C137),"",IF(MONTH(C137)=MONTH(DATEVALUE(TEXT(DATE(2000,MONTH(DATEVALUE($E$7&" 1"))+8,1),"mmmm")&" 1")),E137/F129*E129,"")) ->  | T137: =IF(ISBLANK(C137),"",IF(MONTH(C137)=MONTH(DATEVALUE(TEXT(DATE(2000,MONTH(DATEVALUE($E$7&" 1"))+9,1),"mmmm")&" 1")),E137/F129*E129,"")) ->  | U137: =IF(ISBLANK(C137),"",IF(MONTH(C137)=MONTH(DATEVALUE(TEXT(DATE(2000,MONTH(DATEVALUE($E$7&" 1"))+10,1),"mmmm")&" 1")),E137/F129*E129,"")) ->  | V137: =IF(ISBLANK(C137),"",IF(MONTH(C137)=MONTH(DATEVALUE(TEXT(DATE(2000,MONTH(DATEVALUE($E$7&" 1"))+11,1),"mmmm")&" 1")),E137/F129*E129,"")) -> 
I138: 0 | K138: =IF(ISBLANK(C138),"",IF(MONTH(C138)=MONTH(DATEVALUE($E$7&" 1")),E138/F129*E129,"")) ->  | L138: =IF(ISBLANK(C138),"",IF(MONTH(C138)=MONTH(DATEVALUE(TEXT(DATE(2000,MONTH(DATEVALUE($E$7&" 1"))+1,1),"mmmm")&" 1")),E138/F129*E129,"")) ->  | M138: =IF(ISBLANK(C138),"",IF(MONTH(C138)=MONTH(DATEVALUE(TEXT(DATE(2000,MONTH(DATEVALUE($E$7&" 1"))+2,1),"mmmm")&" 1")),E138/F129*E129,"")) ->  | N138: =IF(ISBLANK(C138),"",IF(MONTH(C138)=MONTH(DATEVALUE(TEXT(DATE(2000,MONTH(DATEVALUE($E$7&" 1"))+3,1),"mmmm")&" 1")),E138/F129*E129,"")) ->  | O138: =IF(ISBLANK(C138),"",IF(MONTH(C138)=MONTH(DATEVALUE(TEXT(DATE(2000,MONTH(DATEVALUE($E$7&" 1"))+4,1),"mmmm")&" 1")),E138/F129*E129,"")) ->  | P138: =IF(ISBLANK(C138),"",IF(MONTH(C138)=MONTH(DATEVALUE(TEXT(DATE(2000,MONTH(DATEVALUE($E$7&" 1"))+5,1),"mmmm")&" 1")),E138/F129*E129,"")) ->  | Q138: =IF(ISBLANK(C138),"",IF(MONTH(C138)=MONTH(DATEVALUE(TEXT(DATE(2000,MONTH(DATEVALUE($E$7&" 1"))+6,1),"mmmm")&" 1")),E138/F129*E129,"")) ->  | R138: =IF(ISBLANK(C138),"",IF(MONTH(C138)=MONTH(DATEVALUE(TEXT(DATE(2000,MONTH(DATEVALUE($E$7&" 1"))+7,1),"mmmm")&" 1")),E138/F129*E129,"")) ->  | S138: =IF(ISBLANK(C138),"",IF(MONTH(C138)=MONTH(DATEVALUE(TEXT(DATE(2000,MONTH(DATEVALUE($E$7&" 1"))+8,1),"mmmm")&" 1")),E138/F129*E129,"")) ->  | T138: =IF(ISBLANK(C138),"",IF(MONTH(C138)=MONTH(DATEVALUE(TEXT(DATE(2000,MONTH(DATEVALUE($E$7&" 1"))+9,1),"mmmm")&" 1")),E138/F129*E129,"")) ->  | U138: =IF(ISBLANK(C138),"",IF(MONTH(C138)=MONTH(DATEVALUE(TEXT(DATE(2000,MONTH(DATEVALUE($E$7&" 1"))+10,1),"mmmm")&" 1")),E138/F129*E129,"")) ->  | V138: =IF(ISBLANK(C138),"",IF(MONTH(C138)=MONTH(DATEVALUE(TEXT(DATE(2000,MONTH(DATEVALUE($E$7&" 1"))+11,1),"mmmm")&" 1")),E138/F129*E129,"")) -> 
I139: 0 | K139: =IF(ISBLANK(C139),"",IF(MONTH(C139)=MONTH(DATEVALUE($E$7&" 1")),E139/F129*E129,"")) ->  | L139: =IF(ISBLANK(C139),"",IF(MONTH(C139)=MONTH(DATEVALUE(TEXT(DATE(2000,MONTH(DATEVALUE($E$7&" 1"))+1,1),"mmmm")&" 1")),E139/F129*E129,"")) ->  | M139: =IF(ISBLANK(C139),"",IF(MONTH(C139)=MONTH(DATEVALUE(TEXT(DATE(2000,MONTH(DATEVALUE($E$7&" 1"))+2,1),"mmmm")&" 1")),E139/F129*E129,"")) ->  | N139: =IF(ISBLANK(C139),"",IF(MONTH(C139)=MONTH(DATEVALUE(TEXT(DATE(2000,MONTH(DATEVALUE($E$7&" 1"))+3,1),"mmmm")&" 1")),E139/F129*E129,"")) ->  | O139: =IF(ISBLANK(C139),"",IF(MONTH(C139)=MONTH(DATEVALUE(TEXT(DATE(2000,MONTH(DATEVALUE($E$7&" 1"))+4,1),"mmmm")&" 1")),E139/F129*E129,"")) ->  | P139: =IF(ISBLANK(C139),"",IF(MONTH(C139)=MONTH(DATEVALUE(TEXT(DATE(2000,MONTH(DATEVALUE($E$7&" 1"))+5,1),"mmmm")&" 1")),E139/F129*E129,"")) ->  | Q139: =IF(ISBLANK(C139),"",IF(MONTH(C139)=MONTH(DATEVALUE(TEXT(DATE(2000,MONTH(DATEVALUE($E$7&" 1"))+6,1),"mmmm")&" 1")),E139/F129*E129,"")) ->  | R139: =IF(ISBLANK(C139),"",IF(MONTH(C139)=MONTH(DATEVALUE(TEXT(DATE(2000,MONTH(DATEVALUE($E$7&" 1"))+7,1),"mmmm")&" 1")),E139/F129*E129,"")) ->  | S139: =IF(ISBLANK(C139),"",IF(MONTH(C139)=MONTH(DATEVALUE(TEXT(DATE(2000,MONTH(DATEVALUE($E$7&" 1"))+8,1),"mmmm")&" 1")),E139/F129*E129,"")) ->  | T139: =IF(ISBLANK(C139),"",IF(MONTH(C139)=MONTH(DATEVALUE(TEXT(DATE(2000,MONTH(DATEVALUE($E$7&" 1"))+9,1),"mmmm")&" 1")),E139/F129*E129,"")) ->  | U139: =IF(ISBLANK(C139),"",IF(MONTH(C139)=MONTH(DATEVALUE(TEXT(DATE(2000,MONTH(DATEVALUE($E$7&" 1"))+10,1),"mmmm")&" 1")),E139/F129*E129,"")) ->  | V139: =IF(ISBLANK(C139),"",IF(MONTH(C139)=MONTH(DATEVALUE(TEXT(DATE(2000,MONTH(DATEVALUE($E$7&" 1"))+11,1),"mmmm")&" 1")),E139/F129*E129,"")) -> 
I140: 0 | K140: =IF(ISBLANK(C140),"",IF(MONTH(C140)=MONTH(DATEVALUE($E$7&" 1")),E140/F129*E129,"")) ->  | L140: =IF(ISBLANK(C140),"",IF(MONTH(C140)=MONTH(DATEVALUE(TEXT(DATE(2000,MONTH(DATEVALUE($E$7&" 1"))+1,1),"mmmm")&" 1")),E140/F129*E129,"")) ->  | M140: =IF(ISBLANK(C140),"",IF(MONTH(C140)=MONTH(DATEVALUE(TEXT(DATE(2000,MONTH(DATEVALUE($E$7&" 1"))+2,1),"mmmm")&" 1")),E140/F129*E129,"")) ->  | N140: =IF(ISBLANK(C140),"",IF(MONTH(C140)=MONTH(DATEVALUE(TEXT(DATE(2000,MONTH(DATEVALUE($E$7&" 1"))+3,1),"mmmm")&" 1")),E140/F129*E129,"")) ->  | O140: =IF(ISBLANK(C140),"",IF(MONTH(C140)=MONTH(DATEVALUE(TEXT(DATE(2000,MONTH(DATEVALUE($E$7&" 1"))+4,1),"mmmm")&" 1")),E140/F129*E129,"")) ->  | P140: =IF(ISBLANK(C140),"",IF(MONTH(C140)=MONTH(DATEVALUE(TEXT(DATE(2000,MONTH(DATEVALUE($E$7&" 1"))+5,1),"mmmm")&" 1")),E140/F129*E129,"")) ->  | Q140: =IF(ISBLANK(C140),"",IF(MONTH(C140)=MONTH(DATEVALUE(TEXT(DATE(2000,MONTH(DATEVALUE($E$7&" 1"))+6,1),"mmmm")&" 1")),E140/F129*E129,"")) ->  | R140: =IF(ISBLANK(C140),"",IF(MONTH(C140)=MONTH(DATEVALUE(TEXT(DATE(2000,MONTH(DATEVALUE($E$7&" 1"))+7,1),"mmmm")&" 1")),E140/F129*E129,"")) ->  | S140: =IF(ISBLANK(C140),"",IF(MONTH(C140)=MONTH(DATEVALUE(TEXT(DATE(2000,MONTH(DATEVALUE($E$7&" 1"))+8,1),"mmmm")&" 1")),E140/F129*E129,"")) ->  | T140: =IF(ISBLANK(C140),"",IF(MONTH(C140)=MONTH(DATEVALUE(TEXT(DATE(2000,MONTH(DATEVALUE($E$7&" 1"))+9,1),"mmmm")&" 1")),E140/F129*E129,"")) ->  | U140: =IF(ISBLANK(C140),"",IF(MONTH(C140)=MONTH(DATEVALUE(TEXT(DATE(2000,MONTH(DATEVALUE($E$7&" 1"))+10,1),"mmmm")&" 1")),E140/F129*E129,"")) ->  | V140: =IF(ISBLANK(C140),"",IF(MONTH(C140)=MONTH(DATEVALUE(TEXT(DATE(2000,MONTH(DATEVALUE($E$7&" 1"))+11,1),"mmmm")&" 1")),E140/F129*E129,"")) -> 
H141: =IFERROR(I141/E141,0) -> 0 | I141: =SUM(I142:J152) -> 0 | W141: =IF(H141<>100%,"Pas ok","ok") -> Pas ok
B142: =$B$10 -> réf. Facture | C142: =$C$10 -> date facture | D142: =$D$10 -> Description facture | E142: =$E$10 -> Montant facture (HTVA)
I143: =SUM(K143:V143) -> 0 | K143: =IF(ISBLANK(C143),"",IF(MONTH(C143)=MONTH(DATEVALUE($E$7&" 1")),E143/F141*E141,"")) ->  | L143: =IF(ISBLANK(C143),"",IF(MONTH(C143)=MONTH(DATEVALUE(TEXT(DATE(2000,MONTH(DATEVALUE($E$7&" 1"))+1,1),"mmmm")&" 1")),E143/F141*E141,"")) ->  | M143: =IF(ISBLANK(C143),"",IF(MONTH(C143)=MONTH(DATEVALUE(TEXT(DATE(2000,MONTH(DATEVALUE($E$7&" 1"))+2,1),"mmmm")&" 1")),E143/F141*E141,"")) ->  | N143: =IF(ISBLANK(C143),"",IF(MONTH(C143)=MONTH(DATEVALUE(TEXT(DATE(2000,MONTH(DATEVALUE($E$7&" 1"))+3,1),"mmmm")&" 1")),E143/F141*E141,"")) ->  | O143: =IF(ISBLANK(C143),"",IF(MONTH(C143)=MONTH(DATEVALUE(TEXT(DATE(2000,MONTH(DATEVALUE($E$7&" 1"))+4,1),"mmmm")&" 1")),E143/F141*E141,"")) ->  | P143: =IF(ISBLANK(C143),"",IF(MONTH(C143)=MONTH(DATEVALUE(TEXT(DATE(2000,MONTH(DATEVALUE($E$7&" 1"))+5,1),"mmmm")&" 1")),E143/F141*E141,"")) ->  | Q143: =IF(ISBLANK(C143),"",IF(MONTH(C143)=MONTH(DATEVALUE(TEXT(DATE(2000,MONTH(DATEVALUE($E$7&" 1"))+6,1),"mmmm")&" 1")),E143/F141*E141,"")) ->  | R143: =IF(ISBLANK(C143),"",IF(MONTH(C143)=MONTH(DATEVALUE(TEXT(DATE(2000,MONTH(DATEVALUE($E$7&" 1"))+7,1),"mmmm")&" 1")),E143/F141*E141,"")) ->  | S143: =IF(ISBLANK(C143),"",IF(MONTH(C143)=MONTH(DATEVALUE(TEXT(DATE(2000,MONTH(DATEVALUE($E$7&" 1"))+8,1),"mmmm")&" 1")),E143/F141*E141,"")) ->  | T143: =IF(ISBLANK(C143),"",IF(MONTH(C143)=MONTH(DATEVALUE(TEXT(DATE(2000,MONTH(DATEVALUE($E$7&" 1"))+9,1),"mmmm")&" 1")),E143/F141*E141,"")) ->  | U143: =IF(ISBLANK(C143),"",IF(MONTH(C143)=MONTH(DATEVALUE(TEXT(DATE(2000,MONTH(DATEVALUE($E$7&" 1"))+10,1),"mmmm")&" 1")),E143/F141*E141,"")) ->  | V143: =IF(ISBLANK(C143),"",IF(MONTH(C143)=MONTH(DATEVALUE(TEXT(DATE(2000,MONTH(DATEVALUE($E$7&" 1"))+11,1),"mmmm")&" 1")),E143/F141*E141,"")) -> 
I144: 0 | K144: =IF(ISBLANK(C144),"",IF(MONTH(C144)=MONTH(DATEVALUE($E$7&" 1")),E144/F141*E141,"")) ->  | L144: =IF(ISBLANK(C144),"",IF(MONTH(C144)=MONTH(DATEVALUE(TEXT(DATE(2000,MONTH(DATEVALUE($E$7&" 1"))+1,1),"mmmm")&" 1")),E144/F141*E141,"")) ->  | M144: =IF(ISBLANK(C144),"",IF(MONTH(C144)=MONTH(DATEVALUE(TEXT(DATE(2000,MONTH(DATEVALUE($E$7&" 1"))+2,1),"mmmm")&" 1")),E144/F141*E141,"")) ->  | N144: =IF(ISBLANK(C144),"",IF(MONTH(C144)=MONTH(DATEVALUE(TEXT(DATE(2000,MONTH(DATEVALUE($E$7&" 1"))+3,1),"mmmm")&" 1")),E144/F141*E141,"")) ->  | O144: =IF(ISBLANK(C144),"",IF(MONTH(C144)=MONTH(DATEVALUE(TEXT(DATE(2000,MONTH(DATEVALUE($E$7&" 1"))+4,1),"mmmm")&" 1")),E144/F141*E141,"")) ->  | P144: =IF(ISBLANK(C144),"",IF(MONTH(C144)=MONTH(DATEVALUE(TEXT(DATE(2000,MONTH(DATEVALUE($E$7&" 1"))+5,1),"mmmm")&" 1")),E144/F141*E141,"")) ->  | Q144: =IF(ISBLANK(C144),"",IF(MONTH(C144)=MONTH(DATEVALUE(TEXT(DATE(2000,MONTH(DATEVALUE($E$7&" 1"))+6,1),"mmmm")&" 1")),E144/F141*E141,"")) ->  | R144: =IF(ISBLANK(C144),"",IF(MONTH(C144)=MONTH(DATEVALUE(TEXT(DATE(2000,MONTH(DATEVALUE($E$7&" 1"))+7,1),"mmmm")&" 1")),E144/F141*E141,"")) ->  | S144: =IF(ISBLANK(C144),"",IF(MONTH(C144)=MONTH(DATEVALUE(TEXT(DATE(2000,MONTH(DATEVALUE($E$7&" 1"))+8,1),"mmmm")&" 1")),E144/F141*E141,"")) ->  | T144: =IF(ISBLANK(C144),"",IF(MONTH(C144)=MONTH(DATEVALUE(TEXT(DATE(2000,MONTH(DATEVALUE($E$7&" 1"))+9,1),"mmmm")&" 1")),E144/F141*E141,"")) ->  | U144: =IF(ISBLANK(C144),"",IF(MONTH(C144)=MONTH(DATEVALUE(TEXT(DATE(2000,MONTH(DATEVALUE($E$7&" 1"))+10,1),"mmmm")&" 1")),E144/F141*E141,"")) ->  | V144: =IF(ISBLANK(C144),"",IF(MONTH(C144)=MONTH(DATEVALUE(TEXT(DATE(2000,MONTH(DATEVALUE($E$7&" 1"))+11,1),"mmmm")&" 1")),E144/F141*E141,"")) -> 
I145: 0 | K145: =IF(ISBLANK(C145),"",IF(MONTH(C145)=MONTH(DATEVALUE($E$7&" 1")),E145/F141*E141,"")) ->  | L145: =IF(ISBLANK(C145),"",IF(MONTH(C145)=MONTH(DATEVALUE(TEXT(DATE(2000,MONTH(DATEVALUE($E$7&" 1"))+1,1),"mmmm")&" 1")),E145/F141*E141,"")) ->  | M145: =IF(ISBLANK(C145),"",IF(MONTH(C145)=MONTH(DATEVALUE(TEXT(DATE(2000,MONTH(DATEVALUE($E$7&" 1"))+2,1),"mmmm")&" 1")),E145/F141*E141,"")) ->  | N145: =IF(ISBLANK(C145),"",IF(MONTH(C145)=MONTH(DATEVALUE(TEXT(DATE(2000,MONTH(DATEVALUE($E$7&" 1"))+3,1),"mmmm")&" 1")),E145/F141*E141,"")) ->  | O145: =IF(ISBLANK(C145),"",IF(MONTH(C145)=MONTH(DATEVALUE(TEXT(DATE(2000,MONTH(DATEVALUE($E$7&" 1"))+4,1),"mmmm")&" 1")),E145/F141*E141,"")) ->  | P145: =IF(ISBLANK(C145),"",IF(MONTH(C145)=MONTH(DATEVALUE(TEXT(DATE(2000,MONTH(DATEVALUE($E$7&" 1"))+5,1),"mmmm")&" 1")),E145/F141*E141,"")) ->  | Q145: =IF(ISBLANK(C145),"",IF(MONTH(C145)=MONTH(DATEVALUE(TEXT(DATE(2000,MONTH(DATEVALUE($E$7&" 1"))+6,1),"mmmm")&" 1")),E145/F141*E141,"")) ->  | R145: =IF(ISBLANK(C145),"",IF(MONTH(C145)=MONTH(DATEVALUE(TEXT(DATE(2000,MONTH(DATEVALUE($E$7&" 1"))+7,1),"mmmm")&" 1")),E145/F141*E141,"")) ->  | S145: =IF(ISBLANK(C145),"",IF(MONTH(C145)=MONTH(DATEVALUE(TEXT(DATE(2000,MONTH(DATEVALUE($E$7&" 1"))+8,1),"mmmm")&" 1")),E145/F141*E141,"")) ->  | T145: =IF(ISBLANK(C145),"",IF(MONTH(C145)=MONTH(DATEVALUE(TEXT(DATE(2000,MONTH(DATEVALUE($E$7&" 1"))+9,1),"mmmm")&" 1")),E145/F141*E141,"")) ->  | U145: =IF(ISBLANK(C145),"",IF(MONTH(C145)=MONTH(DATEVALUE(TEXT(DATE(2000,MONTH(DATEVALUE($E$7&" 1"))+10,1),"mmmm")&" 1")),E145/F141*E141,"")) ->  | V145: =IF(ISBLANK(C145),"",IF(MONTH(C145)=MONTH(DATEVALUE(TEXT(DATE(2000,MONTH(DATEVALUE($E$7&" 1"))+11,1),"mmmm")&" 1")),E145/F141*E141,"")) -> 
I146: 0 | K146: =IF(ISBLANK(C146),"",IF(MONTH(C146)=MONTH(DATEVALUE($E$7&" 1")),E146/F141*E141,"")) ->  | L146: =IF(ISBLANK(C146),"",IF(MONTH(C146)=MONTH(DATEVALUE(TEXT(DATE(2000,MONTH(DATEVALUE($E$7&" 1"))+1,1),"mmmm")&" 1")),E146/F141*E141,"")) ->  | M146: =IF(ISBLANK(C146),"",IF(MONTH(C146)=MONTH(DATEVALUE(TEXT(DATE(2000,MONTH(DATEVALUE($E$7&" 1"))+2,1),"mmmm")&" 1")),E146/F141*E141,"")) ->  | N146: =IF(ISBLANK(C146),"",IF(MONTH(C146)=MONTH(DATEVALUE(TEXT(DATE(2000,MONTH(DATEVALUE($E$7&" 1"))+3,1),"mmmm")&" 1")),E146/F141*E141,"")) ->  | O146: =IF(ISBLANK(C146),"",IF(MONTH(C146)=MONTH(DATEVALUE(TEXT(DATE(2000,MONTH(DATEVALUE($E$7&" 1"))+4,1),"mmmm")&" 1")),E146/F141*E141,"")) ->  | P146: =IF(ISBLANK(C146),"",IF(MONTH(C146)=MONTH(DATEVALUE(TEXT(DATE(2000,MONTH(DATEVALUE($E$7&" 1"))+5,1),"mmmm")&" 1")),E146/F141*E141,"")) ->  | Q146: =IF(ISBLANK(C146),"",IF(MONTH(C146)=MONTH(DATEVALUE(TEXT(DATE(2000,MONTH(DATEVALUE($E$7&" 1"))+6,1),"mmmm")&" 1")),E146/F141*E141,"")) ->  | R146: =IF(ISBLANK(C146),"",IF(MONTH(C146)=MONTH(DATEVALUE(TEXT(DATE(2000,MONTH(DATEVALUE($E$7&" 1"))+7,1),"mmmm")&" 1")),E146/F141*E141,"")) ->  | S146: =IF(ISBLANK(C146),"",IF(MONTH(C146)=MONTH(DATEVALUE(TEXT(DATE(2000,MONTH(DATEVALUE($E$7&" 1"))+8,1),"mmmm")&" 1")),E146/F141*E141,"")) ->  | T146: =IF(ISBLANK(C146),"",IF(MONTH(C146)=MONTH(DATEVALUE(TEXT(DATE(2000,MONTH(DATEVALUE($E$7&" 1"))+9,1),"mmmm")&" 1")),E146/F141*E141,"")) ->  | U146: =IF(ISBLANK(C146),"",IF(MONTH(C146)=MONTH(DATEVALUE(TEXT(DATE(2000,MONTH(DATEVALUE($E$7&" 1"))+10,1),"mmmm")&" 1")),E146/F141*E141,"")) ->  | V146: =IF(ISBLANK(C146),"",IF(MONTH(C146)=MONTH(DATEVALUE(TEXT(DATE(2000,MONTH(DATEVALUE($E$7&" 1"))+11,1),"mmmm")&" 1")),E146/F141*E141,"")) -> 
I147: 0 | K147: =IF(ISBLANK(C147),"",IF(MONTH(C147)=MONTH(DATEVALUE($E$7&" 1")),E147/F141*E141,"")) ->  | L147: =IF(ISBLANK(C147),"",IF(MONTH(C147)=MONTH(DATEVALUE(TEXT(DATE(2000,MONTH(DATEVALUE($E$7&" 1"))+1,1),"mmmm")&" 1")),E147/F141*E141,"")) ->  | M147: =IF(ISBLANK(C147),"",IF(MONTH(C147)=MONTH(DATEVALUE(TEXT(DATE(2000,MONTH(DATEVALUE($E$7&" 1"))+2,1),"mmmm")&" 1")),E147/F141*E141,"")) ->  | N147: =IF(ISBLANK(C147),"",IF(MONTH(C147)=MONTH(DATEVALUE(TEXT(DATE(2000,MONTH(DATEVALUE($E$7&" 1"))+3,1),"mmmm")&" 1")),E147/F141*E141,"")) ->  | O147: =IF(ISBLANK(C147),"",IF(MONTH(C147)=MONTH(DATEVALUE(TEXT(DATE(2000,MONTH(DATEVALUE($E$7&" 1"))+4,1),"mmmm")&" 1")),E147/F141*E141,"")) ->  | P147: =IF(ISBLANK(C147),"",IF(MONTH(C147)=MONTH(DATEVALUE(TEXT(DATE(2000,MONTH(DATEVALUE($E$7&" 1"))+5,1),"mmmm")&" 1")),E147/F141*E141,"")) ->  | Q147: =IF(ISBLANK(C147),"",IF(MONTH(C147)=MONTH(DATEVALUE(TEXT(DATE(2000,MONTH(DATEVALUE($E$7&" 1"))+6,1),"mmmm")&" 1")),E147/F141*E141,"")) ->  | R147: =IF(ISBLANK(C147),"",IF(MONTH(C147)=MONTH(DATEVALUE(TEXT(DATE(2000,MONTH(DATEVALUE($E$7&" 1"))+7,1),"mmmm")&" 1")),E147/F141*E141,"")) ->  | S147: =IF(ISBLANK(C147),"",IF(MONTH(C147)=MONTH(DATEVALUE(TEXT(DATE(2000,MONTH(DATEVALUE($E$7&" 1"))+8,1),"mmmm")&" 1")),E147/F141*E141,"")) ->  | T147: =IF(ISBLANK(C147),"",IF(MONTH(C147)=MONTH(DATEVALUE(TEXT(DATE(2000,MONTH(DATEVALUE($E$7&" 1"))+9,1),"mmmm")&" 1")),E147/F141*E141,"")) ->  | U147: =IF(ISBLANK(C147),"",IF(MONTH(C147)=MONTH(DATEVALUE(TEXT(DATE(2000,MONTH(DATEVALUE($E$7&" 1"))+10,1),"mmmm")&" 1")),E147/F141*E141,"")) ->  | V147: =IF(ISBLANK(C147),"",IF(MONTH(C147)=MONTH(DATEVALUE(TEXT(DATE(2000,MONTH(DATEVALUE($E$7&" 1"))+11,1),"mmmm")&" 1")),E147/F141*E141,"")) -> 
I148: 0 | K148: =IF(ISBLANK(C148),"",IF(MONTH(C148)=MONTH(DATEVALUE($E$7&" 1")),E148/F141*E141,"")) ->  | L148: =IF(ISBLANK(C148),"",IF(MONTH(C148)=MONTH(DATEVALUE(TEXT(DATE(2000,MONTH(DATEVALUE($E$7&" 1"))+1,1),"mmmm")&" 1")),E148/F141*E141,"")) ->  | M148: =IF(ISBLANK(C148),"",IF(MONTH(C148)=MONTH(DATEVALUE(TEXT(DATE(2000,MONTH(DATEVALUE($E$7&" 1"))+2,1),"mmmm")&" 1")),E148/F141*E141,"")) ->  | N148: =IF(ISBLANK(C148),"",IF(MONTH(C148)=MONTH(DATEVALUE(TEXT(DATE(2000,MONTH(DATEVALUE($E$7&" 1"))+3,1),"mmmm")&" 1")),E148/F141*E141,"")) ->  | O148: =IF(ISBLANK(C148),"",IF(MONTH(C148)=MONTH(DATEVALUE(TEXT(DATE(2000,MONTH(DATEVALUE($E$7&" 1"))+4,1),"mmmm")&" 1")),E148/F141*E141,"")) ->  | P148: =IF(ISBLANK(C148),"",IF(MONTH(C148)=MONTH(DATEVALUE(TEXT(DATE(2000,MONTH(DATEVALUE($E$7&" 1"))+5,1),"mmmm")&" 1")),E148/F141*E141,"")) ->  | Q148: =IF(ISBLANK(C148),"",IF(MONTH(C148)=MONTH(DATEVALUE(TEXT(DATE(2000,MONTH(DATEVALUE($E$7&" 1"))+6,1),"mmmm")&" 1")),E148/F141*E141,"")) ->  | R148: =IF(ISBLANK(C148),"",IF(MONTH(C148)=MONTH(DATEVALUE(TEXT(DATE(2000,MONTH(DATEVALUE($E$7&" 1"))+7,1),"mmmm")&" 1")),E148/F141*E141,"")) ->  | S148: =IF(ISBLANK(C148),"",IF(MONTH(C148)=MONTH(DATEVALUE(TEXT(DATE(2000,MONTH(DATEVALUE($E$7&" 1"))+8,1),"mmmm")&" 1")),E148/F141*E141,"")) ->  | T148: =IF(ISBLANK(C148),"",IF(MONTH(C148)=MONTH(DATEVALUE(TEXT(DATE(2000,MONTH(DATEVALUE($E$7&" 1"))+9,1),"mmmm")&" 1")),E148/F141*E141,"")) ->  | U148: =IF(ISBLANK(C148),"",IF(MONTH(C148)=MONTH(DATEVALUE(TEXT(DATE(2000,MONTH(DATEVALUE($E$7&" 1"))+10,1),"mmmm")&" 1")),E148/F141*E141,"")) ->  | V148: =IF(ISBLANK(C148),"",IF(MONTH(C148)=MONTH(DATEVALUE(TEXT(DATE(2000,MONTH(DATEVALUE($E$7&" 1"))+11,1),"mmmm")&" 1")),E148/F141*E141,"")) -> 
I149: 0 | K149: =IF(ISBLANK(C149),"",IF(MONTH(C149)=MONTH(DATEVALUE($E$7&" 1")),E149/F141*E141,"")) ->  | L149: =IF(ISBLANK(C149),"",IF(MONTH(C149)=MONTH(DATEVALUE(TEXT(DATE(2000,MONTH(DATEVALUE($E$7&" 1"))+1,1),"mmmm")&" 1")),E149/F141*E141,"")) ->  | M149: =IF(ISBLANK(C149),"",IF(MONTH(C149)=MONTH(DATEVALUE(TEXT(DATE(2000,MONTH(DATEVALUE($E$7&" 1"))+2,1),"mmmm")&" 1")),E149/F141*E141,"")) ->  | N149: =IF(ISBLANK(C149),"",IF(MONTH(C149)=MONTH(DATEVALUE(TEXT(DATE(2000,MONTH(DATEVALUE($E$7&" 1"))+3,1),"mmmm")&" 1")),E149/F141*E141,"")) ->  | O149: =IF(ISBLANK(C149),"",IF(MONTH(C149)=MONTH(DATEVALUE(TEXT(DATE(2000,MONTH(DATEVALUE($E$7&" 1"))+4,1),"mmmm")&" 1")),E149/F141*E141,"")) ->  | P149: =IF(ISBLANK(C149),"",IF(MONTH(C149)=MONTH(DATEVALUE(TEXT(DATE(2000,MONTH(DATEVALUE($E$7&" 1"))+5,1),"mmmm")&" 1")),E149/F141*E141,"")) ->  | Q149: =IF(ISBLANK(C149),"",IF(MONTH(C149)=MONTH(DATEVALUE(TEXT(DATE(2000,MONTH(DATEVALUE($E$7&" 1"))+6,1),"mmmm")&" 1")),E149/F141*E141,"")) ->  | R149: =IF(ISBLANK(C149),"",IF(MONTH(C149)=MONTH(DATEVALUE(TEXT(DATE(2000,MONTH(DATEVALUE($E$7&" 1"))+7,1),"mmmm")&" 1")),E149/F141*E141,"")) ->  | S149: =IF(ISBLANK(C149),"",IF(MONTH(C149)=MONTH(DATEVALUE(TEXT(DATE(2000,MONTH(DATEVALUE($E$7&" 1"))+8,1),"mmmm")&" 1")),E149/F141*E141,"")) ->  | T149: =IF(ISBLANK(C149),"",IF(MONTH(C149)=MONTH(DATEVALUE(TEXT(DATE(2000,MONTH(DATEVALUE($E$7&" 1"))+9,1),"mmmm")&" 1")),E149/F141*E141,"")) ->  | U149: =IF(ISBLANK(C149),"",IF(MONTH(C149)=MONTH(DATEVALUE(TEXT(DATE(2000,MONTH(DATEVALUE($E$7&" 1"))+10,1),"mmmm")&" 1")),E149/F141*E141,"")) ->  | V149: =IF(ISBLANK(C149),"",IF(MONTH(C149)=MONTH(DATEVALUE(TEXT(DATE(2000,MONTH(DATEVALUE($E$7&" 1"))+11,1),"mmmm")&" 1")),E149/F141*E141,"")) -> 
I150: 0 | K150: =IF(ISBLANK(C150),"",IF(MONTH(C150)=MONTH(DATEVALUE($E$7&" 1")),E150/F141*E141,"")) ->  | L150: =IF(ISBLANK(C150),"",IF(MONTH(C150)=MONTH(DATEVALUE(TEXT(DATE(2000,MONTH(DATEVALUE($E$7&" 1"))+1,1),"mmmm")&" 1")),E150/F141*E141,"")) ->  | M150: =IF(ISBLANK(C150),"",IF(MONTH(C150)=MONTH(DATEVALUE(TEXT(DATE(2000,MONTH(DATEVALUE($E$7&" 1"))+2,1),"mmmm")&" 1")),E150/F141*E141,"")) ->  | N150: =IF(ISBLANK(C150),"",IF(MONTH(C150)=MONTH(DATEVALUE(TEXT(DATE(2000,MONTH(DATEVALUE($E$7&" 1"))+3,1),"mmmm")&" 1")),E150/F141*E141,"")) ->  | O150: =IF(ISBLANK(C150),"",IF(MONTH(C150)=MONTH(DATEVALUE(TEXT(DATE(2000,MONTH(DATEVALUE($E$7&" 1"))+4,1),"mmmm")&" 1")),E150/F141*E141,"")) ->  | P150: =IF(ISBLANK(C150),"",IF(MONTH(C150)=MONTH(DATEVALUE(TEXT(DATE(2000,MONTH(DATEVALUE($E$7&" 1"))+5,1),"mmmm")&" 1")),E150/F141*E141,"")) ->  | Q150: =IF(ISBLANK(C150),"",IF(MONTH(C150)=MONTH(DATEVALUE(TEXT(DATE(2000,MONTH(DATEVALUE($E$7&" 1"))+6,1),"mmmm")&" 1")),E150/F141*E141,"")) ->  | R150: =IF(ISBLANK(C150),"",IF(MONTH(C150)=MONTH(DATEVALUE(TEXT(DATE(2000,MONTH(DATEVALUE($E$7&" 1"))+7,1),"mmmm")&" 1")),E150/F141*E141,"")) ->  | S150: =IF(ISBLANK(C150),"",IF(MONTH(C150)=MONTH(DATEVALUE(TEXT(DATE(2000,MONTH(DATEVALUE($E$7&" 1"))+8,1),"mmmm")&" 1")),E150/F141*E141,"")) ->  | T150: =IF(ISBLANK(C150),"",IF(MONTH(C150)=MONTH(DATEVALUE(TEXT(DATE(2000,MONTH(DATEVALUE($E$7&" 1"))+9,1),"mmmm")&" 1")),E150/F141*E141,"")) ->  | U150: =IF(ISBLANK(C150),"",IF(MONTH(C150)=MONTH(DATEVALUE(TEXT(DATE(2000,MONTH(DATEVALUE($E$7&" 1"))+10,1),"mmmm")&" 1")),E150/F141*E141,"")) ->  | V150: =IF(ISBLANK(C150),"",IF(MONTH(C150)=MONTH(DATEVALUE(TEXT(DATE(2000,MONTH(DATEVALUE($E$7&" 1"))+11,1),"mmmm")&" 1")),E150/F141*E141,"")) -> 
I151: 0 | K151: =IF(ISBLANK(C151),"",IF(MONTH(C151)=MONTH(DATEVALUE($E$7&" 1")),E151/F141*E141,"")) ->  | L151: =IF(ISBLANK(C151),"",IF(MONTH(C151)=MONTH(DATEVALUE(TEXT(DATE(2000,MONTH(DATEVALUE($E$7&" 1"))+1,1),"mmmm")&" 1")),E151/F141*E141,"")) ->  | M151: =IF(ISBLANK(C151),"",IF(MONTH(C151)=MONTH(DATEVALUE(TEXT(DATE(2000,MONTH(DATEVALUE($E$7&" 1"))+2,1),"mmmm")&" 1")),E151/F141*E141,"")) ->  | N151: =IF(ISBLANK(C151),"",IF(MONTH(C151)=MONTH(DATEVALUE(TEXT(DATE(2000,MONTH(DATEVALUE($E$7&" 1"))+3,1),"mmmm")&" 1")),E151/F141*E141,"")) ->  | O151: =IF(ISBLANK(C151),"",IF(MONTH(C151)=MONTH(DATEVALUE(TEXT(DATE(2000,MONTH(DATEVALUE($E$7&" 1"))+4,1),"mmmm")&" 1")),E151/F141*E141,"")) ->  | P151: =IF(ISBLANK(C151),"",IF(MONTH(C151)=MONTH(DATEVALUE(TEXT(DATE(2000,MONTH(DATEVALUE($E$7&" 1"))+5,1),"mmmm")&" 1")),E151/F141*E141,"")) ->  | Q151: =IF(ISBLANK(C151),"",IF(MONTH(C151)=MONTH(DATEVALUE(TEXT(DATE(2000,MONTH(DATEVALUE($E$7&" 1"))+6,1),"mmmm")&" 1")),E151/F141*E141,"")) ->  | R151: =IF(ISBLANK(C151),"",IF(MONTH(C151)=MONTH(DATEVALUE(TEXT(DATE(2000,MONTH(DATEVALUE($E$7&" 1"))+7,1),"mmmm")&" 1")),E151/F141*E141,"")) ->  | S151: =IF(ISBLANK(C151),"",IF(MONTH(C151)=MONTH(DATEVALUE(TEXT(DATE(2000,MONTH(DATEVALUE($E$7&" 1"))+8,1),"mmmm")&" 1")),E151/F141*E141,"")) ->  | T151: =IF(ISBLANK(C151),"",IF(MONTH(C151)=MONTH(DATEVALUE(TEXT(DATE(2000,MONTH(DATEVALUE($E$7&" 1"))+9,1),"mmmm")&" 1")),E151/F141*E141,"")) ->  | U151: =IF(ISBLANK(C151),"",IF(MONTH(C151)=MONTH(DATEVALUE(TEXT(DATE(2000,MONTH(DATEVALUE($E$7&" 1"))+10,1),"mmmm")&" 1")),E151/F141*E141,"")) ->  | V151: =IF(ISBLANK(C151),"",IF(MONTH(C151)=MONTH(DATEVALUE(TEXT(DATE(2000,MONTH(DATEVALUE($E$7&" 1"))+11,1),"mmmm")&" 1")),E151/F141*E141,"")) -> 
I152: 0 | K152: =IF(ISBLANK(C152),"",IF(MONTH(C152)=MONTH(DATEVALUE($E$7&" 1")),E152/F141*E141,"")) ->  | L152: =IF(ISBLANK(C152),"",IF(MONTH(C152)=MONTH(DATEVALUE(TEXT(DATE(2000,MONTH(DATEVALUE($E$7&" 1"))+1,1),"mmmm")&" 1")),E152/F141*E141,"")) ->  | M152: =IF(ISBLANK(C152),"",IF(MONTH(C152)=MONTH(DATEVALUE(TEXT(DATE(2000,MONTH(DATEVALUE($E$7&" 1"))+2,1),"mmmm")&" 1")),E152/F141*E141,"")) ->  | N152: =IF(ISBLANK(C152),"",IF(MONTH(C152)=MONTH(DATEVALUE(TEXT(DATE(2000,MONTH(DATEVALUE($E$7&" 1"))+3,1),"mmmm")&" 1")),E152/F141*E141,"")) ->  | O152: =IF(ISBLANK(C152),"",IF(MONTH(C152)=MONTH(DATEVALUE(TEXT(DATE(2000,MONTH(DATEVALUE($E$7&" 1"))+4,1),"mmmm")&" 1")),E152/F141*E141,"")) ->  | P152: =IF(ISBLANK(C152),"",IF(MONTH(C152)=MONTH(DATEVALUE(TEXT(DATE(2000,MONTH(DATEVALUE($E$7&" 1"))+5,1),"mmmm")&" 1")),E152/F141*E141,"")) ->  | Q152: =IF(ISBLANK(C152),"",IF(MONTH(C152)=MONTH(DATEVALUE(TEXT(DATE(2000,MONTH(DATEVALUE($E$7&" 1"))+6,1),"mmmm")&" 1")),E152/F141*E141,"")) ->  | R152: =IF(ISBLANK(C152),"",IF(MONTH(C152)=MONTH(DATEVALUE(TEXT(DATE(2000,MONTH(DATEVALUE($E$7&" 1"))+7,1),"mmmm")&" 1")),E152/F141*E141,"")) ->  | S152: =IF(ISBLANK(C152),"",IF(MONTH(C152)=MONTH(DATEVALUE(TEXT(DATE(2000,MONTH(DATEVALUE($E$7&" 1"))+8,1),"mmmm")&" 1")),E152/F141*E141,"")) ->  | T152: =IF(ISBLANK(C152),"",IF(MONTH(C152)=MONTH(DATEVALUE(TEXT(DATE(2000,MONTH(DATEVALUE($E$7&" 1"))+9,1),"mmmm")&" 1")),E152/F141*E141,"")) ->  | U152: =IF(ISBLANK(C152),"",IF(MONTH(C152)=MONTH(DATEVALUE(TEXT(DATE(2000,MONTH(DATEVALUE($E$7&" 1"))+10,1),"mmmm")&" 1")),E152/F141*E141,"")) ->  | V152: =IF(ISBLANK(C152),"",IF(MONTH(C152)=MONTH(DATEVALUE(TEXT(DATE(2000,MONTH(DATEVALUE($E$7&" 1"))+11,1),"mmmm")&" 1")),E152/F141*E141,"")) -> 
H153: =IFERROR(I153/E153,0) -> 0 | I153: =SUM(I154:J164) -> 0 | W153: =IF(H153<>100%,"Pas ok","ok") -> Pas ok
B154: =$B$10 -> réf. Facture | C154: =$C$10 -> date facture | D154: =$D$10 -> Description facture | E154: =$E$10 -> Montant facture (HTVA)
I155: =SUM(K155:V155) -> 0 | K155: =IF(ISBLANK(C155),"",IF(MONTH(C155)=MONTH(DATEVALUE($E$7&" 1")),E155/F153*E153,"")) ->  | L155: =IF(ISBLANK(C155),"",IF(MONTH(C155)=MONTH(DATEVALUE(TEXT(DATE(2000,MONTH(DATEVALUE($E$7&" 1"))+1,1),"mmmm")&" 1")),E155/F153*E153,"")) ->  | M155: =IF(ISBLANK(C155),"",IF(MONTH(C155)=MONTH(DATEVALUE(TEXT(DATE(2000,MONTH(DATEVALUE($E$7&" 1"))+2,1),"mmmm")&" 1")),E155/F153*E153,"")) ->  | N155: =IF(ISBLANK(C155),"",IF(MONTH(C155)=MONTH(DATEVALUE(TEXT(DATE(2000,MONTH(DATEVALUE($E$7&" 1"))+3,1),"mmmm")&" 1")),E155/F153*E153,"")) ->  | O155: =IF(ISBLANK(C155),"",IF(MONTH(C155)=MONTH(DATEVALUE(TEXT(DATE(2000,MONTH(DATEVALUE($E$7&" 1"))+4,1),"mmmm")&" 1")),E155/F153*E153,"")) ->  | P155: =IF(ISBLANK(C155),"",IF(MONTH(C155)=MONTH(DATEVALUE(TEXT(DATE(2000,MONTH(DATEVALUE($E$7&" 1"))+5,1),"mmmm")&" 1")),E155/F153*E153,"")) ->  | Q155: =IF(ISBLANK(C155),"",IF(MONTH(C155)=MONTH(DATEVALUE(TEXT(DATE(2000,MONTH(DATEVALUE($E$7&" 1"))+6,1),"mmmm")&" 1")),E155/F153*E153,"")) ->  | R155: =IF(ISBLANK(C155),"",IF(MONTH(C155)=MONTH(DATEVALUE(TEXT(DATE(2000,MONTH(DATEVALUE($E$7&" 1"))+7,1),"mmmm")&" 1")),E155/F153*E153,"")) ->  | S155: =IF(ISBLANK(C155),"",IF(MONTH(C155)=MONTH(DATEVALUE(TEXT(DATE(2000,MONTH(DATEVALUE($E$7&" 1"))+8,1),"mmmm")&" 1")),E155/F153*E153,"")) ->  | T155: =IF(ISBLANK(C155),"",IF(MONTH(C155)=MONTH(DATEVALUE(TEXT(DATE(2000,MONTH(DATEVALUE($E$7&" 1"))+9,1),"mmmm")&" 1")),E155/F153*E153,"")) ->  | U155: =IF(ISBLANK(C155),"",IF(MONTH(C155)=MONTH(DATEVALUE(TEXT(DATE(2000,MONTH(DATEVALUE($E$7&" 1"))+10,1),"mmmm")&" 1")),E155/F153*E153,"")) ->  | V155: =IF(ISBLANK(C155),"",IF(MONTH(C155)=MONTH(DATEVALUE(TEXT(DATE(2000,MONTH(DATEVALUE($E$7&" 1"))+11,1),"mmmm")&" 1")),E155/F153*E153,"")) -> 
I156: 0 | K156: =IF(ISBLANK(C156),"",IF(MONTH(C156)=MONTH(DATEVALUE($E$7&" 1")),E156/F153*E153,"")) ->  | L156: =IF(ISBLANK(C156),"",IF(MONTH(C156)=MONTH(DATEVALUE(TEXT(DATE(2000,MONTH(DATEVALUE($E$7&" 1"))+1,1),"mmmm")&" 1")),E156/F153*E153,"")) ->  | M156: =IF(ISBLANK(C156),"",IF(MONTH(C156)=MONTH(DATEVALUE(TEXT(DATE(2000,MONTH(DATEVALUE($E$7&" 1"))+2,1),"mmmm")&" 1")),E156/F153*E153,"")) ->  | N156: =IF(ISBLANK(C156),"",IF(MONTH(C156)=MONTH(DATEVALUE(TEXT(DATE(2000,MONTH(DATEVALUE($E$7&" 1"))+3,1),"mmmm")&" 1")),E156/F153*E153,"")) ->  | O156: =IF(ISBLANK(C156),"",IF(MONTH(C156)=MONTH(DATEVALUE(TEXT(DATE(2000,MONTH(DATEVALUE($E$7&" 1"))+4,1),"mmmm")&" 1")),E156/F153*E153,"")) ->  | P156: =IF(ISBLANK(C156),"",IF(MONTH(C156)=MONTH(DATEVALUE(TEXT(DATE(2000,MONTH(DATEVALUE($E$7&" 1"))+5,1),"mmmm")&" 1")),E156/F153*E153,"")) ->  | Q156: =IF(ISBLANK(C156),"",IF(MONTH(C156)=MONTH(DATEVALUE(TEXT(DATE(2000,MONTH(DATEVALUE($E$7&" 1"))+6,1),"mmmm")&" 1")),E156/F153*E153,"")) ->  | R156: =IF(ISBLANK(C156),"",IF(MONTH(C156)=MONTH(DATEVALUE(TEXT(DATE(2000,MONTH(DATEVALUE($E$7&" 1"))+7,1),"mmmm")&" 1")),E156/F153*E153,"")) ->  | S156: =IF(ISBLANK(C156),"",IF(MONTH(C156)=MONTH(DATEVALUE(TEXT(DATE(2000,MONTH(DATEVALUE($E$7&" 1"))+8,1),"mmmm")&" 1")),E156/F153*E153,"")) ->  | T156: =IF(ISBLANK(C156),"",IF(MONTH(C156)=MONTH(DATEVALUE(TEXT(DATE(2000,MONTH(DATEVALUE($E$7&" 1"))+9,1),"mmmm")&" 1")),E156/F153*E153,"")) ->  | U156: =IF(ISBLANK(C156),"",IF(MONTH(C156)=MONTH(DATEVALUE(TEXT(DATE(2000,MONTH(DATEVALUE($E$7&" 1"))+10,1),"mmmm")&" 1")),E156/F153*E153,"")) ->  | V156: =IF(ISBLANK(C156),"",IF(MONTH(C156)=MONTH(DATEVALUE(TEXT(DATE(2000,MONTH(DATEVALUE($E$7&" 1"))+11,1),"mmmm")&" 1")),E156/F153*E153,"")) -> 
I157: 0 | K157: =IF(ISBLANK(C157),"",IF(MONTH(C157)=MONTH(DATEVALUE($E$7&" 1")),E157/F153*E153,"")) ->  | L157: =IF(ISBLANK(C157),"",IF(MONTH(C157)=MONTH(DATEVALUE(TEXT(DATE(2000,MONTH(DATEVALUE($E$7&" 1"))+1,1),"mmmm")&" 1")),E157/F153*E153,"")) ->  | M157: =IF(ISBLANK(C157),"",IF(MONTH(C157)=MONTH(DATEVALUE(TEXT(DATE(2000,MONTH(DATEVALUE($E$7&" 1"))+2,1),"mmmm")&" 1")),E157/F153*E153,"")) ->  | N157: =IF(ISBLANK(C157),"",IF(MONTH(C157)=MONTH(DATEVALUE(TEXT(DATE(2000,MONTH(DATEVALUE($E$7&" 1"))+3,1),"mmmm")&" 1")),E157/F153*E153,"")) ->  | O157: =IF(ISBLANK(C157),"",IF(MONTH(C157)=MONTH(DATEVALUE(TEXT(DATE(2000,MONTH(DATEVALUE($E$7&" 1"))+4,1),"mmmm")&" 1")),E157/F153*E153,"")) ->  | P157: =IF(ISBLANK(C157),"",IF(MONTH(C157)=MONTH(DATEVALUE(TEXT(DATE(2000,MONTH(DATEVALUE($E$7&" 1"))+5,1),"mmmm")&" 1")),E157/F153*E153,"")) ->  | Q157: =IF(ISBLANK(C157),"",IF(MONTH(C157)=MONTH(DATEVALUE(TEXT(DATE(2000,MONTH(DATEVALUE($E$7&" 1"))+6,1),"mmmm")&" 1")),E157/F153*E153,"")) ->  | R157: =IF(ISBLANK(C157),"",IF(MONTH(C157)=MONTH(DATEVALUE(TEXT(DATE(2000,MONTH(DATEVALUE($E$7&" 1"))+7,1),"mmmm")&" 1")),E157/F153*E153,"")) ->  | S157: =IF(ISBLANK(C157),"",IF(MONTH(C157)=MONTH(DATEVALUE(TEXT(DATE(2000,MONTH(DATEVALUE($E$7&" 1"))+8,1),"mmmm")&" 1")),E157/F153*E153,"")) ->  | T157: =IF(ISBLANK(C157),"",IF(MONTH(C157)=MONTH(DATEVALUE(TEXT(DATE(2000,MONTH(DATEVALUE($E$7&" 1"))+9,1),"mmmm")&" 1")),E157/F153*E153,"")) ->  | U157: =IF(ISBLANK(C157),"",IF(MONTH(C157)=MONTH(DATEVALUE(TEXT(DATE(2000,MONTH(DATEVALUE($E$7&" 1"))+10,1),"mmmm")&" 1")),E157/F153*E153,"")) ->  | V157: =IF(ISBLANK(C157),"",IF(MONTH(C157)=MONTH(DATEVALUE(TEXT(DATE(2000,MONTH(DATEVALUE($E$7&" 1"))+11,1),"mmmm")&" 1")),E157/F153*E153,"")) -> 
I158: 0 | K158: =IF(ISBLANK(C158),"",IF(MONTH(C158)=MONTH(DATEVALUE($E$7&" 1")),E158/F153*E153,"")) ->  | L158: =IF(ISBLANK(C158),"",IF(MONTH(C158)=MONTH(DATEVALUE(TEXT(DATE(2000,MONTH(DATEVALUE($E$7&" 1"))+1,1),"mmmm")&" 1")),E158/F153*E153,"")) ->  | M158: =IF(ISBLANK(C158),"",IF(MONTH(C158)=MONTH(DATEVALUE(TEXT(DATE(2000,MONTH(DATEVALUE($E$7&" 1"))+2,1),"mmmm")&" 1")),E158/F153*E153,"")) ->  | N158: =IF(ISBLANK(C158),"",IF(MONTH(C158)=MONTH(DATEVALUE(TEXT(DATE(2000,MONTH(DATEVALUE($E$7&" 1"))+3,1),"mmmm")&" 1")),E158/F153*E153,"")) ->  | O158: =IF(ISBLANK(C158),"",IF(MONTH(C158)=MONTH(DATEVALUE(TEXT(DATE(2000,MONTH(DATEVALUE($E$7&" 1"))+4,1),"mmmm")&" 1")),E158/F153*E153,"")) ->  | P158: =IF(ISBLANK(C158),"",IF(MONTH(C158)=MONTH(DATEVALUE(TEXT(DATE(2000,MONTH(DATEVALUE($E$7&" 1"))+5,1),"mmmm")&" 1")),E158/F153*E153,"")) ->  | Q158: =IF(ISBLANK(C158),"",IF(MONTH(C158)=MONTH(DATEVALUE(TEXT(DATE(2000,MONTH(DATEVALUE($E$7&" 1"))+6,1),"mmmm")&" 1")),E158/F153*E153,"")) ->  | R158: =IF(ISBLANK(C158),"",IF(MONTH(C158)=MONTH(DATEVALUE(TEXT(DATE(2000,MONTH(DATEVALUE($E$7&" 1"))+7,1),"mmmm")&" 1")),E158/F153*E153,"")) ->  | S158: =IF(ISBLANK(C158),"",IF(MONTH(C158)=MONTH(DATEVALUE(TEXT(DATE(2000,MONTH(DATEVALUE($E$7&" 1"))+8,1),"mmmm")&" 1")),E158/F153*E153,"")) ->  | T158: =IF(ISBLANK(C158),"",IF(MONTH(C158)=MONTH(DATEVALUE(TEXT(DATE(2000,MONTH(DATEVALUE($E$7&" 1"))+9,1),"mmmm")&" 1")),E158/F153*E153,"")) ->  | U158: =IF(ISBLANK(C158),"",IF(MONTH(C158)=MONTH(DATEVALUE(TEXT(DATE(2000,MONTH(DATEVALUE($E$7&" 1"))+10,1),"mmmm")&" 1")),E158/F153*E153,"")) ->  | V158: =IF(ISBLANK(C158),"",IF(MONTH(C158)=MONTH(DATEVALUE(TEXT(DATE(2000,MONTH(DATEVALUE($E$7&" 1"))+11,1),"mmmm")&" 1")),E158/F153*E153,"")) -> 
I159: 0 | K159: =IF(ISBLANK(C159),"",IF(MONTH(C159)=MONTH(DATEVALUE($E$7&" 1")),E159/F153*E153,"")) ->  | L159: =IF(ISBLANK(C159),"",IF(MONTH(C159)=MONTH(DATEVALUE(TEXT(DATE(2000,MONTH(DATEVALUE($E$7&" 1"))+1,1),"mmmm")&" 1")),E159/F153*E153,"")) ->  | M159: =IF(ISBLANK(C159),"",IF(MONTH(C159)=MONTH(DATEVALUE(TEXT(DATE(2000,MONTH(DATEVALUE($E$7&" 1"))+2,1),"mmmm")&" 1")),E159/F153*E153,"")) ->  | N159: =IF(ISBLANK(C159),"",IF(MONTH(C159)=MONTH(DATEVALUE(TEXT(DATE(2000,MONTH(DATEVALUE($E$7&" 1"))+3,1),"mmmm")&" 1")),E159/F153*E153,"")) ->  | O159: =IF(ISBLANK(C159),"",IF(MONTH(C159)=MONTH(DATEVALUE(TEXT(DATE(2000,MONTH(DATEVALUE($E$7&" 1"))+4,1),"mmmm")&" 1")),E159/F153*E153,"")) ->  | P159: =IF(ISBLANK(C159),"",IF(MONTH(C159)=MONTH(DATEVALUE(TEXT(DATE(2000,MONTH(DATEVALUE($E$7&" 1"))+5,1),"mmmm")&" 1")),E159/F153*E153,"")) ->  | Q159: =IF(ISBLANK(C159),"",IF(MONTH(C159)=MONTH(DATEVALUE(TEXT(DATE(2000,MONTH(DATEVALUE($E$7&" 1"))+6,1),"mmmm")&" 1")),E159/F153*E153,"")) ->  | R159: =IF(ISBLANK(C159),"",IF(MONTH(C159)=MONTH(DATEVALUE(TEXT(DATE(2000,MONTH(DATEVALUE($E$7&" 1"))+7,1),"mmmm")&" 1")),E159/F153*E153,"")) ->  | S159: =IF(ISBLANK(C159),"",IF(MONTH(C159)=MONTH(DATEVALUE(TEXT(DATE(2000,MONTH(DATEVALUE($E$7&" 1"))+8,1),"mmmm")&" 1")),E159/F153*E153,"")) ->  | T159: =IF(ISBLANK(C159),"",IF(MONTH(C159)=MONTH(DATEVALUE(TEXT(DATE(2000,MONTH(DATEVALUE($E$7&" 1"))+9,1),"mmmm")&" 1")),E159/F153*E153,"")) ->  | U159: =IF(ISBLANK(C159),"",IF(MONTH(C159)=MONTH(DATEVALUE(TEXT(DATE(2000,MONTH(DATEVALUE($E$7&" 1"))+10,1),"mmmm")&" 1")),E159/F153*E153,"")) ->  | V159: =IF(ISBLANK(C159),"",IF(MONTH(C159)=MONTH(DATEVALUE(TEXT(DATE(2000,MONTH(DATEVALUE($E$7&" 1"))+11,1),"mmmm")&" 1")),E159/F153*E153,"")) -> 
I160: 0 | K160: =IF(ISBLANK(C160),"",IF(MONTH(C160)=MONTH(DATEVALUE($E$7&" 1")),E160/F153*E153,"")) ->  | L160: =IF(ISBLANK(C160),"",IF(MONTH(C160)=MONTH(DATEVALUE(TEXT(DATE(2000,MONTH(DATEVALUE($E$7&" 1"))+1,1),"mmmm")&" 1")),E160/F153*E153,"")) ->  | M160: =IF(ISBLANK(C160),"",IF(MONTH(C160)=MONTH(DATEVALUE(TEXT(DATE(2000,MONTH(DATEVALUE($E$7&" 1"))+2,1),"mmmm")&" 1")),E160/F153*E153,"")) ->  | N160: =IF(ISBLANK(C160),"",IF(MONTH(C160)=MONTH(DATEVALUE(TEXT(DATE(2000,MONTH(DATEVALUE($E$7&" 1"))+3,1),"mmmm")&" 1")),E160/F153*E153,"")) ->  | O160: =IF(ISBLANK(C160),"",IF(MONTH(C160)=MONTH(DATEVALUE(TEXT(DATE(2000,MONTH(DATEVALUE($E$7&" 1"))+4,1),"mmmm")&" 1")),E160/F153*E153,"")) ->  | P160: =IF(ISBLANK(C160),"",IF(MONTH(C160)=MONTH(DATEVALUE(TEXT(DATE(2000,MONTH(DATEVALUE($E$7&" 1"))+5,1),"mmmm")&" 1")),E160/F153*E153,"")) ->  | Q160: =IF(ISBLANK(C160),"",IF(MONTH(C160)=MONTH(DATEVALUE(TEXT(DATE(2000,MONTH(DATEVALUE($E$7&" 1"))+6,1),"mmmm")&" 1")),E160/F153*E153,"")) ->  | R160: =IF(ISBLANK(C160),"",IF(MONTH(C160)=MONTH(DATEVALUE(TEXT(DATE(2000,MONTH(DATEVALUE($E$7&" 1"))+7,1),"mmmm")&" 1")),E160/F153*E153,"")) ->  | S160: =IF(ISBLANK(C160),"",IF(MONTH(C160)=MONTH(DATEVALUE(TEXT(DATE(2000,MONTH(DATEVALUE($E$7&" 1"))+8,1),"mmmm")&" 1")),E160/F153*E153,"")) ->  | T160: =IF(ISBLANK(C160),"",IF(MONTH(C160)=MONTH(DATEVALUE(TEXT(DATE(2000,MONTH(DATEVALUE($E$7&" 1"))+9,1),"mmmm")&" 1")),E160/F153*E153,"")) ->  | U160: =IF(ISBLANK(C160),"",IF(MONTH(C160)=MONTH(DATEVALUE(TEXT(DATE(2000,MONTH(DATEVALUE($E$7&" 1"))+10,1),"mmmm")&" 1")),E160/F153*E153,"")) ->  | V160: =IF(ISBLANK(C160),"",IF(MONTH(C160)=MONTH(DATEVALUE(TEXT(DATE(2000,MONTH(DATEVALUE($E$7&" 1"))+11,1),"mmmm")&" 1")),E160/F153*E153,"")) -> 
I161: 0 | K161: =IF(ISBLANK(C161),"",IF(MONTH(C161)=MONTH(DATEVALUE($E$7&" 1")),E161/F153*E153,"")) ->  | L161: =IF(ISBLANK(C161),"",IF(MONTH(C161)=MONTH(DATEVALUE(TEXT(DATE(2000,MONTH(DATEVALUE($E$7&" 1"))+1,1),"mmmm")&" 1")),E161/F153*E153,"")) ->  | M161: =IF(ISBLANK(C161),"",IF(MONTH(C161)=MONTH(DATEVALUE(TEXT(DATE(2000,MONTH(DATEVALUE($E$7&" 1"))+2,1),"mmmm")&" 1")),E161/F153*E153,"")) ->  | N161: =IF(ISBLANK(C161),"",IF(MONTH(C161)=MONTH(DATEVALUE(TEXT(DATE(2000,MONTH(DATEVALUE($E$7&" 1"))+3,1),"mmmm")&" 1")),E161/F153*E153,"")) ->  | O161: =IF(ISBLANK(C161),"",IF(MONTH(C161)=MONTH(DATEVALUE(TEXT(DATE(2000,MONTH(DATEVALUE($E$7&" 1"))+4,1),"mmmm")&" 1")),E161/F153*E153,"")) ->  | P161: =IF(ISBLANK(C161),"",IF(MONTH(C161)=MONTH(DATEVALUE(TEXT(DATE(2000,MONTH(DATEVALUE($E$7&" 1"))+5,1),"mmmm")&" 1")),E161/F153*E153,"")) ->  | Q161: =IF(ISBLANK(C161),"",IF(MONTH(C161)=MONTH(DATEVALUE(TEXT(DATE(2000,MONTH(DATEVALUE($E$7&" 1"))+6,1),"mmmm")&" 1")),E161/F153*E153,"")) ->  | R161: =IF(ISBLANK(C161),"",IF(MONTH(C161)=MONTH(DATEVALUE(TEXT(DATE(2000,MONTH(DATEVALUE($E$7&" 1"))+7,1),"mmmm")&" 1")),E161/F153*E153,"")) ->  | S161: =IF(ISBLANK(C161),"",IF(MONTH(C161)=MONTH(DATEVALUE(TEXT(DATE(2000,MONTH(DATEVALUE($E$7&" 1"))+8,1),"mmmm")&" 1")),E161/F153*E153,"")) ->  | T161: =IF(ISBLANK(C161),"",IF(MONTH(C161)=MONTH(DATEVALUE(TEXT(DATE(2000,MONTH(DATEVALUE($E$7&" 1"))+9,1),"mmmm")&" 1")),E161/F153*E153,"")) ->  | U161: =IF(ISBLANK(C161),"",IF(MONTH(C161)=MONTH(DATEVALUE(TEXT(DATE(2000,MONTH(DATEVALUE($E$7&" 1"))+10,1),"mmmm")&" 1")),E161/F153*E153,"")) ->  | V161: =IF(ISBLANK(C161),"",IF(MONTH(C161)=MONTH(DATEVALUE(TEXT(DATE(2000,MONTH(DATEVALUE($E$7&" 1"))+11,1),"mmmm")&" 1")),E161/F153*E153,"")) -> 
I162: 0 | K162: =IF(ISBLANK(C162),"",IF(MONTH(C162)=MONTH(DATEVALUE($E$7&" 1")),E162/F153*E153,"")) ->  | L162: =IF(ISBLANK(C162),"",IF(MONTH(C162)=MONTH(DATEVALUE(TEXT(DATE(2000,MONTH(DATEVALUE($E$7&" 1"))+1,1),"mmmm")&" 1")),E162/F153*E153,"")) ->  | M162: =IF(ISBLANK(C162),"",IF(MONTH(C162)=MONTH(DATEVALUE(TEXT(DATE(2000,MONTH(DATEVALUE($E$7&" 1"))+2,1),"mmmm")&" 1")),E162/F153*E153,"")) ->  | N162: =IF(ISBLANK(C162),"",IF(MONTH(C162)=MONTH(DATEVALUE(TEXT(DATE(2000,MONTH(DATEVALUE($E$7&" 1"))+3,1),"mmmm")&" 1")),E162/F153*E153,"")) ->  | O162: =IF(ISBLANK(C162),"",IF(MONTH(C162)=MONTH(DATEVALUE(TEXT(DATE(2000,MONTH(DATEVALUE($E$7&" 1"))+4,1),"mmmm")&" 1")),E162/F153*E153,"")) ->  | P162: =IF(ISBLANK(C162),"",IF(MONTH(C162)=MONTH(DATEVALUE(TEXT(DATE(2000,MONTH(DATEVALUE($E$7&" 1"))+5,1),"mmmm")&" 1")),E162/F153*E153,"")) ->  | Q162: =IF(ISBLANK(C162),"",IF(MONTH(C162)=MONTH(DATEVALUE(TEXT(DATE(2000,MONTH(DATEVALUE($E$7&" 1"))+6,1),"mmmm")&" 1")),E162/F153*E153,"")) ->  | R162: =IF(ISBLANK(C162),"",IF(MONTH(C162)=MONTH(DATEVALUE(TEXT(DATE(2000,MONTH(DATEVALUE($E$7&" 1"))+7,1),"mmmm")&" 1")),E162/F153*E153,"")) ->  | S162: =IF(ISBLANK(C162),"",IF(MONTH(C162)=MONTH(DATEVALUE(TEXT(DATE(2000,MONTH(DATEVALUE($E$7&" 1"))+8,1),"mmmm")&" 1")),E162/F153*E153,"")) ->  | T162: =IF(ISBLANK(C162),"",IF(MONTH(C162)=MONTH(DATEVALUE(TEXT(DATE(2000,MONTH(DATEVALUE($E$7&" 1"))+9,1),"mmmm")&" 1")),E162/F153*E153,"")) ->  | U162: =IF(ISBLANK(C162),"",IF(MONTH(C162)=MONTH(DATEVALUE(TEXT(DATE(2000,MONTH(DATEVALUE($E$7&" 1"))+10,1),"mmmm")&" 1")),E162/F153*E153,"")) ->  | V162: =IF(ISBLANK(C162),"",IF(MONTH(C162)=MONTH(DATEVALUE(TEXT(DATE(2000,MONTH(DATEVALUE($E$7&" 1"))+11,1),"mmmm")&" 1")),E162/F153*E153,"")) -> 
I163: 0 | K163: =IF(ISBLANK(C163),"",IF(MONTH(C163)=MONTH(DATEVALUE($E$7&" 1")),E163/F153*E153,"")) ->  | L163: =IF(ISBLANK(C163),"",IF(MONTH(C163)=MONTH(DATEVALUE(TEXT(DATE(2000,MONTH(DATEVALUE($E$7&" 1"))+1,1),"mmmm")&" 1")),E163/F153*E153,"")) ->  | M163: =IF(ISBLANK(C163),"",IF(MONTH(C163)=MONTH(DATEVALUE(TEXT(DATE(2000,MONTH(DATEVALUE($E$7&" 1"))+2,1),"mmmm")&" 1")),E163/F153*E153,"")) ->  | N163: =IF(ISBLANK(C163),"",IF(MONTH(C163)=MONTH(DATEVALUE(TEXT(DATE(2000,MONTH(DATEVALUE($E$7&" 1"))+3,1),"mmmm")&" 1")),E163/F153*E153,"")) ->  | O163: =IF(ISBLANK(C163),"",IF(MONTH(C163)=MONTH(DATEVALUE(TEXT(DATE(2000,MONTH(DATEVALUE($E$7&" 1"))+4,1),"mmmm")&" 1")),E163/F153*E153,"")) ->  | P163: =IF(ISBLANK(C163),"",IF(MONTH(C163)=MONTH(DATEVALUE(TEXT(DATE(2000,MONTH(DATEVALUE($E$7&" 1"))+5,1),"mmmm")&" 1")),E163/F153*E153,"")) ->  | Q163: =IF(ISBLANK(C163),"",IF(MONTH(C163)=MONTH(DATEVALUE(TEXT(DATE(2000,MONTH(DATEVALUE($E$7&" 1"))+6,1),"mmmm")&" 1")),E163/F153*E153,"")) ->  | R163: =IF(ISBLANK(C163),"",IF(MONTH(C163)=MONTH(DATEVALUE(TEXT(DATE(2000,MONTH(DATEVALUE($E$7&" 1"))+7,1),"mmmm")&" 1")),E163/F153*E153,"")) ->  | S163: =IF(ISBLANK(C163),"",IF(MONTH(C163)=MONTH(DATEVALUE(TEXT(DATE(2000,MONTH(DATEVALUE($E$7&" 1"))+8,1),"mmmm")&" 1")),E163/F153*E153,"")) ->  | T163: =IF(ISBLANK(C163),"",IF(MONTH(C163)=MONTH(DATEVALUE(TEXT(DATE(2000,MONTH(DATEVALUE($E$7&" 1"))+9,1),"mmmm")&" 1")),E163/F153*E153,"")) ->  | U163: =IF(ISBLANK(C163),"",IF(MONTH(C163)=MONTH(DATEVALUE(TEXT(DATE(2000,MONTH(DATEVALUE($E$7&" 1"))+10,1),"mmmm")&" 1")),E163/F153*E153,"")) ->  | V163: =IF(ISBLANK(C163),"",IF(MONTH(C163)=MONTH(DATEVALUE(TEXT(DATE(2000,MONTH(DATEVALUE($E$7&" 1"))+11,1),"mmmm")&" 1")),E163/F153*E153,"")) -> 
I164: 0 | K164: =IF(ISBLANK(C164),"",IF(MONTH(C164)=MONTH(DATEVALUE($E$7&" 1")),E164/F153*E153,"")) ->  | L164: =IF(ISBLANK(C164),"",IF(MONTH(C164)=MONTH(DATEVALUE(TEXT(DATE(2000,MONTH(DATEVALUE($E$7&" 1"))+1,1),"mmmm")&" 1")),E164/F153*E153,"")) ->  | M164: =IF(ISBLANK(C164),"",IF(MONTH(C164)=MONTH(DATEVALUE(TEXT(DATE(2000,MONTH(DATEVALUE($E$7&" 1"))+2,1),"mmmm")&" 1")),E164/F153*E153,"")) ->  | N164: =IF(ISBLANK(C164),"",IF(MONTH(C164)=MONTH(DATEVALUE(TEXT(DATE(2000,MONTH(DATEVALUE($E$7&" 1"))+3,1),"mmmm")&" 1")),E164/F153*E153,"")) ->  | O164: =IF(ISBLANK(C164),"",IF(MONTH(C164)=MONTH(DATEVALUE(TEXT(DATE(2000,MONTH(DATEVALUE($E$7&" 1"))+4,1),"mmmm")&" 1")),E164/F153*E153,"")) ->  | P164: =IF(ISBLANK(C164),"",IF(MONTH(C164)=MONTH(DATEVALUE(TEXT(DATE(2000,MONTH(DATEVALUE($E$7&" 1"))+5,1),"mmmm")&" 1")),E164/F153*E153,"")) ->  | Q164: =IF(ISBLANK(C164),"",IF(MONTH(C164)=MONTH(DATEVALUE(TEXT(DATE(2000,MONTH(DATEVALUE($E$7&" 1"))+6,1),"mmmm")&" 1")),E164/F153*E153,"")) ->  | R164: =IF(ISBLANK(C164),"",IF(MONTH(C164)=MONTH(DATEVALUE(TEXT(DATE(2000,MONTH(DATEVALUE($E$7&" 1"))+7,1),"mmmm")&" 1")),E164/F153*E153,"")) ->  | S164: =IF(ISBLANK(C164),"",IF(MONTH(C164)=MONTH(DATEVALUE(TEXT(DATE(2000,MONTH(DATEVALUE($E$7&" 1"))+8,1),"mmmm")&" 1")),E164/F153*E153,"")) ->  | T164: =IF(ISBLANK(C164),"",IF(MONTH(C164)=MONTH(DATEVALUE(TEXT(DATE(2000,MONTH(DATEVALUE($E$7&" 1"))+9,1),"mmmm")&" 1")),E164/F153*E153,"")) ->  | U164: =IF(ISBLANK(C164),"",IF(MONTH(C164)=MONTH(DATEVALUE(TEXT(DATE(2000,MONTH(DATEVALUE($E$7&" 1"))+10,1),"mmmm")&" 1")),E164/F153*E153,"")) ->  | V164: =IF(ISBLANK(C164),"",IF(MONTH(C164)=MONTH(DATEVALUE(TEXT(DATE(2000,MONTH(DATEVALUE($E$7&" 1"))+11,1),"mmmm")&" 1")),E164/F153*E153,"")) -> 
H165: =IFERROR(I165/E165,0) -> 0 | I165: =SUM(I166:J176) -> 0 | W165: =IF(H165<>100%,"Pas ok","ok") -> Pas ok
B166: =$B$10 -> réf. Facture | C166: =$C$10 -> date facture | D166: =$D$10 -> Description facture | E166: =$E$10 -> Montant facture (HTVA)
I167: =SUM(K167:V167) -> 0 | K167: =IF(ISBLANK(C167),"",IF(MONTH(C167)=MONTH(DATEVALUE($E$7&" 1")),E167/F165*E165,"")) ->  | L167: =IF(ISBLANK(C167),"",IF(MONTH(C167)=MONTH(DATEVALUE(TEXT(DATE(2000,MONTH(DATEVALUE($E$7&" 1"))+1,1),"mmmm")&" 1")),E167/F165*E165,"")) ->  | M167: =IF(ISBLANK(C167),"",IF(MONTH(C167)=MONTH(DATEVALUE(TEXT(DATE(2000,MONTH(DATEVALUE($E$7&" 1"))+2,1),"mmmm")&" 1")),E167/F165*E165,"")) ->  | N167: =IF(ISBLANK(C167),"",IF(MONTH(C167)=MONTH(DATEVALUE(TEXT(DATE(2000,MONTH(DATEVALUE($E$7&" 1"))+3,1),"mmmm")&" 1")),E167/F165*E165,"")) ->  | O167: =IF(ISBLANK(C167),"",IF(MONTH(C167)=MONTH(DATEVALUE(TEXT(DATE(2000,MONTH(DATEVALUE($E$7&" 1"))+4,1),"mmmm")&" 1")),E167/F165*E165,"")) ->  | P167: =IF(ISBLANK(C167),"",IF(MONTH(C167)=MONTH(DATEVALUE(TEXT(DATE(2000,MONTH(DATEVALUE($E$7&" 1"))+5,1),"mmmm")&" 1")),E167/F165*E165,"")) ->  | Q167: =IF(ISBLANK(C167),"",IF(MONTH(C167)=MONTH(DATEVALUE(TEXT(DATE(2000,MONTH(DATEVALUE($E$7&" 1"))+6,1),"mmmm")&" 1")),E167/F165*E165,"")) ->  | R167: =IF(ISBLANK(C167),"",IF(MONTH(C167)=MONTH(DATEVALUE(TEXT(DATE(2000,MONTH(DATEVALUE($E$7&" 1"))+7,1),"mmmm")&" 1")),E167/F165*E165,"")) ->  | S167: =IF(ISBLANK(C167),"",IF(MONTH(C167)=MONTH(DATEVALUE(TEXT(DATE(2000,MONTH(DATEVALUE($E$7&" 1"))+8,1),"mmmm")&" 1")),E167/F165*E165,"")) ->  | T167: =IF(ISBLANK(C167),"",IF(MONTH(C167)=MONTH(DATEVALUE(TEXT(DATE(2000,MONTH(DATEVALUE($E$7&" 1"))+9,1),"mmmm")&" 1")),E167/F165*E165,"")) ->  | U167: =IF(ISBLANK(C167),"",IF(MONTH(C167)=MONTH(DATEVALUE(TEXT(DATE(2000,MONTH(DATEVALUE($E$7&" 1"))+10,1),"mmmm")&" 1")),E167/F165*E165,"")) ->  | V167: =IF(ISBLANK(C167),"",IF(MONTH(C167)=MONTH(DATEVALUE(TEXT(DATE(2000,MONTH(DATEVALUE($E$7&" 1"))+11,1),"mmmm")&" 1")),E167/F165*E165,"")) -> 
I168: 0 | K168: =IF(ISBLANK(C168),"",IF(MONTH(C168)=MONTH(DATEVALUE($E$7&" 1")),E168/F165*E165,"")) ->  | L168: =IF(ISBLANK(C168),"",IF(MONTH(C168)=MONTH(DATEVALUE(TEXT(DATE(2000,MONTH(DATEVALUE($E$7&" 1"))+1,1),"mmmm")&" 1")),E168/F165*E165,"")) ->  | M168: =IF(ISBLANK(C168),"",IF(MONTH(C168)=MONTH(DATEVALUE(TEXT(DATE(2000,MONTH(DATEVALUE($E$7&" 1"))+2,1),"mmmm")&" 1")),E168/F165*E165,"")) ->  | N168: =IF(ISBLANK(C168),"",IF(MONTH(C168)=MONTH(DATEVALUE(TEXT(DATE(2000,MONTH(DATEVALUE($E$7&" 1"))+3,1),"mmmm")&" 1")),E168/F165*E165,"")) ->  | O168: =IF(ISBLANK(C168),"",IF(MONTH(C168)=MONTH(DATEVALUE(TEXT(DATE(2000,MONTH(DATEVALUE($E$7&" 1"))+4,1),"mmmm")&" 1")),E168/F165*E165,"")) ->  | P168: =IF(ISBLANK(C168),"",IF(MONTH(C168)=MONTH(DATEVALUE(TEXT(DATE(2000,MONTH(DATEVALUE($E$7&" 1"))+5,1),"mmmm")&" 1")),E168/F165*E165,"")) ->  | Q168: =IF(ISBLANK(C168),"",IF(MONTH(C168)=MONTH(DATEVALUE(TEXT(DATE(2000,MONTH(DATEVALUE($E$7&" 1"))+6,1),"mmmm")&" 1")),E168/F165*E165,"")) ->  | R168: =IF(ISBLANK(C168),"",IF(MONTH(C168)=MONTH(DATEVALUE(TEXT(DATE(2000,MONTH(DATEVALUE($E$7&" 1"))+7,1),"mmmm")&" 1")),E168/F165*E165,"")) ->  | S168: =IF(ISBLANK(C168),"",IF(MONTH(C168)=MONTH(DATEVALUE(TEXT(DATE(2000,MONTH(DATEVALUE($E$7&" 1"))+8,1),"mmmm")&" 1")),E168/F165*E165,"")) ->  | T168: =IF(ISBLANK(C168),"",IF(MONTH(C168)=MONTH(DATEVALUE(TEXT(DATE(2000,MONTH(DATEVALUE($E$7&" 1"))+9,1),"mmmm")&" 1")),E168/F165*E165,"")) ->  | U168: =IF(ISBLANK(C168),"",IF(MONTH(C168)=MONTH(DATEVALUE(TEXT(DATE(2000,MONTH(DATEVALUE($E$7&" 1"))+10,1),"mmmm")&" 1")),E168/F165*E165,"")) ->  | V168: =IF(ISBLANK(C168),"",IF(MONTH(C168)=MONTH(DATEVALUE(TEXT(DATE(2000,MONTH(DATEVALUE($E$7&" 1"))+11,1),"mmmm")&" 1")),E168/F165*E165,"")) -> 
I169: 0 | K169: =IF(ISBLANK(C169),"",IF(MONTH(C169)=MONTH(DATEVALUE($E$7&" 1")),E169/F165*E165,"")) ->  | L169: =IF(ISBLANK(C169),"",IF(MONTH(C169)=MONTH(DATEVALUE(TEXT(DATE(2000,MONTH(DATEVALUE($E$7&" 1"))+1,1),"mmmm")&" 1")),E169/F165*E165,"")) ->  | M169: =IF(ISBLANK(C169),"",IF(MONTH(C169)=MONTH(DATEVALUE(TEXT(DATE(2000,MONTH(DATEVALUE($E$7&" 1"))+2,1),"mmmm")&" 1")),E169/F165*E165,"")) ->  | N169: =IF(ISBLANK(C169),"",IF(MONTH(C169)=MONTH(DATEVALUE(TEXT(DATE(2000,MONTH(DATEVALUE($E$7&" 1"))+3,1),"mmmm")&" 1")),E169/F165*E165,"")) ->  | O169: =IF(ISBLANK(C169),"",IF(MONTH(C169)=MONTH(DATEVALUE(TEXT(DATE(2000,MONTH(DATEVALUE($E$7&" 1"))+4,1),"mmmm")&" 1")),E169/F165*E165,"")) ->  | P169: =IF(ISBLANK(C169),"",IF(MONTH(C169)=MONTH(DATEVALUE(TEXT(DATE(2000,MONTH(DATEVALUE($E$7&" 1"))+5,1),"mmmm")&" 1")),E169/F165*E165,"")) ->  | Q169: =IF(ISBLANK(C169),"",IF(MONTH(C169)=MONTH(DATEVALUE(TEXT(DATE(2000,MONTH(DATEVALUE($E$7&" 1"))+6,1),"mmmm")&" 1")),E169/F165*E165,"")) ->  | R169: =IF(ISBLANK(C169),"",IF(MONTH(C169)=MONTH(DATEVALUE(TEXT(DATE(2000,MONTH(DATEVALUE($E$7&" 1"))+7,1),"mmmm")&" 1")),E169/F165*E165,"")) ->  | S169: =IF(ISBLANK(C169),"",IF(MONTH(C169)=MONTH(DATEVALUE(TEXT(DATE(2000,MONTH(DATEVALUE($E$7&" 1"))+8,1),"mmmm")&" 1")),E169/F165*E165,"")) ->  | T169: =IF(ISBLANK(C169),"",IF(MONTH(C169)=MONTH(DATEVALUE(TEXT(DATE(2000,MONTH(DATEVALUE($E$7&" 1"))+9,1),"mmmm")&" 1")),E169/F165*E165,"")) ->  | U169: =IF(ISBLANK(C169),"",IF(MONTH(C169)=MONTH(DATEVALUE(TEXT(DATE(2000,MONTH(DATEVALUE($E$7&" 1"))+10,1),"mmmm")&" 1")),E169/F165*E165,"")) ->  | V169: =IF(ISBLANK(C169),"",IF(MONTH(C169)=MONTH(DATEVALUE(TEXT(DATE(2000,MONTH(DATEVALUE($E$7&" 1"))+11,1),"mmmm")&" 1")),E169/F165*E165,"")) -> 
I170: 0 | K170: =IF(ISBLANK(C170),"",IF(MONTH(C170)=MONTH(DATEVALUE($E$7&" 1")),E170/F165*E165,"")) ->  | L170: =IF(ISBLANK(C170),"",IF(MONTH(C170)=MONTH(DATEVALUE(TEXT(DATE(2000,MONTH(DATEVALUE($E$7&" 1"))+1,1),"mmmm")&" 1")),E170/F165*E165,"")) ->  | M170: =IF(ISBLANK(C170),"",IF(MONTH(C170)=MONTH(DATEVALUE(TEXT(DATE(2000,MONTH(DATEVALUE($E$7&" 1"))+2,1),"mmmm")&" 1")),E170/F165*E165,"")) ->  | N170: =IF(ISBLANK(C170),"",IF(MONTH(C170)=MONTH(DATEVALUE(TEXT(DATE(2000,MONTH(DATEVALUE($E$7&" 1"))+3,1),"mmmm")&" 1")),E170/F165*E165,"")) ->  | O170: =IF(ISBLANK(C170),"",IF(MONTH(C170)=MONTH(DATEVALUE(TEXT(DATE(2000,MONTH(DATEVALUE($E$7&" 1"))+4,1),"mmmm")&" 1")),E170/F165*E165,"")) ->  | P170: =IF(ISBLANK(C170),"",IF(MONTH(C170)=MONTH(DATEVALUE(TEXT(DATE(2000,MONTH(DATEVALUE($E$7&" 1"))+5,1),"mmmm")&" 1")),E170/F165*E165,"")) ->  | Q170: =IF(ISBLANK(C170),"",IF(MONTH(C170)=MONTH(DATEVALUE(TEXT(DATE(2000,MONTH(DATEVALUE($E$7&" 1"))+6,1),"mmmm")&" 1")),E170/F165*E165,"")) ->  | R170: =IF(ISBLANK(C170),"",IF(MONTH(C170)=MONTH(DATEVALUE(TEXT(DATE(2000,MONTH(DATEVALUE($E$7&" 1"))+7,1),"mmmm")&" 1")),E170/F165*E165,"")) ->  | S170: =IF(ISBLANK(C170),"",IF(MONTH(C170)=MONTH(DATEVALUE(TEXT(DATE(2000,MONTH(DATEVALUE($E$7&" 1"))+8,1),"mmmm")&" 1")),E170/F165*E165,"")) ->  | T170: =IF(ISBLANK(C170),"",IF(MONTH(C170)=MONTH(DATEVALUE(TEXT(DATE(2000,MONTH(DATEVALUE($E$7&" 1"))+9,1),"mmmm")&" 1")),E170/F165*E165,"")) ->  | U170: =IF(ISBLANK(C170),"",IF(MONTH(C170)=MONTH(DATEVALUE(TEXT(DATE(2000,MONTH(DATEVALUE($E$7&" 1"))+10,1),"mmmm")&" 1")),E170/F165*E165,"")) ->  | V170: =IF(ISBLANK(C170),"",IF(MONTH(C170)=MONTH(DATEVALUE(TEXT(DATE(2000,MONTH(DATEVALUE($E$7&" 1"))+11,1),"mmmm")&" 1")),E170/F165*E165,"")) -> 
I171: 0 | K171: =IF(ISBLANK(C171),"",IF(MONTH(C171)=MONTH(DATEVALUE($E$7&" 1")),E171/F165*E165,"")) ->  | L171: =IF(ISBLANK(C171),"",IF(MONTH(C171)=MONTH(DATEVALUE(TEXT(DATE(2000,MONTH(DATEVALUE($E$7&" 1"))+1,1),"mmmm")&" 1")),E171/F165*E165,"")) ->  | M171: =IF(ISBLANK(C171),"",IF(MONTH(C171)=MONTH(DATEVALUE(TEXT(DATE(2000,MONTH(DATEVALUE($E$7&" 1"))+2,1),"mmmm")&" 1")),E171/F165*E165,"")) ->  | N171: =IF(ISBLANK(C171),"",IF(MONTH(C171)=MONTH(DATEVALUE(TEXT(DATE(2000,MONTH(DATEVALUE($E$7&" 1"))+3,1),"mmmm")&" 1")),E171/F165*E165,"")) ->  | O171: =IF(ISBLANK(C171),"",IF(MONTH(C171)=MONTH(DATEVALUE(TEXT(DATE(2000,MONTH(DATEVALUE($E$7&" 1"))+4,1),"mmmm")&" 1")),E171/F165*E165,"")) ->  | P171: =IF(ISBLANK(C171),"",IF(MONTH(C171)=MONTH(DATEVALUE(TEXT(DATE(2000,MONTH(DATEVALUE($E$7&" 1"))+5,1),"mmmm")&" 1")),E171/F165*E165,"")) ->  | Q171: =IF(ISBLANK(C171),"",IF(MONTH(C171)=MONTH(DATEVALUE(TEXT(DATE(2000,MONTH(DATEVALUE($E$7&" 1"))+6,1),"mmmm")&" 1")),E171/F165*E165,"")) ->  | R171: =IF(ISBLANK(C171),"",IF(MONTH(C171)=MONTH(DATEVALUE(TEXT(DATE(2000,MONTH(DATEVALUE($E$7&" 1"))+7,1),"mmmm")&" 1")),E171/F165*E165,"")) ->  | S171: =IF(ISBLANK(C171),"",IF(MONTH(C171)=MONTH(DATEVALUE(TEXT(DATE(2000,MONTH(DATEVALUE($E$7&" 1"))+8,1),"mmmm")&" 1")),E171/F165*E165,"")) ->  | T171: =IF(ISBLANK(C171),"",IF(MONTH(C171)=MONTH(DATEVALUE(TEXT(DATE(2000,MONTH(DATEVALUE($E$7&" 1"))+9,1),"mmmm")&" 1")),E171/F165*E165,"")) ->  | U171: =IF(ISBLANK(C171),"",IF(MONTH(C171)=MONTH(DATEVALUE(TEXT(DATE(2000,MONTH(DATEVALUE($E$7&" 1"))+10,1),"mmmm")&" 1")),E171/F165*E165,"")) ->  | V171: =IF(ISBLANK(C171),"",IF(MONTH(C171)=MONTH(DATEVALUE(TEXT(DATE(2000,MONTH(DATEVALUE($E$7&" 1"))+11,1),"mmmm")&" 1")),E171/F165*E165,"")) -> 
I172: 0 | K172: =IF(ISBLANK(C172),"",IF(MONTH(C172)=MONTH(DATEVALUE($E$7&" 1")),E172/F165*E165,"")) ->  | L172: =IF(ISBLANK(C172),"",IF(MONTH(C172)=MONTH(DATEVALUE(TEXT(DATE(2000,MONTH(DATEVALUE($E$7&" 1"))+1,1),"mmmm")&" 1")),E172/F165*E165,"")) ->  | M172: =IF(ISBLANK(C172),"",IF(MONTH(C172)=MONTH(DATEVALUE(TEXT(DATE(2000,MONTH(DATEVALUE($E$7&" 1"))+2,1),"mmmm")&" 1")),E172/F165*E165,"")) ->  | N172: =IF(ISBLANK(C172),"",IF(MONTH(C172)=MONTH(DATEVALUE(TEXT(DATE(2000,MONTH(DATEVALUE($E$7&" 1"))+3,1),"mmmm")&" 1")),E172/F165*E165,"")) ->  | O172: =IF(ISBLANK(C172),"",IF(MONTH(C172)=MONTH(DATEVALUE(TEXT(DATE(2000,MONTH(DATEVALUE($E$7&" 1"))+4,1),"mmmm")&" 1")),E172/F165*E165,"")) ->  | P172: =IF(ISBLANK(C172),"",IF(MONTH(C172)=MONTH(DATEVALUE(TEXT(DATE(2000,MONTH(DATEVALUE($E$7&" 1"))+5,1),"mmmm")&" 1")),E172/F165*E165,"")) ->  | Q172: =IF(ISBLANK(C172),"",IF(MONTH(C172)=MONTH(DATEVALUE(TEXT(DATE(2000,MONTH(DATEVALUE($E$7&" 1"))+6,1),"mmmm")&" 1")),E172/F165*E165,"")) ->  | R172: =IF(ISBLANK(C172),"",IF(MONTH(C172)=MONTH(DATEVALUE(TEXT(DATE(2000,MONTH(DATEVALUE($E$7&" 1"))+7,1),"mmmm")&" 1")),E172/F165*E165,"")) ->  | S172: =IF(ISBLANK(C172),"",IF(MONTH(C172)=MONTH(DATEVALUE(TEXT(DATE(2000,MONTH(DATEVALUE($E$7&" 1"))+8,1),"mmmm")&" 1")),E172/F165*E165,"")) ->  | T172: =IF(ISBLANK(C172),"",IF(MONTH(C172)=MONTH(DATEVALUE(TEXT(DATE(2000,MONTH(DATEVALUE($E$7&" 1"))+9,1),"mmmm")&" 1")),E172/F165*E165,"")) ->  | U172: =IF(ISBLANK(C172),"",IF(MONTH(C172)=MONTH(DATEVALUE(TEXT(DATE(2000,MONTH(DATEVALUE($E$7&" 1"))+10,1),"mmmm")&" 1")),E172/F165*E165,"")) ->  | V172: =IF(ISBLANK(C172),"",IF(MONTH(C172)=MONTH(DATEVALUE(TEXT(DATE(2000,MONTH(DATEVALUE($E$7&" 1"))+11,1),"mmmm")&" 1")),E172/F165*E165,"")) -> 
I173: 0 | K173: =IF(ISBLANK(C173),"",IF(MONTH(C173)=MONTH(DATEVALUE($E$7&" 1")),E173/F165*E165,"")) ->  | L173: =IF(ISBLANK(C173),"",IF(MONTH(C173)=MONTH(DATEVALUE(TEXT(DATE(2000,MONTH(DATEVALUE($E$7&" 1"))+1,1),"mmmm")&" 1")),E173/F165*E165,"")) ->  | M173: =IF(ISBLANK(C173),"",IF(MONTH(C173)=MONTH(DATEVALUE(TEXT(DATE(2000,MONTH(DATEVALUE($E$7&" 1"))+2,1),"mmmm")&" 1")),E173/F165*E165,"")) ->  | N173: =IF(ISBLANK(C173),"",IF(MONTH(C173)=MONTH(DATEVALUE(TEXT(DATE(2000,MONTH(DATEVALUE($E$7&" 1"))+3,1),"mmmm")&" 1")),E173/F165*E165,"")) ->  | O173: =IF(ISBLANK(C173),"",IF(MONTH(C173)=MONTH(DATEVALUE(TEXT(DATE(2000,MONTH(DATEVALUE($E$7&" 1"))+4,1),"mmmm")&" 1")),E173/F165*E165,"")) ->  | P173: =IF(ISBLANK(C173),"",IF(MONTH(C173)=MONTH(DATEVALUE(TEXT(DATE(2000,MONTH(DATEVALUE($E$7&" 1"))+5,1),"mmmm")&" 1")),E173/F165*E165,"")) ->  | Q173: =IF(ISBLANK(C173),"",IF(MONTH(C173)=MONTH(DATEVALUE(TEXT(DATE(2000,MONTH(DATEVALUE($E$7&" 1"))+6,1),"mmmm")&" 1")),E173/F165*E165,"")) ->  | R173: =IF(ISBLANK(C173),"",IF(MONTH(C173)=MONTH(DATEVALUE(TEXT(DATE(2000,MONTH(DATEVALUE($E$7&" 1"))+7,1),"mmmm")&" 1")),E173/F165*E165,"")) ->  | S173: =IF(ISBLANK(C173),"",IF(MONTH(C173)=MONTH(DATEVALUE(TEXT(DATE(2000,MONTH(DATEVALUE($E$7&" 1"))+8,1),"mmmm")&" 1")),E173/F165*E165,"")) ->  | T173: =IF(ISBLANK(C173),"",IF(MONTH(C173)=MONTH(DATEVALUE(TEXT(DATE(2000,MONTH(DATEVALUE($E$7&" 1"))+9,1),"mmmm")&" 1")),E173/F165*E165,"")) ->  | U173: =IF(ISBLANK(C173),"",IF(MONTH(C173)=MONTH(DATEVALUE(TEXT(DATE(2000,MONTH(DATEVALUE($E$7&" 1"))+10,1),"mmmm")&" 1")),E173/F165*E165,"")) ->  | V173: =IF(ISBLANK(C173),"",IF(MONTH(C173)=MONTH(DATEVALUE(TEXT(DATE(2000,MONTH(DATEVALUE($E$7&" 1"))+11,1),"mmmm")&" 1")),E173/F165*E165,"")) -> 
I174: 0 | K174: =IF(ISBLANK(C174),"",IF(MONTH(C174)=MONTH(DATEVALUE($E$7&" 1")),E174/F165*E165,"")) ->  | L174: =IF(ISBLANK(C174),"",IF(MONTH(C174)=MONTH(DATEVALUE(TEXT(DATE(2000,MONTH(DATEVALUE($E$7&" 1"))+1,1),"mmmm")&" 1")),E174/F165*E165,"")) ->  | M174: =IF(ISBLANK(C174),"",IF(MONTH(C174)=MONTH(DATEVALUE(TEXT(DATE(2000,MONTH(DATEVALUE($E$7&" 1"))+2,1),"mmmm")&" 1")),E174/F165*E165,"")) ->  | N174: =IF(ISBLANK(C174),"",IF(MONTH(C174)=MONTH(DATEVALUE(TEXT(DATE(2000,MONTH(DATEVALUE($E$7&" 1"))+3,1),"mmmm")&" 1")),E174/F165*E165,"")) ->  | O174: =IF(ISBLANK(C174),"",IF(MONTH(C174)=MONTH(DATEVALUE(TEXT(DATE(2000,MONTH(DATEVALUE($E$7&" 1"))+4,1),"mmmm")&" 1")),E174/F165*E165,"")) ->  | P174: =IF(ISBLANK(C174),"",IF(MONTH(C174)=MONTH(DATEVALUE(TEXT(DATE(2000,MONTH(DATEVALUE($E$7&" 1"))+5,1),"mmmm")&" 1")),E174/F165*E165,"")) ->  | Q174: =IF(ISBLANK(C174),"",IF(MONTH(C174)=MONTH(DATEVALUE(TEXT(DATE(2000,MONTH(DATEVALUE($E$7&" 1"))+6,1),"mmmm")&" 1")),E174/F165*E165,"")) ->  | R174: =IF(ISBLANK(C174),"",IF(MONTH(C174)=MONTH(DATEVALUE(TEXT(DATE(2000,MONTH(DATEVALUE($E$7&" 1"))+7,1),"mmmm")&" 1")),E174/F165*E165,"")) ->  | S174: =IF(ISBLANK(C174),"",IF(MONTH(C174)=MONTH(DATEVALUE(TEXT(DATE(2000,MONTH(DATEVALUE($E$7&" 1"))+8,1),"mmmm")&" 1")),E174/F165*E165,"")) ->  | T174: =IF(ISBLANK(C174),"",IF(MONTH(C174)=MONTH(DATEVALUE(TEXT(DATE(2000,MONTH(DATEVALUE($E$7&" 1"))+9,1),"mmmm")&" 1")),E174/F165*E165,"")) ->  | U174: =IF(ISBLANK(C174),"",IF(MONTH(C174)=MONTH(DATEVALUE(TEXT(DATE(2000,MONTH(DATEVALUE($E$7&" 1"))+10,1),"mmmm")&" 1")),E174/F165*E165,"")) ->  | V174: =IF(ISBLANK(C174),"",IF(MONTH(C174)=MONTH(DATEVALUE(TEXT(DATE(2000,MONTH(DATEVALUE($E$7&" 1"))+11,1),"mmmm")&" 1")),E174/F165*E165,"")) -> 
I175: 0 | K175: =IF(ISBLANK(C175),"",IF(MONTH(C175)=MONTH(DATEVALUE($E$7&" 1")),E175/F165*E165,"")) ->  | L175: =IF(ISBLANK(C175),"",IF(MONTH(C175)=MONTH(DATEVALUE(TEXT(DATE(2000,MONTH(DATEVALUE($E$7&" 1"))+1,1),"mmmm")&" 1")),E175/F165*E165,"")) ->  | M175: =IF(ISBLANK(C175),"",IF(MONTH(C175)=MONTH(DATEVALUE(TEXT(DATE(2000,MONTH(DATEVALUE($E$7&" 1"))+2,1),"mmmm")&" 1")),E175/F165*E165,"")) ->  | N175: =IF(ISBLANK(C175),"",IF(MONTH(C175)=MONTH(DATEVALUE(TEXT(DATE(2000,MONTH(DATEVALUE($E$7&" 1"))+3,1),"mmmm")&" 1")),E175/F165*E165,"")) ->  | O175: =IF(ISBLANK(C175),"",IF(MONTH(C175)=MONTH(DATEVALUE(TEXT(DATE(2000,MONTH(DATEVALUE($E$7&" 1"))+4,1),"mmmm")&" 1")),E175/F165*E165,"")) ->  | P175: =IF(ISBLANK(C175),"",IF(MONTH(C175)=MONTH(DATEVALUE(TEXT(DATE(2000,MONTH(DATEVALUE($E$7&" 1"))+5,1),"mmmm")&" 1")),E175/F165*E165,"")) ->  | Q175: =IF(ISBLANK(C175),"",IF(MONTH(C175)=MONTH(DATEVALUE(TEXT(DATE(2000,MONTH(DATEVALUE($E$7&" 1"))+6,1),"mmmm")&" 1")),E175/F165*E165,"")) ->  | R175: =IF(ISBLANK(C175),"",IF(MONTH(C175)=MONTH(DATEVALUE(TEXT(DATE(2000,MONTH(DATEVALUE($E$7&" 1"))+7,1),"mmmm")&" 1")),E175/F165*E165,"")) ->  | S175: =IF(ISBLANK(C175),"",IF(MONTH(C175)=MONTH(DATEVALUE(TEXT(DATE(2000,MONTH(DATEVALUE($E$7&" 1"))+8,1),"mmmm")&" 1")),E175/F165*E165,"")) ->  | T175: =IF(ISBLANK(C175),"",IF(MONTH(C175)=MONTH(DATEVALUE(TEXT(DATE(2000,MONTH(DATEVALUE($E$7&" 1"))+9,1),"mmmm")&" 1")),E175/F165*E165,"")) ->  | U175: =IF(ISBLANK(C175),"",IF(MONTH(C175)=MONTH(DATEVALUE(TEXT(DATE(2000,MONTH(DATEVALUE($E$7&" 1"))+10,1),"mmmm")&" 1")),E175/F165*E165,"")) ->  | V175: =IF(ISBLANK(C175),"",IF(MONTH(C175)=MONTH(DATEVALUE(TEXT(DATE(2000,MONTH(DATEVALUE($E$7&" 1"))+11,1),"mmmm")&" 1")),E175/F165*E165,"")) -> 
I176: 0 | K176: =IF(ISBLANK(C176),"",IF(MONTH(C176)=MONTH(DATEVALUE($E$7&" 1")),E176/F165*E165,"")) ->  | L176: =IF(ISBLANK(C176),"",IF(MONTH(C176)=MONTH(DATEVALUE(TEXT(DATE(2000,MONTH(DATEVALUE($E$7&" 1"))+1,1),"mmmm")&" 1")),E176/F165*E165,"")) ->  | M176: =IF(ISBLANK(C176),"",IF(MONTH(C176)=MONTH(DATEVALUE(TEXT(DATE(2000,MONTH(DATEVALUE($E$7&" 1"))+2,1),"mmmm")&" 1")),E176/F165*E165,"")) ->  | N176: =IF(ISBLANK(C176),"",IF(MONTH(C176)=MONTH(DATEVALUE(TEXT(DATE(2000,MONTH(DATEVALUE($E$7&" 1"))+3,1),"mmmm")&" 1")),E176/F165*E165,"")) ->  | O176: =IF(ISBLANK(C176),"",IF(MONTH(C176)=MONTH(DATEVALUE(TEXT(DATE(2000,MONTH(DATEVALUE($E$7&" 1"))+4,1),"mmmm")&" 1")),E176/F165*E165,"")) ->  | P176: =IF(ISBLANK(C176),"",IF(MONTH(C176)=MONTH(DATEVALUE(TEXT(DATE(2000,MONTH(DATEVALUE($E$7&" 1"))+5,1),"mmmm")&" 1")),E176/F165*E165,"")) ->  | Q176: =IF(ISBLANK(C176),"",IF(MONTH(C176)=MONTH(DATEVALUE(TEXT(DATE(2000,MONTH(DATEVALUE($E$7&" 1"))+6,1),"mmmm")&" 1")),E176/F165*E165,"")) ->  | R176: =IF(ISBLANK(C176),"",IF(MONTH(C176)=MONTH(DATEVALUE(TEXT(DATE(2000,MONTH(DATEVALUE($E$7&" 1"))+7,1),"mmmm")&" 1")),E176/F165*E165,"")) ->  | S176: =IF(ISBLANK(C176),"",IF(MONTH(C176)=MONTH(DATEVALUE(TEXT(DATE(2000,MONTH(DATEVALUE($E$7&" 1"))+8,1),"mmmm")&" 1")),E176/F165*E165,"")) ->  | T176: =IF(ISBLANK(C176),"",IF(MONTH(C176)=MONTH(DATEVALUE(TEXT(DATE(2000,MONTH(DATEVALUE($E$7&" 1"))+9,1),"mmmm")&" 1")),E176/F165*E165,"")) ->  | U176: =IF(ISBLANK(C176),"",IF(MONTH(C176)=MONTH(DATEVALUE(TEXT(DATE(2000,MONTH(DATEVALUE($E$7&" 1"))+10,1),"mmmm")&" 1")),E176/F165*E165,"")) ->  | V176: =IF(ISBLANK(C176),"",IF(MONTH(C176)=MONTH(DATEVALUE(TEXT(DATE(2000,MONTH(DATEVALUE($E$7&" 1"))+11,1),"mmmm")&" 1")),E176/F165*E165,"")) -> 
H177: =IFERROR(I177/E177,0) -> 0 | I177: =SUM(I178:J188) -> 0 | W177: =IF(H177<>100%,"Pas ok","ok") -> Pas ok
B178: =$B$10 -> réf. Facture | C178: =$C$10 -> date facture | D178: =$D$10 -> Description facture | E178: =$E$10 -> Montant facture (HTVA)
I179: =SUM(K179:V179) -> 0 | K179: =IF(ISBLANK(C179),"",IF(MONTH(C179)=MONTH(DATEVALUE($E$7&" 1")),E179/F177*E177,"")) ->  | L179: =IF(ISBLANK(C179),"",IF(MONTH(C179)=MONTH(DATEVALUE(TEXT(DATE(2000,MONTH(DATEVALUE($E$7&" 1"))+1,1),"mmmm")&" 1")),E179/F177*E177,"")) ->  | M179: =IF(ISBLANK(C179),"",IF(MONTH(C179)=MONTH(DATEVALUE(TEXT(DATE(2000,MONTH(DATEVALUE($E$7&" 1"))+2,1),"mmmm")&" 1")),E179/F177*E177,"")) ->  | N179: =IF(ISBLANK(C179),"",IF(MONTH(C179)=MONTH(DATEVALUE(TEXT(DATE(2000,MONTH(DATEVALUE($E$7&" 1"))+3,1),"mmmm")&" 1")),E179/F177*E177,"")) ->  | O179: =IF(ISBLANK(C179),"",IF(MONTH(C179)=MONTH(DATEVALUE(TEXT(DATE(2000,MONTH(DATEVALUE($E$7&" 1"))+4,1),"mmmm")&" 1")),E179/F177*E177,"")) ->  | P179: =IF(ISBLANK(C179),"",IF(MONTH(C179)=MONTH(DATEVALUE(TEXT(DATE(2000,MONTH(DATEVALUE($E$7&" 1"))+5,1),"mmmm")&" 1")),E179/F177*E177,"")) ->  | Q179: =IF(ISBLANK(C179),"",IF(MONTH(C179)=MONTH(DATEVALUE(TEXT(DATE(2000,MONTH(DATEVALUE($E$7&" 1"))+6,1),"mmmm")&" 1")),E179/F177*E177,"")) ->  | R179: =IF(ISBLANK(C179),"",IF(MONTH(C179)=MONTH(DATEVALUE(TEXT(DATE(2000,MONTH(DATEVALUE($E$7&" 1"))+7,1),"mmmm")&" 1")),E179/F177*E177,"")) ->  | S179: =IF(ISBLANK(C179),"",IF(MONTH(C179)=MONTH(DATEVALUE(TEXT(DATE(2000,MONTH(DATEVALUE($E$7&" 1"))+8,1),"mmmm")&" 1")),E179/F177*E177,"")) ->  | T179: =IF(ISBLANK(C179),"",IF(MONTH(C179)=MONTH(DATEVALUE(TEXT(DATE(2000,MONTH(DATEVALUE($E$7&" 1"))+9,1),"mmmm")&" 1")),E179/F177*E177,"")) ->  | U179: =IF(ISBLANK(C179),"",IF(MONTH(C179)=MONTH(DATEVALUE(TEXT(DATE(2000,MONTH(DATEVALUE($E$7&" 1"))+10,1),"mmmm")&" 1")),E179/F177*E177,"")) ->  | V179: =IF(ISBLANK(C179),"",IF(MONTH(C179)=MONTH(DATEVALUE(TEXT(DATE(2000,MONTH(DATEVALUE($E$7&" 1"))+11,1),"mmmm")&" 1")),E179/F177*E177,"")) -> 
I180: 0 | K180: =IF(ISBLANK(C180),"",IF(MONTH(C180)=MONTH(DATEVALUE($E$7&" 1")),E180/F177*E177,"")) ->  | L180: =IF(ISBLANK(C180),"",IF(MONTH(C180)=MONTH(DATEVALUE(TEXT(DATE(2000,MONTH(DATEVALUE($E$7&" 1"))+1,1),"mmmm")&" 1")),E180/F177*E177,"")) ->  | M180: =IF(ISBLANK(C180),"",IF(MONTH(C180)=MONTH(DATEVALUE(TEXT(DATE(2000,MONTH(DATEVALUE($E$7&" 1"))+2,1),"mmmm")&" 1")),E180/F177*E177,"")) ->  | N180: =IF(ISBLANK(C180),"",IF(MONTH(C180)=MONTH(DATEVALUE(TEXT(DATE(2000,MONTH(DATEVALUE($E$7&" 1"))+3,1),"mmmm")&" 1")),E180/F177*E177,"")) ->  | O180: =IF(ISBLANK(C180),"",IF(MONTH(C180)=MONTH(DATEVALUE(TEXT(DATE(2000,MONTH(DATEVALUE($E$7&" 1"))+4,1),"mmmm")&" 1")),E180/F177*E177,"")) ->  | P180: =IF(ISBLANK(C180),"",IF(MONTH(C180)=MONTH(DATEVALUE(TEXT(DATE(2000,MONTH(DATEVALUE($E$7&" 1"))+5,1),"mmmm")&" 1")),E180/F177*E177,"")) ->  | Q180: =IF(ISBLANK(C180),"",IF(MONTH(C180)=MONTH(DATEVALUE(TEXT(DATE(2000,MONTH(DATEVALUE($E$7&" 1"))+6,1),"mmmm")&" 1")),E180/F177*E177,"")) ->  | R180: =IF(ISBLANK(C180),"",IF(MONTH(C180)=MONTH(DATEVALUE(TEXT(DATE(2000,MONTH(DATEVALUE($E$7&" 1"))+7,1),"mmmm")&" 1")),E180/F177*E177,"")) ->  | S180: =IF(ISBLANK(C180),"",IF(MONTH(C180)=MONTH(DATEVALUE(TEXT(DATE(2000,MONTH(DATEVALUE($E$7&" 1"))+8,1),"mmmm")&" 1")),E180/F177*E177,"")) ->  | T180: =IF(ISBLANK(C180),"",IF(MONTH(C180)=MONTH(DATEVALUE(TEXT(DATE(2000,MONTH(DATEVALUE($E$7&" 1"))+9,1),"mmmm")&" 1")),E180/F177*E177,"")) ->  | U180: =IF(ISBLANK(C180),"",IF(MONTH(C180)=MONTH(DATEVALUE(TEXT(DATE(2000,MONTH(DATEVALUE($E$7&" 1"))+10,1),"mmmm")&" 1")),E180/F177*E177,"")) ->  | V180: =IF(ISBLANK(C180),"",IF(MONTH(C180)=MONTH(DATEVALUE(TEXT(DATE(2000,MONTH(DATEVALUE($E$7&" 1"))+11,1),"mmmm")&" 1")),E180/F177*E177,"")) -> 
I181: 0 | K181: =IF(ISBLANK(C181),"",IF(MONTH(C181)=MONTH(DATEVALUE($E$7&" 1")),E181/F177*E177,"")) ->  | L181: =IF(ISBLANK(C181),"",IF(MONTH(C181)=MONTH(DATEVALUE(TEXT(DATE(2000,MONTH(DATEVALUE($E$7&" 1"))+1,1),"mmmm")&" 1")),E181/F177*E177,"")) ->  | M181: =IF(ISBLANK(C181),"",IF(MONTH(C181)=MONTH(DATEVALUE(TEXT(DATE(2000,MONTH(DATEVALUE($E$7&" 1"))+2,1),"mmmm")&" 1")),E181/F177*E177,"")) ->  | N181: =IF(ISBLANK(C181),"",IF(MONTH(C181)=MONTH(DATEVALUE(TEXT(DATE(2000,MONTH(DATEVALUE($E$7&" 1"))+3,1),"mmmm")&" 1")),E181/F177*E177,"")) ->  | O181: =IF(ISBLANK(C181),"",IF(MONTH(C181)=MONTH(DATEVALUE(TEXT(DATE(2000,MONTH(DATEVALUE($E$7&" 1"))+4,1),"mmmm")&" 1")),E181/F177*E177,"")) ->  | P181: =IF(ISBLANK(C181),"",IF(MONTH(C181)=MONTH(DATEVALUE(TEXT(DATE(2000,MONTH(DATEVALUE($E$7&" 1"))+5,1),"mmmm")&" 1")),E181/F177*E177,"")) ->  | Q181: =IF(ISBLANK(C181),"",IF(MONTH(C181)=MONTH(DATEVALUE(TEXT(DATE(2000,MONTH(DATEVALUE($E$7&" 1"))+6,1),"mmmm")&" 1")),E181/F177*E177,"")) ->  | R181: =IF(ISBLANK(C181),"",IF(MONTH(C181)=MONTH(DATEVALUE(TEXT(DATE(2000,MONTH(DATEVALUE($E$7&" 1"))+7,1),"mmmm")&" 1")),E181/F177*E177,"")) ->  | S181: =IF(ISBLANK(C181),"",IF(MONTH(C181)=MONTH(DATEVALUE(TEXT(DATE(2000,MONTH(DATEVALUE($E$7&" 1"))+8,1),"mmmm")&" 1")),E181/F177*E177,"")) ->  | T181: =IF(ISBLANK(C181),"",IF(MONTH(C181)=MONTH(DATEVALUE(TEXT(DATE(2000,MONTH(DATEVALUE($E$7&" 1"))+9,1),"mmmm")&" 1")),E181/F177*E177,"")) ->  | U181: =IF(ISBLANK(C181),"",IF(MONTH(C181)=MONTH(DATEVALUE(TEXT(DATE(2000,MONTH(DATEVALUE($E$7&" 1"))+10,1),"mmmm")&" 1")),E181/F177*E177,"")) ->  | V181: =IF(ISBLANK(C181),"",IF(MONTH(C181)=MONTH(DATEVALUE(TEXT(DATE(2000,MONTH(DATEVALUE($E$7&" 1"))+11,1),"mmmm")&" 1")),E181/F177*E177,"")) -> 
I182: 0 | K182: =IF(ISBLANK(C182),"",IF(MONTH(C182)=MONTH(DATEVALUE($E$7&" 1")),E182/F177*E177,"")) ->  | L182: =IF(ISBLANK(C182),"",IF(MONTH(C182)=MONTH(DATEVALUE(TEXT(DATE(2000,MONTH(DATEVALUE($E$7&" 1"))+1,1),"mmmm")&" 1")),E182/F177*E177,"")) ->  | M182: =IF(ISBLANK(C182),"",IF(MONTH(C182)=MONTH(DATEVALUE(TEXT(DATE(2000,MONTH(DATEVALUE($E$7&" 1"))+2,1),"mmmm")&" 1")),E182/F177*E177,"")) ->  | N182: =IF(ISBLANK(C182),"",IF(MONTH(C182)=MONTH(DATEVALUE(TEXT(DATE(2000,MONTH(DATEVALUE($E$7&" 1"))+3,1),"mmmm")&" 1")),E182/F177*E177,"")) ->  | O182: =IF(ISBLANK(C182),"",IF(MONTH(C182)=MONTH(DATEVALUE(TEXT(DATE(2000,MONTH(DATEVALUE($E$7&" 1"))+4,1),"mmmm")&" 1")),E182/F177*E177,"")) ->  | P182: =IF(ISBLANK(C182),"",IF(MONTH(C182)=MONTH(DATEVALUE(TEXT(DATE(2000,MONTH(DATEVALUE($E$7&" 1"))+5,1),"mmmm")&" 1")),E182/F177*E177,"")) ->  | Q182: =IF(ISBLANK(C182),"",IF(MONTH(C182)=MONTH(DATEVALUE(TEXT(DATE(2000,MONTH(DATEVALUE($E$7&" 1"))+6,1),"mmmm")&" 1")),E182/F177*E177,"")) ->  | R182: =IF(ISBLANK(C182),"",IF(MONTH(C182)=MONTH(DATEVALUE(TEXT(DATE(2000,MONTH(DATEVALUE($E$7&" 1"))+7,1),"mmmm")&" 1")),E182/F177*E177,"")) ->  | S182: =IF(ISBLANK(C182),"",IF(MONTH(C182)=MONTH(DATEVALUE(TEXT(DATE(2000,MONTH(DATEVALUE($E$7&" 1"))+8,1),"mmmm")&" 1")),E182/F177*E177,"")) ->  | T182: =IF(ISBLANK(C182),"",IF(MONTH(C182)=MONTH(DATEVALUE(TEXT(DATE(2000,MONTH(DATEVALUE($E$7&" 1"))+9,1),"mmmm")&" 1")),E182/F177*E177,"")) ->  | U182: =IF(ISBLANK(C182),"",IF(MONTH(C182)=MONTH(DATEVALUE(TEXT(DATE(2000,MONTH(DATEVALUE($E$7&" 1"))+10,1),"mmmm")&" 1")),E182/F177*E177,"")) ->  | V182: =IF(ISBLANK(C182),"",IF(MONTH(C182)=MONTH(DATEVALUE(TEXT(DATE(2000,MONTH(DATEVALUE($E$7&" 1"))+11,1),"mmmm")&" 1")),E182/F177*E177,"")) -> 
I183: 0 | K183: =IF(ISBLANK(C183),"",IF(MONTH(C183)=MONTH(DATEVALUE($E$7&" 1")),E183/F177*E177,"")) ->  | L183: =IF(ISBLANK(C183),"",IF(MONTH(C183)=MONTH(DATEVALUE(TEXT(DATE(2000,MONTH(DATEVALUE($E$7&" 1"))+1,1),"mmmm")&" 1")),E183/F177*E177,"")) ->  | M183: =IF(ISBLANK(C183),"",IF(MONTH(C183)=MONTH(DATEVALUE(TEXT(DATE(2000,MONTH(DATEVALUE($E$7&" 1"))+2,1),"mmmm")&" 1")),E183/F177*E177,"")) ->  | N183: =IF(ISBLANK(C183),"",IF(MONTH(C183)=MONTH(DATEVALUE(TEXT(DATE(2000,MONTH(DATEVALUE($E$7&" 1"))+3,1),"mmmm")&" 1")),E183/F177*E177,"")) ->  | O183: =IF(ISBLANK(C183),"",IF(MONTH(C183)=MONTH(DATEVALUE(TEXT(DATE(2000,MONTH(DATEVALUE($E$7&" 1"))+4,1),"mmmm")&" 1")),E183/F177*E177,"")) ->  | P183: =IF(ISBLANK(C183),"",IF(MONTH(C183)=MONTH(DATEVALUE(TEXT(DATE(2000,MONTH(DATEVALUE($E$7&" 1"))+5,1),"mmmm")&" 1")),E183/F177*E177,"")) ->  | Q183: =IF(ISBLANK(C183),"",IF(MONTH(C183)=MONTH(DATEVALUE(TEXT(DATE(2000,MONTH(DATEVALUE($E$7&" 1"))+6,1),"mmmm")&" 1")),E183/F177*E177,"")) ->  | R183: =IF(ISBLANK(C183),"",IF(MONTH(C183)=MONTH(DATEVALUE(TEXT(DATE(2000,MONTH(DATEVALUE($E$7&" 1"))+7,1),"mmmm")&" 1")),E183/F177*E177,"")) ->  | S183: =IF(ISBLANK(C183),"",IF(MONTH(C183)=MONTH(DATEVALUE(TEXT(DATE(2000,MONTH(DATEVALUE($E$7&" 1"))+8,1),"mmmm")&" 1")),E183/F177*E177,"")) ->  | T183: =IF(ISBLANK(C183),"",IF(MONTH(C183)=MONTH(DATEVALUE(TEXT(DATE(2000,MONTH(DATEVALUE($E$7&" 1"))+9,1),"mmmm")&" 1")),E183/F177*E177,"")) ->  | U183: =IF(ISBLANK(C183),"",IF(MONTH(C183)=MONTH(DATEVALUE(TEXT(DATE(2000,MONTH(DATEVALUE($E$7&" 1"))+10,1),"mmmm")&" 1")),E183/F177*E177,"")) ->  | V183: =IF(ISBLANK(C183),"",IF(MONTH(C183)=MONTH(DATEVALUE(TEXT(DATE(2000,MONTH(DATEVALUE($E$7&" 1"))+11,1),"mmmm")&" 1")),E183/F177*E177,"")) -> 
I184: 0 | K184: =IF(ISBLANK(C184),"",IF(MONTH(C184)=MONTH(DATEVALUE($E$7&" 1")),E184/F177*E177,"")) ->  | L184: =IF(ISBLANK(C184),"",IF(MONTH(C184)=MONTH(DATEVALUE(TEXT(DATE(2000,MONTH(DATEVALUE($E$7&" 1"))+1,1),"mmmm")&" 1")),E184/F177*E177,"")) ->  | M184: =IF(ISBLANK(C184),"",IF(MONTH(C184)=MONTH(DATEVALUE(TEXT(DATE(2000,MONTH(DATEVALUE($E$7&" 1"))+2,1),"mmmm")&" 1")),E184/F177*E177,"")) ->  | N184: =IF(ISBLANK(C184),"",IF(MONTH(C184)=MONTH(DATEVALUE(TEXT(DATE(2000,MONTH(DATEVALUE($E$7&" 1"))+3,1),"mmmm")&" 1")),E184/F177*E177,"")) ->  | O184: =IF(ISBLANK(C184),"",IF(MONTH(C184)=MONTH(DATEVALUE(TEXT(DATE(2000,MONTH(DATEVALUE($E$7&" 1"))+4,1),"mmmm")&" 1")),E184/F177*E177,"")) ->  | P184: =IF(ISBLANK(C184),"",IF(MONTH(C184)=MONTH(DATEVALUE(TEXT(DATE(2000,MONTH(DATEVALUE($E$7&" 1"))+5,1),"mmmm")&" 1")),E184/F177*E177,"")) ->  | Q184: =IF(ISBLANK(C184),"",IF(MONTH(C184)=MONTH(DATEVALUE(TEXT(DATE(2000,MONTH(DATEVALUE($E$7&" 1"))+6,1),"mmmm")&" 1")),E184/F177*E177,"")) ->  | R184: =IF(ISBLANK(C184),"",IF(MONTH(C184)=MONTH(DATEVALUE(TEXT(DATE(2000,MONTH(DATEVALUE($E$7&" 1"))+7,1),"mmmm")&" 1")),E184/F177*E177,"")) ->  | S184: =IF(ISBLANK(C184),"",IF(MONTH(C184)=MONTH(DATEVALUE(TEXT(DATE(2000,MONTH(DATEVALUE($E$7&" 1"))+8,1),"mmmm")&" 1")),E184/F177*E177,"")) ->  | T184: =IF(ISBLANK(C184),"",IF(MONTH(C184)=MONTH(DATEVALUE(TEXT(DATE(2000,MONTH(DATEVALUE($E$7&" 1"))+9,1),"mmmm")&" 1")),E184/F177*E177,"")) ->  | U184: =IF(ISBLANK(C184),"",IF(MONTH(C184)=MONTH(DATEVALUE(TEXT(DATE(2000,MONTH(DATEVALUE($E$7&" 1"))+10,1),"mmmm")&" 1")),E184/F177*E177,"")) ->  | V184: =IF(ISBLANK(C184),"",IF(MONTH(C184)=MONTH(DATEVALUE(TEXT(DATE(2000,MONTH(DATEVALUE($E$7&" 1"))+11,1),"mmmm")&" 1")),E184/F177*E177,"")) -> 
I185: 0 | K185: =IF(ISBLANK(C185),"",IF(MONTH(C185)=MONTH(DATEVALUE($E$7&" 1")),E185/F177*E177,"")) ->  | L185: =IF(ISBLANK(C185),"",IF(MONTH(C185)=MONTH(DATEVALUE(TEXT(DATE(2000,MONTH(DATEVALUE($E$7&" 1"))+1,1),"mmmm")&" 1")),E185/F177*E177,"")) ->  | M185: =IF(ISBLANK(C185),"",IF(MONTH(C185)=MONTH(DATEVALUE(TEXT(DATE(2000,MONTH(DATEVALUE($E$7&" 1"))+2,1),"mmmm")&" 1")),E185/F177*E177,"")) ->  | N185: =IF(ISBLANK(C185),"",IF(MONTH(C185)=MONTH(DATEVALUE(TEXT(DATE(2000,MONTH(DATEVALUE($E$7&" 1"))+3,1),"mmmm")&" 1")),E185/F177*E177,"")) ->  | O185: =IF(ISBLANK(C185),"",IF(MONTH(C185)=MONTH(DATEVALUE(TEXT(DATE(2000,MONTH(DATEVALUE($E$7&" 1"))+4,1),"mmmm")&" 1")),E185/F177*E177,"")) ->  | P185: =IF(ISBLANK(C185),"",IF(MONTH(C185)=MONTH(DATEVALUE(TEXT(DATE(2000,MONTH(DATEVALUE($E$7&" 1"))+5,1),"mmmm")&" 1")),E185/F177*E177,"")) ->  | Q185: =IF(ISBLANK(C185),"",IF(MONTH(C185)=MONTH(DATEVALUE(TEXT(DATE(2000,MONTH(DATEVALUE($E$7&" 1"))+6,1),"mmmm")&" 1")),E185/F177*E177,"")) ->  | R185: =IF(ISBLANK(C185),"",IF(MONTH(C185)=MONTH(DATEVALUE(TEXT(DATE(2000,MONTH(DATEVALUE($E$7&" 1"))+7,1),"mmmm")&" 1")),E185/F177*E177,"")) ->  | S185: =IF(ISBLANK(C185),"",IF(MONTH(C185)=MONTH(DATEVALUE(TEXT(DATE(2000,MONTH(DATEVALUE($E$7&" 1"))+8,1),"mmmm")&" 1")),E185/F177*E177,"")) ->  | T185: =IF(ISBLANK(C185),"",IF(MONTH(C185)=MONTH(DATEVALUE(TEXT(DATE(2000,MONTH(DATEVALUE($E$7&" 1"))+9,1),"mmmm")&" 1")),E185/F177*E177,"")) ->  | U185: =IF(ISBLANK(C185),"",IF(MONTH(C185)=MONTH(DATEVALUE(TEXT(DATE(2000,MONTH(DATEVALUE($E$7&" 1"))+10,1),"mmmm")&" 1")),E185/F177*E177,"")) ->  | V185: =IF(ISBLANK(C185),"",IF(MONTH(C185)=MONTH(DATEVALUE(TEXT(DATE(2000,MONTH(DATEVALUE($E$7&" 1"))+11,1),"mmmm")&" 1")),E185/F177*E177,"")) -> 
I186: 0 | K186: =IF(ISBLANK(C186),"",IF(MONTH(C186)=MONTH(DATEVALUE($E$7&" 1")),E186/F177*E177,"")) ->  | L186: =IF(ISBLANK(C186),"",IF(MONTH(C186)=MONTH(DATEVALUE(TEXT(DATE(2000,MONTH(DATEVALUE($E$7&" 1"))+1,1),"mmmm")&" 1")),E186/F177*E177,"")) ->  | M186: =IF(ISBLANK(C186),"",IF(MONTH(C186)=MONTH(DATEVALUE(TEXT(DATE(2000,MONTH(DATEVALUE($E$7&" 1"))+2,1),"mmmm")&" 1")),E186/F177*E177,"")) ->  | N186: =IF(ISBLANK(C186),"",IF(MONTH(C186)=MONTH(DATEVALUE(TEXT(DATE(2000,MONTH(DATEVALUE($E$7&" 1"))+3,1),"mmmm")&" 1")),E186/F177*E177,"")) ->  | O186: =IF(ISBLANK(C186),"",IF(MONTH(C186)=MONTH(DATEVALUE(TEXT(DATE(2000,MONTH(DATEVALUE($E$7&" 1"))+4,1),"mmmm")&" 1")),E186/F177*E177,"")) ->  | P186: =IF(ISBLANK(C186),"",IF(MONTH(C186)=MONTH(DATEVALUE(TEXT(DATE(2000,MONTH(DATEVALUE($E$7&" 1"))+5,1),"mmmm")&" 1")),E186/F177*E177,"")) ->  | Q186: =IF(ISBLANK(C186),"",IF(MONTH(C186)=MONTH(DATEVALUE(TEXT(DATE(2000,MONTH(DATEVALUE($E$7&" 1"))+6,1),"mmmm")&" 1")),E186/F177*E177,"")) ->  | R186: =IF(ISBLANK(C186),"",IF(MONTH(C186)=MONTH(DATEVALUE(TEXT(DATE(2000,MONTH(DATEVALUE($E$7&" 1"))+7,1),"mmmm")&" 1")),E186/F177*E177,"")) ->  | S186: =IF(ISBLANK(C186),"",IF(MONTH(C186)=MONTH(DATEVALUE(TEXT(DATE(2000,MONTH(DATEVALUE($E$7&" 1"))+8,1),"mmmm")&" 1")),E186/F177*E177,"")) ->  | T186: =IF(ISBLANK(C186),"",IF(MONTH(C186)=MONTH(DATEVALUE(TEXT(DATE(2000,MONTH(DATEVALUE($E$7&" 1"))+9,1),"mmmm")&" 1")),E186/F177*E177,"")) ->  | U186: =IF(ISBLANK(C186),"",IF(MONTH(C186)=MONTH(DATEVALUE(TEXT(DATE(2000,MONTH(DATEVALUE($E$7&" 1"))+10,1),"mmmm")&" 1")),E186/F177*E177,"")) ->  | V186: =IF(ISBLANK(C186),"",IF(MONTH(C186)=MONTH(DATEVALUE(TEXT(DATE(2000,MONTH(DATEVALUE($E$7&" 1"))+11,1),"mmmm")&" 1")),E186/F177*E177,"")) -> 
I187: 0 | K187: =IF(ISBLANK(C187),"",IF(MONTH(C187)=MONTH(DATEVALUE($E$7&" 1")),E187/F177*E177,"")) ->  | L187: =IF(ISBLANK(C187),"",IF(MONTH(C187)=MONTH(DATEVALUE(TEXT(DATE(2000,MONTH(DATEVALUE($E$7&" 1"))+1,1),"mmmm")&" 1")),E187/F177*E177,"")) ->  | M187: =IF(ISBLANK(C187),"",IF(MONTH(C187)=MONTH(DATEVALUE(TEXT(DATE(2000,MONTH(DATEVALUE($E$7&" 1"))+2,1),"mmmm")&" 1")),E187/F177*E177,"")) ->  | N187: =IF(ISBLANK(C187),"",IF(MONTH(C187)=MONTH(DATEVALUE(TEXT(DATE(2000,MONTH(DATEVALUE($E$7&" 1"))+3,1),"mmmm")&" 1")),E187/F177*E177,"")) ->  | O187: =IF(ISBLANK(C187),"",IF(MONTH(C187)=MONTH(DATEVALUE(TEXT(DATE(2000,MONTH(DATEVALUE($E$7&" 1"))+4,1),"mmmm")&" 1")),E187/F177*E177,"")) ->  | P187: =IF(ISBLANK(C187),"",IF(MONTH(C187)=MONTH(DATEVALUE(TEXT(DATE(2000,MONTH(DATEVALUE($E$7&" 1"))+5,1),"mmmm")&" 1")),E187/F177*E177,"")) ->  | Q187: =IF(ISBLANK(C187),"",IF(MONTH(C187)=MONTH(DATEVALUE(TEXT(DATE(2000,MONTH(DATEVALUE($E$7&" 1"))+6,1),"mmmm")&" 1")),E187/F177*E177,"")) ->  | R187: =IF(ISBLANK(C187),"",IF(MONTH(C187)=MONTH(DATEVALUE(TEXT(DATE(2000,MONTH(DATEVALUE($E$7&" 1"))+7,1),"mmmm")&" 1")),E187/F177*E177,"")) ->  | S187: =IF(ISBLANK(C187),"",IF(MONTH(C187)=MONTH(DATEVALUE(TEXT(DATE(2000,MONTH(DATEVALUE($E$7&" 1"))+8,1),"mmmm")&" 1")),E187/F177*E177,"")) ->  | T187: =IF(ISBLANK(C187),"",IF(MONTH(C187)=MONTH(DATEVALUE(TEXT(DATE(2000,MONTH(DATEVALUE($E$7&" 1"))+9,1),"mmmm")&" 1")),E187/F177*E177,"")) ->  | U187: =IF(ISBLANK(C187),"",IF(MONTH(C187)=MONTH(DATEVALUE(TEXT(DATE(2000,MONTH(DATEVALUE($E$7&" 1"))+10,1),"mmmm")&" 1")),E187/F177*E177,"")) ->  | V187: =IF(ISBLANK(C187),"",IF(MONTH(C187)=MONTH(DATEVALUE(TEXT(DATE(2000,MONTH(DATEVALUE($E$7&" 1"))+11,1),"mmmm")&" 1")),E187/F177*E177,"")) -> 
I188: 0 | K188: =IF(ISBLANK(C188),"",IF(MONTH(C188)=MONTH(DATEVALUE($E$7&" 1")),E188/F177*E177,"")) ->  | L188: =IF(ISBLANK(C188),"",IF(MONTH(C188)=MONTH(DATEVALUE(TEXT(DATE(2000,MONTH(DATEVALUE($E$7&" 1"))+1,1),"mmmm")&" 1")),E188/F177*E177,"")) ->  | M188: =IF(ISBLANK(C188),"",IF(MONTH(C188)=MONTH(DATEVALUE(TEXT(DATE(2000,MONTH(DATEVALUE($E$7&" 1"))+2,1),"mmmm")&" 1")),E188/F177*E177,"")) ->  | N188: =IF(ISBLANK(C188),"",IF(MONTH(C188)=MONTH(DATEVALUE(TEXT(DATE(2000,MONTH(DATEVALUE($E$7&" 1"))+3,1),"mmmm")&" 1")),E188/F177*E177,"")) ->  | O188: =IF(ISBLANK(C188),"",IF(MONTH(C188)=MONTH(DATEVALUE(TEXT(DATE(2000,MONTH(DATEVALUE($E$7&" 1"))+4,1),"mmmm")&" 1")),E188/F177*E177,"")) ->  | P188: =IF(ISBLANK(C188),"",IF(MONTH(C188)=MONTH(DATEVALUE(TEXT(DATE(2000,MONTH(DATEVALUE($E$7&" 1"))+5,1),"mmmm")&" 1")),E188/F177*E177,"")) ->  | Q188: =IF(ISBLANK(C188),"",IF(MONTH(C188)=MONTH(DATEVALUE(TEXT(DATE(2000,MONTH(DATEVALUE($E$7&" 1"))+6,1),"mmmm")&" 1")),E188/F177*E177,"")) ->  | R188: =IF(ISBLANK(C188),"",IF(MONTH(C188)=MONTH(DATEVALUE(TEXT(DATE(2000,MONTH(DATEVALUE($E$7&" 1"))+7,1),"mmmm")&" 1")),E188/F177*E177,"")) ->  | S188: =IF(ISBLANK(C188),"",IF(MONTH(C188)=MONTH(DATEVALUE(TEXT(DATE(2000,MONTH(DATEVALUE($E$7&" 1"))+8,1),"mmmm")&" 1")),E188/F177*E177,"")) ->  | T188: =IF(ISBLANK(C188),"",IF(MONTH(C188)=MONTH(DATEVALUE(TEXT(DATE(2000,MONTH(DATEVALUE($E$7&" 1"))+9,1),"mmmm")&" 1")),E188/F177*E177,"")) ->  | U188: =IF(ISBLANK(C188),"",IF(MONTH(C188)=MONTH(DATEVALUE(TEXT(DATE(2000,MONTH(DATEVALUE($E$7&" 1"))+10,1),"mmmm")&" 1")),E188/F177*E177,"")) ->  | V188: =IF(ISBLANK(C188),"",IF(MONTH(C188)=MONTH(DATEVALUE(TEXT(DATE(2000,MONTH(DATEVALUE($E$7&" 1"))+11,1),"mmmm")&" 1")),E188/F177*E177,"")) -> 
H189: =IFERROR(I189/E189,0) -> 0 | I189: =SUM(I190:J200) -> 0 | W189: =IF(H189<>100%,"Pas ok","ok") -> Pas ok
B190: =$B$10 -> réf. Facture | C190: =$C$10 -> date facture | D190: =$D$10 -> Description facture | E190: =$E$10 -> Montant facture (HTVA)
I191: =SUM(K191:V191) -> 0 | K191: =IF(ISBLANK(C191),"",IF(MONTH(C191)=MONTH(DATEVALUE($E$7&" 1")),E191/F189*E189,"")) ->  | L191: =IF(ISBLANK(C191),"",IF(MONTH(C191)=MONTH(DATEVALUE(TEXT(DATE(2000,MONTH(DATEVALUE($E$7&" 1"))+1,1),"mmmm")&" 1")),E191/F189*E189,"")) ->  | M191: =IF(ISBLANK(C191),"",IF(MONTH(C191)=MONTH(DATEVALUE(TEXT(DATE(2000,MONTH(DATEVALUE($E$7&" 1"))+2,1),"mmmm")&" 1")),E191/F189*E189,"")) ->  | N191: =IF(ISBLANK(C191),"",IF(MONTH(C191)=MONTH(DATEVALUE(TEXT(DATE(2000,MONTH(DATEVALUE($E$7&" 1"))+3,1),"mmmm")&" 1")),E191/F189*E189,"")) ->  | O191: =IF(ISBLANK(C191),"",IF(MONTH(C191)=MONTH(DATEVALUE(TEXT(DATE(2000,MONTH(DATEVALUE($E$7&" 1"))+4,1),"mmmm")&" 1")),E191/F189*E189,"")) ->  | P191: =IF(ISBLANK(C191),"",IF(MONTH(C191)=MONTH(DATEVALUE(TEXT(DATE(2000,MONTH(DATEVALUE($E$7&" 1"))+5,1),"mmmm")&" 1")),E191/F189*E189,"")) ->  | Q191: =IF(ISBLANK(C191),"",IF(MONTH(C191)=MONTH(DATEVALUE(TEXT(DATE(2000,MONTH(DATEVALUE($E$7&" 1"))+6,1),"mmmm")&" 1")),E191/F189*E189,"")) ->  | R191: =IF(ISBLANK(C191),"",IF(MONTH(C191)=MONTH(DATEVALUE(TEXT(DATE(2000,MONTH(DATEVALUE($E$7&" 1"))+7,1),"mmmm")&" 1")),E191/F189*E189,"")) ->  | S191: =IF(ISBLANK(C191),"",IF(MONTH(C191)=MONTH(DATEVALUE(TEXT(DATE(2000,MONTH(DATEVALUE($E$7&" 1"))+8,1),"mmmm")&" 1")),E191/F189*E189,"")) ->  | T191: =IF(ISBLANK(C191),"",IF(MONTH(C191)=MONTH(DATEVALUE(TEXT(DATE(2000,MONTH(DATEVALUE($E$7&" 1"))+9,1),"mmmm")&" 1")),E191/F189*E189,"")) ->  | U191: =IF(ISBLANK(C191),"",IF(MONTH(C191)=MONTH(DATEVALUE(TEXT(DATE(2000,MONTH(DATEVALUE($E$7&" 1"))+10,1),"mmmm")&" 1")),E191/F189*E189,"")) ->  | V191: =IF(ISBLANK(C191),"",IF(MONTH(C191)=MONTH(DATEVALUE(TEXT(DATE(2000,MONTH(DATEVALUE($E$7&" 1"))+11,1),"mmmm")&" 1")),E191/F189*E189,"")) -> 
I192: 0 | K192: =IF(ISBLANK(C192),"",IF(MONTH(C192)=MONTH(DATEVALUE($E$7&" 1")),E192/F189*E189,"")) ->  | L192: =IF(ISBLANK(C192),"",IF(MONTH(C192)=MONTH(DATEVALUE(TEXT(DATE(2000,MONTH(DATEVALUE($E$7&" 1"))+1,1),"mmmm")&" 1")),E192/F189*E189,"")) ->  | M192: =IF(ISBLANK(C192),"",IF(MONTH(C192)=MONTH(DATEVALUE(TEXT(DATE(2000,MONTH(DATEVALUE($E$7&" 1"))+2,1),"mmmm")&" 1")),E192/F189*E189,"")) ->  | N192: =IF(ISBLANK(C192),"",IF(MONTH(C192)=MONTH(DATEVALUE(TEXT(DATE(2000,MONTH(DATEVALUE($E$7&" 1"))+3,1),"mmmm")&" 1")),E192/F189*E189,"")) ->  | O192: =IF(ISBLANK(C192),"",IF(MONTH(C192)=MONTH(DATEVALUE(TEXT(DATE(2000,MONTH(DATEVALUE($E$7&" 1"))+4,1),"mmmm")&" 1")),E192/F189*E189,"")) ->  | P192: =IF(ISBLANK(C192),"",IF(MONTH(C192)=MONTH(DATEVALUE(TEXT(DATE(2000,MONTH(DATEVALUE($E$7&" 1"))+5,1),"mmmm")&" 1")),E192/F189*E189,"")) ->  | Q192: =IF(ISBLANK(C192),"",IF(MONTH(C192)=MONTH(DATEVALUE(TEXT(DATE(2000,MONTH(DATEVALUE($E$7&" 1"))+6,1),"mmmm")&" 1")),E192/F189*E189,"")) ->  | R192: =IF(ISBLANK(C192),"",IF(MONTH(C192)=MONTH(DATEVALUE(TEXT(DATE(2000,MONTH(DATEVALUE($E$7&" 1"))+7,1),"mmmm")&" 1")),E192/F189*E189,"")) ->  | S192: =IF(ISBLANK(C192),"",IF(MONTH(C192)=MONTH(DATEVALUE(TEXT(DATE(2000,MONTH(DATEVALUE($E$7&" 1"))+8,1),"mmmm")&" 1")),E192/F189*E189,"")) ->  | T192: =IF(ISBLANK(C192),"",IF(MONTH(C192)=MONTH(DATEVALUE(TEXT(DATE(2000,MONTH(DATEVALUE($E$7&" 1"))+9,1),"mmmm")&" 1")),E192/F189*E189,"")) ->  | U192: =IF(ISBLANK(C192),"",IF(MONTH(C192)=MONTH(DATEVALUE(TEXT(DATE(2000,MONTH(DATEVALUE($E$7&" 1"))+10,1),"mmmm")&" 1")),E192/F189*E189,"")) ->  | V192: =IF(ISBLANK(C192),"",IF(MONTH(C192)=MONTH(DATEVALUE(TEXT(DATE(2000,MONTH(DATEVALUE($E$7&" 1"))+11,1),"mmmm")&" 1")),E192/F189*E189,"")) -> 
I193: 0 | K193: =IF(ISBLANK(C193),"",IF(MONTH(C193)=MONTH(DATEVALUE($E$7&" 1")),E193/F189*E189,"")) ->  | L193: =IF(ISBLANK(C193),"",IF(MONTH(C193)=MONTH(DATEVALUE(TEXT(DATE(2000,MONTH(DATEVALUE($E$7&" 1"))+1,1),"mmmm")&" 1")),E193/F189*E189,"")) ->  | M193: =IF(ISBLANK(C193),"",IF(MONTH(C193)=MONTH(DATEVALUE(TEXT(DATE(2000,MONTH(DATEVALUE($E$7&" 1"))+2,1),"mmmm")&" 1")),E193/F189*E189,"")) ->  | N193: =IF(ISBLANK(C193),"",IF(MONTH(C193)=MONTH(DATEVALUE(TEXT(DATE(2000,MONTH(DATEVALUE($E$7&" 1"))+3,1),"mmmm")&" 1")),E193/F189*E189,"")) ->  | O193: =IF(ISBLANK(C193),"",IF(MONTH(C193)=MONTH(DATEVALUE(TEXT(DATE(2000,MONTH(DATEVALUE($E$7&" 1"))+4,1),"mmmm")&" 1")),E193/F189*E189,"")) ->  | P193: =IF(ISBLANK(C193),"",IF(MONTH(C193)=MONTH(DATEVALUE(TEXT(DATE(2000,MONTH(DATEVALUE($E$7&" 1"))+5,1),"mmmm")&" 1")),E193/F189*E189,"")) ->  | Q193: =IF(ISBLANK(C193),"",IF(MONTH(C193)=MONTH(DATEVALUE(TEXT(DATE(2000,MONTH(DATEVALUE($E$7&" 1"))+6,1),"mmmm")&" 1")),E193/F189*E189,"")) ->  | R193: =IF(ISBLANK(C193),"",IF(MONTH(C193)=MONTH(DATEVALUE(TEXT(DATE(2000,MONTH(DATEVALUE($E$7&" 1"))+7,1),"mmmm")&" 1")),E193/F189*E189,"")) ->  | S193: =IF(ISBLANK(C193),"",IF(MONTH(C193)=MONTH(DATEVALUE(TEXT(DATE(2000,MONTH(DATEVALUE($E$7&" 1"))+8,1),"mmmm")&" 1")),E193/F189*E189,"")) ->  | T193: =IF(ISBLANK(C193),"",IF(MONTH(C193)=MONTH(DATEVALUE(TEXT(DATE(2000,MONTH(DATEVALUE($E$7&" 1"))+9,1),"mmmm")&" 1")),E193/F189*E189,"")) ->  | U193: =IF(ISBLANK(C193),"",IF(MONTH(C193)=MONTH(DATEVALUE(TEXT(DATE(2000,MONTH(DATEVALUE($E$7&" 1"))+10,1),"mmmm")&" 1")),E193/F189*E189,"")) ->  | V193: =IF(ISBLANK(C193),"",IF(MONTH(C193)=MONTH(DATEVALUE(TEXT(DATE(2000,MONTH(DATEVALUE($E$7&" 1"))+11,1),"mmmm")&" 1")),E193/F189*E189,"")) -> 
I194: 0 | K194: =IF(ISBLANK(C194),"",IF(MONTH(C194)=MONTH(DATEVALUE($E$7&" 1")),E194/F189*E189,"")) ->  | L194: =IF(ISBLANK(C194),"",IF(MONTH(C194)=MONTH(DATEVALUE(TEXT(DATE(2000,MONTH(DATEVALUE($E$7&" 1"))+1,1),"mmmm")&" 1")),E194/F189*E189,"")) ->  | M194: =IF(ISBLANK(C194),"",IF(MONTH(C194)=MONTH(DATEVALUE(TEXT(DATE(2000,MONTH(DATEVALUE($E$7&" 1"))+2,1),"mmmm")&" 1")),E194/F189*E189,"")) ->  | N194: =IF(ISBLANK(C194),"",IF(MONTH(C194)=MONTH(DATEVALUE(TEXT(DATE(2000,MONTH(DATEVALUE($E$7&" 1"))+3,1),"mmmm")&" 1")),E194/F189*E189,"")) ->  | O194: =IF(ISBLANK(C194),"",IF(MONTH(C194)=MONTH(DATEVALUE(TEXT(DATE(2000,MONTH(DATEVALUE($E$7&" 1"))+4,1),"mmmm")&" 1")),E194/F189*E189,"")) ->  | P194: =IF(ISBLANK(C194),"",IF(MONTH(C194)=MONTH(DATEVALUE(TEXT(DATE(2000,MONTH(DATEVALUE($E$7&" 1"))+5,1),"mmmm")&" 1")),E194/F189*E189,"")) ->  | Q194: =IF(ISBLANK(C194),"",IF(MONTH(C194)=MONTH(DATEVALUE(TEXT(DATE(2000,MONTH(DATEVALUE($E$7&" 1"))+6,1),"mmmm")&" 1")),E194/F189*E189,"")) ->  | R194: =IF(ISBLANK(C194),"",IF(MONTH(C194)=MONTH(DATEVALUE(TEXT(DATE(2000,MONTH(DATEVALUE($E$7&" 1"))+7,1),"mmmm")&" 1")),E194/F189*E189,"")) ->  | S194: =IF(ISBLANK(C194),"",IF(MONTH(C194)=MONTH(DATEVALUE(TEXT(DATE(2000,MONTH(DATEVALUE($E$7&" 1"))+8,1),"mmmm")&" 1")),E194/F189*E189,"")) ->  | T194: =IF(ISBLANK(C194),"",IF(MONTH(C194)=MONTH(DATEVALUE(TEXT(DATE(2000,MONTH(DATEVALUE($E$7&" 1"))+9,1),"mmmm")&" 1")),E194/F189*E189,"")) ->  | U194: =IF(ISBLANK(C194),"",IF(MONTH(C194)=MONTH(DATEVALUE(TEXT(DATE(2000,MONTH(DATEVALUE($E$7&" 1"))+10,1),"mmmm")&" 1")),E194/F189*E189,"")) ->  | V194: =IF(ISBLANK(C194),"",IF(MONTH(C194)=MONTH(DATEVALUE(TEXT(DATE(2000,MONTH(DATEVALUE($E$7&" 1"))+11,1),"mmmm")&" 1")),E194/F189*E189,"")) -> 
